Workbook

Sheet Check List
B2: Check List Calculo Consolidado Anual
B4: 1 | C4: Borrar
B5: 1.1 | C5: En caso de necesitar borrar datos de un mes en específico, seleccionar mes y año y ejecutar la macro borrar mes
B6: 1.2 | C6: En caso de necesitar borrar datos de todo el año, seleccionar año y ejecutar la macro borrar año
B8: 2 | C8: Traspaso de datos
B9: 2.1 | C9: Revisar que las tablas de las hojas de cáclulo verde tengas los mismos datos que los de la tabla dinámica ubicada en la columna B de la hoja Unidades
B10: 2.2 | C10: En caso de necesitar traspasar datos de un mes en específico, seleccionar mes y año y ejecutar la macro traspasar mes
B11: 2.3 | C11: En caso de necesitar traspasar datos de todo el año, seleccionar año y ejecutar la macro traspasar año
B13: 3 | C13: Calcular Impuesto por central
B14: 3.1 | C14: Una vez cargados todos los datos del año proceder la macro "Impuesto" caclculo el impuesto por unidad generadora.

Sheet Macros
B4: 1. Datos | F4: 2. Borrar datos anteriores | J4: 3. Traspasar datos desde planillas mensuales | N4: 3. Calcular Impuesto por central
B6: Mes: | C6: 01_Enero
B7: Año: | C7: 2019

Sheet Lista completa
B2: Listados de Fuentes de Generación
B4: Empresa | C4: Rut | D4: Nombre Establecimiento | E4: ID RECT (VU) | F4: Unidad Generadora | G4: Fuente | H4: N° registro de emisiones de Fuentes Fijas (F138) | I4: Nombre unidad Peajes | J4: Nombre central Peajes | K4: Nombre central TCV | L4: Nombre unidad TCV | M4: Nombre configuración TCV | N4: Combustible | O4: Barra Generación CMg | P4: Autoproductor | Q4: Excedente | R4: N° medidores involucrados | S4: Medida 1 | T4: Medida 2 | U4: Medida 3
B5: AES_GENER | C5: 94.272.000-9 | D5: CENTRAL TERMOELÉCTRICA NUEVA TOCOPILLA | E5: 5441369 | F5: TERMOELÉCTRICA NUEVA TOCOPILLA (NTO1) | G5: UGE NT-01 | H5: GE000005-5 | I5: NTO1 | J5: TERMOELÉCTRICA NORGENER | K5: Norgener | L5: NTO1 | M5: NORGENER-NTO1_CAR | N5: Carbón | O5: NORGENER______220 | P5: No | R5: 1 | S5: 12243200000IF | T5: - | U5: -
B6: AES_GENER | C6: 94.272.000-9 | D6: CENTRAL TERMOELÉCTRICA NUEVA TOCOPILLA | E6: 5441369 | F6: TERMOELÉCTRICA NUEVA TOCOPILLA (NTO2) | G6: UGE NT-02 | H6: GE000006-3 | I6: NTO2 | J6: TERMOELÉCTRICA NORGENER | K6: Norgener | L6: NTO2 | M6: NORGENER-NTO2_CAR | N6: Carbón | O6: NORGENER______220 | P6: No | R6: 1 | S6: 12243200000IF | T6: - | U6: -
B7: GMETROPOLITANA | C7: 76.538.731-0 | D7: CENTRAL LOS VIENTOS | E7: 386023 | F7: LOS VIENTOS TG | G7: UGE LOS VIENTOS TG | H7: PC000023-4 | I7: LOS VIENTOS 1 | J7: LOS VIENTOS | K7: Los Vientos | L7: Los Vientos | M7: LOSVIENTOS_DIESEL | N7: Diésel | O7: L.VEGAS_______110 | P7: No | R7: 1 | S7: G_VIENT | T7: - | U7: -
B8: GMETROPOLITANA | C8: 76.538.731-0 | D8: CENTRAL LOS VIENTOS | E8: 386023 | F8: LOS VIENTOS TG | G8: UGE LOS VIENTOS TG | H8: PC000023-4 | I8: LOS VIENTOS 1 | J8: LOS VIENTOS | K8: Los Vientos | L8: Los Vientos | M8: LOSVIENTOS_DIESEL_CNAVIA | N8: Diésel | O8: L.VEGAS2______110 | P8: No | R8: 1 | S8: G_VIENT | T8: - | U8: -
B9: AES_GENER | C9: 94.272.000-9 | D9: VENTANA IV (EX CENTRAL CAMPICHE) | E9: 4917485 | F9: CAMPICHE (VENTANAS 4) | G9: UGE Ventanas 4 | H9: GE000124-8 | I9: CAMPICHE | J9: CAMPICHE | K9: Termoeléctrica Ventanas | L9: Campiche | M9: CAMPICHE_CAR | N9: Carbón | O9: VENTANAS______220 | P9: No | R9: 1 | S9: G_CAMPICHE | T9: - | U9: -
B10: AES_GENER | C10: 94.272.000-9 | D10: CENTRAL TERMOELECTRICA NUEVA VENTANAS UNIDAD 3 | E10: 309729 | F10: NUEVA VENTANAS (VENTANAS 3) | G10: UGE Ventanas 3 | H10: GE000072-1 | I10: NUEVA VENTANAS | J10: NUEVA VENTANAS | K10: Termoeléctrica Ventanas | L10: Nueva Ventanas | M10: NUEVAVENTANAS_CAR | N10: Carbón | O10: VENTANAS______220 | P10: No | R10: 1 | S10: G_NVENTANAS | T10: - | U10: -
B11: AES_GENER | C11: 94.272.000-9 | D11: CENTRAL TERMOELECTRICA VENTANAS UNIDADES 1 Y 2 | E11: 85823 | F11: VENTANAS U1 | G11: UGE Ventanas U1 | H11: GE000035-7 | I11: VENTANAS 1 | J11: VENTANAS 1 | K11: Termoeléctrica Ventanas | L11: Ventanas 1 | M11: VENTANAS-1_CAR | N11: Carbón | O11: VENTANAS______110 | P11: No | R11: 2 | S11: G_VENT_1A | T11: G_VENT_1B | U11: -
B12: AES_GENER | C12: 94.272.000-9 | D12: CENTRAL TERMOELECTRICA VENTANAS UNIDADES 1 Y 2 | E12: 85823 | F12: VENTANAS U2 | G12: UGE Ventanas U2 | H12: GE000036-5 | I12: VENTANAS 2 | J12: VENTANAS 2 | K12: Termoeléctrica Ventanas | L12: Ventanas 2 | M12: VENTANAS-2_CAR | N12: Carbón | O12: VENTANAS______110 | P12: No | R12: 2 | S12: G_VENT_2A | T12: G_VENT_2B | U12: -
B13: AES_GENER | C13: 94.272.000-9 | D13: CENTRAL TERMOELECTRICA LAGUNA VERDE | E13: 85824 | F13: LAGUNA VERDE TG | G13: UGE Laguna Verde TG | H13: PC000603-8 | I13: LAGUNA VERDE TG | J13: LAGUNA VERDE | K13: Laguna Verde | L13: Laguna Verde TG | M13: LAGVERDE-TG_DIESEL | N13: Diésel | O13: L.VERDE_______110 | P13: No | R13: 1 | S13: L. VERDE_TG | T13: - | U13: -
B14: AES_GENER | C14: 94.272.000-9 | D14: CENTRAL TERMOELECTRICA LAGUNA VERDE | E14: 85824 | F14: LAGUNA VERDE TV Brown Boveri I | G14: UGE Laguna VerdeTV Brown Boveri | H14: GE000039-k | I14: LAGUNA VERDE TV1 | J14: LAGUNA VERDE | K14: Laguna Verde | L14: Laguna Verde TV | M14: LAGVERDE-TV_DIESEL | N14: Diésel | O14: L.VERDE_______110 | P14: No | R14: 1 | S14: L. VERDE_TV | T14: - | U14: -
B15: AES_GENER | C15: 94.272.000-9 | D15: CENTRAL TERMOELECTRICA LAGUNA VERDE | E15: 85824 | F15: LAGUNA VERDE TV Brown Boveri II | G15: UGE Laguna VerdeTV Brown Boveri | H15: GE000040-3 | I15: LAGUNA VERDE TV2 | J15: LAGUNA VERDE | K15: Laguna Verde | L15: Laguna Verde TV | M15: LAGVERDE-TV_DIESEL | N15: Diésel | O15: L.VERDE_______110 | P15: No | R15: 1 | S15: L. VERDE_TV | T15: - | U15: -
B16: AES_GENER | C16: 94.272.000-9 | D16: CENTRAL TERMOELECTRICA LAGUNA VERDE | E16: 85824 | F16: LAGUNA VERDE TV AEG I | G16: UGE Laguna Verde TV AEG | H16: GE000037-3 | I16: LAGUNA VERDE TV1 | J16: LAGUNA VERDE | K16: Laguna Verde | L16: Laguna Verde TV | M16: LAGVERDE-TV_DIESEL | N16: Diésel | O16: L.VERDE_______110 | P16: No | R16: 1 | S16: L. VERDE_TV | T16: - | U16: -
B17: AES_GENER | C17: 94.272.000-9 | D17: CENTRAL TERMOELECTRICA LAGUNA VERDE | E17: 85824 | F17: LAGUNA VERDE TV AEG II | G17: UGE Laguna Verde TV AEG | H17: GE000038-1 | I17: LAGUNA VERDE TV2 | J17: LAGUNA VERDE | K17: Laguna Verde | L17: Laguna Verde TV | M17: LAGVERDE-TV_DIESEL | N17: Diésel | O17: L.VERDE_______110 | P17: No | R17: 1 | S17: L. VERDE_TV | T17: - | U17: -
B18: AES_GENER | C18: 94.272.000-9 | D18: CENTRAL TERMOELECTRICA LAJA | E18: 386458 | F18: LAJA EVE | G18: Caldera | H18: GE000116-7 | I18: LAJA 1 | J18: LAJA | K18: Laja | L18: Laja | M18: LAJAEVE-1_COGEN | N18: Biomasa | O18: CHARRUA_______066 | P18: Sí | R18: 1 | S18: G_LAJA | T18: - | U18: -
B19: AES_GENER | C19: 94.272.000-9 | D19: CENTRAL TERMOELECTRICA LAJA | E19: 386458 | F19: LAJA EVE | G19: Caldera | H19: GE000116-7 | I19: LAJA 2 | J19: LAJA | K19: Laja | L19: Laja | M19: LAJAEVE-2_COGEN | N19: Biomasa | O19: CHARRUA_______066 | P19: Sí | R19: 1 | S19: G_LAJA | T19: - | U19: -
B20: GMETROPOLITANA | C20: 76.538.731-0 | D20: SANTA LIDIA | E20: 3188001 | F20: SANTA LIDIA | G20: UGE SANTA LIDIA | H20: PC000846-4 | I20: SANTA LIDIA 1 | J20: SANTA LIDIA | K20: Santa Lidia | L20: Santa Lidia | M20: SANTALIDIA_DIESEL | N20: Diésel | O20: CHARRUA_______220 | P20: No | R20: 1 | S20: G_SLIDIA | T20: - | U20: -
B21: GMETROPOLITANA | C21: 76.538.731-0 | D21: SOCIEDAD ELÉCTRICA SANTIAGO S.A. | E21: 9778 | F21: NUEVA RENCA | G21: UGE Nueva Renca | H21: IN001115-4 | I21: NUEVA RENCA | J21: NUEVA RENCA | K21: Nueva Renca | L21: Nueva Renca | M21: NUEVARENCA_TG1+TV1+FA1_GNL_INFLEX | N21: GNL | O21: RENCA_________110 | P21: No | R21: 1 | S21: GENNREN | T21: - | U21: -
B22: GMETROPOLITANA | C22: 76.538.731-0 | D22: SOCIEDAD ELÉCTRICA SANTIAGO S.A. | E22: 9778 | F22: NUEVA RENCA | G22: UGE Nueva Renca | H22: IN001115-4 | I22: NUEVA RENCA | J22: NUEVA RENCA | K22: Nueva Renca | L22: Nueva Renca | M22: NUEVARENCA_TG1+TV1_GNL_INFLEX | N22: GNL | O22: RENCA_________110 | P22: No | R22: 1 | S22: GENNREN | T22: - | U22: -
B23: GMETROPOLITANA | C23: 76.538.731-0 | D23: SOCIEDAD ELÉCTRICA SANTIAGO S.A. | E23: 9778 | F23: NUEVA RENCA | G23: UGE Nueva Renca | H23: IN001115-4 | I23: NUEVA RENCA | J23: NUEVA RENCA | K23: Nueva Renca | L23: Nueva Renca | M23: NUEVARENCA_TG1+TV1_GNL_B | N23: GNL | O23: RENCA_________110 | P23: No | R23: 1 | S23: GENNREN | T23: - | U23: -
B24: GMETROPOLITANA | C24: 76.538.731-0 | D24: SOCIEDAD ELÉCTRICA SANTIAGO S.A. | E24: 9778 | F24: NUEVA RENCA | G24: UGE Nueva Renca | H24: IN001115-4 | I24: NUEVA RENCA | J24: NUEVA RENCA | K24: Nueva Renca | L24: Nueva Renca | M24: NUEVARENCA_TG1+TV1_GNL_E | N24: GNL | O24: RENCA_________110 | P24: No | R24: 1 | S24: GENNREN | T24: - | U24: -
B25: GMETROPOLITANA | C25: 76.538.731-0 | D25: SOCIEDAD ELÉCTRICA SANTIAGO S.A. | E25: 9778 | F25: NUEVA RENCA | G25: UGE Nueva Renca | H25: IN001115-4 | I25: NUEVA RENCA | J25: NUEVA RENCA | K25: Nueva Renca | L25: Nueva Renca | M25: NUEVARENCA_TG1+TV1_GNL_C | N25: GNL | O25: RENCA_________110 | P25: No | R25: 1 | S25: GENNREN | T25: - | U25: -
B26: GMETROPOLITANA | C26: 76.538.731-0 | D26: SOCIEDAD ELÉCTRICA SANTIAGO S.A. | E26: 9778 | F26: NUEVA RENCA | G26: UGE Nueva Renca | H26: IN001115-4 | I26: NUEVA RENCA | J26: NUEVA RENCA | K26: Nueva Renca | L26: Nueva Renca | M26: NUEVARENCA_TG1+TV1_GNL_D | N26: GNL | O26: RENCA_________110 | P26: No | R26: 1 | S26: GENNREN | T26: - | U26: -
B27: GMETROPOLITANA | C27: 76.538.731-0 | D27: SOCIEDAD ELÉCTRICA SANTIAGO S.A. | E27: 9778 | F27: NUEVA RENCA | G27: UGE Nueva Renca | H27: IN001115-4 | I27: NUEVA RENCA | J27: NUEVA RENCA | K27: Nueva Renca | L27: Nueva Renca | M27: NUEVARENCA_TG1+TV1_GNL_A | N27: GNL | O27: RENCA_________110 | P27: No | R27: 1 | S27: GENNREN | T27: - | U27: -
B28: GMETROPOLITANA | C28: 76.538.731-0 | D28: SOCIEDAD ELÉCTRICA SANTIAGO S.A. | E28: 9778 | F28: NUEVA RENCA | G28: UGE Nueva Renca | H28: IN001115-4 | I28: NUEVA RENCA | J28: NUEVA RENCA | K28: Nueva Renca | L28: Nueva Renca | M28: NUEVARENCA_TG1+TV1+FA1_GNL_A | N28: GNL | O28: RENCA_________110 | P28: No | R28: 1 | S28: GENNREN | T28: - | U28: -
B29: GMETROPOLITANA | C29: 76.538.731-0 | D29: SOCIEDAD ELÉCTRICA SANTIAGO S.A. | E29: 9778 | F29: NUEVA RENCA | G29: UGE Nueva Renca | H29: IN001115-4 | I29: NUEVA RENCA | J29: NUEVA RENCA | K29: Nueva Renca | L29: Nueva Renca | M29: NUEVARENCA_TG1+TV1_DIESEL | N29: Diésel | O29: RENCA_________110 | P29: No | R29: 1 | S29: GENNREN | T29: - | U29: -
B30: GMETROPOLITANA | C30: 76.538.731-0 | D30: SOCIEDAD ELÉCTRICA SANTIAGO S.A. | E30: 9778 | F30: NUEVA RENCA | G30: UGE Nueva Renca | H30: IN001115-4 | I30: NUEVA RENCA | J30: NUEVA RENCA | K30: Nueva Renca | L30: Nueva Renca | M30: NUEVARENCA_TG1+TV1+FA1_GLP | N30: GLP | O30: RENCA_________110 | P30: No | R30: 1 | S30: GENNREN | T30: - | U30: -
B31: GMETROPOLITANA | C31: 76.538.731-0 | D31: SOCIEDAD ELÉCTRICA SANTIAGO S.A. | E31: 9778 | F31: NUEVA RENCA | G31: UGE Nueva Renca | H31: IN001115-4 | I31: NUEVA RENCA | J31: NUEVA RENCA | K31: Nueva Renca | L31: Nueva Renca | M31: NUEVARENCA_TG1+TV1+FA1_GNL_P | N31: GNL | O31: RENCA_________110 | P31: No | R31: 1 | S31: GENNREN | T31: - | U31: -
B32: GMETROPOLITANA | C32: 76.538.731-0 | D32: SOCIEDAD ELÉCTRICA SANTIAGO S.A. | E32: 9778 | F32: NUEVA RENCA | G32: UGE Nueva Renca | H32: IN001115-4 | I32: NUEVA RENCA | J32: NUEVA RENCA | K32: Nueva Renca | L32: Nueva Renca | M32: NUEVARENCA_TG1+TV1_GNL_P | N32: GN | O32: RENCA_________110 | P32: No | R32: 1 | S32: GENNREN | T32: - | U32: -
B33: GMETROPOLITANA | C33: 76.538.731-0 | D33: SOCIEDAD ELÉCTRICA SANTIAGO S.A. | E33: 9778 | F33: NUEVA RENCA | G33: UGE Nueva Renca | H33: IN001115-4 | I33: NUEVA RENCA | J33: NUEVA RENCA | K33: Nueva Renca | L33: Nueva Renca | M33: NUEVARENCA_TG1+TV1_GN_A | N33: GN | O33: RENCA_________110 | P33: No | R33: 1 | S33: GENNREN | T33: - | U33: -
B34: GMETROPOLITANA | C34: 76.538.731-0 | D34: SOCIEDAD ELÉCTRICA SANTIAGO S.A. | E34: 9778 | F34: NUEVA RENCA | G34: UGE Nueva Renca | H34: IN001115-4 | I34: NUEVA RENCA | J34: NUEVA RENCA | K34: Nueva Renca | L34: Nueva Renca | M34: NUEVARENCA_TG1+TV1+FA1_GN_A | N34: GNL | O34: RENCA_________110 | P34: No | R34: 1 | S34: GENNREN | T34: - | U34: -
B35: GMETROPOLITANA | C35: 76.538.731-0 | D35: SOCIEDAD ELÉCTRICA SANTIAGO S.A. | E35: 9778 | F35: RENCA U1 | G35: UGE RENCA U1 | H35: IN001131-6 | I35: RENCA 1 | J35: RENCA | K35: Renca | L35: Renca U1 | M35: RENCA-1_DIESEL | N35: Diésel | O35: RENCA_________110 | P35: No | R35: 1 | S35: RENCARB1 | T35: - | U35: -
B36: GMETROPOLITANA | C36: 76.538.731-0 | D36: SOCIEDAD ELÉCTRICA SANTIAGO S.A. | E36: 9778 | F36: RENCA U2 | G36: UGE RENCA U2 | H36: IN001132-4 | I36: RENCA 2 | J36: RENCA | K36: Renca | L36: Renca U2 | M36: RENCA-2_DIESEL | N36: Diésel | O36: RENCA_________110 | P36: No | R36: 1 | S36: RENCARB1 | T36: - | U36: -
B37: ANDINA | C37: 76.708.710-1 | D37: CENTRAL TERMICA ANDINA | E37: 436492 | F37: CENTRAL TERMOELÉCTRICA ANDINA (CTA) | G37: UGE CTA | H37: GE000251-8 | I37: CTA1 | J37: TERMOELÉCTRICA ANDINA | K37: Andina | L37: CTA | M37: ANDINA-CTA_CAR | N37: Carbón | O37: CHACAYA_______220 | P37: No | R37: 1 | S37: 02427500000IF | T37: - | U37: -
B38: ANGAMOS | C38: 76.004.976-K | D38: EMPRESA ELÉCTRICA ANGAMOS S.A. | E38: 5452292 | F38: TERMOELÉCTRICA ANGAMOS 1 (ANG1) | G38: UGE ANGAMOS 1 | H38: GE000103-5 | I38: ANG1 | J38: TERMOELÉCTRICA ANGAMOS | K38: Angamos | L38: ANG1 | M38: ANGAMOS-ANG1_CAR | N38: Carbón | O38: ANGAMOS_______220 | P38: No | R38: 1 | S38: 22040700000IF | T38: - | U38: -
B39: ANGAMOS | C39: 76.004.976-K | D39: EMPRESA ELÉCTRICA ANGAMOS S.A. | E39: 5452292 | F39: TERMOELÉCTRICA ANGAMOS 2 (ANG2) | G39: UGE ANGAMOS 2 | H39: GE000104-3 | I39: ANG2 | J39: TERMOELÉCTRICA ANGAMOS | K39: Angamos | L39: ANG2 | M39: ANGAMOS-ANG2_CAR | N39: Carbón | O39: ANGAMOS_______220 | P39: No | R39: 1 | S39: 22040800000IF | T39: - | U39: -
B40: ARAUCO BIO | C40: 96.547.510-9 | D40: PLANTA VIÑALES | E40: 4473 | F40: VIÑALES | G40: caldera de poder | H40: GE000085-3 | I40: VIÑALES | J40: VIÑALES | K40: Viñales | L40: Viñales | M40: VINALES_BL1_COGEN | N40: Biomasa | O40: CONSTIT.______066 | P40: Sí | R40: 1 | S40: G_VINALES | T40: - | U40: -
B41: ARAUCO BIO | C41: 96.547.510-9 | D41: PLANTA VIÑALES | E41: 4473 | F41: VIÑALES | G41: caldera de poder | H41: GE000085-3 | I41: VIÑALES | J41: VIÑALES | K41: Viñales | L41: Viñales | M41: VINALES_BL1+BL2_COGEN | N41: Biomasa | O41: CONSTIT.______066 | P41: Sí | R41: 1 | S41: G_VINALES | T41: - | U41: -
B42: ARAUCO BIO | C42: 96.547.510-9 | D42: CELULOSA ARAUCO Y CONSTITUCIÓN -PLANTA CONSTITUCIÓN | E42: 2396 | F42: CELCO | G42: Caldera de poder | H42: IN000211-2 | I42: CELCO TG2 | J42: CELCO | K42: Celco | L42: Celco | M42: CELCO_BL1_COGEN | N42: Biomasa | O42: CONSTIT.______066 | P42: Sí | R42: 1 | S42: G_CELCO | T42: - | U42: -
B43: ARAUCO BIO | C43: 96.547.510-9 | D43: CELULOSA ARAUCO Y CONSTITUCIÓN -PLANTA CONSTITUCIÓN | E43: 2396 | F43: CELCO | G43: Caldera de poder | H43: IN000211-2 | I43: CELCO TG2 | J43: CELCO | K43: Celco | L43: Celco | M43: CELCO_BL1+BL2_COGEN | N43: Diésel | O43: CONSTIT.______066 | P43: Sí | R43: 1 | S43: G_CELCO | T43: - | U43: -
B44: ARAUCO BIO | C44: 96.547.510-9 | D44: CELULOSA ARAUCO Y CONSTITUCIÓN -PLANTA CONSTITUCIÓN | E44: 2396 | F44: CELCO | G44: Caldera recuperadora | H44: IN000212-0 | I44: CELCO TG2 | J44: CELCO | K44: Celco | L44: Celco | M44: CELCO_BL1_COGEN | N44: Biomasa | O44: CONSTIT.______066 | P44: Sí | R44: 1 | S44: G_CELCO | T44: - | U44: -
B45: ARAUCO BIO | C45: 96.547.510-9 | D45: CELULOSA ARAUCO Y CONSTITUCIÓN -PLANTA CONSTITUCIÓN | E45: 2396 | F45: CELCO | G45: Caldera recuperadora | H45: IN000212-0 | I45: CELCO TG2 | J45: CELCO | K45: Celco | L45: Celco | M45: CELCO_BL1+BL2_COGEN | N45: Diésel | O45: CONSTIT.______066 | P45: Sí | R45: 1 | S45: G_CELCO | T45: - | U45: -
B46: ARAUCO BIO | C46: 96.547.510-9 | D46: PLANTA LICANCEL | E46: 85016 | F46: LICANTEN | G46: Caldera recuperadora | H46: IN000224-4 | I46: LICANTEN TG2 | J46: LICANTEN | K46: Licanten | L46: Licantén | M46: LICANTEN_COGEN | N46: Biomasa | O46: LICANTEN______066 | P46: Sí | R46: 1 | S46: G_LICAN | T46: - | U46: -
B47: ARAUCO BIO | C47: 96.547.510-9 | D47: PLANTA LICANCEL | E47: 85016 | F47: LICANTEN | G47: Caldera de poder | H47: IN000225-2 | I47: LICANTEN TG2 | J47: LICANTEN | K47: Licanten | L47: Licantén | M47: LICANTEN_COGEN | N47: Biomasa | O47: LICANTEN______066 | P47: Sí | R47: 1 | S47: G_LICAN | T47: - | U47: -
B48: ARAUCO BIO | C48: 96.547.510-9 | D48: CENTRAL HORCONES | E48: 88406 | F48: HORCONES | G48: TURBOGENERADOR | H48: PC002440-0 | I48: HORCONES TG | J48: HORCONES TG | K48: Horcones TG | L48: Horcones | M48: HORCONES_DIESEL | N48: Diésel | O48: HORCONES______066 | P48: No | R48: 1 | S48: G_HORCO | T48: - | U48: -
B49: ARAUCO BIO | C49: 96.547.510-9 | D49: CELULOSA ARAUCO Y CONSTITUCIÓN -PLANTA ARAUCO | E49: 2397 | F49: ARAUCO | G49: CALDERA DE PODER 1 | H49: IN000213-9 | I49: ARAUCO TG4/5 | J49: ARAUCO | K49: Arauco | L49: Arauco | M49: ARAUCO_COGEN | N49: Biomasa | O49: HORCONES______066 | P49: Sí | R49: 1 | S49: G_ARAUC | T49: - | U49: -
B50: ARAUCO BIO | C50: 96.547.510-9 | D50: CELULOSA ARAUCO Y CONSTITUCIÓN -PLANTA ARAUCO | E50: 2397 | F50: ARAUCO | G50: CALDERA DE PODER 1 | H50: IN000213-9 | I50: ARAUCO TG6 | J50: ARAUCO | K50: Arauco | L50: Arauco | M50: ARAUCO_COGEN | N50: Biomasa | O50: HORCONES______066 | P50: Sí | R50: 1 | S50: G_ARAUC | T50: - | U50: -
B51: ARAUCO BIO | C51: 96.547.510-9 | D51: CELULOSA ARAUCO Y CONSTITUCIÓN -PLANTA ARAUCO | E51: 2397 | F51: ARAUCO | G51: CALDERA RECUPERADORA 1 | H51: IN000214-7 | I51: ARAUCO TG4/5 | J51: ARAUCO | K51: Arauco | L51: Arauco | M51: ARAUCO_COGEN | N51: Biomasa | O51: HORCONES______066 | P51: Sí | R51: 1 | S51: G_ARAUC | T51: - | U51: -
B52: ARAUCO BIO | C52: 96.547.510-9 | D52: CELULOSA ARAUCO Y CONSTITUCIÓN -PLANTA ARAUCO | E52: 2397 | F52: ARAUCO | G52: CALDERA RECUPERADORA 1 | H52: IN000214-7 | I52: ARAUCO TG4/5 | J52: ARAUCO | K52: Arauco | L52: Arauco | M52: ARAUCO_COGEN | N52: Biomasa | O52: HORCONES______066 | P52: Sí | R52: 1 | S52: G_ARAUC | T52: - | U52: -
B53: ARAUCO BIO | C53: 96.547.510-9 | D53: CELULOSA ARAUCO Y CONSTITUCIÓN -PLANTA ARAUCO | E53: 2397 | F53: ARAUCO | G53: CALDERA DE PODER 3 | H53: IN000215-5 | I53: ARAUCO TG6 | J53: ARAUCO | K53: Arauco | L53: Arauco | M53: ARAUCO_COGEN | N53: Biomasa | O53: HORCONES______066 | P53: Sí | R53: 1 | S53: G_ARAUC | T53: - | U53: -
B54: ARAUCO BIO | C54: 96.547.510-9 | D54: CELULOSA ARAUCO Y CONSTITUCIÓN -PLANTA ARAUCO | E54: 2397 | F54: ARAUCO | G54: CALDERA DE PODER 2 | H54: IN000216-3 | I54: ARAUCO TG4/5 | J54: ARAUCO | K54: Arauco | L54: Arauco | M54: ARAUCO_COGEN | N54: Biomasa | O54: HORCONES______066 | P54: Sí | R54: 1 | S54: G_ARAUC | T54: - | U54: -
B55: ARAUCO BIO | C55: 96.547.510-9 | D55: CELULOSA ARAUCO Y CONSTITUCIÓN -PLANTA ARAUCO | E55: 2397 | F55: ARAUCO | G55: CALDERA DE PODER 2 | H55: IN000216-3 | I55: ARAUCO TG6 | J55: ARAUCO | K55: Arauco | L55: Arauco | M55: ARAUCO_COGEN | N55: Biomasa | O55: HORCONES______066 | P55: Sí | R55: 1 | S55: G_ARAUC | T55: - | U55: -
B56: ARAUCO BIO | C56: 96.547.510-9 | D56: CELULOSA ARAUCO Y CONSTITUCIÓN -PLANTA ARAUCO | E56: 2397 | F56: ARAUCO | G56: CALDERA RECUPERADORA 2 | H56: IN000217-1 | I56: ARAUCO TG4/5 | J56: ARAUCO | K56: Arauco | L56: Arauco | M56: ARAUCO_COGEN | N56: Biomasa | O56: HORCONES______066 | P56: Sí | R56: 1 | S56: G_ARAUC | T56: - | U56: -
B57: ARAUCO BIO | C57: 96.547.510-9 | D57: CELULOSA ARAUCO Y CONSTITUCIÓN -PLANTA ARAUCO | E57: 2397 | F57: ARAUCO | G57: CALDERA RECUPERADORA 2 | H57: IN000217-1 | I57: ARAUCO TG6 | J57: ARAUCO | K57: Arauco | L57: Arauco | M57: ARAUCO_COGEN | N57: Biomasa | O57: HORCONES______066 | P57: Sí | R57: 1 | S57: G_ARAUC | T57: - | U57: -
B58: ARAUCO BIO | C58: 96.547.510-9 | D58: CELULOSA ARAUCO Y CONSTITUCIÓN -PLANTA ARAUCO | E58: 2397 | F58: ARAUCO | G58: CALDERA DE PODER 4 | H58: IN001365-3 | I58: ARAUCO TG4/5 | J58: ARAUCO | K58: Arauco | L58: Arauco | M58: ARAUCO_COGEN | N58: Biomasa | O58: HORCONES______066 | P58: Sí | R58: 1 | S58: G_ARAUC | T58: - | U58: -
B59: ARAUCO BIO | C59: 96.547.510-9 | D59: CELULOSA ARAUCO Y CONSTITUCIÓN -PLANTA ARAUCO | E59: 2397 | F59: ARAUCO | G59: CALDERA DE PODER 4 | H59: IN001365-3 | I59: ARAUCO TG6 | J59: ARAUCO | K59: Arauco | L59: Arauco | M59: ARAUCO_COGEN | N59: Biomasa | O59: HORCONES______066 | P59: Sí | R59: 1 | S59: G_ARAUC | T59: - | U59: -
B60: ARAUCO BIO | C60: 96.547.510-9 | D60: NUEVA ALDEA (1 Y 3) | E60: 85017 | F60: NUEVA ALDEA (1 y 3) | G60: TURBOGENERADOR | H60: EL019740-9 | I60: NUEVA ALDEA I | J60: NUEVA ALDEA I | K60: Nueva Aldea I | L60: Nueva Aldea I | M60: NUEVAALDEA-1_BL1_COGEN | N60: Biomasa | O60: STA.ELVIRA____066 | P60: Sí | R60: 2 | S60: G_NALDEA1 | T60: G_NALDEA3 | U60: -
B61: ARAUCO BIO | C61: 96.547.510-9 | D61: NUEVA ALDEA (1 Y 3) | E61: 85017 | F61: NUEVA ALDEA (1 y 3) | G61: TURBOGENERADOR | H61: EL019740-9 | I61: NUEVA ALDEA I | J61: NUEVA ALDEA I | K61: Nueva Aldea I | L61: Nueva Aldea I | M61: NUEVAALDEA-1_BL1+BL2_COGEN | N61: Biomasa | O61: STA.ELVIRA____066 | P61: Sí | R61: 2 | S61: G_NALDEA1 | T61: G_NALDEA3 | U61: -
B62: ARAUCO BIO | C62: 96.547.510-9 | D62: NUEVA ALDEA (1 Y 3) | E62: 85017 | F62: NUEVA ALDEA (1 y 3) | G62: TURBOGENERADOR | H62: EL019740-9 | I62: NUEVA ALDEA III | J62: NUEVA ALDEA III | K62: Nueva Aldea III | L62: Nueva Aldea III | M62: NUEVAALDEA-3_COGEN | N62: Biomasa | O62: STA.ELVIRA____066 | P62: Sí | R62: 2 | S62: G_NALDEA1 | T62: G_NALDEA3 | U62: -
B63: ARAUCO BIO | C63: 96.547.510-9 | D63: NUEVA ALDEA (1 Y 3) | E63: 85017 | F63: NUEVA ALDEA (1 y 3) | G63: CALDERA RECUPERADORA | H63: IN000218-k | I63: NUEVA ALDEA I | J63: NUEVA ALDEA I | K63: Nueva Aldea I | L63: Nueva Aldea I | M63: NUEVAALDEA-1_BL1_COGEN | N63: Biomasa | O63: STA.ELVIRA____066 | P63: Sí | R63: 2 | S63: G_NALDEA1 | T63: G_NALDEA3 | U63: -
B64: ARAUCO BIO | C64: 96.547.510-9 | D64: NUEVA ALDEA (1 Y 3) | E64: 85017 | F64: NUEVA ALDEA (1 y 3) | G64: CALDERA RECUPERADORA | H64: IN000218-k | I64: NUEVA ALDEA I | J64: NUEVA ALDEA I | K64: Nueva Aldea I | L64: Nueva Aldea I | M64: NUEVAALDEA-1_BL1+BL2_COGEN | N64: Biomasa | O64: STA.ELVIRA____066 | P64: Sí | R64: 2 | S64: G_NALDEA1 | T64: G_NALDEA3 | U64: -
B65: ARAUCO BIO | C65: 96.547.510-9 | D65: NUEVA ALDEA (1 Y 3) | E65: 85017 | F65: NUEVA ALDEA (1 y 3) | G65: CALDERA RECUPERADORA | H65: IN000218-k | I65: NUEVA ALDEA III | J65: NUEVA ALDEA III | K65: Nueva Aldea III | L65: Nueva Aldea III | M65: NUEVAALDEA-3_COGEN | N65: Biomasa | O65: STA.ELVIRA____066 | P65: Sí | R65: 2 | S65: G_NALDEA1 | T65: G_NALDEA3 | U65: -
B66: ARAUCO BIO | C66: 96.547.510-9 | D66: NUEVA ALDEA (1 Y 3) | E66: 85017 | F66: NUEVA ALDEA (1 y 3) | G66: CALDERA DE PODER | H66: IN002622-4 | I66: NUEVA ALDEA I | J66: NUEVA ALDEA I | K66: Nueva Aldea I | L66: Nueva Aldea I | M66: NUEVAALDEA-1_BL1_COGEN | N66: Biomasa | O66: STA.ELVIRA____066 | P66: Sí | R66: 2 | S66: G_NALDEA1 | T66: G_NALDEA3 | U66: -
B67: ARAUCO BIO | C67: 96.547.510-9 | D67: NUEVA ALDEA (1 Y 3) | E67: 85017 | F67: NUEVA ALDEA (1 y 3) | G67: CALDERA DE PODER | H67: IN002622-4 | I67: NUEVA ALDEA I | J67: NUEVA ALDEA I | K67: Nueva Aldea I | L67: Nueva Aldea I | M67: NUEVAALDEA-1_BL1+BL2_COGEN | N67: Biomasa | O67: STA.ELVIRA____066 | P67: Sí | R67: 2 | S67: G_NALDEA1 | T67: G_NALDEA3 | U67: -
B68: ARAUCO BIO | C68: 96.547.510-9 | D68: NUEVA ALDEA (1 Y 3) | E68: 85017 | F68: NUEVA ALDEA (1 y 3) | G68: CALDERA DE PODER | H68: IN002622-4 | I68: NUEVA ALDEA III | J68: NUEVA ALDEA III | K68: Nueva Aldea III | L68: Nueva Aldea III | M68: NUEVAALDEA-3_COGEN | N68: Biomasa | O68: STA.ELVIRA____066 | P68: Sí | R68: 2 | S68: G_NALDEA1 | T68: G_NALDEA3 | U68: -
B69: ARAUCO BIO | C69: 96.547.510-9 | D69: PLANTA TRUPÁN/CHOLGUÁN | E69: 4586116 | F69: CHOLGUÁN | H69: IN000611-8 | I69: CHOLGUAN TG | J69: CHOLGUAN | K69: Cholguan | L69: Cholguán | M69: CHOLGUAN_BL1_COGEN | N69: Biomasa | O69: CHOLGUAN______066 | P69: Sí | R69: 1 | S69: PANEL_I | T69: - | U69: -
B70: ARAUCO BIO | C70: 96.547.510-9 | D70: PLANTA TRUPÁN/CHOLGUÁN | E70: 4586116 | F70: CHOLGUÁN | H70: IN000611-8 | I70: CHOLGUAN TG | J70: CHOLGUAN | K70: Cholguan | L70: Cholguán | M70: CHOLGUAN_BL1+BL2_COGEN | N70: Diésel | O70: CHOLGUAN______066 | P70: Sí | R70: 1 | S70: PANEL_I | T70: - | U70: -
B71: ARAUCO BIO | C71: 96.547.510-9 | D71: PLANTA TRUPÁN/CHOLGUÁN | E71: 4586116 | F71: CHOLGUÁN | H71: IN003326-k | I71: CHOLGUAN TG | J71: CHOLGUAN | K71: Cholguan | L71: Cholguán | M71: CHOLGUAN_BL1_COGEN | N71: Biomasa | O71: CHOLGUAN______066 | P71: Sí | R71: 1 | S71: PANEL_I | T71: - | U71: -
B72: ARAUCO BIO | C72: 96.547.510-9 | D72: PLANTA TRUPÁN/CHOLGUÁN | E72: 4586116 | F72: CHOLGUÁN | H72: IN003326-k | I72: CHOLGUAN TG | J72: CHOLGUAN | K72: Cholguan | L72: Cholguán | M72: CHOLGUAN_BL1+BL2_COGEN | N72: Diésel | O72: CHOLGUAN______066 | P72: Sí | R72: 1 | S72: PANEL_I | T72: - | U72: -
B73: ARAUCO BIO | C73: 96.547.510-9 | D73: PLANTA TRUPÁN/CHOLGUÁN | E73: 4586116 | F73: CHOLGUÁN | H73: IN003325-1 | I73: CHOLGUAN TG | J73: CHOLGUAN | K73: Cholguan | L73: Cholguán | M73: CHOLGUAN_BL1_COGEN | N73: Biomasa | O73: CHOLGUAN______066 | P73: Sí | R73: 1 | S73: PANEL_I | T73: - | U73: -
B74: ARAUCO BIO | C74: 96.547.510-9 | D74: PLANTA TRUPÁN/CHOLGUÁN | E74: 4586116 | F74: CHOLGUÁN | H74: IN003325-1 | I74: CHOLGUAN TG | J74: CHOLGUAN | K74: Cholguan | L74: Cholguán | M74: CHOLGUAN_BL1+BL2_COGEN | N74: Diésel | O74: CHOLGUAN______066 | P74: Sí | R74: 1 | S74: PANEL_I | T74: - | U74: -
B75: ARAUCO BIO | C75: 96.547.510-9 | D75: CELULOSA ARAUCO Y CONSTITUCIÓN - PLANTA VALDIVIA | E75: 85018 | F75: VALDIVIA | G75: CALDERA RECUPERADORA | H75: IN000219-8 | I75: VALDIVIA | J75: VALDIVIA | K75: Valdivia | L75: Valdivia | M75: VALDIVIA_BL1_COGEN_PINO | N75: Biomasa | O75: CIRUELOS______220 | P75: Sí | R75: 1 | S75: VALDI_I | T75: - | U75: -
B76: ARAUCO BIO | C76: 96.547.510-9 | D76: CELULOSA ARAUCO Y CONSTITUCIÓN - PLANTA VALDIVIA | E76: 85018 | F76: VALDIVIA | G76: CALDERA RECUPERADORA | H76: IN000219-8 | I76: VALDIVIA | J76: VALDIVIA | K76: Valdivia | L76: Valdivia | M76: VALDIVIA_BL1_COGEN_EUCA | N76: Biomasa | O76: CIRUELOS______220 | P76: Sí | R76: 1 | S76: VALDI_I | T76: - | U76: -
B77: ARAUCO BIO | C77: 96.547.510-9 | D77: CELULOSA ARAUCO Y CONSTITUCIÓN - PLANTA VALDIVIA | E77: 85018 | F77: VALDIVIA | G77: CALDERA RECUPERADORA | H77: IN000219-8 | I77: VALDIVIA | J77: VALDIVIA | K77: Valdivia | L77: Valdivia | M77: VALDIVIA_BL1+BL2_COGEN_PINO | N77: Biomasa | O77: CIRUELOS______220 | P77: Sí | R77: 1 | S77: VALDI_I | T77: - | U77: -
B78: ARAUCO BIO | C78: 96.547.510-9 | D78: CELULOSA ARAUCO Y CONSTITUCIÓN - PLANTA VALDIVIA | E78: 85018 | F78: VALDIVIA | G78: CALDERA RECUPERADORA | H78: IN000219-8 | I78: VALDIVIA | J78: VALDIVIA | K78: Valdivia | L78: Valdivia | M78: VALDIVIA_BL1+BL2_COGEN_EUCA | N78: Biomasa | O78: CIRUELOS______220 | P78: Sí | R78: 1 | S78: VALDI_I | T78: - | U78: -
B79: ARAUCO BIO | C79: 96.547.510-9 | D79: CELULOSA ARAUCO Y CONSTITUCIÓN - PLANTA VALDIVIA | E79: 85018 | F79: VALDIVIA | G79: CALDERA RECUPERADORA | H79: IN000219-8 | I79: VALDIVIA | J79: VALDIVIA | K79: Valdivia | L79: Valdivia | M79: VALDIVIA_BL1+BL2+BL3_COGEN_PINO | N79: Biomasa | O79: CIRUELOS______220 | P79: Sí | R79: 1 | S79: VALDI_I | T79: - | U79: -
B80: ARAUCO BIO | C80: 96.547.510-9 | D80: CELULOSA ARAUCO Y CONSTITUCIÓN - PLANTA VALDIVIA | E80: 85018 | F80: VALDIVIA | G80: CALDERA RECUPERADORA | H80: IN000219-8 | I80: VALDIVIA | J80: VALDIVIA | K80: Valdivia | L80: Valdivia | M80: VALDIVIA_BL1+BL2+BL3_COGEN_EUCA | N80: Biomasa | O80: CIRUELOS______220 | P80: Sí | R80: 1 | S80: VALDI_I | T80: - | U80: -
B81: ARAUCO BIO | C81: 96.547.510-9 | D81: CELULOSA ARAUCO Y CONSTITUCIÓN - PLANTA VALDIVIA | E81: 85018 | F81: VALDIVIA | G81: CALDERA RECUPERADORA | H81: IN000219-8 | I81: VALDIVIA | J81: VALDIVIA | K81: Valdivia | L81: Valdivia | M81: VALDIVIA_BL1+BL2+BL3+BL4_COGEN_PINO | N81: Diésel | O81: CIRUELOS______220 | P81: Sí | R81: 1 | S81: VALDI_I | T81: - | U81: -
B82: ARAUCO BIO | C82: 96.547.510-9 | D82: CELULOSA ARAUCO Y CONSTITUCIÓN - PLANTA VALDIVIA | E82: 85018 | F82: VALDIVIA | G82: CALDERA RECUPERADORA | H82: IN000219-8 | I82: VALDIVIA | J82: VALDIVIA | K82: Valdivia | L82: Valdivia | M82: VALDIVIA_BL1+BL2+BL3+BL4_COGEN_EUCA | N82: Diésel | O82: CIRUELOS______220 | P82: Sí | R82: 1 | S82: VALDI_I | T82: - | U82: -
B83: ARAUCO BIO | C83: 96.547.510-9 | D83: CELULOSA ARAUCO Y CONSTITUCIÓN - PLANTA VALDIVIA | E83: 85018 | F83: VALDIVIA | G83: CALDERA DE PODER | H83: IN000220-1 | I83: VALDIVIA | J83: VALDIVIA | K83: Valdivia | L83: Valdivia | M83: VALDIVIA_BL1_COGEN_PINO | N83: Biomasa | O83: CIRUELOS______220 | P83: Sí | R83: 1 | S83: VALDI_I | T83: - | U83: -
B84: ARAUCO BIO | C84: 96.547.510-9 | D84: CELULOSA ARAUCO Y CONSTITUCIÓN - PLANTA VALDIVIA | E84: 85018 | F84: VALDIVIA | G84: CALDERA DE PODER | H84: IN000220-1 | I84: VALDIVIA | J84: VALDIVIA | K84: Valdivia | L84: Valdivia | M84: VALDIVIA_BL1_COGEN_EUCA | N84: Biomasa | O84: CIRUELOS______220 | P84: Sí | R84: 1 | S84: VALDI_I | T84: - | U84: -
B85: ARAUCO BIO | C85: 96.547.510-9 | D85: CELULOSA ARAUCO Y CONSTITUCIÓN - PLANTA VALDIVIA | E85: 85018 | F85: VALDIVIA | G85: CALDERA DE PODER | H85: IN000220-1 | I85: VALDIVIA | J85: VALDIVIA | K85: Valdivia | L85: Valdivia | M85: VALDIVIA_BL1+BL2_COGEN_PINO | N85: Biomasa | O85: CIRUELOS______220 | P85: Sí | R85: 1 | S85: VALDI_I | T85: - | U85: -
B86: ARAUCO BIO | C86: 96.547.510-9 | D86: CELULOSA ARAUCO Y CONSTITUCIÓN - PLANTA VALDIVIA | E86: 85018 | F86: VALDIVIA | G86: CALDERA DE PODER | H86: IN000220-1 | I86: VALDIVIA | J86: VALDIVIA | K86: Valdivia | L86: Valdivia | M86: VALDIVIA_BL1+BL2_COGEN_EUCA | N86: Biomasa | O86: CIRUELOS______220 | P86: Sí | R86: 1 | S86: VALDI_I | T86: - | U86: -
B87: ARAUCO BIO | C87: 96.547.510-9 | D87: CELULOSA ARAUCO Y CONSTITUCIÓN - PLANTA VALDIVIA | E87: 85018 | F87: VALDIVIA | G87: CALDERA DE PODER | H87: IN000220-1 | I87: VALDIVIA | J87: VALDIVIA | K87: Valdivia | L87: Valdivia | M87: VALDIVIA_BL1+BL2+BL3_COGEN_PINO | N87: Biomasa | O87: CIRUELOS______220 | P87: Sí | R87: 1 | S87: VALDI_I | T87: - | U87: -
B88: ARAUCO BIO | C88: 96.547.510-9 | D88: CELULOSA ARAUCO Y CONSTITUCIÓN - PLANTA VALDIVIA | E88: 85018 | F88: VALDIVIA | G88: CALDERA DE PODER | H88: IN000220-1 | I88: VALDIVIA | J88: VALDIVIA | K88: Valdivia | L88: Valdivia | M88: VALDIVIA_BL1+BL2+BL3_COGEN_EUCA | N88: Biomasa | O88: CIRUELOS______220 | P88: Sí | R88: 1 | S88: VALDI_I | T88: - | U88: -
B89: ARAUCO BIO | C89: 96.547.510-9 | D89: CELULOSA ARAUCO Y CONSTITUCIÓN - PLANTA VALDIVIA | E89: 85018 | F89: VALDIVIA | G89: CALDERA DE PODER | H89: IN000220-1 | I89: VALDIVIA | J89: VALDIVIA | K89: Valdivia | L89: Valdivia | M89: VALDIVIA_BL1+BL2+BL3+BL4_COGEN_PINO | N89: Diésel | O89: CIRUELOS______220 | P89: Sí | R89: 1 | S89: VALDI_I | T89: - | U89: -
B90: ARAUCO BIO | C90: 96.547.510-9 | D90: CELULOSA ARAUCO Y CONSTITUCIÓN - PLANTA VALDIVIA | E90: 85018 | F90: VALDIVIA | G90: CALDERA DE PODER | H90: IN000220-1 | I90: VALDIVIA | J90: VALDIVIA | K90: Valdivia | L90: Valdivia | M90: VALDIVIA_BL1+BL2+BL3+BL4_COGEN_EUCA | N90: Diésel | O90: CIRUELOS______220 | P90: Sí | R90: 1 | S90: VALDI_I | T90: - | U90: -
B91: BE FORESTALES | C91: 76.188.197-3 | D91: CMPC CELULOSA PLANTA LAJA | E91: 3216 | F91: CMPC LAJA | G91: Caldera Recuperadora N° 6 | H91: IN001988-0 | I91: CMPC LAJA 1 | J91: CMPC LAJA | K91: CMPC Laja | L91: CMPC Laja | M91: CMPCLAJA_BL1_COGEN | N91: Biomasa | O91: LAJA__________220 | P91: Sí | R91: 1 | S91: G_CMPC LAJA | T91: - | U91: -
B92: BE FORESTALES | C92: 76.188.197-3 | D92: CMPC CELULOSA PLANTA LAJA | E92: 3216 | F92: CMPC LAJA | G92: Caldera Recuperadora N° 6 | H92: IN001988-0 | I92: CMPC LAJA 1 | J92: CMPC LAJA | K92: CMPC Laja | L92: CMPC Laja | M92: CMPCLAJA_BL1+BL2_COGEN | N92: Biomasa | O92: LAJA__________220 | P92: Sí | R92: 1 | S92: G_CMPC LAJA | T92: - | U92: -
B93: BE FORESTALES | C93: 76.188.197-3 | D93: CMPC CELULOSA PLANTA LAJA | E93: 3216 | F93: CMPC LAJA | G93: Caldera Recuperadora N° 6 | H93: IN001988-0 | I93: CMPC LAJA 1 | J93: CMPC LAJA | K93: CMPC Laja | L93: CMPC Laja | M93: CMPCLAJA_BL1+BL2+BL3_COGEN | N93: Biomasa | O93: LAJA__________220 | P93: Sí | R93: 1 | S93: G_CMPC LAJA | T93: - | U93: -
B94: BE FORESTALES | C94: 76.188.197-3 | D94: CMPC CELULOSA PLANTA LAJA | E94: 3216 | F94: CMPC LAJA | G94: Caldera Recuperadora N° 6 | H94: IN001988-0 | I94: CMPC LAJA 2 | J94: CMPC LAJA | K94: CMPC Laja | L94: CMPC Laja | M94: CMPCLAJA_BL1_COGEN | N94: Biomasa | O94: LAJA__________220 | P94: Sí | R94: 1 | S94: G_CMPC LAJA | T94: - | U94: -
B95: BE FORESTALES | C95: 76.188.197-3 | D95: CMPC CELULOSA PLANTA LAJA | E95: 3216 | F95: CMPC LAJA | G95: Caldera Recuperadora N° 6 | H95: IN001988-0 | I95: CMPC LAJA 2 | J95: CMPC LAJA | K95: CMPC Laja | L95: CMPC Laja | M95: CMPCLAJA_BL1+BL2_COGEN | N95: Biomasa | O95: LAJA__________220 | P95: Sí | R95: 1 | S95: G_CMPC LAJA | T95: - | U95: -
B96: BE FORESTALES | C96: 76.188.197-3 | D96: CMPC CELULOSA PLANTA LAJA | E96: 3216 | F96: CMPC LAJA | G96: Caldera Recuperadora N° 6 | H96: IN001988-0 | I96: CMPC LAJA 2 | J96: CMPC LAJA | K96: CMPC Laja | L96: CMPC Laja | M96: CMPCLAJA_BL1+BL2+BL3_COGEN | N96: Biomasa | O96: LAJA__________220 | P96: Sí | R96: 1 | S96: G_CMPC LAJA | T96: - | U96: -
B97: BE FORESTALES | C97: 76.188.197-3 | D97: CMPC CELULOSA PLANTA LAJA | E97: 3216 | F97: CMPC LAJA | G97: Caldera de Biomasa 3 | H97: IN002371-3 | I97: CMPC LAJA 1 | J97: CMPC LAJA | K97: CMPC Laja | L97: CMPC Laja | M97: CMPCLAJA_BL1_COGEN | N97: Biomasa | O97: LAJA__________220 | P97: Sí | R97: 1 | S97: G_CMPC LAJA | T97: - | U97: -
B98: BE FORESTALES | C98: 76.188.197-3 | D98: CMPC CELULOSA PLANTA LAJA | E98: 3216 | F98: CMPC LAJA | G98: Caldera de Biomasa 3 | H98: IN002371-3 | I98: CMPC LAJA 1 | J98: CMPC LAJA | K98: CMPC Laja | L98: CMPC Laja | M98: CMPCLAJA_BL1+BL2_COGEN | N98: Biomasa | O98: LAJA__________220 | P98: Sí | R98: 1 | S98: G_CMPC LAJA | T98: - | U98: -
B99: BE FORESTALES | C99: 76.188.197-3 | D99: CMPC CELULOSA PLANTA LAJA | E99: 3216 | F99: CMPC LAJA | G99: Caldera de Biomasa 3 | H99: IN002371-3 | I99: CMPC LAJA 1 | J99: CMPC LAJA | K99: CMPC Laja | L99: CMPC Laja | M99: CMPCLAJA_BL1+BL2+BL3_COGEN | N99: Biomasa | O99: LAJA__________220 | P99: Sí | R99: 1 | S99: G_CMPC LAJA | T99: - | U99: -
B100: BE FORESTALES | C100: 76.188.197-3 | D100: CMPC CELULOSA PLANTA LAJA | E100: 3216 | F100: CMPC LAJA | G100: Caldera de Biomasa 3 | H100: IN002371-3 | I100: CMPC LAJA 2 | J100: CMPC LAJA | K100: CMPC Laja | L100: CMPC Laja | M100: CMPCLAJA_BL1_COGEN | N100: Biomasa | O100: LAJA__________220 | P100: Sí | R100: 1 | S100: G_CMPC LAJA | T100: - | U100: -
B101: BE FORESTALES | C101: 76.188.197-3 | D101: CMPC CELULOSA PLANTA LAJA | E101: 3216 | F101: CMPC LAJA | G101: Caldera de Biomasa 3 | H101: IN002371-3 | I101: CMPC LAJA 2 | J101: CMPC LAJA | K101: CMPC Laja | L101: CMPC Laja | M101: CMPCLAJA_BL1+BL2_COGEN | N101: Biomasa | O101: LAJA__________220 | P101: Sí | R101: 1 | S101: G_CMPC LAJA | T101: - | U101: -
B102: BE FORESTALES | C102: 76.188.197-3 | D102: CMPC CELULOSA PLANTA LAJA | E102: 3216 | F102: CMPC LAJA | G102: Caldera de Biomasa 3 | H102: IN002371-3 | I102: CMPC LAJA 2 | J102: CMPC LAJA | K102: CMPC Laja | L102: CMPC Laja | M102: CMPCLAJA_BL1+BL2+BL3_COGEN | N102: Biomasa | O102: LAJA__________220 | P102: Sí | R102: 1 | S102: G_CMPC LAJA | T102: - | U102: -
B103: BE FORESTALES | C103: 76.188.197-3 | D103: CMPC CELULOSA PLANTA SANTA FE | E103: 3522 | F103: CMPC SANTA FE | G103: CALDERA RECUPERADORA LINEA 1 | H103: IN000638-k | I103: CELULOSA SANTA FE 1 | J103: CMPC SANTA FE | K103: Santa Fe | L103: CMPC Santa Fe | M103: SANTAFE_BL1_COGEN | N103: Biomasa | O103: NACIMIENTO____220 | P103: Sí | R103: 1 | S103: G_CMPC SANTA FE | T103: - | U103: -
B104: BE FORESTALES | C104: 76.188.197-3 | D104: CMPC CELULOSA PLANTA SANTA FE | E104: 3522 | F104: CMPC SANTA FE | G104: CALDERA RECUPERADORA LINEA 1 | H104: IN000638-k | I104: CELULOSA SANTA FE 1 | J104: CMPC SANTA FE | K104: Santa Fe | L104: CMPC Santa Fe | M104: SANTAFE_BL1+BL2_COGEN | N104: Biomasa | O104: NACIMIENTO____220 | P104: Sí | R104: 1 | S104: G_CMPC SANTA FE | T104: - | U104: -
B105: BE FORESTALES | C105: 76.188.197-3 | D105: CMPC CELULOSA PLANTA SANTA FE | E105: 3522 | F105: CMPC SANTA FE | G105: CALDERA RECUPERADORA LINEA 1 | H105: IN000638-k | I105: CELULOSA SANTA FE 1 | J105: CMPC SANTA FE | K105: Santa Fe | L105: CMPC Santa Fe | M105: SANTAFE_BL1+BL2+BL3_COGEN | N105: Biomasa | O105: NACIMIENTO____220 | P105: Sí | R105: 1 | S105: G_CMPC SANTA FE | T105: - | U105: -
B106: BE FORESTALES | C106: 76.188.197-3 | D106: CMPC CELULOSA PLANTA SANTA FE | E106: 3522 | F106: CMPC SANTA FE | G106: CALDERA RECUPERADORA LINEA 1 | H106: IN000638-k | I106: CELULOSA SANTA FE 1 | J106: CMPC SANTA FE | K106: Santa Fe | L106: CMPC Santa Fe | M106: SANTAFE_BL1+BL2+BL3+BL4_COGEN | N106: Biomasa | O106: NACIMIENTO____220 | P106: Sí | R106: 1 | S106: G_CMPC SANTA FE | T106: - | U106: -
B107: BE FORESTALES | C107: 76.188.197-3 | D107: CMPC CELULOSA PLANTA SANTA FE | E107: 3522 | F107: CMPC SANTA FE | G107: CALDERA RECUPERADORA LINEA 1 | H107: IN000638-k | I107: CELULOSA SANTA FE 2 | J107: CMPC SANTA FE | K107: Santa Fe | L107: CMPC Santa Fe | M107: SANTAFE_BL1_COGEN | N107: Biomasa | O107: NACIMIENTO____220 | P107: Sí | R107: 1 | S107: G_CMPC SANTA FE | T107: - | U107: -
B108: BE FORESTALES | C108: 76.188.197-3 | D108: CMPC CELULOSA PLANTA SANTA FE | E108: 3522 | F108: CMPC SANTA FE | G108: CALDERA RECUPERADORA LINEA 1 | H108: IN000638-k | I108: CELULOSA SANTA FE 2 | J108: CMPC SANTA FE | K108: Santa Fe | L108: CMPC Santa Fe | M108: SANTAFE_BL1+BL2_COGEN | N108: Biomasa | O108: NACIMIENTO____220 | P108: Sí | R108: 1 | S108: G_CMPC SANTA FE | T108: - | U108: -
B109: BE FORESTALES | C109: 76.188.197-3 | D109: CMPC CELULOSA PLANTA SANTA FE | E109: 3522 | F109: CMPC SANTA FE | G109: CALDERA RECUPERADORA LINEA 1 | H109: IN000638-k | I109: CELULOSA SANTA FE 2 | J109: CMPC SANTA FE | K109: Santa Fe | L109: CMPC Santa Fe | M109: SANTAFE_BL1+BL2+BL3_COGEN | N109: Biomasa | O109: NACIMIENTO____220 | P109: Sí | R109: 1 | S109: G_CMPC SANTA FE | T109: - | U109: -
B110: BE FORESTALES | C110: 76.188.197-3 | D110: CMPC CELULOSA PLANTA SANTA FE | E110: 3522 | F110: CMPC SANTA FE | G110: CALDERA RECUPERADORA LINEA 1 | H110: IN000638-k | I110: CELULOSA SANTA FE 2 | J110: CMPC SANTA FE | K110: Santa Fe | L110: CMPC Santa Fe | M110: SANTAFE_BL1+BL2+BL3+BL4_COGEN | N110: Biomasa | O110: NACIMIENTO____220 | P110: Sí | R110: 1 | S110: G_CMPC SANTA FE | T110: - | U110: -
B111: BE FORESTALES | C111: 76.188.197-3 | D111: CMPC CELULOSA PLANTA SANTA FE | E111: 3522 | F111: CMPC SANTA FE | G111: CALDERA RECUPERADORA LINEA 1 | H111: IN000638-k | I111: CELULOSA SANTA FE 3 | J111: CMPC SANTA FE | K111: Santa Fe | L111: CMPC Santa Fe | M111: SANTAFE_BL1_COGEN | N111: Biomasa | O111: NACIMIENTO____220 | P111: Sí | R111: 1 | S111: G_CMPC SANTA FE | T111: - | U111: -
B112: BE FORESTALES | C112: 76.188.197-3 | D112: CMPC CELULOSA PLANTA SANTA FE | E112: 3522 | F112: CMPC SANTA FE | G112: CALDERA RECUPERADORA LINEA 1 | H112: IN000638-k | I112: CELULOSA SANTA FE 3 | J112: CMPC SANTA FE | K112: Santa Fe | L112: CMPC Santa Fe | M112: SANTAFE_BL1+BL2_COGEN | N112: Biomasa | O112: NACIMIENTO____220 | P112: Sí | R112: 1 | S112: G_CMPC SANTA FE | T112: - | U112: -
B113: BE FORESTALES | C113: 76.188.197-3 | D113: CMPC CELULOSA PLANTA SANTA FE | E113: 3522 | F113: CMPC SANTA FE | G113: CALDERA RECUPERADORA LINEA 1 | H113: IN000638-k | I113: CELULOSA SANTA FE 3 | J113: CMPC SANTA FE | K113: Santa Fe | L113: CMPC Santa Fe | M113: SANTAFE_BL1+BL2+BL3_COGEN | N113: Biomasa | O113: NACIMIENTO____220 | P113: Sí | R113: 1 | S113: G_CMPC SANTA FE | T113: - | U113: -
B114: BE FORESTALES | C114: 76.188.197-3 | D114: CMPC CELULOSA PLANTA SANTA FE | E114: 3522 | F114: CMPC SANTA FE | G114: CALDERA RECUPERADORA LINEA 1 | H114: IN000638-k | I114: CELULOSA SANTA FE 3 | J114: CMPC SANTA FE | K114: Santa Fe | L114: CMPC Santa Fe | M114: SANTAFE_BL1+BL2+BL3+BL4_COGEN | N114: Biomasa | O114: NACIMIENTO____220 | P114: Sí | R114: 1 | S114: G_CMPC SANTA FE | T114: - | U114: -
B115: BE FORESTALES | C115: 76.188.197-3 | D115: CMPC CELULOSA PLANTA SANTA FE | E115: 3522 | F115: CMPC SANTA FE | G115: CALDERA DE BIOMASA LINEA 1 | H115: IN000639-8 | I115: CELULOSA SANTA FE 1 | J115: CMPC SANTA FE | K115: Santa Fe | L115: CMPC Santa Fe | M115: SANTAFE_BL1_COGEN | N115: Biomasa | O115: NACIMIENTO____220 | P115: Sí | R115: 1 | S115: G_CMPC SANTA FE | T115: - | U115: -
B116: BE FORESTALES | C116: 76.188.197-3 | D116: CMPC CELULOSA PLANTA SANTA FE | E116: 3522 | F116: CMPC SANTA FE | G116: CALDERA DE BIOMASA LINEA 1 | H116: IN000639-8 | I116: CELULOSA SANTA FE 1 | J116: CMPC SANTA FE | K116: Santa Fe | L116: CMPC Santa Fe | M116: SANTAFE_BL1+BL2_COGEN | N116: Biomasa | O116: NACIMIENTO____220 | P116: Sí | R116: 1 | S116: G_CMPC SANTA FE | T116: - | U116: -
B117: BE FORESTALES | C117: 76.188.197-3 | D117: CMPC CELULOSA PLANTA SANTA FE | E117: 3522 | F117: CMPC SANTA FE | G117: CALDERA DE BIOMASA LINEA 1 | H117: IN000639-8 | I117: CELULOSA SANTA FE 1 | J117: CMPC SANTA FE | K117: Santa Fe | L117: CMPC Santa Fe | M117: SANTAFE_BL1+BL2+BL3_COGEN | N117: Biomasa | O117: NACIMIENTO____220 | P117: Sí | R117: 1 | S117: G_CMPC SANTA FE | T117: - | U117: -
B118: BE FORESTALES | C118: 76.188.197-3 | D118: CMPC CELULOSA PLANTA SANTA FE | E118: 3522 | F118: CMPC SANTA FE | G118: CALDERA DE BIOMASA LINEA 1 | H118: IN000639-8 | I118: CELULOSA SANTA FE 1 | J118: CMPC SANTA FE | K118: Santa Fe | L118: CMPC Santa Fe | M118: SANTAFE_BL1+BL2+BL3+BL4_COGEN | N118: Biomasa | O118: NACIMIENTO____220 | P118: Sí | R118: 1 | S118: G_CMPC SANTA FE | T118: - | U118: -
B119: BE FORESTALES | C119: 76.188.197-3 | D119: CMPC CELULOSA PLANTA SANTA FE | E119: 3522 | F119: CMPC SANTA FE | G119: CALDERA DE BIOMASA LINEA 1 | H119: IN000639-8 | I119: CELULOSA SANTA FE 2 | J119: CMPC SANTA FE | K119: Santa Fe | L119: CMPC Santa Fe | M119: SANTAFE_BL1_COGEN | N119: Biomasa | O119: NACIMIENTO____220 | P119: Sí | R119: 1 | S119: G_CMPC SANTA FE | T119: - | U119: -
B120: BE FORESTALES | C120: 76.188.197-3 | D120: CMPC CELULOSA PLANTA SANTA FE | E120: 3522 | F120: CMPC SANTA FE | G120: CALDERA DE BIOMASA LINEA 1 | H120: IN000639-8 | I120: CELULOSA SANTA FE 2 | J120: CMPC SANTA FE | K120: Santa Fe | L120: CMPC Santa Fe | M120: SANTAFE_BL1+BL2_COGEN | N120: Biomasa | O120: NACIMIENTO____220 | P120: Sí | R120: 1 | S120: G_CMPC SANTA FE | T120: - | U120: -
B121: BE FORESTALES | C121: 76.188.197-3 | D121: CMPC CELULOSA PLANTA SANTA FE | E121: 3522 | F121: CMPC SANTA FE | G121: CALDERA DE BIOMASA LINEA 1 | H121: IN000639-8 | I121: CELULOSA SANTA FE 2 | J121: CMPC SANTA FE | K121: Santa Fe | L121: CMPC Santa Fe | M121: SANTAFE_BL1+BL2+BL3_COGEN | N121: Biomasa | O121: NACIMIENTO____220 | P121: Sí | R121: 1 | S121: G_CMPC SANTA FE | T121: - | U121: -
B122: BE FORESTALES | C122: 76.188.197-3 | D122: CMPC CELULOSA PLANTA SANTA FE | E122: 3522 | F122: CMPC SANTA FE | G122: CALDERA DE BIOMASA LINEA 1 | H122: IN000639-8 | I122: CELULOSA SANTA FE 2 | J122: CMPC SANTA FE | K122: Santa Fe | L122: CMPC Santa Fe | M122: SANTAFE_BL1+BL2+BL3+BL4_COGEN | N122: Biomasa | O122: NACIMIENTO____220 | P122: Sí | R122: 1 | S122: G_CMPC SANTA FE | T122: - | U122: -
B123: BE FORESTALES | C123: 76.188.197-3 | D123: CMPC CELULOSA PLANTA SANTA FE | E123: 3522 | F123: CMPC SANTA FE | G123: CALDERA DE BIOMASA LINEA 1 | H123: IN000639-8 | I123: CELULOSA SANTA FE 3 | J123: CMPC SANTA FE | K123: Santa Fe | L123: CMPC Santa Fe | M123: SANTAFE_BL1_COGEN | N123: Biomasa | O123: NACIMIENTO____220 | P123: Sí | R123: 1 | S123: G_CMPC SANTA FE | T123: - | U123: -
B124: BE FORESTALES | C124: 76.188.197-3 | D124: CMPC CELULOSA PLANTA SANTA FE | E124: 3522 | F124: CMPC SANTA FE | G124: CALDERA DE BIOMASA LINEA 1 | H124: IN000639-8 | I124: CELULOSA SANTA FE 3 | J124: CMPC SANTA FE | K124: Santa Fe | L124: CMPC Santa Fe | M124: SANTAFE_BL1+BL2_COGEN | N124: Biomasa | O124: NACIMIENTO____220 | P124: Sí | R124: 1 | S124: G_CMPC SANTA FE | T124: - | U124: -
B125: BE FORESTALES | C125: 76.188.197-3 | D125: CMPC CELULOSA PLANTA SANTA FE | E125: 3522 | F125: CMPC SANTA FE | G125: CALDERA DE BIOMASA LINEA 1 | H125: IN000639-8 | I125: CELULOSA SANTA FE 3 | J125: CMPC SANTA FE | K125: Santa Fe | L125: CMPC Santa Fe | M125: SANTAFE_BL1+BL2+BL3_COGEN | N125: Biomasa | O125: NACIMIENTO____220 | P125: Sí | R125: 1 | S125: G_CMPC SANTA FE | T125: - | U125: -
B126: BE FORESTALES | C126: 76.188.197-3 | D126: CMPC CELULOSA PLANTA SANTA FE | E126: 3522 | F126: CMPC SANTA FE | G126: CALDERA DE BIOMASA LINEA 1 | H126: IN000639-8 | I126: CELULOSA SANTA FE 3 | J126: CMPC SANTA FE | K126: Santa Fe | L126: CMPC Santa Fe | M126: SANTAFE_BL1+BL2+BL3+BL4_COGEN | N126: Biomasa | O126: NACIMIENTO____220 | P126: Sí | R126: 1 | S126: G_CMPC SANTA FE | T126: - | U126: -
B127: BE FORESTALES | C127: 76.188.197-3 | D127: CMPC CELULOSA PLANTA SANTA FE | E127: 3522 | F127: CMPC SANTA FE | G127: CALDERA RECUPERADORA LINEA 2 | H127: IN000640-1 | I127: CELULOSA SANTA FE 1 | J127: CMPC SANTA FE | K127: Santa Fe | L127: CMPC Santa Fe | M127: SANTAFE_BL1_COGEN | N127: Biomasa | O127: NACIMIENTO____220 | P127: Sí | R127: 1 | S127: G_CMPC SANTA FE | T127: - | U127: -
B128: BE FORESTALES | C128: 76.188.197-3 | D128: CMPC CELULOSA PLANTA SANTA FE | E128: 3522 | F128: CMPC SANTA FE | G128: CALDERA RECUPERADORA LINEA 2 | H128: IN000640-1 | I128: CELULOSA SANTA FE 1 | J128: CMPC SANTA FE | K128: Santa Fe | L128: CMPC Santa Fe | M128: SANTAFE_BL1+BL2_COGEN | N128: Biomasa | O128: NACIMIENTO____220 | P128: Sí | R128: 1 | S128: G_CMPC SANTA FE | T128: - | U128: -
B129: BE FORESTALES | C129: 76.188.197-3 | D129: CMPC CELULOSA PLANTA SANTA FE | E129: 3522 | F129: CMPC SANTA FE | G129: CALDERA RECUPERADORA LINEA 2 | H129: IN000640-1 | I129: CELULOSA SANTA FE 1 | J129: CMPC SANTA FE | K129: Santa Fe | L129: CMPC Santa Fe | M129: SANTAFE_BL1+BL2+BL3_COGEN | N129: Biomasa | O129: NACIMIENTO____220 | P129: Sí | R129: 1 | S129: G_CMPC SANTA FE | T129: - | U129: -
B130: BE FORESTALES | C130: 76.188.197-3 | D130: CMPC CELULOSA PLANTA SANTA FE | E130: 3522 | F130: CMPC SANTA FE | G130: CALDERA RECUPERADORA LINEA 2 | H130: IN000640-1 | I130: CELULOSA SANTA FE 1 | J130: CMPC SANTA FE | K130: Santa Fe | L130: CMPC Santa Fe | M130: SANTAFE_BL1+BL2+BL3+BL4_COGEN | N130: Biomasa | O130: NACIMIENTO____220 | P130: Sí | R130: 1 | S130: G_CMPC SANTA FE | T130: - | U130: -
B131: BE FORESTALES | C131: 76.188.197-3 | D131: CMPC CELULOSA PLANTA SANTA FE | E131: 3522 | F131: CMPC SANTA FE | G131: CALDERA RECUPERADORA LINEA 2 | H131: IN000640-1 | I131: CELULOSA SANTA FE 2 | J131: CMPC SANTA FE | K131: Santa Fe | L131: CMPC Santa Fe | M131: SANTAFE_BL1_COGEN | N131: Biomasa | O131: NACIMIENTO____220 | P131: Sí | R131: 1 | S131: G_CMPC SANTA FE | T131: - | U131: -
B132: BE FORESTALES | C132: 76.188.197-3 | D132: CMPC CELULOSA PLANTA SANTA FE | E132: 3522 | F132: CMPC SANTA FE | G132: CALDERA RECUPERADORA LINEA 2 | H132: IN000640-1 | I132: CELULOSA SANTA FE 2 | J132: CMPC SANTA FE | K132: Santa Fe | L132: CMPC Santa Fe | M132: SANTAFE_BL1+BL2_COGEN | N132: Biomasa | O132: NACIMIENTO____220 | P132: Sí | R132: 1 | S132: G_CMPC SANTA FE | T132: - | U132: -
B133: BE FORESTALES | C133: 76.188.197-3 | D133: CMPC CELULOSA PLANTA SANTA FE | E133: 3522 | F133: CMPC SANTA FE | G133: CALDERA RECUPERADORA LINEA 2 | H133: IN000640-1 | I133: CELULOSA SANTA FE 2 | J133: CMPC SANTA FE | K133: Santa Fe | L133: CMPC Santa Fe | M133: SANTAFE_BL1+BL2+BL3_COGEN | N133: Biomasa | O133: NACIMIENTO____220 | P133: Sí | R133: 1 | S133: G_CMPC SANTA FE | T133: - | U133: -
B134: BE FORESTALES | C134: 76.188.197-3 | D134: CMPC CELULOSA PLANTA SANTA FE | E134: 3522 | F134: CMPC SANTA FE | G134: CALDERA RECUPERADORA LINEA 2 | H134: IN000640-1 | I134: CELULOSA SANTA FE 2 | J134: CMPC SANTA FE | K134: Santa Fe | L134: CMPC Santa Fe | M134: SANTAFE_BL1+BL2+BL3+BL4_COGEN | N134: Biomasa | O134: NACIMIENTO____220 | P134: Sí | R134: 1 | S134: G_CMPC SANTA FE | T134: - | U134: -
B135: BE FORESTALES | C135: 76.188.197-3 | D135: CMPC CELULOSA PLANTA SANTA FE | E135: 3522 | F135: CMPC SANTA FE | G135: CALDERA RECUPERADORA LINEA 2 | H135: IN000640-1 | I135: CELULOSA SANTA FE 3 | J135: CMPC SANTA FE | K135: Santa Fe | L135: CMPC Santa Fe | M135: SANTAFE_BL1_COGEN | N135: Biomasa | O135: NACIMIENTO____220 | P135: Sí | R135: 1 | S135: G_CMPC SANTA FE | T135: - | U135: -
B136: BE FORESTALES | C136: 76.188.197-3 | D136: CMPC CELULOSA PLANTA SANTA FE | E136: 3522 | F136: CMPC SANTA FE | G136: CALDERA RECUPERADORA LINEA 2 | H136: IN000640-1 | I136: CELULOSA SANTA FE 3 | J136: CMPC SANTA FE | K136: Santa Fe | L136: CMPC Santa Fe | M136: SANTAFE_BL1+BL2_COGEN | N136: Biomasa | O136: NACIMIENTO____220 | P136: Sí | R136: 1 | S136: G_CMPC SANTA FE | T136: - | U136: -
B137: BE FORESTALES | C137: 76.188.197-3 | D137: CMPC CELULOSA PLANTA SANTA FE | E137: 3522 | F137: CMPC SANTA FE | G137: CALDERA RECUPERADORA LINEA 2 | H137: IN000640-1 | I137: CELULOSA SANTA FE 3 | J137: CMPC SANTA FE | K137: Santa Fe | L137: CMPC Santa Fe | M137: SANTAFE_BL1+BL2+BL3_COGEN | N137: Biomasa | O137: NACIMIENTO____220 | P137: Sí | R137: 1 | S137: G_CMPC SANTA FE | T137: - | U137: -
B138: BE FORESTALES | C138: 76.188.197-3 | D138: CMPC CELULOSA PLANTA SANTA FE | E138: 3522 | F138: CMPC SANTA FE | G138: CALDERA RECUPERADORA LINEA 2 | H138: IN000640-1 | I138: CELULOSA SANTA FE 3 | J138: CMPC SANTA FE | K138: Santa Fe | L138: CMPC Santa Fe | M138: SANTAFE_BL1+BL2+BL3+BL4_COGEN | N138: Biomasa | O138: NACIMIENTO____220 | P138: Sí | R138: 1 | S138: G_CMPC SANTA FE | T138: - | U138: -
B139: BE FORESTALES | C139: 76.188.197-3 | D139: CMPC CELULOSA PLANTA SANTA FE | E139: 3522 | F139: CMPC SANTA FE | G139: CALDERA DE BIOMASA LINEA 2 | H139: IN002012-9 | I139: CELULOSA SANTA FE 1 | J139: CMPC SANTA FE | K139: Santa Fe | L139: CMPC Santa Fe | M139: SANTAFE_BL1_COGEN | N139: Biomasa | O139: NACIMIENTO____220 | P139: Sí | R139: 1 | S139: G_CMPC SANTA FE | T139: - | U139: -
B140: BE FORESTALES | C140: 76.188.197-3 | D140: CMPC CELULOSA PLANTA SANTA FE | E140: 3522 | F140: CMPC SANTA FE | G140: CALDERA DE BIOMASA LINEA 2 | H140: IN002012-9 | I140: CELULOSA SANTA FE 1 | J140: CMPC SANTA FE | K140: Santa Fe | L140: CMPC Santa Fe | M140: SANTAFE_BL1+BL2_COGEN | N140: Biomasa | O140: NACIMIENTO____220 | P140: Sí | R140: 1 | S140: G_CMPC SANTA FE | T140: - | U140: -
B141: BE FORESTALES | C141: 76.188.197-3 | D141: CMPC CELULOSA PLANTA SANTA FE | E141: 3522 | F141: CMPC SANTA FE | G141: CALDERA DE BIOMASA LINEA 2 | H141: IN002012-9 | I141: CELULOSA SANTA FE 1 | J141: CMPC SANTA FE | K141: Santa Fe | L141: CMPC Santa Fe | M141: SANTAFE_BL1+BL2+BL3_COGEN | N141: Biomasa | O141: NACIMIENTO____220 | P141: Sí | R141: 1 | S141: G_CMPC SANTA FE | T141: - | U141: -
B142: BE FORESTALES | C142: 76.188.197-3 | D142: CMPC CELULOSA PLANTA SANTA FE | E142: 3522 | F142: CMPC SANTA FE | G142: CALDERA DE BIOMASA LINEA 2 | H142: IN002012-9 | I142: CELULOSA SANTA FE 1 | J142: CMPC SANTA FE | K142: Santa Fe | L142: CMPC Santa Fe | M142: SANTAFE_BL1+BL2+BL3+BL4_COGEN | N142: Biomasa | O142: NACIMIENTO____220 | P142: Sí | R142: 1 | S142: G_CMPC SANTA FE | T142: - | U142: -
B143: BE FORESTALES | C143: 76.188.197-3 | D143: CMPC CELULOSA PLANTA SANTA FE | E143: 3522 | F143: CMPC SANTA FE | G143: CALDERA DE BIOMASA LINEA 2 | H143: IN002012-9 | I143: CELULOSA SANTA FE 2 | J143: CMPC SANTA FE | K143: Santa Fe | L143: CMPC Santa Fe | M143: SANTAFE_BL1_COGEN | N143: Biomasa | O143: NACIMIENTO____220 | P143: Sí | R143: 1 | S143: G_CMPC SANTA FE | T143: - | U143: -
B144: BE FORESTALES | C144: 76.188.197-3 | D144: CMPC CELULOSA PLANTA SANTA FE | E144: 3522 | F144: CMPC SANTA FE | G144: CALDERA DE BIOMASA LINEA 2 | H144: IN002012-9 | I144: CELULOSA SANTA FE 2 | J144: CMPC SANTA FE | K144: Santa Fe | L144: CMPC Santa Fe | M144: SANTAFE_BL1+BL2_COGEN | N144: Biomasa | O144: NACIMIENTO____220 | P144: Sí | R144: 1 | S144: G_CMPC SANTA FE | T144: - | U144: -
B145: BE FORESTALES | C145: 76.188.197-3 | D145: CMPC CELULOSA PLANTA SANTA FE | E145: 3522 | F145: CMPC SANTA FE | G145: CALDERA DE BIOMASA LINEA 2 | H145: IN002012-9 | I145: CELULOSA SANTA FE 2 | J145: CMPC SANTA FE | K145: Santa Fe | L145: CMPC Santa Fe | M145: SANTAFE_BL1+BL2+BL3_COGEN | N145: Biomasa | O145: NACIMIENTO____220 | P145: Sí | R145: 1 | S145: G_CMPC SANTA FE | T145: - | U145: -
B146: BE FORESTALES | C146: 76.188.197-3 | D146: CMPC CELULOSA PLANTA SANTA FE | E146: 3522 | F146: CMPC SANTA FE | G146: CALDERA DE BIOMASA LINEA 2 | H146: IN002012-9 | I146: CELULOSA SANTA FE 2 | J146: CMPC SANTA FE | K146: Santa Fe | L146: CMPC Santa Fe | M146: SANTAFE_BL1+BL2+BL3+BL4_COGEN | N146: Biomasa | O146: NACIMIENTO____220 | P146: Sí | R146: 1 | S146: G_CMPC SANTA FE | T146: - | U146: -
B147: BE FORESTALES | C147: 76.188.197-3 | D147: CMPC CELULOSA PLANTA SANTA FE | E147: 3522 | F147: CMPC SANTA FE | G147: CALDERA DE BIOMASA LINEA 2 | H147: IN002012-9 | I147: CELULOSA SANTA FE 3 | J147: CMPC SANTA FE | K147: Santa Fe | L147: CMPC Santa Fe | M147: SANTAFE_BL1_COGEN | N147: Biomasa | O147: NACIMIENTO____220 | P147: Sí | R147: 1 | S147: G_CMPC SANTA FE | T147: - | U147: -
B148: BE FORESTALES | C148: 76.188.197-3 | D148: CMPC CELULOSA PLANTA SANTA FE | E148: 3522 | F148: CMPC SANTA FE | G148: CALDERA DE BIOMASA LINEA 2 | H148: IN002012-9 | I148: CELULOSA SANTA FE 3 | J148: CMPC SANTA FE | K148: Santa Fe | L148: CMPC Santa Fe | M148: SANTAFE_BL1+BL2_COGEN | N148: Biomasa | O148: NACIMIENTO____220 | P148: Sí | R148: 1 | S148: G_CMPC SANTA FE | T148: - | U148: -
B149: BE FORESTALES | C149: 76.188.197-3 | D149: CMPC CELULOSA PLANTA SANTA FE | E149: 3522 | F149: CMPC SANTA FE | G149: CALDERA DE BIOMASA LINEA 2 | H149: IN002012-9 | I149: CELULOSA SANTA FE 3 | J149: CMPC SANTA FE | K149: Santa Fe | L149: CMPC Santa Fe | M149: SANTAFE_BL1+BL2+BL3_COGEN | N149: Biomasa | O149: NACIMIENTO____220 | P149: Sí | R149: 1 | S149: G_CMPC SANTA FE | T149: - | U149: -
B150: BE FORESTALES | C150: 76.188.197-3 | D150: CMPC CELULOSA PLANTA SANTA FE | E150: 3522 | F150: CMPC SANTA FE | G150: CALDERA DE BIOMASA LINEA 2 | H150: IN002012-9 | I150: CELULOSA SANTA FE 3 | J150: CMPC SANTA FE | K150: Santa Fe | L150: CMPC Santa Fe | M150: SANTAFE_BL1+BL2+BL3+BL4_COGEN | N150: Biomasa | O150: NACIMIENTO____220 | P150: Sí | R150: 1 | S150: G_CMPC SANTA FE | T150: - | U150: -
B151: BE FORESTALES | C151: 76.188.197-3 | D151: CMPC CELULOSA PLANTA PACIFICO | E151: 322488 | F151: CMPC PACIFICO | G151: CALDERA BIOMASA | H151: GE000015-2 | I151: CMPC PACIFICO 1 | J151: CMPC PACIFICO | K151: CMPC Pacífico | L151: CMPC Pacífico | M151: CMPCPACIFICO_BL1_COGEN | N151: Biomasa | O151: MININCO_______220 | P151: Sí | R151: 1 | S151: G_CMPC_PACIFICO | T151: - | U151: -
B152: BE FORESTALES | C152: 76.188.197-3 | D152: CMPC CELULOSA PLANTA PACIFICO | E152: 322488 | F152: CMPC PACIFICO | G152: CALDERA BIOMASA | H152: GE000015-2 | I152: CMPC PACIFICO 1 | J152: CMPC PACIFICO | K152: CMPC Pacífico | L152: CMPC Pacífico | M152: CMPCPACIFICO_BL1+BL2_COGEN | N152: Biomasa | O152: MININCO_______220 | P152: Sí | R152: 1 | S152: G_CMPC_PACIFICO | T152: - | U152: -
B153: BE FORESTALES | C153: 76.188.197-3 | D153: CMPC CELULOSA PLANTA PACIFICO | E153: 322488 | F153: CMPC PACIFICO | G153: CALDERA BIOMASA | H153: GE000015-2 | I153: CMPC PACIFICO 1 | J153: CMPC PACIFICO | K153: CMPC Pacífico | L153: CMPC Pacífico | M153: CMPCPACIFICO_BL1+BL2+BL3_COGEN | N153: Diésel | O153: MININCO_______220 | P153: Sí | R153: 1 | S153: G_CMPC_PACIFICO | T153: - | U153: -
B154: BE FORESTALES | C154: 76.188.197-3 | D154: CMPC CELULOSA PLANTA PACIFICO | E154: 322488 | F154: CMPC PACIFICO | G154: CALDERA BIOMASA | H154: GE000015-2 | I154: CMPC PACIFICO 2 | J154: CMPC PACIFICO | K154: CMPC Pacífico | L154: CMPC Pacífico | M154: CMPCPACIFICO_BL1_COGEN | N154: Biomasa | O154: MININCO_______220 | P154: Sí | R154: 1 | S154: G_CMPC_PACIFICO | T154: - | U154: -
B155: BE FORESTALES | C155: 76.188.197-3 | D155: CMPC CELULOSA PLANTA PACIFICO | E155: 322488 | F155: CMPC PACIFICO | G155: CALDERA BIOMASA | H155: GE000015-2 | I155: CMPC PACIFICO 2 | J155: CMPC PACIFICO | K155: CMPC Pacífico | L155: CMPC Pacífico | M155: CMPCPACIFICO_BL1+BL2_COGEN | N155: Biomasa | O155: MININCO_______220 | P155: Sí | R155: 1 | S155: G_CMPC_PACIFICO | T155: - | U155: -
B156: BE FORESTALES | C156: 76.188.197-3 | D156: CMPC CELULOSA PLANTA PACIFICO | E156: 322488 | F156: CMPC PACIFICO | G156: CALDERA BIOMASA | H156: GE000015-2 | I156: CMPC PACIFICO 2 | J156: CMPC PACIFICO | K156: CMPC Pacífico | L156: CMPC Pacífico | M156: CMPCPACIFICO_BL1+BL2+BL3_COGEN | N156: Diésel | O156: MININCO_______220 | P156: Sí | R156: 1 | S156: G_CMPC_PACIFICO | T156: - | U156: -
B157: BE FORESTALES | C157: 76.188.197-3 | D157: CMPC CELULOSA PLANTA PACIFICO | E157: 322488 | F157: CMPC PACIFICO | G157: CALDERA BIOMASA | H157: GE000015-2 | I157: CMPC PACIFICO 3 | J157: CMPC PACIFICO | K157: CMPC Pacífico | L157: CMPC Pacífico | M157: CMPCPACIFICO_BL1_COGEN | N157: Biomasa | O157: MININCO_______220 | P157: Sí | R157: 1 | S157: G_CMPC_PACIFICO | T157: - | U157: -
B158: BE FORESTALES | C158: 76.188.197-3 | D158: CMPC CELULOSA PLANTA PACIFICO | E158: 322488 | F158: CMPC PACIFICO | G158: CALDERA BIOMASA | H158: GE000015-2 | I158: CMPC PACIFICO 3 | J158: CMPC PACIFICO | K158: CMPC Pacífico | L158: CMPC Pacífico | M158: CMPCPACIFICO_BL1+BL2_COGEN | N158: Biomasa | O158: MININCO_______220 | P158: Sí | R158: 1 | S158: G_CMPC_PACIFICO | T158: - | U158: -
B159: BE FORESTALES | C159: 76.188.197-3 | D159: CMPC CELULOSA PLANTA PACIFICO | E159: 322488 | F159: CMPC PACIFICO | G159: CALDERA BIOMASA | H159: GE000015-2 | I159: CMPC PACIFICO 3 | J159: CMPC PACIFICO | K159: CMPC Pacífico | L159: CMPC Pacífico | M159: CMPCPACIFICO_BL1+BL2+BL3_COGEN | N159: Diésel | O159: MININCO_______220 | P159: Sí | R159: 1 | S159: G_CMPC_PACIFICO | T159: - | U159: -
B160: BE FORESTALES | C160: 76.188.197-3 | D160: CMPC CELULOSA PLANTA PACIFICO | E160: 322488 | F160: CMPC PACIFICO | G160: CALDERA AUXILIAR N°1 | H160: IN000334-8 | I160: CMPC PACIFICO 1 | J160: CMPC PACIFICO | K160: CMPC Pacífico | L160: CMPC Pacífico | M160: CMPCPACIFICO_BL1_COGEN | N160: Biomasa | O160: MININCO_______220 | P160: Sí | R160: 1 | S160: G_CMPC_PACIFICO | T160: - | U160: -
B161: BE FORESTALES | C161: 76.188.197-3 | D161: CMPC CELULOSA PLANTA PACIFICO | E161: 322488 | F161: CMPC PACIFICO | G161: CALDERA AUXILIAR N°1 | H161: IN000334-8 | I161: CMPC PACIFICO 1 | J161: CMPC PACIFICO | K161: CMPC Pacífico | L161: CMPC Pacífico | M161: CMPCPACIFICO_BL1+BL2_COGEN | N161: Biomasa | O161: MININCO_______220 | P161: Sí | R161: 1 | S161: G_CMPC_PACIFICO | T161: - | U161: -
B162: BE FORESTALES | C162: 76.188.197-3 | D162: CMPC CELULOSA PLANTA PACIFICO | E162: 322488 | F162: CMPC PACIFICO | G162: CALDERA AUXILIAR N°1 | H162: IN000334-8 | I162: CMPC PACIFICO 1 | J162: CMPC PACIFICO | K162: CMPC Pacífico | L162: CMPC Pacífico | M162: CMPCPACIFICO_BL1+BL2+BL3_COGEN | N162: Diésel | O162: MININCO_______220 | P162: Sí | R162: 1 | S162: G_CMPC_PACIFICO | T162: - | U162: -
B163: BE FORESTALES | C163: 76.188.197-3 | D163: CMPC CELULOSA PLANTA PACIFICO | E163: 322488 | F163: CMPC PACIFICO | G163: CALDERA AUXILIAR N°1 | H163: IN000334-8 | I163: CMPC PACIFICO 2 | J163: CMPC PACIFICO | K163: CMPC Pacífico | L163: CMPC Pacífico | M163: CMPCPACIFICO_BL1_COGEN | N163: Biomasa | O163: MININCO_______220 | P163: Sí | R163: 1 | S163: G_CMPC_PACIFICO | T163: - | U163: -
B164: BE FORESTALES | C164: 76.188.197-3 | D164: CMPC CELULOSA PLANTA PACIFICO | E164: 322488 | F164: CMPC PACIFICO | G164: CALDERA AUXILIAR N°1 | H164: IN000334-8 | I164: CMPC PACIFICO 2 | J164: CMPC PACIFICO | K164: CMPC Pacífico | L164: CMPC Pacífico | M164: CMPCPACIFICO_BL1+BL2_COGEN | N164: Biomasa | O164: MININCO_______220 | P164: Sí | R164: 1 | S164: G_CMPC_PACIFICO | T164: - | U164: -
B165: BE FORESTALES | C165: 76.188.197-3 | D165: CMPC CELULOSA PLANTA PACIFICO | E165: 322488 | F165: CMPC PACIFICO | G165: CALDERA AUXILIAR N°1 | H165: IN000334-8 | I165: CMPC PACIFICO 2 | J165: CMPC PACIFICO | K165: CMPC Pacífico | L165: CMPC Pacífico | M165: CMPCPACIFICO_BL1+BL2+BL3_COGEN | N165: Diésel | O165: MININCO_______220 | P165: Sí | R165: 1 | S165: G_CMPC_PACIFICO | T165: - | U165: -
B166: BE FORESTALES | C166: 76.188.197-3 | D166: CMPC CELULOSA PLANTA PACIFICO | E166: 322488 | F166: CMPC PACIFICO | G166: CALDERA AUXILIAR N°1 | H166: IN000334-8 | I166: CMPC PACIFICO 3 | J166: CMPC PACIFICO | K166: CMPC Pacífico | L166: CMPC Pacífico | M166: CMPCPACIFICO_BL1_COGEN | N166: Biomasa | O166: MININCO_______220 | P166: Sí | R166: 1 | S166: G_CMPC_PACIFICO | T166: - | U166: -
B167: BE FORESTALES | C167: 76.188.197-3 | D167: CMPC CELULOSA PLANTA PACIFICO | E167: 322488 | F167: CMPC PACIFICO | G167: CALDERA AUXILIAR N°1 | H167: IN000334-8 | I167: CMPC PACIFICO 3 | J167: CMPC PACIFICO | K167: CMPC Pacífico | L167: CMPC Pacífico | M167: CMPCPACIFICO_BL1+BL2_COGEN | N167: Biomasa | O167: MININCO_______220 | P167: Sí | R167: 1 | S167: G_CMPC_PACIFICO | T167: - | U167: -
B168: BE FORESTALES | C168: 76.188.197-3 | D168: CMPC CELULOSA PLANTA PACIFICO | E168: 322488 | F168: CMPC PACIFICO | G168: CALDERA AUXILIAR N°1 | H168: IN000334-8 | I168: CMPC PACIFICO 3 | J168: CMPC PACIFICO | K168: CMPC Pacífico | L168: CMPC Pacífico | M168: CMPCPACIFICO_BL1+BL2+BL3_COGEN | N168: Diésel | O168: MININCO_______220 | P168: Sí | R168: 1 | S168: G_CMPC_PACIFICO | T168: - | U168: -
B169: BE FORESTALES | C169: 76.188.197-3 | D169: CMPC CELULOSA PLANTA PACIFICO | E169: 322488 | F169: CMPC PACIFICO | G169: CALDERA AUXILIAR N°2 | H169: IN000335-6 | I169: CMPC PACIFICO 1 | J169: CMPC PACIFICO | K169: CMPC Pacífico | L169: CMPC Pacífico | M169: CMPCPACIFICO_BL1_COGEN | N169: Biomasa | O169: MININCO_______220 | P169: Sí | R169: 1 | S169: G_CMPC_PACIFICO | T169: - | U169: -
B170: BE FORESTALES | C170: 76.188.197-3 | D170: CMPC CELULOSA PLANTA PACIFICO | E170: 322488 | F170: CMPC PACIFICO | G170: CALDERA AUXILIAR N°2 | H170: IN000335-6 | I170: CMPC PACIFICO 1 | J170: CMPC PACIFICO | K170: CMPC Pacífico | L170: CMPC Pacífico | M170: CMPCPACIFICO_BL1+BL2_COGEN | N170: Biomasa | O170: MININCO_______220 | P170: Sí | R170: 1 | S170: G_CMPC_PACIFICO | T170: - | U170: -
B171: BE FORESTALES | C171: 76.188.197-3 | D171: CMPC CELULOSA PLANTA PACIFICO | E171: 322488 | F171: CMPC PACIFICO | G171: CALDERA AUXILIAR N°2 | H171: IN000335-6 | I171: CMPC PACIFICO 1 | J171: CMPC PACIFICO | K171: CMPC Pacífico | L171: CMPC Pacífico | M171: CMPCPACIFICO_BL1+BL2+BL3_COGEN | N171: Diésel | O171: MININCO_______220 | P171: Sí | R171: 1 | S171: G_CMPC_PACIFICO | T171: - | U171: -
B172: BE FORESTALES | C172: 76.188.197-3 | D172: CMPC CELULOSA PLANTA PACIFICO | E172: 322488 | F172: CMPC PACIFICO | G172: CALDERA AUXILIAR N°2 | H172: IN000335-6 | I172: CMPC PACIFICO 2 | J172: CMPC PACIFICO | K172: CMPC Pacífico | L172: CMPC Pacífico | M172: CMPCPACIFICO_BL1_COGEN | N172: Biomasa | O172: MININCO_______220 | P172: Sí | R172: 1 | S172: G_CMPC_PACIFICO | T172: - | U172: -
B173: BE FORESTALES | C173: 76.188.197-3 | D173: CMPC CELULOSA PLANTA PACIFICO | E173: 322488 | F173: CMPC PACIFICO | G173: CALDERA AUXILIAR N°2 | H173: IN000335-6 | I173: CMPC PACIFICO 2 | J173: CMPC PACIFICO | K173: CMPC Pacífico | L173: CMPC Pacífico | M173: CMPCPACIFICO_BL1+BL2_COGEN | N173: Biomasa | O173: MININCO_______220 | P173: Sí | R173: 1 | S173: G_CMPC_PACIFICO | T173: - | U173: -
B174: BE FORESTALES | C174: 76.188.197-3 | D174: CMPC CELULOSA PLANTA PACIFICO | E174: 322488 | F174: CMPC PACIFICO | G174: CALDERA AUXILIAR N°2 | H174: IN000335-6 | I174: CMPC PACIFICO 2 | J174: CMPC PACIFICO | K174: CMPC Pacífico | L174: CMPC Pacífico | M174: CMPCPACIFICO_BL1+BL2+BL3_COGEN | N174: Diésel | O174: MININCO_______220 | P174: Sí | R174: 1 | S174: G_CMPC_PACIFICO | T174: - | U174: -
B175: BE FORESTALES | C175: 76.188.197-3 | D175: CMPC CELULOSA PLANTA PACIFICO | E175: 322488 | F175: CMPC PACIFICO | G175: CALDERA AUXILIAR N°2 | H175: IN000335-6 | I175: CMPC PACIFICO 3 | J175: CMPC PACIFICO | K175: CMPC Pacífico | L175: CMPC Pacífico | M175: CMPCPACIFICO_BL1_COGEN | N175: Biomasa | O175: MININCO_______220 | P175: Sí | R175: 1 | S175: G_CMPC_PACIFICO | T175: - | U175: -
B176: BE FORESTALES | C176: 76.188.197-3 | D176: CMPC CELULOSA PLANTA PACIFICO | E176: 322488 | F176: CMPC PACIFICO | G176: CALDERA AUXILIAR N°2 | H176: IN000335-6 | I176: CMPC PACIFICO 3 | J176: CMPC PACIFICO | K176: CMPC Pacífico | L176: CMPC Pacífico | M176: CMPCPACIFICO_BL1+BL2_COGEN | N176: Biomasa | O176: MININCO_______220 | P176: Sí | R176: 1 | S176: G_CMPC_PACIFICO | T176: - | U176: -
B177: BE FORESTALES | C177: 76.188.197-3 | D177: CMPC CELULOSA PLANTA PACIFICO | E177: 322488 | F177: CMPC PACIFICO | G177: CALDERA AUXILIAR N°2 | H177: IN000335-6 | I177: CMPC PACIFICO 3 | J177: CMPC PACIFICO | K177: CMPC Pacífico | L177: CMPC Pacífico | M177: CMPCPACIFICO_BL1+BL2+BL3_COGEN | N177: Diésel | O177: MININCO_______220 | P177: Sí | R177: 1 | S177: G_CMPC_PACIFICO | T177: - | U177: -
B178: BE FORESTALES | C178: 76.188.197-3 | D178: CMPC CELULOSA PLANTA PACIFICO | E178: 322488 | F178: CMPC PACIFICO | G178: CALDERA RECUPERADORA | H178: IN000336-4 | I178: CMPC PACIFICO 1 | J178: CMPC PACIFICO | K178: CMPC Pacífico | L178: CMPC Pacífico | M178: CMPCPACIFICO_BL1_COGEN | N178: Biomasa | O178: MININCO_______220 | P178: Sí | R178: 1 | S178: G_CMPC_PACIFICO | T178: - | U178: -
B179: BE FORESTALES | C179: 76.188.197-3 | D179: CMPC CELULOSA PLANTA PACIFICO | E179: 322488 | F179: CMPC PACIFICO | G179: CALDERA RECUPERADORA | H179: IN000336-4 | I179: CMPC PACIFICO 1 | J179: CMPC PACIFICO | K179: CMPC Pacífico | L179: CMPC Pacífico | M179: CMPCPACIFICO_BL1+BL2_COGEN | N179: Biomasa | O179: MININCO_______220 | P179: Sí | R179: 1 | S179: G_CMPC_PACIFICO | T179: - | U179: -
B180: BE FORESTALES | C180: 76.188.197-3 | D180: CMPC CELULOSA PLANTA PACIFICO | E180: 322488 | F180: CMPC PACIFICO | G180: CALDERA RECUPERADORA | H180: IN000336-4 | I180: CMPC PACIFICO 1 | J180: CMPC PACIFICO | K180: CMPC Pacífico | L180: CMPC Pacífico | M180: CMPCPACIFICO_BL1+BL2+BL3_COGEN | N180: Diésel | O180: MININCO_______220 | P180: Sí | R180: 1 | S180: G_CMPC_PACIFICO | T180: - | U180: -
B181: BE FORESTALES | C181: 76.188.197-3 | D181: CMPC CELULOSA PLANTA PACIFICO | E181: 322488 | F181: CMPC PACIFICO | G181: CALDERA RECUPERADORA | H181: IN000336-4 | I181: CMPC PACIFICO 2 | J181: CMPC PACIFICO | K181: CMPC Pacífico | L181: CMPC Pacífico | M181: CMPCPACIFICO_BL1_COGEN | N181: Biomasa | O181: MININCO_______220 | P181: Sí | R181: 1 | S181: G_CMPC_PACIFICO | T181: - | U181: -
B182: BE FORESTALES | C182: 76.188.197-3 | D182: CMPC CELULOSA PLANTA PACIFICO | E182: 322488 | F182: CMPC PACIFICO | G182: CALDERA RECUPERADORA | H182: IN000336-4 | I182: CMPC PACIFICO 2 | J182: CMPC PACIFICO | K182: CMPC Pacífico | L182: CMPC Pacífico | M182: CMPCPACIFICO_BL1+BL2_COGEN | N182: Biomasa | O182: MININCO_______220 | P182: Sí | R182: 1 | S182: G_CMPC_PACIFICO | T182: - | U182: -
B183: BE FORESTALES | C183: 76.188.197-3 | D183: CMPC CELULOSA PLANTA PACIFICO | E183: 322488 | F183: CMPC PACIFICO | G183: CALDERA RECUPERADORA | H183: IN000336-4 | I183: CMPC PACIFICO 2 | J183: CMPC PACIFICO | K183: CMPC Pacífico | L183: CMPC Pacífico | M183: CMPCPACIFICO_BL1+BL2+BL3_COGEN | N183: Diésel | O183: MININCO_______220 | P183: Sí | R183: 1 | S183: G_CMPC_PACIFICO | T183: - | U183: -
B184: BE FORESTALES | C184: 76.188.197-3 | D184: CMPC CELULOSA PLANTA PACIFICO | E184: 322488 | F184: CMPC PACIFICO | G184: CALDERA RECUPERADORA | H184: IN000336-4 | I184: CMPC PACIFICO 3 | J184: CMPC PACIFICO | K184: CMPC Pacífico | L184: CMPC Pacífico | M184: CMPCPACIFICO_BL1_COGEN | N184: Biomasa | O184: MININCO_______220 | P184: Sí | R184: 1 | S184: G_CMPC_PACIFICO | T184: - | U184: -
B185: BE FORESTALES | C185: 76.188.197-3 | D185: CMPC CELULOSA PLANTA PACIFICO | E185: 322488 | F185: CMPC PACIFICO | G185: CALDERA RECUPERADORA | H185: IN000336-4 | I185: CMPC PACIFICO 3 | J185: CMPC PACIFICO | K185: CMPC Pacífico | L185: CMPC Pacífico | M185: CMPCPACIFICO_BL1+BL2_COGEN | N185: Biomasa | O185: MININCO_______220 | P185: Sí | R185: 1 | S185: G_CMPC_PACIFICO | T185: - | U185: -
B186: BE FORESTALES | C186: 76.188.197-3 | D186: CMPC CELULOSA PLANTA PACIFICO | E186: 322488 | F186: CMPC PACIFICO | G186: CALDERA RECUPERADORA | H186: IN000336-4 | I186: CMPC PACIFICO 3 | J186: CMPC PACIFICO | K186: CMPC Pacífico | L186: CMPC Pacífico | M186: CMPCPACIFICO_BL1+BL2+BL3_COGEN | N186: Diésel | O186: MININCO_______220 | P186: Sí | R186: 1 | S186: G_CMPC_PACIFICO | T186: - | U186: -
B187: BE FORESTALES | C187: 76.188.197-3 | D187: CMPC CELULOSA PLANTA PACIFICO | E187: 322488 | F187: CMPC PACIFICO | G187: INCINERADOR DEDICADO | H187: PC001041-8 | I187: CMPC PACIFICO 1 | J187: CMPC PACIFICO | K187: CMPC Pacífico | L187: CMPC Pacífico | M187: CMPCPACIFICO_BL1_COGEN | N187: Biomasa | O187: MININCO_______220 | P187: Sí | R187: 1 | S187: G_CMPC_PACIFICO | T187: - | U187: -
B188: BE FORESTALES | C188: 76.188.197-3 | D188: CMPC CELULOSA PLANTA PACIFICO | E188: 322488 | F188: CMPC PACIFICO | G188: INCINERADOR DEDICADO | H188: PC001041-8 | I188: CMPC PACIFICO 1 | J188: CMPC PACIFICO | K188: CMPC Pacífico | L188: CMPC Pacífico | M188: CMPCPACIFICO_BL1+BL2_COGEN | N188: Biomasa | O188: MININCO_______220 | P188: Sí | R188: 1 | S188: G_CMPC_PACIFICO | T188: - | U188: -
B189: BE FORESTALES | C189: 76.188.197-3 | D189: CMPC CELULOSA PLANTA PACIFICO | E189: 322488 | F189: CMPC PACIFICO | G189: INCINERADOR DEDICADO | H189: PC001041-8 | I189: CMPC PACIFICO 1 | J189: CMPC PACIFICO | K189: CMPC Pacífico | L189: CMPC Pacífico | M189: CMPCPACIFICO_BL1+BL2+BL3_COGEN | N189: Diésel | O189: MININCO_______220 | P189: Sí | R189: 1 | S189: G_CMPC_PACIFICO | T189: - | U189: -
B190: BE FORESTALES | C190: 76.188.197-3 | D190: CMPC CELULOSA PLANTA PACIFICO | E190: 322488 | F190: CMPC PACIFICO | G190: INCINERADOR DEDICADO | H190: PC001041-8 | I190: CMPC PACIFICO 2 | J190: CMPC PACIFICO | K190: CMPC Pacífico | L190: CMPC Pacífico | M190: CMPCPACIFICO_BL1_COGEN | N190: Biomasa | O190: MININCO_______220 | P190: Sí | R190: 1 | S190: G_CMPC_PACIFICO | T190: - | U190: -
B191: BE FORESTALES | C191: 76.188.197-3 | D191: CMPC CELULOSA PLANTA PACIFICO | E191: 322488 | F191: CMPC PACIFICO | G191: INCINERADOR DEDICADO | H191: PC001041-8 | I191: CMPC PACIFICO 2 | J191: CMPC PACIFICO | K191: CMPC Pacífico | L191: CMPC Pacífico | M191: CMPCPACIFICO_BL1+BL2_COGEN | N191: Biomasa | O191: MININCO_______220 | P191: Sí | R191: 1 | S191: G_CMPC_PACIFICO | T191: - | U191: -
B192: BE FORESTALES | C192: 76.188.197-3 | D192: CMPC CELULOSA PLANTA PACIFICO | E192: 322488 | F192: CMPC PACIFICO | G192: INCINERADOR DEDICADO | H192: PC001041-8 | I192: CMPC PACIFICO 2 | J192: CMPC PACIFICO | K192: CMPC Pacífico | L192: CMPC Pacífico | M192: CMPCPACIFICO_BL1+BL2+BL3_COGEN | N192: Diésel | O192: MININCO_______220 | P192: Sí | R192: 1 | S192: G_CMPC_PACIFICO | T192: - | U192: -
B193: BE FORESTALES | C193: 76.188.197-3 | D193: CMPC CELULOSA PLANTA PACIFICO | E193: 322488 | F193: CMPC PACIFICO | G193: INCINERADOR DEDICADO | H193: PC001041-8 | I193: CMPC PACIFICO 3 | J193: CMPC PACIFICO | K193: CMPC Pacífico | L193: CMPC Pacífico | M193: CMPCPACIFICO_BL1_COGEN | N193: Biomasa | O193: MININCO_______220 | P193: Sí | R193: 1 | S193: G_CMPC_PACIFICO | T193: - | U193: -
B194: BE FORESTALES | C194: 76.188.197-3 | D194: CMPC CELULOSA PLANTA PACIFICO | E194: 322488 | F194: CMPC PACIFICO | G194: INCINERADOR DEDICADO | H194: PC001041-8 | I194: CMPC PACIFICO 3 | J194: CMPC PACIFICO | K194: CMPC Pacífico | L194: CMPC Pacífico | M194: CMPCPACIFICO_BL1+BL2_COGEN | N194: Biomasa | O194: MININCO_______220 | P194: Sí | R194: 1 | S194: G_CMPC_PACIFICO | T194: - | U194: -
B195: BE FORESTALES | C195: 76.188.197-3 | D195: CMPC CELULOSA PLANTA PACIFICO | E195: 322488 | F195: CMPC PACIFICO | G195: INCINERADOR DEDICADO | H195: PC001041-8 | I195: CMPC PACIFICO 3 | J195: CMPC PACIFICO | K195: CMPC Pacífico | L195: CMPC Pacífico | M195: CMPCPACIFICO_BL1+BL2+BL3_COGEN | N195: Diésel | O195: MININCO_______220 | P195: Sí | R195: 1 | S195: G_CMPC_PACIFICO | T195: - | U195: -
B196: BE FORESTALES | C196: 76.188.197-3 | D196: PAPELES CORDILLERA S.A. | E196: 2897 | F196: CMPC CORDILLERA | G196: CALDERA 1 | H196: IN001148-0 | I196: CMPC CORDILLERA | J196: CMPC CORDILLERA | K196: CMPC Cordillera | L196: CMPC Cordillera | M196: CMPCCORDILLERA_BL1_COGEN | N196: GNL | O196: PALTO_________110 | P196: Sí | R196: 1 | S196: G_CMPC CORDILLERA | T196: - | U196: -
B197: BE FORESTALES | C197: 76.188.197-3 | D197: PAPELES CORDILLERA S.A. | E197: 2897 | F197: CMPC CORDILLERA | G197: CALDERA 1 | H197: IN001148-0 | I197: CMPC CORDILLERA | J197: CMPC CORDILLERA | K197: CMPC Cordillera | L197: CMPC Cordillera | M197: CMPCCORDILLERA_BL1+BL2_COGEN | N197: GNL | O197: PALTO_________110 | P197: Sí | R197: 1 | S197: G_CMPC CORDILLERA | T197: - | U197: -
B198: BE FORESTALES | C198: 76.188.197-3 | D198: PAPELES CORDILLERA S.A. | E198: 2897 | F198: CMPC CORDILLERA | G198: CALDERA 1 | H198: IN001148-0 | I198: CMPC CORDILLERA | J198: CMPC CORDILLERA | K198: CMPC Cordillera | L198: CMPC Cordillera | M198: CMPCCORDILLERA_BL1+BL2+BL3_COGEN | N198: GNL | O198: PALTO_________110 | P198: Sí | R198: 1 | S198: G_CMPC CORDILLERA | T198: - | U198: -
B199: BE FORESTALES | C199: 76.188.197-3 | D199: PAPELES CORDILLERA S.A. | E199: 2897 | F199: CMPC CORDILLERA | G199: CALDERA 2 | H199: IN001149-9 | I199: CMPC CORDILLERA | J199: CMPC CORDILLERA | K199: CMPC Cordillera | L199: CMPC Cordillera | M199: CMPCCORDILLERA_BL1_COGEN | N199: GNL | O199: PALTO_________110 | P199: Sí | R199: 1 | S199: G_CMPC CORDILLERA | T199: - | U199: -
B200: BE FORESTALES | C200: 76.188.197-3 | D200: PAPELES CORDILLERA S.A. | E200: 2897 | F200: CMPC CORDILLERA | G200: CALDERA 2 | H200: IN001149-9 | I200: CMPC CORDILLERA | J200: CMPC CORDILLERA | K200: CMPC Cordillera | L200: CMPC Cordillera | M200: CMPCCORDILLERA_BL1+BL2_COGEN | N200: GNL | O200: PALTO_________110 | P200: Sí | R200: 1 | S200: G_CMPC CORDILLERA | T200: - | U200: -
B201: BE FORESTALES | C201: 76.188.197-3 | D201: PAPELES CORDILLERA S.A. | E201: 2897 | F201: CMPC CORDILLERA | G201: CALDERA 2 | H201: IN001149-9 | I201: CMPC CORDILLERA | J201: CMPC CORDILLERA | K201: CMPC Cordillera | L201: CMPC Cordillera | M201: CMPCCORDILLERA_BL1+BL2+BL3_COGEN | N201: GNL | O201: PALTO_________110 | P201: Sí | R201: 1 | S201: G_CMPC CORDILLERA | T201: - | U201: -
B202: BE FORESTALES | C202: 76.188.197-3 | D202: PAPELES CORDILLERA S.A. | E202: 2897 | F202: CMPC CORDILLERA | G202: CALDERA 3 | H202: IN001150-2 | I202: CMPC CORDILLERA | J202: CMPC CORDILLERA | K202: CMPC Cordillera | L202: CMPC Cordillera | M202: CMPCCORDILLERA_BL1_COGEN | N202: GNL | O202: PALTO_________110 | P202: Sí | R202: 1 | S202: G_CMPC CORDILLERA | T202: - | U202: -
... 489 more rows

Sheet Unidades
B2: Lista Unidades TCV
B5: Nombre unidad TCV | C5: Nombre central TCV | D5: Empresa | E5: Autoproductor | F5: Total
B6: ANG1 | C6: Angamos | D6: ANGAMOS | E6: No | F6: 1
B7: ANG2 | C7: Angamos | D7: ANGAMOS | E7: No | F7: 1
B8: Antilhue TG U1 | C8: Antilhue TG | D8: COLBUN | E8: No | F8: 2
B9: Antilhue TG U2 | C9: Antilhue TG | D9: COLBUN | E9: No | F9: 2
B10: Arauco | C10: Arauco | D10: ARAUCO BIO | E10: Sí | F10: 11
B11: Bocamina | C11: Termoeléctrica Bocamina | D11: ENEL_GENERACION | E11: No | F11: 1
B12: Bocamina II | C12: Termoeléctrica Bocamina | D12: ENEL_GENERACION | E12: No | F12: 1
B13: Campiche | C13: Termoeléctrica Ventanas | D13: AES_GENER | E13: No | F13: 1
B14: Candelaria 1 | C14: Candelaria | D14: COLBUN | E14: No | F14: 10
B15: Candelaria 2 | C15: Candelaria | D15: COLBUN | E15: No | F15: 10
B16: Cardones | C16: Cardones | D16: CARDONES SA | E16: No | F16: 1
B17: CC KELAR | C17: Kelar | D17: TAMAKAYA_ENERGIA | E17: No | F17: 48
B18: CC1 | C18: Atacama | D18: ENEL_GENERACION | E18: No | F18: 68
B19: CC2 | C19: Atacama | D19: ENEL_GENERACION | E19: No | F19: 72
B20: CCH1 | C20: Cochrane | D20: COCHRANE | E20: No | F20: 1
B21: CCH2 | C21: Cochrane | D21: COCHRANE | E21: No | F21: 1
B22: CD Iquique | C22: (en blanco) | D22: ENGIE | E22: No
B23: Celco | C23: Celco | D23: ARAUCO BIO | E23: Sí | F23: 4
B24: Cholguán | C24: Cholguan | D24: ARAUCO BIO | E24: Sí | F24: 6
B25: CMPC Cordillera | C25: CMPC Cordillera | D25: BE FORESTALES | E25: Sí | F25: 12
B26: CMPC Laja | C26: CMPC Laja | D26: BE FORESTALES | E26: Sí | F26: 12
B27: CMPC Pacífico | C27: CMPC Pacífico | D27: BE FORESTALES | E27: Sí | F27: 45
B28: CMPC Santa Fe | C28: Santa Fe | D28: BE FORESTALES | E28: Sí | F28: 48
B29: CMPC TISSUE | C29: (en blanco) | D29: BE FORESTALES | E29: Sí
B30: Colmito | C30: Colmito | D30: COLMITO | E30: No | F30: 3
B31: CTA | C31: Andina | D31: ANDINA | E31: No | F31: 1
B32: CTH | C32: Hornitos | D32: HORNITOS | E32: No | F32: 2
B33: CTM1 | C33: Mejillones | D33: ENGIE | E33: No | F33: 1
B34: CTM2 | C34: Mejillones | D34: ENGIE | E34: No | F34: 1
B35: CTM3 | C35: Mejillones | D35: ENGIE | E35: No | F35: 12
B36: CTTAR | C36: Tarapacá | D36: ENEL_GENERACION | E36: No | F36: 1
B37: Diego de Almagro | C37: Diego de Almagro | D37: ENEL_GENERACION | E37: No | F37: 1
B38: El Salvador | C38: El Salvador | D38: SWO | E38: No | F38: 1
B39: Emelda U1 | C39: Emelda | D39: EMELDA | E39: No | F39: 1
B40: Emelda U2 | C40: Emelda | D40: EMELDA | E40: No | F40: 1
B41: Energía Pacífico | C41: Energía Pacífico | D41: ENERGIA PACIFICO | E41: Sí | F41: 1
B42: Escuadrón | C42: Escuadron | D42: NUEVA ENERGIA | E42: No | F42: 2
B43: Esperanza TG | C43: Esperanza | D43: ENORCHILE | E43: No | F43: 1
B44: Guacolda 1 | C44: Guacolda | D44: GUACOLDA | E44: No | F44: 1
B45: Guacolda 2 | C45: Guacolda | D45: GUACOLDA | E45: No | F45: 1
B46: Guacolda 3 | C46: Guacolda | D46: GUACOLDA | E46: No | F46: 1
B47: Guacolda 4 | C47: Guacolda | D47: GUACOLDA | E47: No | F47: 1
B48: Guacolda 5 | C48: Guacolda | D48: GUACOLDA | E48: No | F48: 1
B49: Horcones | C49: Horcones TG | D49: ARAUCO BIO | E49: No | F49: 1
B50: Huasco TG | C50: Huasco TG | D50: ENEL_GENERACION | E50: No | F50: 6
B51: IEM | C51: Mejillones | D51: ENGIE | E51: No | F51: 1
B52: Laguna Verde TG | C52: Laguna Verde | D52: AES_GENER | E52: No | F52: 1
B53: Laguna Verde TV | C53: Laguna Verde | D53: AES_GENER | E53: No | F53: 4
B54: Laja | C54: Laja | D54: AES_GENER | E54: Sí | F54: 2
B55: Lautaro-Comasa | C55: Lautaro | D55: COMASA | E55: No | F55: 2
B56: Lautaro-Comasa 2 | C56: Lautaro | D56: COMASA | E56: No | F56: 1
B57: Licantén | C57: Licanten | D57: ARAUCO BIO | E57: Sí | F57: 2
B58: Los Guindos | C58: Los Guindos | D58: LOS_GUINDOS | E58: No | F58: 1
B59: Los Pinos | C59: Los Pinos | D59: COLBUN | E59: No | F59: 1
B60: Los Vientos | C60: Los Vientos | D60: GMETROPOLITANA | E60: No | F60: 2
B61: Masisa (Cabrero) | C61: Masisa | D61: NEOMAS | E61: Sí | F61: 5
B62: Nehuenco | C62: Nehuenco | D62: COLBUN | E62: No | F62: 42
B63: Nehuenco II | C63: Nehuenco | D63: COLBUN | E63: No | F63: 19
B64: Nehuenco TG 9B | C64: Nehuenco | D64: COLBUN | E64: No | F64: 10
B65: NTO1 | C65: Norgener | D65: AES_GENER | E65: No | F65: 1
B66: NTO2 | C66: Norgener | D66: AES_GENER | E66: No | F66: 1
B67: Nueva Aldea I | C67: Nueva Aldea I | D67: ARAUCO BIO | E67: Sí | F67: 6
B68: Nueva Aldea III | C68: Nueva Aldea III | D68: ARAUCO BIO | E68: Sí | F68: 3
B69: Nueva Renca | C69: Nueva Renca | D69: GMETROPOLITANA | E69: No | F69: 14
B70: Nueva Ventanas | C70: Termoeléctrica Ventanas | D70: AES_GENER | E70: No | F70: 1
B71: Petropower | C71: Petropower | D71: ERSA | E71: Sí | F71: 1
B72: Quintero A | C72: Quintero | D72: ENEL_GENERACION | E72: No | F72: 7
B73: Quintero B | C73: Quintero | D73: ENEL_GENERACION | E73: No | F73: 7
B74: Renca U1 | C74: Renca | D74: GMETROPOLITANA | E74: No | F74: 1
B75: Renca U2 | C75: Renca | D75: GMETROPOLITANA | E75: No | F75: 1
B76: San Isidro | C76: San Isidro | D76: ENEL_GENERACION | E76: No | F76: 27
B77: San Isidro II | C77: San Isidro 2 | D77: ENEL_GENERACION | E77: No | F77: 21
B78: San Lorenzo de D. de Almagro U1 | C78: San Lorenzo de D. de Almagro | D78: ENLASA | E78: No | F78: 1
B79: San Lorenzo de D. de Almagro U2 | C79: San Lorenzo de D. de Almagro | D79: ENLASA | E79: No | F79: 1
B80: Santa Lidia | C80: Santa Lidia | D80: GMETROPOLITANA | E80: No | F80: 1
B81: Santa María | C81: Santa María | D81: COLBUN | E81: No | F81: 2
B82: Taltal 1 | C82: Taltal | D82: ENEL_GENERACION | E82: No | F82: 7
B83: Taltal 2 | C83: Taltal | D83: ENEL_GENERACION | E83: No | F83: 7
B84: TG_Coronel | C84: Coronel | D84: SGA | E84: No | F84: 3
B85: TG1 | C85: Tocopilla | D85: ENGIE | E85: No | F85: 1
B86: TG2 | C86: Tocopilla | D86: ENGIE | E86: No | F86: 1
B87: TG3 | C87: Tocopilla | D87: ENGIE | E87: No | F87: 5
B88: TGTAR | C88: Tarapacá | D88: ENEL_GENERACION | E88: No | F88: 1
B89: U12 | C89: Tocopilla | D89: ENGIE | E89: No | F89: 1
B90: U13 | C90: Tocopilla | D90: ENGIE | E90: No | F90: 1
B91: U14 | C91: Tocopilla | D91: ENGIE | E91: No | F91: 1
B92: U15 | C92: Tocopilla | D92: ENGIE | E92: No | F92: 1
B93: U16 | C93: Tocopilla | D93: ENGIE | E93: No | F93: 11
B94: Valdivia | C94: Valdivia | D94: ARAUCO BIO | E94: Sí | F94: 16
B95: Ventanas 1 | C95: Termoeléctrica Ventanas | D95: AES_GENER | E95: No | F95: 1
B96: Ventanas 2 | C96: Termoeléctrica Ventanas | D96: AES_GENER | E96: No | F96: 1
B97: Viñales | C97: Viñales | D97: ARAUCO BIO | E97: Sí | F97: 2
B98: Yungay 1 | C98: Yungay | D98: ORAZUL_DUQUECO | E98: No | F98: 4
B99: Yungay 2 | C99: Yungay | D99: ORAZUL_DUQUECO | E99: No | F99: 4
B100: Yungay 3 | C100: Yungay | D100: ORAZUL_DUQUECO | E100: No | F100: 4
B101: Yungay 4 ca | C101: Yungay | D101: ORAZUL_DUQUECO | E101: No | F101: 1
B102: Los Guindos 2 | C102: Los Guindos | D102: LOS_GUINDOS | E102: No | F102: 1
B103: Total general | F103: 662

Sheet Empresas
B3: Empresas
B4: AASA_ENERGIA
B5: ABASTIBLE
B6: ACCIONA_ENERGIA
B7: AELA_GENERACION
B8: AES_GENER
B9: AGSA
B10: ALBA
B11: ALLIPEN
B12: ALMEYDA
B13: ANDINA
B14: ANGAMOS
B15: ARAUCO BIO
B16: ARRAYAN_EOLICO
B17: ATACAMA_GX_CHILE
B18: ATRIA_ENERGIA
B19: BE FORESTALES
B20: BESALCO
B21: CABO_LEONES
B22: CARBOMET
B23: CARDONES SA
B24: CAREN
B25: CCAMPESINO
B26: CERRO_DOMINADOR_CSP
B27: CHACAYES
B28: CHUNGUNGO
B29: COCHRANE
B30: COLBUN
B31: COLMITO
B32: COMASA
B33: CONEJO_SOLAR
B34: COYANCO
B35: CUMPEO
B36: DUQUECO
B37: EGP_SUR
B38: EL_CAMPESINO_I
B39: EL_MORADO
B40: EL_PELICANO
B41: ELECTRICA CENIZAS
B42: EMBALSE_ANCOA
B43: EMELDA
B44: ENEL_GENERACION
B45: ENERGÍA BIO BIO
B46: ENERGÍA LEÓN
B47: ENERGIA PACIFICO
B48: ENERGIA_LEON
B49: ENGIE
B50: ENLASA
B51: ENORCHILE
B52: EOLICA_ESPERANZA
B53: ERNC1
B54: ERSA
B55: ESTANCILLA SPA
B56: GAS SUR
B57: GASATACAMA
B58: GM_HOLDINGS
B59: GMETROPOLITANA
B60: GUACOLDA
B61: HELIO_ATACAMA_TRES
B62: HIDROLIRCAY
B63: HORNITOS
B64: HUAJACHE
B65: IMELSA_ENERGIA
B66: JAVIERA
B67: KALTEMP
B68: KDM_ENERGIA
B69: LA ARENA SPA
B70: LA CONFLUENCIA
B71: LA HIGUERA
B72: LIPIGAS
B73: LOS_CURUROS
B74: LOS_GUINDOS
B75: LUZ_DEL_NORTE
B76: MALLARAUCO
B77: MONTE REDONDO
B78: NEOMAS
B79: NORACID
B80: NORVIND
B81: NUEVA ENERGIA
B82: ON GROUP
B83: ORAFTI
B84: ORAZUL_DUQUECO
B85: PACIFIC HYDRO
B86: PANGUIPULLI
B87: PARQUE_EOLICO_LEBU
B88: PEHUENCHE
B89: POZO_ALMONTE_SOLAR_2
B90: POZO_ALMONTE_SOLAR_3
B91: PUCLARO
B92: PUNTILLA
B93: RAKI
B94: RIO_COLORADO
B95: RUCATAYO
B96: SAFIRA_ENERGIA_CHILE
B97: SAN_JUAN_LAP
B98: SANTIAGO_SOLAR
B99: SGA
B100: SPVP4
B101: SWO
B102: TACORA_ENERGY
B103: TAMAKAYA_ENERGIA
B104: TECNORED
B105: UCUQUER_DOS

Sheet Retiros Anuales
B2: Empresa | C2: Medida_kWh | D2: Prorrata | F2: Empresa | G2: Energía Retirada kWh | H2: Prorrata | I2: Pago CLP
B3: AASA_ENERGIA | C3: -1407677.175 | D3: =+TablaRetiros[[#This Row],[Medida_kWh]]/SUM(TablaRetiros[Medida_kWh]) -> 1.980261298e-05 | F3: =+TablaRetiros[[#This Row],[Empresa]] -> AASA_ENERGIA | G3: =+TablaRetiros[[#This Row],[Medida_kWh]]*-1 -> 1407677.175 | H3: =+TablaRetiros[[#This Row],[Prorrata]] -> 1.980261298e-05 | I3: =+H3*GETPIVOTDATA("Compensación",Resultados!$Q$4) -> 436935.6324
B4: ABASTIBLE | C4: -261711.415 | D4: =+TablaRetiros[[#This Row],[Medida_kWh]]/SUM(TablaRetiros[Medida_kWh]) -> 3.681646584e-06 | F4: =+TablaRetiros[[#This Row],[Empresa]] -> ABASTIBLE | G4: =+TablaRetiros[[#This Row],[Medida_kWh]]*-1 -> 261711.415 | H4: =+TablaRetiros[[#This Row],[Prorrata]] -> 3.681646584e-06 | I4: =+H4*GETPIVOTDATA("Compensación",Resultados!$Q$4) -> 81233.85436
B5: ACCIONA_ENERGIA | C5: -829394847.5 | D5: =+TablaRetiros[[#This Row],[Medida_kWh]]/SUM(TablaRetiros[Medida_kWh]) -> 0.01166757937 | F5: =+TablaRetiros[[#This Row],[Empresa]] -> ACCIONA_ENERGIA | G5: =+TablaRetiros[[#This Row],[Medida_kWh]]*-1 -> 829394847.5 | H5: =+TablaRetiros[[#This Row],[Prorrata]] -> 0.01166757937 | I5: =+H5*GETPIVOTDATA("Compensación",Resultados!$Q$4) -> 257439822.6
B6: AELA_GENERACION | C6: -486011662.7 | D6: =+TablaRetiros[[#This Row],[Medida_kWh]]/SUM(TablaRetiros[Medida_kWh]) -> 0.006837008533 | F6: =+TablaRetiros[[#This Row],[Empresa]] -> AELA_GENERACION | G6: =+TablaRetiros[[#This Row],[Medida_kWh]]*-1 -> 486011662.7 | H6: =+TablaRetiros[[#This Row],[Prorrata]] -> 0.006837008533 | I6: =+H6*GETPIVOTDATA("Compensación",Resultados!$Q$4) -> 150855478.1
B7: AES_GENER | C7: -8189509040 | D7: =+TablaRetiros[[#This Row],[Medida_kWh]]/SUM(TablaRetiros[Medida_kWh]) -> 0.1152065835 | F7: =+TablaRetiros[[#This Row],[Empresa]] -> AES_GENER | G7: =+TablaRetiros[[#This Row],[Medida_kWh]]*-1 -> 8189509040 | H7: =+TablaRetiros[[#This Row],[Prorrata]] -> 0.1152065835 | I7: =+H7*GETPIVOTDATA("Compensación",Resultados!$Q$4) -> 2541980772
B8: AGSA | C8: -8994469.273 | D8: =+TablaRetiros[[#This Row],[Medida_kWh]]/SUM(TablaRetiros[Medida_kWh]) -> 0.0001265304269 | F8: =+TablaRetiros[[#This Row],[Empresa]] -> AGSA | G8: =+TablaRetiros[[#This Row],[Medida_kWh]]*-1 -> 8994469.273 | H8: =+TablaRetiros[[#This Row],[Prorrata]] -> 0.0001265304269 | I8: =+H8*GETPIVOTDATA("Compensación",Resultados!$Q$4) -> 2791836.218
B9: ALBA | C9: -6713532.703 | D9: =+TablaRetiros[[#This Row],[Medida_kWh]]/SUM(TablaRetiros[Medida_kWh]) -> 9.44431665e-05 | F9: =+TablaRetiros[[#This Row],[Empresa]] -> ALBA | G9: =+TablaRetiros[[#This Row],[Medida_kWh]]*-1 -> 6713532.703 | H9: =+TablaRetiros[[#This Row],[Prorrata]] -> 9.44431665e-05 | I9: =+H9*GETPIVOTDATA("Compensación",Resultados!$Q$4) -> 2083845.436
B10: ALLIPEN | C10: -33248827.55 | D10: =+TablaRetiros[[#This Row],[Medida_kWh]]/SUM(TablaRetiros[Medida_kWh]) -> 0.0004677305817 | F10: =+TablaRetiros[[#This Row],[Empresa]] -> ALLIPEN | G10: =+TablaRetiros[[#This Row],[Medida_kWh]]*-1 -> 33248827.55 | H10: =+TablaRetiros[[#This Row],[Prorrata]] -> 0.0004677305817 | I10: =+H10*GETPIVOTDATA("Compensación",Resultados!$Q$4) -> 10320262.17
B11: ALMEYDA | C11: -71500981 | D11: =+TablaRetiros[[#This Row],[Medida_kWh]]/SUM(TablaRetiros[Medida_kWh]) -> 0.001005845857 | F11: =+TablaRetiros[[#This Row],[Empresa]] -> ALMEYDA | G11: =+TablaRetiros[[#This Row],[Medida_kWh]]*-1 -> 71500981 | H11: =+TablaRetiros[[#This Row],[Prorrata]] -> 0.001005845857 | I11: =+H11*GETPIVOTDATA("Compensación",Resultados!$Q$4) -> 22193530.52
B12: ANDINA | C12: -1002855919 | D12: =+TablaRetiros[[#This Row],[Medida_kWh]]/SUM(TablaRetiros[Medida_kWh]) -> 0.01410775709 | F12: =+TablaRetiros[[#This Row],[Empresa]] -> ANDINA | G12: =+TablaRetiros[[#This Row],[Medida_kWh]]*-1 -> 1002855919 | H12: =+TablaRetiros[[#This Row],[Prorrata]] -> 0.01410775709 | I12: =+H12*GETPIVOTDATA("Compensación",Resultados!$Q$4) -> 311281232.1
B13: ANGAMOS | C13: -3141357869 | D13: =+TablaRetiros[[#This Row],[Medida_kWh]]/SUM(TablaRetiros[Medida_kWh]) -> 0.04419130693 | F13: =+TablaRetiros[[#This Row],[Empresa]] -> ANGAMOS | G13: =+TablaRetiros[[#This Row],[Medida_kWh]]*-1 -> 3141357869 | H13: =+TablaRetiros[[#This Row],[Prorrata]] -> 0.04419130693 | I13: =+H13*GETPIVOTDATA("Compensación",Resultados!$Q$4) -> 975061052
B14: ARAUCO BIO | C14: -459954344.5 | D14: =+TablaRetiros[[#This Row],[Medida_kWh]]/SUM(TablaRetiros[Medida_kWh]) -> 0.006470445094 | F14: =+TablaRetiros[[#This Row],[Empresa]] -> ARAUCO BIO | G14: =+TablaRetiros[[#This Row],[Medida_kWh]]*-1 -> 459954344.5 | H14: =+TablaRetiros[[#This Row],[Prorrata]] -> 0.006470445094 | I14: =+H14*GETPIVOTDATA("Compensación",Resultados!$Q$4) -> 142767422.8
B15: ARRAYAN_EOLICO | C15: -232961822.3 | D15: =+TablaRetiros[[#This Row],[Medida_kWh]]/SUM(TablaRetiros[Medida_kWh]) -> 0.003277209354 | F15: =+TablaRetiros[[#This Row],[Empresa]] -> ARRAYAN_EOLICO | G15: =+TablaRetiros[[#This Row],[Medida_kWh]]*-1 -> 232961822.3 | H15: =+TablaRetiros[[#This Row],[Prorrata]] -> 0.003277209354 | I15: =+H15*GETPIVOTDATA("Compensación",Resultados!$Q$4) -> 72310131.15
B16: ATACAMA_GX_CHILE | C16: -199271667.2 | D16: =+TablaRetiros[[#This Row],[Medida_kWh]]/SUM(TablaRetiros[Medida_kWh]) -> 0.00280327036 | F16: =+TablaRetiros[[#This Row],[Empresa]] -> ATACAMA_GX_CHILE | G16: =+TablaRetiros[[#This Row],[Medida_kWh]]*-1 -> 199271667.2 | H16: =+TablaRetiros[[#This Row],[Prorrata]] -> 0.00280327036 | I16: =+H16*GETPIVOTDATA("Compensación",Resultados!$Q$4) -> 61852883.21
B17: ATRIA_ENERGIA | C17: -26517518.42 | D17: =+TablaRetiros[[#This Row],[Medida_kWh]]/SUM(TablaRetiros[Medida_kWh]) -> 0.0003730373438 | F17: =+TablaRetiros[[#This Row],[Empresa]] -> ATRIA_ENERGIA | G17: =+TablaRetiros[[#This Row],[Medida_kWh]]*-1 -> 26517518.42 | H17: =+TablaRetiros[[#This Row],[Prorrata]] -> 0.0003730373438 | I17: =+H17*GETPIVOTDATA("Compensación",Resultados!$Q$4) -> 8230899.02
B18: BE FORESTALES | C18: -44857847.32 | D18: =+TablaRetiros[[#This Row],[Medida_kWh]]/SUM(TablaRetiros[Medida_kWh]) -> 0.0006310414101 | F18: =+TablaRetiros[[#This Row],[Empresa]] -> BE FORESTALES | G18: =+TablaRetiros[[#This Row],[Medida_kWh]]*-1 -> 44857847.32 | H18: =+TablaRetiros[[#This Row],[Prorrata]] -> 0.0006310414101 | I18: =+H18*GETPIVOTDATA("Compensación",Resultados!$Q$4) -> 13923641.18
B19: BESALCO | C19: -98162643.12 | D19: =+TablaRetiros[[#This Row],[Medida_kWh]]/SUM(TablaRetiros[Medida_kWh]) -> 0.001380910954 | F19: =+TablaRetiros[[#This Row],[Empresa]] -> BESALCO | G19: =+TablaRetiros[[#This Row],[Medida_kWh]]*-1 -> 98162643.12 | H19: =+TablaRetiros[[#This Row],[Prorrata]] -> 0.001380910954 | I19: =+H19*GETPIVOTDATA("Compensación",Resultados!$Q$4) -> 30469170.99
B20: CABO_LEONES | C20: -130450521.6 | D20: =+TablaRetiros[[#This Row],[Medida_kWh]]/SUM(TablaRetiros[Medida_kWh]) -> 0.001835123307 | F20: =+TablaRetiros[[#This Row],[Empresa]] -> CABO_LEONES | G20: =+TablaRetiros[[#This Row],[Medida_kWh]]*-1 -> 130450521.6 | H20: =+TablaRetiros[[#This Row],[Prorrata]] -> 0.001835123307 | I20: =+H20*GETPIVOTDATA("Compensación",Resultados!$Q$4) -> 40491159.6
B21: CARBOMET | C21: -18163094.87 | D21: =+TablaRetiros[[#This Row],[Medida_kWh]]/SUM(TablaRetiros[Medida_kWh]) -> 0.000255510812 | F21: =+TablaRetiros[[#This Row],[Empresa]] -> CARBOMET | G21: =+TablaRetiros[[#This Row],[Medida_kWh]]*-1 -> 18163094.87 | H21: =+TablaRetiros[[#This Row],[Prorrata]] -> 0.000255510812 | I21: =+H21*GETPIVOTDATA("Compensación",Resultados!$Q$4) -> 5637729.646
B22: CAREN | C22: -69747603.88 | D22: =+TablaRetiros[[#This Row],[Medida_kWh]]/SUM(TablaRetiros[Medida_kWh]) -> 0.0009811800818 | F22: =+TablaRetiros[[#This Row],[Empresa]] -> CAREN | G22: =+TablaRetiros[[#This Row],[Medida_kWh]]*-1 -> 69747603.88 | H22: =+TablaRetiros[[#This Row],[Prorrata]] -> 0.0009811800818 | I22: =+H22*GETPIVOTDATA("Compensación",Resultados!$Q$4) -> 21649291.44
B23: CCAMPESINO | C23: -209067210.1 | D23: =+TablaRetiros[[#This Row],[Medida_kWh]]/SUM(TablaRetiros[Medida_kWh]) -> 0.002941069957 | F23: =+TablaRetiros[[#This Row],[Empresa]] -> CCAMPESINO | G23: =+TablaRetiros[[#This Row],[Medida_kWh]]*-1 -> 209067210.1 | H23: =+TablaRetiros[[#This Row],[Prorrata]] -> 0.002941069957 | I23: =+H23*GETPIVOTDATA("Compensación",Resultados!$Q$4) -> 64893368.52
B24: CERRO_DOMINADOR_CSP | C24: -89175039.85 | D24: =+TablaRetiros[[#This Row],[Medida_kWh]]/SUM(TablaRetiros[Medida_kWh]) -> 0.001254477115 | F24: =+TablaRetiros[[#This Row],[Empresa]] -> CERRO_DOMINADOR_CSP | G24: =+TablaRetiros[[#This Row],[Medida_kWh]]*-1 -> 89175039.85 | H24: =+TablaRetiros[[#This Row],[Prorrata]] -> 0.001254477115 | I24: =+H24*GETPIVOTDATA("Compensación",Resultados!$Q$4) -> 27679465.95
B25: CHACAYES | C25: -454764672.1 | D25: =+TablaRetiros[[#This Row],[Medida_kWh]]/SUM(TablaRetiros[Medida_kWh]) -> 0.006397438956 | F25: =+TablaRetiros[[#This Row],[Empresa]] -> CHACAYES | G25: =+TablaRetiros[[#This Row],[Medida_kWh]]*-1 -> 454764672.1 | H25: =+TablaRetiros[[#This Row],[Prorrata]] -> 0.006397438956 | I25: =+H25*GETPIVOTDATA("Compensación",Resultados!$Q$4) -> 141156575.6
B26: CHUNGUNGO | C26: -105958474.2 | D26: =+TablaRetiros[[#This Row],[Medida_kWh]]/SUM(TablaRetiros[Medida_kWh]) -> 0.001490579441 | F26: =+TablaRetiros[[#This Row],[Empresa]] -> CHUNGUNGO | G26: =+TablaRetiros[[#This Row],[Medida_kWh]]*-1 -> 105958474.2 | H26: =+TablaRetiros[[#This Row],[Prorrata]] -> 0.001490579441 | I26: =+H26*GETPIVOTDATA("Compensación",Resultados!$Q$4) -> 32888956.18
B27: COCHRANE | C27: -1775786973 | D27: =+TablaRetiros[[#This Row],[Medida_kWh]]/SUM(TablaRetiros[Medida_kWh]) -> 0.02498102746 | F27: =+TablaRetiros[[#This Row],[Empresa]] -> COCHRANE | G27: =+TablaRetiros[[#This Row],[Medida_kWh]]*-1 -> 1775786973 | H27: =+TablaRetiros[[#This Row],[Prorrata]] -> 0.02498102746 | I27: =+H27*GETPIVOTDATA("Compensación",Resultados!$Q$4) -> 551194988.5
B28: COLBUN | C28: -1.080502156e+10 | D28: =+TablaRetiros[[#This Row],[Medida_kWh]]/SUM(TablaRetiros[Medida_kWh]) -> 0.1520005183 | F28: =+TablaRetiros[[#This Row],[Empresa]] -> COLBUN | G28: =+TablaRetiros[[#This Row],[Medida_kWh]]*-1 -> 1.080502156e+10 | H28: =+TablaRetiros[[#This Row],[Prorrata]] -> 0.1520005183 | I28: =+H28*GETPIVOTDATA("Compensación",Resultados!$Q$4) -> 3353822179
B29: COMASA | C29: -49292657.83 | D29: =+TablaRetiros[[#This Row],[Medida_kWh]]/SUM(TablaRetiros[Medida_kWh]) -> 0.000693428467 | F29: =+TablaRetiros[[#This Row],[Empresa]] -> COMASA | G29: =+TablaRetiros[[#This Row],[Medida_kWh]]*-1 -> 49292657.83 | H29: =+TablaRetiros[[#This Row],[Prorrata]] -> 0.000693428467 | I29: =+H29*GETPIVOTDATA("Compensación",Resultados!$Q$4) -> 15300183.17
B30: CONEJO_SOLAR | C30: -210637301.8 | D30: =+TablaRetiros[[#This Row],[Medida_kWh]]/SUM(TablaRetiros[Medida_kWh]) -> 0.002963157349 | F30: =+TablaRetiros[[#This Row],[Empresa]] -> CONEJO_SOLAR | G30: =+TablaRetiros[[#This Row],[Medida_kWh]]*-1 -> 210637301.8 | H30: =+TablaRetiros[[#This Row],[Prorrata]] -> 0.002963157349 | I30: =+H30*GETPIVOTDATA("Compensación",Resultados!$Q$4) -> 65380716.77
B31: COYANCO | C31: -40958662.83 | D31: =+TablaRetiros[[#This Row],[Medida_kWh]]/SUM(TablaRetiros[Medida_kWh]) -> 0.0005761893156 | F31: =+TablaRetiros[[#This Row],[Empresa]] -> COYANCO | G31: =+TablaRetiros[[#This Row],[Medida_kWh]]*-1 -> 40958662.83 | H31: =+TablaRetiros[[#This Row],[Prorrata]] -> 0.0005761893156 | I31: =+H31*GETPIVOTDATA("Compensación",Resultados!$Q$4) -> 12713354.71
B32: CUMPEO | C32: -906747.375 | D32: =+TablaRetiros[[#This Row],[Medida_kWh]]/SUM(TablaRetiros[Medida_kWh]) -> 1.275574233e-05 | F32: =+TablaRetiros[[#This Row],[Empresa]] -> CUMPEO | G32: =+TablaRetiros[[#This Row],[Medida_kWh]]*-1 -> 906747.375 | H32: =+TablaRetiros[[#This Row],[Prorrata]] -> 1.275574233e-05 | I32: =+H32*GETPIVOTDATA("Compensación",Resultados!$Q$4) -> 281449.6425
B33: DUQUECO | C33: -221861690 | D33: =+TablaRetiros[[#This Row],[Medida_kWh]]/SUM(TablaRetiros[Medida_kWh]) -> 0.003121057341 | F33: =+TablaRetiros[[#This Row],[Empresa]] -> DUQUECO | G33: =+TablaRetiros[[#This Row],[Medida_kWh]]*-1 -> 221861690 | H33: =+TablaRetiros[[#This Row],[Prorrata]] -> 0.003121057341 | I33: =+H33*GETPIVOTDATA("Compensación",Resultados!$Q$4) -> 68864708.14
B34: EGP_SUR | C34: -2545728.565 | D34: =+TablaRetiros[[#This Row],[Medida_kWh]]/SUM(TablaRetiros[Medida_kWh]) -> 3.581224333e-05 | F34: =+TablaRetiros[[#This Row],[Empresa]] -> EGP_SUR | G34: =+TablaRetiros[[#This Row],[Medida_kWh]]*-1 -> 2545728.565 | H34: =+TablaRetiros[[#This Row],[Prorrata]] -> 3.581224333e-05 | I34: =+H34*GETPIVOTDATA("Compensación",Resultados!$Q$4) -> 790180.8314
B35: EL_CAMPESINO_I | C35: -134996.951 | D35: =+TablaRetiros[[#This Row],[Medida_kWh]]/SUM(TablaRetiros[Medida_kWh]) -> 1.899080571e-06 | F35: =+TablaRetiros[[#This Row],[Empresa]] -> EL_CAMPESINO_I | G35: =+TablaRetiros[[#This Row],[Medida_kWh]]*-1 -> 134996.951 | H35: =+TablaRetiros[[#This Row],[Prorrata]] -> 1.899080571e-06 | I35: =+H35*GETPIVOTDATA("Compensación",Resultados!$Q$4) -> 41902.3475
B36: EL_MORADO | C36: -22309681.63 | D36: =+TablaRetiros[[#This Row],[Medida_kWh]]/SUM(TablaRetiros[Medida_kWh]) -> 0.0003138432581 | F36: =+TablaRetiros[[#This Row],[Empresa]] -> EL_MORADO | G36: =+TablaRetiros[[#This Row],[Medida_kWh]]*-1 -> 22309681.63 | H36: =+TablaRetiros[[#This Row],[Prorrata]] -> 0.0003138432581 | I36: =+H36*GETPIVOTDATA("Compensación",Resultados!$Q$4) -> 6924808.488
B37: EL_PELICANO | C37: -217229979.3 | D37: =+TablaRetiros[[#This Row],[Medida_kWh]]/SUM(TablaRetiros[Medida_kWh]) -> 0.003055900376 | F37: =+TablaRetiros[[#This Row],[Empresa]] -> EL_PELICANO | G37: =+TablaRetiros[[#This Row],[Medida_kWh]]*-1 -> 217229979.3 | H37: =+TablaRetiros[[#This Row],[Prorrata]] -> 0.003055900376 | I37: =+H37*GETPIVOTDATA("Compensación",Resultados!$Q$4) -> 67427049.39
B38: ELECTRICA CENIZAS | C38: -100417720.7 | D38: =+TablaRetiros[[#This Row],[Medida_kWh]]/SUM(TablaRetiros[Medida_kWh]) -> 0.001412634441 | F38: =+TablaRetiros[[#This Row],[Empresa]] -> ELECTRICA CENIZAS | G38: =+TablaRetiros[[#This Row],[Medida_kWh]]*-1 -> 100417720.7 | H38: =+TablaRetiros[[#This Row],[Prorrata]] -> 0.001412634441 | I38: =+H38*GETPIVOTDATA("Compensación",Resultados!$Q$4) -> 31169135.28
B39: EMBALSE_ANCOA | C39: -10638523.23 | D39: =+TablaRetiros[[#This Row],[Medida_kWh]]/SUM(TablaRetiros[Medida_kWh]) -> 0.0001496582895 | F39: =+TablaRetiros[[#This Row],[Empresa]] -> EMBALSE_ANCOA | G39: =+TablaRetiros[[#This Row],[Medida_kWh]]*-1 -> 10638523.23 | H39: =+TablaRetiros[[#This Row],[Prorrata]] -> 0.0001496582895 | I39: =+H39*GETPIVOTDATA("Compensación",Resultados!$Q$4) -> 3302141.966
B40: EMELDA | C40: -137975821.7 | D40: =+TablaRetiros[[#This Row],[Medida_kWh]]/SUM(TablaRetiros[Medida_kWh]) -> 0.001940986076 | F40: =+TablaRetiros[[#This Row],[Empresa]] -> EMELDA | G40: =+TablaRetiros[[#This Row],[Medida_kWh]]*-1 -> 137975821.7 | H40: =+TablaRetiros[[#This Row],[Prorrata]] -> 0.001940986076 | I40: =+H40*GETPIVOTDATA("Compensación",Resultados!$Q$4) -> 42826973.37
B41: ENEL_GENERACION | C41: -1.848078441e+10 | D41: =+TablaRetiros[[#This Row],[Medida_kWh]]/SUM(TablaRetiros[Medida_kWh]) -> 0.2599799355 | F41: =+TablaRetiros[[#This Row],[Empresa]] -> ENEL_GENERACION | G41: =+TablaRetiros[[#This Row],[Medida_kWh]]*-1 -> 1.848078441e+10 | H41: =+TablaRetiros[[#This Row],[Prorrata]] -> 0.2599799355 | I41: =+H41*GETPIVOTDATA("Compensación",Resultados!$Q$4) -> 5736338818
B42: ENERGIA PACIFICO | C42: -46962807.24 | D42: =+TablaRetiros[[#This Row],[Medida_kWh]]/SUM(TablaRetiros[Medida_kWh]) -> 0.0006606531046 | F42: =+TablaRetiros[[#This Row],[Empresa]] -> ENERGIA PACIFICO | G42: =+TablaRetiros[[#This Row],[Medida_kWh]]*-1 -> 46962807.24 | H42: =+TablaRetiros[[#This Row],[Prorrata]] -> 0.0006606531046 | I42: =+H42*GETPIVOTDATA("Compensación",Resultados!$Q$4) -> 14577009.73
B43: ENERGIA_LEON | C43: -11978641.4 | D43: =+TablaRetiros[[#This Row],[Medida_kWh]]/SUM(TablaRetiros[Medida_kWh]) -> 0.0001685105107 | F43: =+TablaRetiros[[#This Row],[Empresa]] -> ENERGIA_LEON | G43: =+TablaRetiros[[#This Row],[Medida_kWh]]*-1 -> 11978641.4 | H43: =+TablaRetiros[[#This Row],[Prorrata]] -> 0.0001685105107 | I43: =+H43*GETPIVOTDATA("Compensación",Resultados!$Q$4) -> 3718107.637
B44: ENGIE | C44: -8740632531 | D44: =+TablaRetiros[[#This Row],[Medida_kWh]]/SUM(TablaRetiros[Medida_kWh]) -> 0.122959558 | F44: =+TablaRetiros[[#This Row],[Empresa]] -> ENGIE | G44: =+TablaRetiros[[#This Row],[Medida_kWh]]*-1 -> 8740632531 | H44: =+TablaRetiros[[#This Row],[Prorrata]] -> 0.122959558 | I44: =+H44*GETPIVOTDATA("Compensación",Resultados!$Q$4) -> 2713046621
B45: ENORCHILE | C45: -379271721.7 | D45: =+TablaRetiros[[#This Row],[Medida_kWh]]/SUM(TablaRetiros[Medida_kWh]) -> 0.005335435745 | F45: =+TablaRetiros[[#This Row],[Empresa]] -> ENORCHILE | G45: =+TablaRetiros[[#This Row],[Medida_kWh]]*-1 -> 379271721.7 | H45: =+TablaRetiros[[#This Row],[Prorrata]] -> 0.005335435745 | I45: =+H45*GETPIVOTDATA("Compensación",Resultados!$Q$4) -> 117723958.7
B46: EOLICA_ESPERANZA | C46: -35639839.54 | D46: =+TablaRetiros[[#This Row],[Medida_kWh]]/SUM(TablaRetiros[Medida_kWh]) -> 0.000501366337 | F46: =+TablaRetiros[[#This Row],[Empresa]] -> EOLICA_ESPERANZA | G46: =+TablaRetiros[[#This Row],[Medida_kWh]]*-1 -> 35639839.54 | H46: =+TablaRetiros[[#This Row],[Prorrata]] -> 0.000501366337 | I46: =+H46*GETPIVOTDATA("Compensación",Resultados!$Q$4) -> 11062419.78
B47: ERNC1 | C47: -40596617.85 | D47: =+TablaRetiros[[#This Row],[Medida_kWh]]/SUM(TablaRetiros[Medida_kWh]) -> 0.0005710962184 | F47: =+TablaRetiros[[#This Row],[Empresa]] -> ERNC1 | G47: =+TablaRetiros[[#This Row],[Medida_kWh]]*-1 -> 40596617.85 | H47: =+TablaRetiros[[#This Row],[Prorrata]] -> 0.0005710962184 | I47: =+H47*GETPIVOTDATA("Compensación",Resultados!$Q$4) -> 12600977.84
B48: ERSA | C48: -311316348.3 | D48: =+TablaRetiros[[#This Row],[Medida_kWh]]/SUM(TablaRetiros[Medida_kWh]) -> 0.004379468012 | F48: =+TablaRetiros[[#This Row],[Empresa]] -> ERSA | G48: =+TablaRetiros[[#This Row],[Medida_kWh]]*-1 -> 311316348.3 | H48: =+TablaRetiros[[#This Row],[Prorrata]] -> 0.004379468012 | I48: =+H48*GETPIVOTDATA("Compensación",Resultados!$Q$4) -> 96630966.21
B49: ESTANCILLA SPA | C49: -156635.282 | D49: =+TablaRetiros[[#This Row],[Medida_kWh]]/SUM(TablaRetiros[Medida_kWh]) -> 2.20347955e-06 | F49: =+TablaRetiros[[#This Row],[Empresa]] -> ESTANCILLA SPA | G49: =+TablaRetiros[[#This Row],[Medida_kWh]]*-1 -> 156635.282 | H49: =+TablaRetiros[[#This Row],[Prorrata]] -> 2.20347955e-06 | I49: =+H49*GETPIVOTDATA("Compensación",Resultados!$Q$4) -> 48618.77227
B50: GAS SUR | C50: -1501622.428 | D50: =+TablaRetiros[[#This Row],[Medida_kWh]]/SUM(TablaRetiros[Medida_kWh]) -> 2.112419545e-05 | F50: =+TablaRetiros[[#This Row],[Empresa]] -> GAS SUR | G50: =+TablaRetiros[[#This Row],[Medida_kWh]]*-1 -> 1501622.428 | H50: =+TablaRetiros[[#This Row],[Prorrata]] -> 2.112419545e-05 | I50: =+H50*GETPIVOTDATA("Compensación",Resultados!$Q$4) -> 466095.7476
B51: GASATACAMA | C51: -845814731.7 | D51: =+TablaRetiros[[#This Row],[Medida_kWh]]/SUM(TablaRetiros[Medida_kWh]) -> 0.01189856743 | F51: =+TablaRetiros[[#This Row],[Empresa]] -> GASATACAMA | G51: =+TablaRetiros[[#This Row],[Medida_kWh]]*-1 -> 845814731.7 | H51: =+TablaRetiros[[#This Row],[Prorrata]] -> 0.01189856743 | I51: =+H51*GETPIVOTDATA("Compensación",Resultados!$Q$4) -> 262536468.8
B52: GM_HOLDINGS | C52: -1018310629 | D52: =+TablaRetiros[[#This Row],[Medida_kWh]]/SUM(TablaRetiros[Medida_kWh]) -> 0.01432516747 | F52: =+TablaRetiros[[#This Row],[Empresa]] -> GM_HOLDINGS | G52: =+TablaRetiros[[#This Row],[Medida_kWh]]*-1 -> 1018310629 | H52: =+TablaRetiros[[#This Row],[Prorrata]] -> 0.01432516747 | I52: =+H52*GETPIVOTDATA("Compensación",Resultados!$Q$4) -> 316078293
B53: GUACOLDA | C53: -3543661862 | D53: =+TablaRetiros[[#This Row],[Medida_kWh]]/SUM(TablaRetiros[Medida_kWh]) -> 0.04985075102 | F53: =+TablaRetiros[[#This Row],[Empresa]] -> GUACOLDA | G53: =+TablaRetiros[[#This Row],[Medida_kWh]]*-1 -> 3543661862 | H53: =+TablaRetiros[[#This Row],[Prorrata]] -> 0.04985075102 | I53: =+H53*GETPIVOTDATA("Compensación",Resultados!$Q$4) -> 1099934107
B54: HELIO_ATACAMA_TRES | C54: -16872440.82 | D54: =+TablaRetiros[[#This Row],[Medida_kWh]]/SUM(TablaRetiros[Medida_kWh]) -> 0.0002373544315 | F54: =+TablaRetiros[[#This Row],[Empresa]] -> HELIO_ATACAMA_TRES | G54: =+TablaRetiros[[#This Row],[Medida_kWh]]*-1 -> 16872440.82 | H54: =+TablaRetiros[[#This Row],[Prorrata]] -> 0.0002373544315 | I54: =+H54*GETPIVOTDATA("Compensación",Resultados!$Q$4) -> 5237117.382
B55: HIDROLIRCAY | C55: -127499361.3 | D55: =+TablaRetiros[[#This Row],[Medida_kWh]]/SUM(TablaRetiros[Medida_kWh]) -> 0.001793607619 | F55: =+TablaRetiros[[#This Row],[Empresa]] -> HIDROLIRCAY | G55: =+TablaRetiros[[#This Row],[Medida_kWh]]*-1 -> 127499361.3 | H55: =+TablaRetiros[[#This Row],[Prorrata]] -> 0.001793607619 | I55: =+H55*GETPIVOTDATA("Compensación",Resultados!$Q$4) -> 39575134.86
B56: HORNITOS | C56: -1293427922 | D56: =+TablaRetiros[[#This Row],[Medida_kWh]]/SUM(TablaRetiros[Medida_kWh]) -> 0.01819540233 | F56: =+TablaRetiros[[#This Row],[Empresa]] -> HORNITOS | G56: =+TablaRetiros[[#This Row],[Medida_kWh]]*-1 -> 1293427922 | H56: =+TablaRetiros[[#This Row],[Prorrata]] -> 0.01819540233 | I56: =+H56*GETPIVOTDATA("Compensación",Resultados!$Q$4) -> 401473261.9
B57: HUAJACHE | C57: -18655316.11 | D57: =+TablaRetiros[[#This Row],[Medida_kWh]]/SUM(TablaRetiros[Medida_kWh]) -> 0.0002624351744 | F57: =+TablaRetiros[[#This Row],[Empresa]] -> HUAJACHE | G57: =+TablaRetiros[[#This Row],[Medida_kWh]]*-1 -> 18655316.11 | H57: =+TablaRetiros[[#This Row],[Prorrata]] -> 0.0002624351744 | I57: =+H57*GETPIVOTDATA("Compensación",Resultados!$Q$4) -> 5790512.546
B58: IMELSA_ENERGIA | C58: -142188600.8 | D58: =+TablaRetiros[[#This Row],[Medida_kWh]]/SUM(TablaRetiros[Medida_kWh]) -> 0.002000249689 | F58: =+TablaRetiros[[#This Row],[Empresa]] -> IMELSA_ENERGIA | G58: =+TablaRetiros[[#This Row],[Medida_kWh]]*-1 -> 142188600.8 | H58: =+TablaRetiros[[#This Row],[Prorrata]] -> 0.002000249689 | I58: =+H58*GETPIVOTDATA("Compensación",Resultados!$Q$4) -> 44134597.99
B59: JAVIERA | C59: -186818834.3 | D59: =+TablaRetiros[[#This Row],[Medida_kWh]]/SUM(TablaRetiros[Medida_kWh]) -> 0.002628089123 | F59: =+TablaRetiros[[#This Row],[Empresa]] -> JAVIERA | G59: =+TablaRetiros[[#This Row],[Medida_kWh]]*-1 -> 186818834.3 | H59: =+TablaRetiros[[#This Row],[Prorrata]] -> 0.002628089123 | I59: =+H59*GETPIVOTDATA("Compensación",Resultados!$Q$4) -> 57987589.03
B60: KALTEMP | C60: -3373885.227 | D60: =+TablaRetiros[[#This Row],[Medida_kWh]]/SUM(TablaRetiros[Medida_kWh]) -> 4.746240442e-05 | F60: =+TablaRetiros[[#This Row],[Empresa]] -> KALTEMP | G60: =+TablaRetiros[[#This Row],[Medida_kWh]]*-1 -> 3373885.227 | H60: =+TablaRetiros[[#This Row],[Prorrata]] -> 4.746240442e-05 | I60: =+H60*GETPIVOTDATA("Compensación",Resultados!$Q$4) -> 1047236.328
B61: KDM_ENERGIA | C61: -127129641.4 | D61: =+TablaRetiros[[#This Row],[Medida_kWh]]/SUM(TablaRetiros[Medida_kWh]) -> 0.001788406554 | F61: =+TablaRetiros[[#This Row],[Empresa]] -> KDM_ENERGIA | G61: =+TablaRetiros[[#This Row],[Medida_kWh]]*-1 -> 127129641.4 | H61: =+TablaRetiros[[#This Row],[Prorrata]] -> 0.001788406554 | I61: =+H61*GETPIVOTDATA("Compensación",Resultados!$Q$4) -> 39460375.74
B62: LA ARENA SPA | C62: -67015099.01 | D62: =+TablaRetiros[[#This Row],[Medida_kWh]]/SUM(TablaRetiros[Medida_kWh]) -> 0.0009427403476 | F62: =+TablaRetiros[[#This Row],[Empresa]] -> LA ARENA SPA | G62: =+TablaRetiros[[#This Row],[Medida_kWh]]*-1 -> 67015099.01 | H62: =+TablaRetiros[[#This Row],[Prorrata]] -> 0.0009427403476 | I62: =+H62*GETPIVOTDATA("Compensación",Resultados!$Q$4) -> 20801136.22
B63: LA CONFLUENCIA | C63: -245576168.4 | D63: =+TablaRetiros[[#This Row],[Medida_kWh]]/SUM(TablaRetiros[Medida_kWh]) -> 0.003454662693 | F63: =+TablaRetiros[[#This Row],[Empresa]] -> LA CONFLUENCIA | G63: =+TablaRetiros[[#This Row],[Medida_kWh]]*-1 -> 245576168.4 | H63: =+TablaRetiros[[#This Row],[Prorrata]] -> 0.003454662693 | I63: =+H63*GETPIVOTDATA("Compensación",Resultados!$Q$4) -> 76225558.22
B64: LA HIGUERA | C64: -269801363.2 | D64: =+TablaRetiros[[#This Row],[Medida_kWh]]/SUM(TablaRetiros[Medida_kWh]) -> 0.003795452588 | F64: =+TablaRetiros[[#This Row],[Empresa]] -> LA HIGUERA | G64: =+TablaRetiros[[#This Row],[Medida_kWh]]*-1 -> 269801363.2 | H64: =+TablaRetiros[[#This Row],[Prorrata]] -> 0.003795452588 | I64: =+H64*GETPIVOTDATA("Compensación",Resultados!$Q$4) -> 83744931.98
B65: LIPIGAS | C65: -63494515.91 | D65: =+TablaRetiros[[#This Row],[Medida_kWh]]/SUM(TablaRetiros[Medida_kWh]) -> 0.0008932142589 | F65: =+TablaRetiros[[#This Row],[Empresa]] -> LIPIGAS | G65: =+TablaRetiros[[#This Row],[Medida_kWh]]*-1 -> 63494515.91 | H65: =+TablaRetiros[[#This Row],[Prorrata]] -> 0.0008932142589 | I65: =+H65*GETPIVOTDATA("Compensación",Resultados!$Q$4) -> 19708365.64
B66: LOS_CURUROS | C66: -13982408.94 | D66: =+TablaRetiros[[#This Row],[Medida_kWh]]/SUM(TablaRetiros[Medida_kWh]) -> 0.0001966986732 | F66: =+TablaRetiros[[#This Row],[Empresa]] -> LOS_CURUROS | G66: =+TablaRetiros[[#This Row],[Medida_kWh]]*-1 -> 13982408.94 | H66: =+TablaRetiros[[#This Row],[Prorrata]] -> 0.0001966986732 | I66: =+H66*GETPIVOTDATA("Compensación",Resultados!$Q$4) -> 4340066.601
B67: LUZ_DEL_NORTE | C67: -122247751 | D67: =+TablaRetiros[[#This Row],[Medida_kWh]]/SUM(TablaRetiros[Medida_kWh]) -> 0.001719730165 | F67: =+TablaRetiros[[#This Row],[Empresa]] -> LUZ_DEL_NORTE | G67: =+TablaRetiros[[#This Row],[Medida_kWh]]*-1 -> 122247751 | H67: =+TablaRetiros[[#This Row],[Prorrata]] -> 0.001719730165 | I67: =+H67*GETPIVOTDATA("Compensación",Resultados!$Q$4) -> 37945062.51
B68: MALLARAUCO | C68: -1322142.276 | D68: =+TablaRetiros[[#This Row],[Medida_kWh]]/SUM(TablaRetiros[Medida_kWh]) -> 1.859934384e-05 | F68: =+TablaRetiros[[#This Row],[Empresa]] -> MALLARAUCO | G68: =+TablaRetiros[[#This Row],[Medida_kWh]]*-1 -> 1322142.276 | H68: =+TablaRetiros[[#This Row],[Prorrata]] -> 1.859934384e-05 | I68: =+H68*GETPIVOTDATA("Compensación",Resultados!$Q$4) -> 410386.0471
B69: MONTE REDONDO | C69: -189716763.5 | D69: =+TablaRetiros[[#This Row],[Medida_kWh]]/SUM(TablaRetiros[Medida_kWh]) -> 0.002668855977 | F69: =+TablaRetiros[[#This Row],[Empresa]] -> MONTE REDONDO | G69: =+TablaRetiros[[#This Row],[Medida_kWh]]*-1 -> 189716763.5 | H69: =+TablaRetiros[[#This Row],[Prorrata]] -> 0.002668855977 | I69: =+H69*GETPIVOTDATA("Compensación",Resultados!$Q$4) -> 58887091.08
B70: NEOMAS | C70: -69566407.39 | D70: =+TablaRetiros[[#This Row],[Medida_kWh]]/SUM(TablaRetiros[Medida_kWh]) -> 0.0009786310855 | F70: =+TablaRetiros[[#This Row],[Empresa]] -> NEOMAS | G70: =+TablaRetiros[[#This Row],[Medida_kWh]]*-1 -> 69566407.39 | H70: =+TablaRetiros[[#This Row],[Prorrata]] -> 0.0009786310855 | I70: =+H70*GETPIVOTDATA("Compensación",Resultados!$Q$4) -> 21593048.99
B71: NORACID | C71: -19652679.44 | D71: =+TablaRetiros[[#This Row],[Medida_kWh]]/SUM(TablaRetiros[Medida_kWh]) -> 0.000276465664 | F71: =+TablaRetiros[[#This Row],[Empresa]] -> NORACID | G71: =+TablaRetiros[[#This Row],[Medida_kWh]]*-1 -> 19652679.44 | H71: =+TablaRetiros[[#This Row],[Prorrata]] -> 0.000276465664 | I71: =+H71*GETPIVOTDATA("Compensación",Resultados!$Q$4) -> 6100088.906
B72: NORVIND | C72: -32871755.13 | D72: =+TablaRetiros[[#This Row],[Medida_kWh]]/SUM(TablaRetiros[Medida_kWh]) -> 0.0004624260847 | F72: =+TablaRetiros[[#This Row],[Empresa]] -> NORVIND | G72: =+TablaRetiros[[#This Row],[Medida_kWh]]*-1 -> 32871755.13 | H72: =+TablaRetiros[[#This Row],[Prorrata]] -> 0.0004624260847 | I72: =+H72*GETPIVOTDATA("Compensación",Resultados!$Q$4) -> 10203220.86
B73: NUEVA ENERGIA | C73: -57960935.1 | D73: =+TablaRetiros[[#This Row],[Medida_kWh]]/SUM(TablaRetiros[Medida_kWh]) -> 0.0008153701616 | F73: =+TablaRetiros[[#This Row],[Empresa]] -> NUEVA ENERGIA | G73: =+TablaRetiros[[#This Row],[Medida_kWh]]*-1 -> 57960935.1 | H73: =+TablaRetiros[[#This Row],[Prorrata]] -> 0.0008153701616 | I73: =+H73*GETPIVOTDATA("Compensación",Resultados!$Q$4) -> 17990771.1
B74: ON GROUP | C74: -25724970.34 | D74: =+TablaRetiros[[#This Row],[Medida_kWh]]/SUM(TablaRetiros[Medida_kWh]) -> 0.0003618881094 | F74: =+TablaRetiros[[#This Row],[Empresa]] -> ON GROUP | G74: =+TablaRetiros[[#This Row],[Medida_kWh]]*-1 -> 25724970.34 | H74: =+TablaRetiros[[#This Row],[Prorrata]] -> 0.0003618881094 | I74: =+H74*GETPIVOTDATA("Compensación",Resultados!$Q$4) -> 7984896.242
B75: ORAZUL_DUQUECO | C75: -27180531.93 | D75: =+TablaRetiros[[#This Row],[Medida_kWh]]/SUM(TablaRetiros[Medida_kWh]) -> 0.0003823643402 | F75: =+TablaRetiros[[#This Row],[Empresa]] -> ORAZUL_DUQUECO | G75: =+TablaRetiros[[#This Row],[Medida_kWh]]*-1 -> 27180531.93 | H75: =+TablaRetiros[[#This Row],[Prorrata]] -> 0.0003823643402 | I75: =+H75*GETPIVOTDATA("Compensación",Resultados!$Q$4) -> 8436694.945
B76: PACIFIC HYDRO | C76: -8167012.452 | D76: =+TablaRetiros[[#This Row],[Medida_kWh]]/SUM(TablaRetiros[Medida_kWh]) -> 0.0001148901109 | F76: =+TablaRetiros[[#This Row],[Empresa]] -> PACIFIC HYDRO | G76: =+TablaRetiros[[#This Row],[Medida_kWh]]*-1 -> 8167012.452 | H76: =+TablaRetiros[[#This Row],[Prorrata]] -> 0.0001148901109 | I76: =+H76*GETPIVOTDATA("Compensación",Resultados!$Q$4) -> 2534997.948
B77: PANGUIPULLI | C77: -437125917 | D77: =+TablaRetiros[[#This Row],[Medida_kWh]]/SUM(TablaRetiros[Medida_kWh]) -> 0.006149304336 | F77: =+TablaRetiros[[#This Row],[Empresa]] -> PANGUIPULLI | G77: =+TablaRetiros[[#This Row],[Medida_kWh]]*-1 -> 437125917 | H77: =+TablaRetiros[[#This Row],[Prorrata]] -> 0.006149304336 | I77: =+H77*GETPIVOTDATA("Compensación",Resultados!$Q$4) -> 135681598.3
B78: PARQUE_EOLICO_LEBU | C78: -16097704.28 | D78: =+TablaRetiros[[#This Row],[Medida_kWh]]/SUM(TablaRetiros[Medida_kWh]) -> 0.0002264557622 | F78: =+TablaRetiros[[#This Row],[Empresa]] -> PARQUE_EOLICO_LEBU | G78: =+TablaRetiros[[#This Row],[Medida_kWh]]*-1 -> 16097704.28 | H78: =+TablaRetiros[[#This Row],[Prorrata]] -> 0.0002264557622 | I78: =+H78*GETPIVOTDATA("Compensación",Resultados!$Q$4) -> 4996643.21
B79: PEHUENCHE | C79: -334814830.1 | D79: =+TablaRetiros[[#This Row],[Medida_kWh]]/SUM(TablaRetiros[Medida_kWh]) -> 0.004710034813 | F79: =+TablaRetiros[[#This Row],[Empresa]] -> PEHUENCHE | G79: =+TablaRetiros[[#This Row],[Medida_kWh]]*-1 -> 334814830.1 | H79: =+TablaRetiros[[#This Row],[Prorrata]] -> 0.004710034813 | I79: =+H79*GETPIVOTDATA("Compensación",Resultados!$Q$4) -> 103924772.1
B80: POZO_ALMONTE_SOLAR_2 | C80: -21271603.87 | D80: =+TablaRetiros[[#This Row],[Medida_kWh]]/SUM(TablaRetiros[Medida_kWh]) -> 0.0002992400149 | F80: =+TablaRetiros[[#This Row],[Empresa]] -> POZO_ALMONTE_SOLAR_2 | G80: =+TablaRetiros[[#This Row],[Medida_kWh]]*-1 -> 21271603.87 | H80: =+TablaRetiros[[#This Row],[Prorrata]] -> 0.0002992400149 | I80: =+H80*GETPIVOTDATA("Compensación",Resultados!$Q$4) -> 6602594.583
B81: POZO_ALMONTE_SOLAR_3 | C81: -38667343.85 | D81: =+TablaRetiros[[#This Row],[Medida_kWh]]/SUM(TablaRetiros[Medida_kWh]) -> 0.0005439559998 | F81: =+TablaRetiros[[#This Row],[Empresa]] -> POZO_ALMONTE_SOLAR_3 | G81: =+TablaRetiros[[#This Row],[Medida_kWh]]*-1 -> 38667343.85 | H81: =+TablaRetiros[[#This Row],[Prorrata]] -> 0.0005439559998 | I81: =+H81*GETPIVOTDATA("Compensación",Resultados!$Q$4) -> 12002141.29
B82: PUCLARO | C82: -12174402.49 | D82: =+TablaRetiros[[#This Row],[Medida_kWh]]/SUM(TablaRetiros[Medida_kWh]) -> 0.0001712643957 | F82: =+TablaRetiros[[#This Row],[Empresa]] -> PUCLARO | G82: =+TablaRetiros[[#This Row],[Medida_kWh]]*-1 -> 12174402.49 | H82: =+TablaRetiros[[#This Row],[Prorrata]] -> 0.0001712643957 | I82: =+H82*GETPIVOTDATA("Compensación",Resultados!$Q$4) -> 3778870.857
B83: PUNTILLA | C83: -168127975.9 | D83: =+TablaRetiros[[#This Row],[Medida_kWh]]/SUM(TablaRetiros[Medida_kWh]) -> 0.002365153955 | F83: =+TablaRetiros[[#This Row],[Empresa]] -> PUNTILLA | G83: =+TablaRetiros[[#This Row],[Medida_kWh]]*-1 -> 168127975.9 | H83: =+TablaRetiros[[#This Row],[Prorrata]] -> 0.002365153955 | I83: =+H83*GETPIVOTDATA("Compensación",Resultados!$Q$4) -> 52186044.36
B84: RAKI | C84: -25068686.07 | D84: =+TablaRetiros[[#This Row],[Medida_kWh]]/SUM(TablaRetiros[Medida_kWh]) -> 0.0003526557771 | F84: =+TablaRetiros[[#This Row],[Empresa]] -> RAKI | G84: =+TablaRetiros[[#This Row],[Medida_kWh]]*-1 -> 25068686.07 | H84: =+TablaRetiros[[#This Row],[Prorrata]] -> 0.0003526557771 | I84: =+H84*GETPIVOTDATA("Compensación",Resultados!$Q$4) -> 7781189.036
B85: RIO_COLORADO | C85: -20564255.99 | D85: =+TablaRetiros[[#This Row],[Medida_kWh]]/SUM(TablaRetiros[Medida_kWh]) -> 0.0002892893411 | F85: =+TablaRetiros[[#This Row],[Empresa]] -> RIO_COLORADO | G85: =+TablaRetiros[[#This Row],[Medida_kWh]]*-1 -> 20564255.99 | H85: =+TablaRetiros[[#This Row],[Prorrata]] -> 0.0002892893411 | I85: =+H85*GETPIVOTDATA("Compensación",Resultados!$Q$4) -> 6383037.499
B86: RUCATAYO | C86: -241831527.3 | D86: =+TablaRetiros[[#This Row],[Medida_kWh]]/SUM(TablaRetiros[Medida_kWh]) -> 0.003401984649 | F86: =+TablaRetiros[[#This Row],[Empresa]] -> RUCATAYO | G86: =+TablaRetiros[[#This Row],[Medida_kWh]]*-1 -> 241831527.3 | H86: =+TablaRetiros[[#This Row],[Prorrata]] -> 0.003401984649 | I86: =+H86*GETPIVOTDATA("Compensación",Resultados!$Q$4) -> 75063241.19
B87: SAFIRA_ENERGIA_CHILE | C87: -10157963.57 | D87: =+TablaRetiros[[#This Row],[Medida_kWh]]/SUM(TablaRetiros[Medida_kWh]) -> 0.0001428979775 | F87: =+TablaRetiros[[#This Row],[Empresa]] -> SAFIRA_ENERGIA_CHILE | G87: =+TablaRetiros[[#This Row],[Medida_kWh]]*-1 -> 10157963.57 | H87: =+TablaRetiros[[#This Row],[Prorrata]] -> 0.0001428979775 | I87: =+H87*GETPIVOTDATA("Compensación",Resultados!$Q$4) -> 3152978.763
B88: SAN_JUAN_LAP | C88: -454544700.5 | D88: =+TablaRetiros[[#This Row],[Medida_kWh]]/SUM(TablaRetiros[Medida_kWh]) -> 0.006394344487 | F88: =+TablaRetiros[[#This Row],[Empresa]] -> SAN_JUAN_LAP | G88: =+TablaRetiros[[#This Row],[Medida_kWh]]*-1 -> 454544700.5 | H88: =+TablaRetiros[[#This Row],[Prorrata]] -> 0.006394344487 | I88: =+H88*GETPIVOTDATA("Compensación",Resultados!$Q$4) -> 141088297.6
B89: SANTIAGO_SOLAR | C89: -66926270.84 | D89: =+TablaRetiros[[#This Row],[Medida_kWh]]/SUM(TablaRetiros[Medida_kWh]) -> 0.00094149075 | F89: =+TablaRetiros[[#This Row],[Empresa]] -> SANTIAGO_SOLAR | G89: =+TablaRetiros[[#This Row],[Medida_kWh]]*-1 -> 66926270.84 | H89: =+TablaRetiros[[#This Row],[Prorrata]] -> 0.00094149075 | I89: =+H89*GETPIVOTDATA("Compensación",Resultados!$Q$4) -> 20773564.42
B90: SGA | C90: -128698399 | D90: =+TablaRetiros[[#This Row],[Medida_kWh]]/SUM(TablaRetiros[Medida_kWh]) -> 0.00181047518 | F90: =+TablaRetiros[[#This Row],[Empresa]] -> SGA | G90: =+TablaRetiros[[#This Row],[Medida_kWh]]*-1 -> 128698399 | H90: =+TablaRetiros[[#This Row],[Prorrata]] -> 0.00181047518 | I90: =+H90*GETPIVOTDATA("Compensación",Resultados!$Q$4) -> 39947309.91
B91: SPVP4 | C91: -11098918.39 | D91: =+TablaRetiros[[#This Row],[Medida_kWh]]/SUM(TablaRetiros[Medida_kWh]) -> 0.0001561349358 | F91: =+TablaRetiros[[#This Row],[Empresa]] -> SPVP4 | G91: =+TablaRetiros[[#This Row],[Medida_kWh]]*-1 -> 11098918.39 | H91: =+TablaRetiros[[#This Row],[Prorrata]] -> 0.0001561349358 | I91: =+H91*GETPIVOTDATA("Compensación",Resultados!$Q$4) -> 3445046.216
B92: TACORA_ENERGY | C92: -3257243.1 | D92: =+TablaRetiros[[#This Row],[Medida_kWh]]/SUM(TablaRetiros[Medida_kWh]) -> 4.582153183e-05 | F92: =+TablaRetiros[[#This Row],[Empresa]] -> TACORA_ENERGY | G92: =+TablaRetiros[[#This Row],[Medida_kWh]]*-1 -> 3257243.1 | H92: =+TablaRetiros[[#This Row],[Prorrata]] -> 4.582153183e-05 | I92: =+H92*GETPIVOTDATA("Compensación",Resultados!$Q$4) -> 1011031.222
B93: TAMAKAYA_ENERGIA | C93: -2804407738 | D93: =+TablaRetiros[[#This Row],[Medida_kWh]]/SUM(TablaRetiros[Medida_kWh]) -> 0.0394512336 | F93: =+TablaRetiros[[#This Row],[Empresa]] -> TAMAKAYA_ENERGIA | G93: =+TablaRetiros[[#This Row],[Medida_kWh]]*-1 -> 2804407738 | H93: =+TablaRetiros[[#This Row],[Prorrata]] -> 0.0394512336 | I93: =+H93*GETPIVOTDATA("Compensación",Resultados!$Q$4) -> 870473493.7
B94: TECNORED | C94: -187408642.1 | D94: =+TablaRetiros[[#This Row],[Medida_kWh]]/SUM(TablaRetiros[Medida_kWh]) -> 0.002636386292 | F94: =+TablaRetiros[[#This Row],[Empresa]] -> TECNORED | G94: =+TablaRetiros[[#This Row],[Medida_kWh]]*-1 -> 187408642.1 | H94: =+TablaRetiros[[#This Row],[Prorrata]] -> 0.002636386292 | I94: =+H94*GETPIVOTDATA("Compensación",Resultados!$Q$4) -> 58170662.29
B95: UCUQUER_DOS | C95: -10279711.95 | D95: =+TablaRetiros[[#This Row],[Medida_kWh]]/SUM(TablaRetiros[Medida_kWh]) -> 0.0001446106827 | F95: =+TablaRetiros[[#This Row],[Empresa]] -> UCUQUER_DOS | G95: =+TablaRetiros[[#This Row],[Medida_kWh]]*-1 -> 10279711.95 | H95: =+TablaRetiros[[#This Row],[Prorrata]] -> 0.0001446106827 | I95: =+H95*GETPIVOTDATA("Compensación",Resultados!$Q$4) -> 3190768.823
B96: Total general | C96: -7.075430172e+10

Sheet Impuestos SII
C2: Impuesto a Emisiones 2019
C3: Fuente Oficial Servicio de Impuesto Internos | O3: Matriz 1: Unidades, Gx Anual e Impuestos | T3: Matriz 2: Fuente e Impuestos | W3: Matriz 3: Relación Fuente Emisora con Unidades Generadoras | AB3: Matriz 4: Distribución Impuesto
A5: RUT | B5: DV | C5: ESTABLECIMIENTO | D5: CÓDIGO FUENTE | E5: MONTO IMPUESTO USD | F5: TIPO DE CAMBIO | G5: FOLIO | H5: ID FOLIO | I5: PERIODO | J5: FECHA MODIFICACIÓN | K5: Planta Generación Eléctrica SEN | O5: =+Unidades!B5 -> Nombre unidad TCV | P5: N° Caso | Q5: Gx Anual [kWh] | R5: Impuesto por central CLP | T5: N° Fuente | U5: Impuesto por fuente CLP | W5: Fuente Emisora | X5: N° Unidades | Y5: Unidad Generadora 1 | Z5: Unidad Generadora 2 | AB5: Fuente Emisora | AC5: Unidad Generadora 1 | AD5: Unidad Generadora 2
A6: 96510970 | B6: 6 | C6: PLANTA TRUPÁN/CHOLGUAN | D6: IN000611-8 | E6: 170136.27 | F6: 852.03 | G6: 3657035 | H6: 212660058 | I6: 202004 | J6: 2020-04-01 | K6: 1 | O6: =+Unidades!B6 -> ANG1 | P6: 1 | Q6: =+VLOOKUP(O6,TablaGxN_NTH1[],14,0) -> 2068339331 | R6: 7130520711 | T6: =+D6 -> IN000611-8 | U6: =+K6*F6*E6 -> 144961206.1 | W6: GE000103-5 | X6: =+COUNTA(Y6:Z6) -> 2 | Y6: ANG1 | Z6: ANG2 | AB6: =+W6 -> GE000103-5 | AC6: 7130520711 | AD6: 7311026707
A7: 96510970 | B7: 6 | C7: PLANTA TRUPÁN/CHOLGUAN | D7: IN003326-K | E7: 2896.61 | F7: 852.03 | G7: 3657037 | H7: 212660064 | I7: 202004 | J7: 2020-04-01 | K7: 1 | O7: =+Unidades!B7 -> ANG2 | P7: 1 | Q7: =+VLOOKUP(O7,TablaGxN_NTH1[],14,0) -> 2120698432 | R7: 7311026707 | T7: =+D7 -> IN003326-K | U7: =+K7*F7*E7 -> 2467998.618 | W7: GE000277-1 | X7: =+COUNTA(Y7:Z7) -> 1 | Y7: IEM | AB7: =+W7 -> GE000277-1 | AC7: 5501904708
A8: 96510970 | B8: 6 | C8: PLANTA TRUPÁN/CHOLGUAN | D8: IN003325-1 | E8: 16150.48 | F8: 852.03 | G8: 3657039 | H8: 212660066 | I8: 202004 | J8: 2020-04-01 | K8: 1 | O8: =+Unidades!B8 -> Antilhue TG U1 | P8: 2 | Q8: =+VLOOKUP(O8,TablaGxN_NTH1[],14,0) -> 31212629.97 | R8: 121233798 | T8: IN003325-1 | U8: 13760693.47 | W8: GE000043-8 | X8: 1 | Y8: Bocamina | AB8: GE000043-8 | AC8: 2541576691
A9: 96802690 | B9: 9 | C9: PLANTA CABRERO DIVISION MADERAS | D9: CA010879-0 | E9: 161.07 | F9: 852.03 | G9: 3657041 | H9: 212660068 | I9: 202004 | J9: 2020-04-01 | K9: 1 | O9: =+Unidades!B9 -> Antilhue TG U2 | P9: 2 | Q9: =+VLOOKUP(O9,TablaGxN_NTH1[],14,0) -> 20710645.63 | R9: 117409333.5 | T9: CA010879-0 | U9: 137236.4721 | W9: GE000106-k | X9: 1 | Y9: Bocamina II | AB9: GE000106-k | AC9: 1.053414315e+10
A10: 96802690 | B10: 9 | C10: PLANTA CABRERO DIVISION MADERAS | D10: GE000130-2 | E10: 29800.28 | F10: 852.03 | G10: 3657043 | H10: 212660070 | I10: 202004 | J10: 2020-04-01 | K10: 1 | O10: =+Unidades!B10 -> Arauco | P10: 2 | Q10: =+VLOOKUP(O10,TablaGxN_NTH1[],14,0) -> 45303256.93 | R10: 1965836675 | T10: GE000130-2 | U10: 25390732.57 | W10: GE000124-8 | X10: 1 | Y10: Campiche | AB10: GE000124-8 | AC10: 6370837756
A11: 96802690 | B11: 9 | C11: PLANTA CABRERO DIVISION MADERAS | D11: IN002653-4 | E11: 6185.41 | F11: 852.03 | G11: 3657045 | H11: 212660072 | I11: 202004 | J11: 2020-04-01 | K11: 1 | O11: =+Unidades!B11 -> Bocamina | P11: 1 | Q11: =+VLOOKUP(O11,TablaGxN_NTH1[],14,0) -> 549260409.7 | R11: 2541576691 | T11: IN002653-4 | U11: 5270154.882 | W11: PC001834-6 | X11: 1 | Y11: Cardones | AB11: PC001834-6 | AC11: 152768.979
A12: 96802690 | B12: 9 | C12: PLANTA CABRERO DIVISION MADERAS | D12: IN002647-K | E12: 7367.07 | F12: 852.03 | G12: 3657047 | H12: 212660074 | I12: 202004 | J12: 2020-04-01 | K12: 1 | O12: =+Unidades!B12 -> Bocamina II | P12: 1 | Q12: =+VLOOKUP(O12,TablaGxN_NTH1[],14,0) -> 2123734390 | R12: 1.053414315e+10 | T12: IN002647-K | U12: 6276964.652 | W12: GE000234-8 | X12: 2 | Y12: CCH1 | Z12: CCH2 | AB12: GE000234-8 | AC12: 5736884739 | AD12: 5748596491
A13: 96802690 | B13: 9 | C13: PLANTA CABRERO DIVISION MADERAS | D13: CA010880-4 | E13: 123.57 | F13: 852.03 | G13: 3657049 | H13: 212660076 | I13: 202004 | J13: 2020-04-01 | K13: 1 | O13: =+Unidades!B13 -> Campiche | P13: 1 | Q13: =+VLOOKUP(O13,TablaGxN_NTH1[],14,0) -> 1566513230 | R13: 6370837756 | T13: CA010880-4 | U13: 105285.3471 | W13: GE000235-6 | X13: 0 | AB13: GE000235-6
A14: 78932860 | B14: 9 | C14: CENTRAL TARAPACÁ | D14: GE000013-6 | E14: 3819707.02 | F14: 852.03 | G14: 3657051 | H14: 212660078 | I14: 202004 | J14: 2020-04-01 | K14: 1 | O14: =+Unidades!B14 -> Candelaria 1 | P14: 1 | Q14: =+VLOOKUP(O14,TablaGxN_NTH1[],14,0) -> 46286941.03 | R14: 149792122.5 | T14: GE000013-6 | U14: 3254504972 | W14: PC003590-4 | X14: 1 | Y14: CENTRAL DIÉSEL IQUIQUE | AB14: PC003590-4
A15: 78932860 | B15: 9 | C15: CENTRAL TARAPACÁ | D15: PC000103-6 | E15: 1036.42 | F15: 852.03 | G15: 3657053 | H15: 212660080 | I15: 202004 | J15: 2020-04-01 | K15: 1 | O15: =+Unidades!B15 -> Candelaria 2 | P15: 1 | Q15: =+VLOOKUP(O15,TablaGxN_NTH1[],14,0) -> 30440904.53 | R15: 108844199.7 | T15: PC000103-6 | U15: 883060.9326 | W15: PC003087-7 | X15: 1 | Y15: CMPC TISSUE | AB15: PC003087-7 | AC15: 346300675
A16: 78932860 | B16: 9 | C16: CENTRAL SAN ISIDRO I | D16: PC000319-5 | E16: 2486901.94 | F16: 852.03 | G16: 3657055 | H16: 212660082 | I16: 202004 | J16: 2020-04-01 | K16: 1 | O16: =+Unidades!B16 -> Cardones | P16: 1 | Q16: =+VLOOKUP(O16,TablaGxN_NTH1[],14,0) -> 4.163 | R16: 152768.98 | T16: PC000319-5 | U16: 2118915060 | W16: GE000251-8 | X16: 1 | Y16: CTA | AB16: GE000251-8 | AC16: 3090384807
A17: 61704000 | B17: K | C17: DIVISIÓN CHUQUICAMATA | D17: CF000116-3 | E17: 36386.9 | F17: 852.03 | G17: 3657057 | H17: 212660084 | I17: 202004 | J17: 2020-04-01 | K17: 0 | O17: =+Unidades!B17 -> CC KELAR | P17: 2 | Q17: =+VLOOKUP(O17,TablaGxN_NTH1[],14,0) -> 1427985466 | R17: 2812750320 | T17: CF000116-3 | U17: 0 | W17: GE000100-0 | X17: 1 | Y17: CTH | AB17: GE000100-0 | AC17: 4090706785
A18: 61704000 | B18: K | C18: DIVISIÓN CHUQUICAMATA | D18: PC001459-6 | E18: 1354.75 | F18: 852.03 | G18: 3657059 | H18: 212660086 | I18: 202004 | J18: 2020-04-01 | K18: 0 | O18: =+Unidades!B18 -> CC1 | P18: 2 | Q18: =+VLOOKUP(O18,TablaGxN_NTH1[],14,0) -> 220844264.2 | R18: 549818333 | T18: PC001459-6 | U18: 0 | W18: GE000018-7 | X18: 2 | Y18: CTM1 | Z18: CTM2 | AB18: GE000018-7 | AC18: 839063306.7 | AD18: 734633896.6
A19: 61704000 | B19: K | C19: DIVISIÓN CHUQUICAMATA | D19: PC001460-K | E19: 1094.31 | F19: 852.03 | G19: 3657061 | H19: 212660088 | I19: 202004 | J19: 2020-04-01 | K19: 0 | O19: =+Unidades!B19 -> CC2 | P19: 2 | Q19: =+VLOOKUP(O19,TablaGxN_NTH1[],14,0) -> 73774183.04 | R19: 213473066.2 | T19: PC001460-K | U19: 0 | W19: GE000019-5 | X19: 0 | AB19: GE000019-5
A20: 61704000 | B20: K | C20: DIVISIÓN CHUQUICAMATA | D20: PC001461-8 | E20: 1449.6 | F20: 852.03 | G20: 3657063 | H20: 212660090 | I20: 202004 | J20: 2020-04-01 | K20: 0 | O20: =+Unidades!B20 -> CCH1 | P20: 1 | Q20: =+VLOOKUP(O20,TablaGxN_NTH1[],14,0) -> 1428661264 | R20: 5736884739 | T20: PC001461-8 | U20: 0 | W20: GE000250-K | X20: 1 | Y20: CTM3 | AB20: GE000250-K | AC20: 1316739585
A21: 61704000 | B21: K | C21: DIVISIÓN CHUQUICAMATA | D21: IN000975-3 | E21: 56913.25 | F21: 852.03 | G21: 3657065 | H21: 212660092 | I21: 202004 | J21: 2020-04-01 | K21: 0 | O21: =+Unidades!B21 -> CCH2 | P21: 1 | Q21: =+VLOOKUP(O21,TablaGxN_NTH1[],14,0) -> 1431577852 | R21: 5748596491 | T21: IN000975-3 | U21: 0 | W21: GE000013-6 | X21: 1 | Y21: CTTAR | AB21: GE000013-6 | AC21: 3254504972
A22: 61704000 | B22: K | C22: DIVISIÓN CHUQUICAMATA | D22: IN000976-1 | E22: 187612.77 | F22: 852.03 | G22: 3657067 | H22: 212660098 | I22: 202004 | J22: 2020-04-01 | K22: 0 | O22: =+Unidades!B22 -> CD Iquique | P22: 1 | Q22: =+VLOOKUP(O22,TablaGxN_NTH1[],14,0) -> 0 | R22: 0 | T22: IN000976-1 | U22: 0 | W22: PC000355-1 | X22: 1 | Y22: Diego de Almagro | AB22: PC000355-1 | AC22: 1309936.483
A23: 61704000 | B23: K | C23: DIVISIÓN CHUQUICAMATA | D23: IN003562-9 | E23: 29577.61 | F23: 852.03 | G23: 3657069 | H23: 212660100 | I23: 202004 | J23: 2020-04-01 | K23: 0 | O23: =+Unidades!B23 -> Celco | P23: 2 | Q23: =+VLOOKUP(O23,TablaGxN_NTH1[],14,0) -> 49517976.81 | R23: 551581745.5 | T23: IN003562-9 | U23: 0 | W23: PC003725-7 | X23: 1 | Y23: El Salvador | AB23: PC003725-7 | AC23: 1040925.051
A24: 61704000 | B24: K | C24: DIVISIÓN CHUQUICAMATA | D24: IN003641-2 | E24: 13022.78 | F24: 852.03 | G24: 3657071 | H24: 212660102 | I24: 202004 | J24: 2020-04-01 | K24: 0 | O24: =+Unidades!B24 -> Cholguán | P24: 2 | Q24: =+VLOOKUP(O24,TablaGxN_NTH1[],14,0) -> 35718370.79 | R24: 161189898.2 | T24: IN003641-2 | U24: 0 | W24: EL029919-7 | X24: 1 | Y24: Emelda U1 | AB24: EL029919-7 | AC24: 1038070.75
A25: 76186388 | B25: 6 | C25: CENTRAL CORONEL | D25: PC000146-K | E25: 53493.07 | F25: 852.03 | G25: 3657073 | H25: 212660104 | I25: 202004 | J25: 2020-04-01 | K25: 1 | O25: =+Unidades!B25 -> CMPC Cordillera | P25: 2 | Q25: =+VLOOKUP(O25,TablaGxN_NTH1[],14,0) -> 0 | R25: 0 | T25: PC000146-K | U25: 45577700.43 | W25: EL029922-7 | X25: 1 | Y25: Emelda U2 | AB25: EL029922-7 | AC25: 2601187.948
A26: 76085254 | B26: 6 | C26: CENTRAL TERMOELÉCTRICA COCHRANE | D26: GE000234-8 | E26: 13480137.12 | F26: 852.03 | G26: 3657075 | H26: 212660106 | I26: 202004 | J26: 2020-04-01 | K26: 1 | O26: =+Unidades!B26 -> CMPC Laja | P26: 2 | Q26: =+VLOOKUP(O26,TablaGxN_NTH1[],14,0) -> 158052021.2 | R26: 100316563.8 | T26: GE000234-8 | U26: 1.148548123e+10 | W26: GE000102-7 | X26: 1 | Y26: Energía Pacífico | AB26: GE000102-7 | AC26: 34547780.15
A27: 96505760 | B27: 9 | C27: CENTRAL TERMOELÉCTRICA CANDELARIA | D27: PC000387-K | E27: 175806.16 | F27: 852.03 | G27: 3657077 | H27: 212660108 | I27: 202004 | J27: 2020-04-01 | K27: 1 | O27: =+Unidades!B27 -> CMPC Pacífico | P27: 2 | Q27: =+VLOOKUP(O27,TablaGxN_NTH1[],14,0) -> 118029547.8 | R27: 469412594.2 | T27: PC000387-K | U27: 149792122.5 | W27: PC003595-5 | X27: 1 | Y27: Esperanza TG | AB27: PC003595-5 | AC27: 784702.5894
A28: 96505760 | B28: 9 | C28: CENTRAL TERMOELÉCTRICA CANDELARIA | D28: PC000388-8 | E28: 127746.91 | F28: 852.03 | G28: 3657079 | H28: 212660110 | I28: 202004 | J28: 2020-04-01 | K28: 1 | O28: =+Unidades!B28 -> CMPC Santa Fe | P28: 2 | Q28: =+VLOOKUP(O28,TablaGxN_NTH1[],14,0) -> 0 | R28: 0 | T28: PC000388-8 | U28: 108844199.7 | W28: GE000016-0 | X28: 2 | Y28: Guacolda 1 | Z28: Guacolda 2 | AB28: GE000016-0 | AC28: 4943516689 | AD28: 4434469717
A29: 96505760 | B29: 9 | C29: COMPLEJO TERMOELÉCTRICO NEHUENCO | D29: PC001510-0 | E29: 3352964.7 | F29: 852.03 | G29: 3657081 | H29: 212660116 | I29: 202004 | J29: 2020-04-01 | K29: 1 | O29: =+Unidades!B29 -> CMPC TISSUE | P29: 2 | Q29: =+VLOOKUP(O29,TablaGxN_NTH1[],14,0) -> 21051963.48 | R29: 346300675 | T29: PC001510-0 | U29: 2856826513 | W29: PC004352-4 | X29: 1 | Y29: Los Guindos 2 | AB29: PC004352-4
A30: 96505760 | B30: 9 | C30: COMPLEJO TERMOELÉCTRICO NEHUENCO | D30: IN000473-5 | E30: 2280.86 | F30: 852.03 | G30: 3657083 | H30: 212660118 | I30: 202004 | J30: 2020-04-01 | K30: 1 | O30: =+Unidades!B30 -> Colmito | P30: 1 | Q30: =+VLOOKUP(O30,TablaGxN_NTH1[],14,0) -> 31310645.07 | R30: 214764309.2 | T30: IN000473-5 | U30: 1943361.146 | W30: GE000079-9 | X30: 1 | Y30: Guacolda 3 | AB30: GE000079-9 | AC30: 3876669198
A31: 96505760 | B31: 9 | C31: COMPLEJO TERMOELÉCTRICO NEHUENCO | D31: PC001511-0 | E31: 5856696.49 | F31: 852.03 | G31: 3657085 | H31: 212660120 | I31: 202004 | J31: 2020-04-01 | K31: 1 | O31: =+Unidades!B31 -> CTA | P31: 1 | Q31: =+VLOOKUP(O31,TablaGxN_NTH1[],14,0) -> 654454952 | R31: 3090384807 | T31: PC001511-0 | U31: 4990081110 | W31: GE000080-2 | X31: 1 | Y31: Guacolda 4 | AB31: GE000080-2 | AC31: 4228110076
A32: 96505760 | B32: 9 | C32: COMPLEJO TERMOELÉCTRICO NEHUENCO | D32: PC001512-0 | E32: 8880.18 | F32: 852.03 | G32: 3657087 | H32: 212660122 | I32: 202004 | J32: 2020-04-01 | K32: 1 | O32: =+Unidades!B32 -> CTH | P32: 1 | Q32: =+VLOOKUP(O32,TablaGxN_NTH1[],14,0) -> 777068043.1 | R32: 4090706785 | T32: PC001512-0 | U32: 7566179.765 | W32: GE000215-1 | X32: 1 | Y32: Guacolda 5 | AB32: GE000215-1 | AC32: 4288915240
A33: 96505760 | B33: 9 | C33: CENTRAL TERMOELÉCTRICA LOS PINOS | D33: PC000507-4 | E33: 37559.56 | F33: 852.03 | G33: 3657089 | H33: 212660124 | I33: 202004 | J33: 2020-04-01 | K33: 1 | O33: =+Unidades!B33 -> CTM1 | P33: 1 | Q33: =+VLOOKUP(O33,TablaGxN_NTH1[],14,0) -> 228392602.9 | R33: 839063306.7 | T33: PC000507-4 | U33: 32001871.91 | W33: PC002440-0 | X33: 1 | Y33: Horcones | AB33: PC002440-0 | AC33: 679340.5596
A34: 96505760 | B34: 9 | C34: COMPLEJO TERMOELECTRICO SANTA MARIA | D34: GE000094-2 | E34: 11198454.1 | F34: 852.03 | G34: 3657091 | H34: 212660126 | I34: 202004 | J34: 2020-04-01 | K34: 1 | O34: =+Unidades!B34 -> CTM2 | P34: 1 | Q34: =+VLOOKUP(O34,TablaGxN_NTH1[],14,0) -> 199966970.9 | R34: 734633896.6 | T34: GE000094-2 | U34: 9541418847 | W34: PC000603-8 | X34: 1 | Y34: Laguna Verde TG | AB34: PC000603-8
A35: 96505760 | B35: 9 | C35: COMPLEJO TERMOELECTRICO SANTA MARIA | D35: IN001433-1 | E35: 6608.41 | F35: 852.03 | G35: 3657093 | H35: 212660128 | I35: 202004 | J35: 2020-04-01 | K35: 1 | O35: =+Unidades!B35 -> CTM3 | P35: 1 | Q35: =+VLOOKUP(O35,TablaGxN_NTH1[],14,0) -> 609616637.3 | R35: 1316739585 | T35: IN001433-1 | U35: 5630563.572 | W35: GE000116-7 | X35: 1 | Y35: Laja | AB35: GE000116-7 | AC35: 4194492.568
A36: 76008306 | B36: 2 | C36: CENTRAL TERMOELECTRICA CAMPICHE | D36: GE000124-8 | E36: 7477245.82 | F36: 852.03 | G36: 3657095 | H36: 212660130 | I36: 202004 | J36: 2020-04-01 | K36: 1 | O36: =+Unidades!B36 -> CTTAR | P36: 1 | Q36: =+VLOOKUP(O36,TablaGxN_NTH1[],14,0) -> 614081409.1 | R36: 3254504972 | T36: GE000124-8 | U36: 6370837756 | W36: GE000114-0 | X36: 1 | Y36: Lautaro-Comasa | AB36: GE000114-0 | AC36: 84776652.71
A37: 96665000 | B37: 1 | C37: EAGON LAUTARO S.A. | D37: IN000373-9 | E37: 100454.82 | F37: 852.03 | G37: 3657097 | H37: 212660132 | I37: 202004 | J37: 2020-04-01 | K37: 0 | O37: =+Unidades!B37 -> Diego de Almagro | P37: 1 | Q37: =+VLOOKUP(O37,TablaGxN_NTH1[],14,0) -> 159438.013 | R37: 1309936.48 | T37: IN000373-9 | U37: 0 | W37: GE000203-8 | X37: 1 | Y37: Lautaro-Comasa 2 | AB37: GE000203-8 | AC37: 68877602.5
A38: 96665000 | B38: 1 | C38: EAGON LAUTARO S.A. | D38: IN003176-3 | E38: 97411.16 | F38: 852.03 | G38: 3657099 | H38: 212660134 | I38: 202004 | J38: 2020-04-01 | K38: 0 | O38: =+Unidades!B38 -> El Salvador | P38: 1 | Q38: =+VLOOKUP(O38,TablaGxN_NTH1[],14,0) -> 112731.219 | R38: 1040925.05 | T38: IN003176-3 | U38: 0 | W38: PC003468-1 | X38: 1 | Y38: Los Guindos | AB38: PC003468-1 | AC38: 0
A39: 96989120 | B39: 4 | C39: CERVECERA CCU CHILE LTDA. (2) | D39: IN001253-3 | E39: 40394.99 | F39: 852.03 | G39: 3657101 | H39: 212660140 | I39: 202004 | J39: 2020-04-01 | K39: 0 | O39: =+Unidades!B39 -> Emelda U1 | P39: 1 | Q39: =+VLOOKUP(O39,TablaGxN_NTH1[],14,0) -> 198569 | R39: 1038070.75 | T39: IN001253-3 | U39: 0 | W39: PC000507-4 | X39: 1 | Y39: Los Pinos | AB39: PC000507-4 | AC39: 32001871.91
A40: 96989120 | B40: 4 | C40: CERVECERA CCU CHILE LTDA. (2) | D40: IN001251-7 | E40: 12524.66 | F40: 852.03 | G40: 3657103 | H40: 212660142 | I40: 202004 | J40: 2020-04-01 | K40: 0 | O40: =+Unidades!B40 -> Emelda U2 | P40: 1 | Q40: =+VLOOKUP(O40,TablaGxN_NTH1[],14,0) -> 610280.992 | R40: 2601187.95 | T40: IN001251-7 | U40: 0 | W40: PC000023-4 | X40: 1 | Y40: Los Vientos | AB40: PC000023-4 | AC40: 356490826
A41: 96989120 | B41: 4 | C41: CERVECERA CCU CHILE LTDA. (2) | D41: IN003583-1 | E41: 44785.12 | F41: 852.03 | G41: 3657105 | H41: 212660144 | I41: 202004 | J41: 2020-04-01 | K41: 0 | O41: =+Unidades!B41 -> Energía Pacífico | P41: 1 | Q41: =+VLOOKUP(O41,TablaGxN_NTH1[],14,0) -> 113384792.4 | R41: 34547780.15 | T41: IN003583-1 | U41: 0 | W41: GE000005-5 | X41: 1 | Y41: NTO1 | AB41: GE000005-5 | AC41: 3665085883
A42: 96893820 | B42: 7 | C42: PLANTA SUR | D42: CA001493-4 | E42: 23702.05 | F42: 852.03 | G42: 3657107 | H42: 212660146 | I42: 202004 | J42: 2020-04-01 | K42: 0 | O42: =+Unidades!B42 -> Escuadrón | P42: 2 | Q42: =+VLOOKUP(O42,TablaGxN_NTH1[],14,0) -> 0 | R42: 0 | T42: CA001493-4 | U42: 0 | W42: GE000006-3 | X42: 1 | Y42: NTO2 | AB42: GE000006-3 | AC42: 3736848766
A43: 96893820 | B43: 7 | C43: PLANTA SUR | D43: IN000386-0 | E43: 21210.17 | F43: 852.03 | G43: 3657109 | H43: 212660148 | I43: 202004 | J43: 2020-04-01 | K43: 0 | O43: =+Unidades!B43 -> Esperanza TG | P43: 1 | Q43: =+VLOOKUP(O43,TablaGxN_NTH1[],14,0) -> 161074.703 | R43: 784702.59 | T43: IN000386-0 | U43: 0 | W43: GE000072-1 | X43: 1 | Y43: Nueva Ventanas | AB43: GE000072-1 | AC43: 6805550670
A44: 96893820 | B44: 7 | C44: PLANTA SUR | D44: IN000385-2 | E44: 55169.19 | F44: 852.03 | G44: 3657111 | H44: 212660150 | I44: 202004 | J44: 2020-04-01 | K44: 0 | O44: =+Unidades!B44 -> Guacolda 1 | P44: 1 | Q44: =+VLOOKUP(O44,TablaGxN_NTH1[],14,0) -> 952399871.7 | R44: 4943516689 | T44: IN000385-2 | U44: 0 | W44: GE000010-1 | X44: 1 | Y44: Petropower | AB44: GE000010-1 | AC44: 3038016793
A45: 96893820 | B45: 7 | C45: PLANTA SUR | D45: IN000387-9 | E45: 210903.78 | F45: 852.03 | G45: 3657113 | H45: 212660152 | I45: 202004 | J45: 2020-04-01 | K45: 0 | O45: =+Unidades!B45 -> Guacolda 2 | P45: 1 | Q45: =+VLOOKUP(O45,TablaGxN_NTH1[],14,0) -> 854328741 | R45: 4434469717 | T45: IN000387-9 | U45: 0 | W45: IN001131-6 | X45: 1 | Y45: Renca U1 | AB45: IN001131-6
A46: 96893820 | B46: 7 | C46: PLANTA MEJILLONES | D46: IN000357-7 | E46: 18730.94 | F46: 852.03 | G46: 3657115 | H46: 212660154 | I46: 202004 | J46: 2020-04-01 | K46: 0 | O46: =+Unidades!B46 -> Guacolda 3 | P46: 1 | Q46: =+VLOOKUP(O46,TablaGxN_NTH1[],14,0) -> 942221326.1 | R46: 3876669198 | T46: IN000357-7 | U46: 0 | W46: IN001132-4 | X46: 1 | Y46: Renca U2 | AB46: IN001132-4
A47: 96893820 | B47: 7 | C47: PLANTA MEJILLONES | D47: IN000358-5 | E47: 12642.81 | F47: 852.03 | G47: 3657117 | H47: 212660156 | I47: 202004 | J47: 2020-04-01 | K47: 0 | O47: =+Unidades!B47 -> Guacolda 4 | P47: 1 | Q47: =+VLOOKUP(O47,TablaGxN_NTH1[],14,0) -> 877726589.3 | R47: 4228110076 | T47: IN000358-5 | U47: 0 | W47: PC000569-4 | X47: 1 | Y47: San Lorenzo de D. de Almagro U1 | AB47: PC000569-4
A48: 96893820 | B48: 7 | C48: PLANTA MEJILLONES | D48: IN000359-3 | E48: 28873.77 | F48: 852.03 | G48: 3657119 | H48: 212660158 | I48: 202004 | J48: 2020-04-01 | K48: 0 | O48: =+Unidades!B48 -> Guacolda 5 | P48: 1 | Q48: =+VLOOKUP(O48,TablaGxN_NTH1[],14,0) -> 1000014318 | R48: 4288915240 | T48: IN000359-3 | U48: 0 | W48: PC000570-8 | X48: 1 | Y48: San Lorenzo de D. de Almagro U2 | AB48: PC000570-8
A49: 96893820 | B49: 7 | C49: PLANTA MEJILLONES | D49: IN002751-4 | E49: 25771.98 | F49: 852.03 | G49: 3657121 | H49: 212660164 | I49: 202004 | J49: 2020-04-01 | K49: 0 | O49: =+Unidades!B49 -> Horcones | P49: 1 | Q49: =+VLOOKUP(O49,TablaGxN_NTH1[],14,0) -> 45538.752 | R49: 679340.56 | T49: IN002751-4 | U49: 0 | W49: PC000846-4 | X49: 1 | Y49: Santa Lidia | AB49: PC000846-4 | AC49: 7973816.478
A50: 96893820 | B50: 7 | C50: PLANTA MEJILLONES | D50: IN000361-5 | E50: 11901.7 | F50: 852.03 | G50: 3657123 | H50: 212660166 | I50: 202004 | J50: 2020-04-01 | K50: 0 | O50: =+Unidades!B50 -> Huasco TG | P50: 2 | Q50: =+VLOOKUP(O50,TablaGxN_NTH1[],14,0) -> 78479.466 | R50: 1241279.91 | T50: IN000361-5 | U50: 0 | W50: PC003591-2 | X50: 1 | Y50: TG1 | AB50: PC003591-2
A51: 96893820 | B51: 7 | C51: PLANTA MEJILLONES | D51: CA010810-3 | E51: 6195.44 | F51: 852.03 | G51: 3657125 | H51: 212660168 | I51: 202004 | J51: 2020-04-01 | K51: 0 | O51: =+Unidades!B51 -> IEM | P51: 1 | Q51: =+VLOOKUP(O51,TablaGxN_NTH1[],14,0) -> 1416358037 | R51: 5501904708 | T51: CA010810-3 | U51: 0 | W51: PC003592-0 | X51: 1 | Y51: TG2 | AB51: PC003592-0
A52: 96893820 | B52: 7 | C52: PLANTA SUR | D52: IN001087-5 | E52: 28036.9 | F52: 852.03 | G52: 3657129 | H52: 212660172 | I52: 202004 | J52: 2020-04-01 | K52: 0 | O52: =+Unidades!B52 -> Laguna Verde TG | P52: 1 | Q52: =+VLOOKUP(O52,TablaGxN_NTH1[],14,0) -> 0 | R52: 0 | T52: IN001087-5 | U52: 0 | W52: PC003593-9 | X52: 1 | Y52: TG3 | AB52: PC003593-9 | AC52: 31548924.24
A53: 96893820 | B53: 7 | C53: PLANTA SUR | D53: IN001088-3 | E53: 27320.02 | F53: 852.03 | G53: 3657131 | H53: 212660174 | I53: 202004 | J53: 2020-04-01 | K53: 0 | O53: =+Unidades!B53 -> Laguna Verde TV | P53: 2 | Q53: =+VLOOKUP(O53,TablaGxN_NTH1[],14,0) -> 0 | R53: 0 | T53: IN001088-3 | U53: 0 | W53: PC000103-6 | X53: 1 | Y53: TGTAR | AB53: PC000103-6 | AC53: 883060.9326
A54: 96893820 | B54: 7 | C54: PLANTA SUR | D54: IN001089-1 | E54: 15965.47 | F54: 852.03 | G54: 3657133 | H54: 212660176 | I54: 202004 | J54: 2020-04-01 | K54: 0 | O54: =+Unidades!B54 -> Laja | P54: 1 | Q54: =+VLOOKUP(O54,TablaGxN_NTH1[],14,0) -> 26856261.47 | R54: 4194492.57 | T54: IN001089-1 | U54: 0 | W54: GE000025-k | X54: =+COUNTA(Y54:Z54) -> 0 | AB54: GE000025-k
A55: 96893820 | B55: 7 | C55: PLANTA SUR | D55: IN001091-3 | E55: 127749.78 | F55: 852.03 | G55: 3657135 | H55: 212660178 | I55: 202004 | J55: 2020-04-01 | K55: 0 | O55: =+Unidades!B55 -> Lautaro-Comasa | P55: 1 | Q55: =+VLOOKUP(O55,TablaGxN_NTH1[],14,0) -> 175025188.7 | R55: 84776652.71 | T55: IN001091-3 | U55: 0 | W55: GE000024-1 | X55: 2 | Y55: U13 | Z55: U12 | AB55: GE000024-1 | AC55: 0 | AD55: 64823302.95
A56: 96893820 | B56: 7 | C56: PLANTA SUR | D56: IN001092-1 | E56: 73485.69 | F56: 852.03 | G56: 3657137 | H56: 212660180 | I56: 202004 | J56: 2020-04-01 | K56: 0 | O56: =+Unidades!B56 -> Lautaro-Comasa 2 | P56: 1 | Q56: =+VLOOKUP(O56,TablaGxN_NTH1[],14,0) -> 102780321.3 | R56: 68877602.5 | T56: IN001092-1 | U56: 0 | W56: GE000023-3 | X56: 0 | AB56: GE000023-3
A57: 96893820 | B57: 7 | C57: PLANTA SUR | D57: IN001979-1 | E57: 3794.69 | F57: 852.03 | G57: 3657139 | H57: 212660182 | I57: 202004 | J57: 2020-04-01 | K57: 0 | O57: =+Unidades!B57 -> Licantén | P57: 2 | Q57: =+VLOOKUP(O57,TablaGxN_NTH1[],14,0) -> 1752741.094 | R57: 121635462 | T57: IN001979-1 | U57: 0 | W57: GE000022-5 | X57: 2 | Y57: U15 | Z57: U14 | AB57: GE000022-5 | AC57: 523134745.1 | AD57: 184346439.9
A58: 96893820 | B58: 7 | C58: PLANTA SUR | D58: IN003567-K | E58: 44497.8 | F58: 852.03 | G58: 3657141 | H58: 212660184 | I58: 202004 | J58: 2020-04-01 | K58: 0 | O58: =+Unidades!B58 -> Los Guindos | P58: 1 | Q58: =+VLOOKUP(O58,TablaGxN_NTH1[],14,0) -> 175413.624 | R58: 0 | T58: IN003567-K | U58: 0 | W58: PC003594-7 | X58: 1 | Y58: U16 | AB58: PC003594-7 | AC58: 1657478276
A59: 96893820 | B59: 7 | C59: PLANTA NORTE | D59: IN001106-5 | E59: 7636.39 | F59: 852.03 | G59: 3657143 | H59: 212660186 | I59: 202004 | J59: 2020-04-01 | K59: 0 | O59: =+Unidades!B59 -> Los Pinos | P59: 1 | Q59: =+VLOOKUP(O59,TablaGxN_NTH1[],14,0) -> 13414669.94 | R59: 32001871.91 | T59: IN001106-5 | U59: 0 | W59: GE000035-7 | X59: 1 | Y59: Ventanas 1 | AB59: GE000035-7 | AC59: 928894506.2
A60: 96893820 | B60: 7 | C60: PLANTA NORTE | D60: IN001107-3 | E60: 13000.22 | F60: 852.03 | G60: 3657145 | H60: 212660188 | I60: 202004 | J60: 2020-04-01 | K60: 0 | O60: =+Unidades!B60 -> Los Vientos | P60: 1 | Q60: =+VLOOKUP(O60,TablaGxN_NTH1[],14,0) -> 76372880.46 | R60: 356490826 | T60: IN001107-3 | U60: 0 | W60: GE000036-5 | X60: 1 | Y60: Ventanas 2 | AB60: GE000036-5 | AC60: 3556662194
A61: 96893820 | B61: 7 | C61: PLANTA NORTE | D61: IN001109-K | E61: 366.61 | F61: 852.03 | G61: 3657147 | H61: 212660190 | I61: 202004 | J61: 2020-04-01 | K61: 0 | O61: =+Unidades!B61 -> Masisa (Cabrero) | P61: 2 | Q61: =+VLOOKUP(O61,TablaGxN_NTH1[],14,0) -> 51469138.03 | R61: 37180373.92 | T61: IN001109-K | U61: 0 | W61: GE000085-3 | X61: 1 | Y61: Viñales | AB61: GE000085-3 | AC61: 122629499.8
A62: 96893820 | B62: 7 | C62: PLANTA NORTE | D62: PC000689-5 | E62: 1222.92 | F62: 852.03 | G62: 3657149 | H62: 212660192 | I62: 202004 | J62: 2020-04-01 | K62: 0 | O62: =+Unidades!B62 -> Nehuenco | P62: 2 | Q62: =+VLOOKUP(O62,TablaGxN_NTH1[],14,0) -> 1289462910 | R62: 2858769874 | T62: PC000689-5 | U62: 0 | W62: PC000952-5 | X62: 1 | Y62: Yungay 4 ca | AB62: PC000952-5 | AC62: 235151.7597
A63: 96893820 | B63: 7 | C63: PLANTA NORTE | D63: PC000690-9 | E63: 896.07 | F63: 852.03 | G63: 3657151 | H63: 212660194 | I63: 202004 | J63: 2020-04-01 | K63: 0 | O63: =+Unidades!B63 -> Nehuenco II | P63: 1 | Q63: =+VLOOKUP(O63,TablaGxN_NTH1[],14,0) -> 1760537239 | R63: 4990081110 | T63: PC000690-9 | U63: 0 | W63: IN000611-8 | X63: 1 | Y63: Cholguán | AB63: IN000611-8 | AC63: 144961206.1
A64: 96893820 | B64: 7 | C64: PLANTA ORIENTE | D64: IN000377-1 | E64: 173732.56 | F64: 852.03 | G64: 3657153 | H64: 212660196 | I64: 202004 | J64: 2020-04-01 | K64: 0 | O64: =+Unidades!B64 -> Nehuenco TG 9B | P64: 1 | Q64: =+VLOOKUP(O64,TablaGxN_NTH1[],14,0) -> 4228057.467 | R64: 7566179.77 | T64: IN000377-1 | U64: 0 | W64: IN003325-1 | X64: 1 | Y64: Cholguán | AB64: IN003325-1 | AC64: 13760693.47
A65: 96893820 | B65: 7 | C65: PLANTA ORIENTE | D65: IN000378-K | E65: 108942.3 | F65: 852.03 | G65: 3657155 | H65: 212660198 | I65: 202004 | J65: 2020-04-01 | K65: 0 | O65: =+Unidades!B65 -> NTO1 | P65: 1 | Q65: =+VLOOKUP(O65,TablaGxN_NTH1[],14,0) -> 817980049.2 | R65: 3665085883 | T65: IN000378-K | U65: 0 | W65: IN003326-k | X65: 1 | Y65: Cholguán | AB65: IN003326-k | AC65: 2467998.618
A66: 96893820 | B66: 7 | C66: PLANTA ORIENTE | D66: IN000379-8 | E66: 6810.12 | F66: 852.03 | G66: 3657157 | H66: 212660200 | I66: 202004 | J66: 2020-04-01 | K66: 0 | O66: =+Unidades!B66 -> NTO2 | P66: 1 | Q66: =+VLOOKUP(O66,TablaGxN_NTH1[],14,0) -> 854673270.9 | R66: 3736848766 | T66: IN000379-8 | U66: 0 | W66: PC000335-7 | X66: 1 | Y66: Huasco TG | AB66: PC000335-7 | AC66: 607957.4862
A67: 96893820 | B67: 7 | C67: PLANTA ORIENTE | D67: IN000380-1 | E67: 49936.62 | F67: 852.03 | G67: 3657159 | H67: 212660202 | I67: 202004 | J67: 2020-04-01 | K67: 0 | O67: =+Unidades!B67 -> Nueva Aldea I | P67: 3 | Q67: =+VLOOKUP(O67,TablaGxN_NTH1[],14,0) -> 33072867.45 | R67: 43952545.86 | T67: IN000380-1 | U67: 0 | W67: PC000336-5 | X67: 1 | Y67: Huasco TG | AB67: PC000336-5 | AC67: 319945.7853
A68: 96893820 | B68: 7 | C68: PLANTA ORIENTE | D68: CA001482-9 | E68: 28542.68 | F68: 852.03 | G68: 3657161 | H68: 212660204 | I68: 202004 | J68: 2020-04-01 | K68: 0 | O68: =+Unidades!B68 -> Nueva Aldea III | P68: 3 | Q68: =+VLOOKUP(O68,TablaGxN_NTH1[],14,0) -> 218976931.5 | R68: 291011767.8 | T68: CA001482-9 | U68: 0 | W68: PC000337-3 | X68: 1 | Y68: Huasco TG | AB68: PC000337-3 | AC68: 313376.634
A69: 96893820 | B69: 7 | C69: PLANTA ORIENTE | D69: CA001483-7 | E69: 14607.35 | F69: 852.03 | G69: 3657163 | H69: 212660210 | I69: 202004 | J69: 2020-04-01 | K69: 0 | O69: =+Unidades!B69 -> Nueva Renca | P69: 1 | Q69: =+VLOOKUP(O69,TablaGxN_NTH1[],14,0) -> 793244865.3 | R69: 4113464490 | T69: CA001483-7 | U69: 0 | W69: IN000473-5 | X69: 1 | Y69: Nehuenco | AB69: IN000473-5 | AC69: 1943361.146
A70: 76326949 | B70: 3 | C70: CENTRAL COLMITO | D70: PC003323-5 | E70: 252061.91 | F70: 852.03 | G70: 3657165 | H70: 212660212 | I70: 202004 | J70: 2020-04-01 | K70: 1 | O70: =+Unidades!B70 -> Nueva Ventanas | P70: 1 | Q70: =+VLOOKUP(O70,TablaGxN_NTH1[],14,0) -> 1529053754 | R70: 6805550670 | T70: PC003323-5 | U70: 214764309.2 | W70: PC001510-0 | X70: 1 | Y70: Nehuenco | AB70: PC001510-0 | AC70: 2856826513
A71: 76004337 | B71: 0 | C71: EMPRESA ELECTRICA DIEGO DE ALMAGRO | D71: EL029919-7 | E71: 1218.35 | F71: 852.03 | G71: 3657167 | H71: 212660214 | I71: 202004 | J71: 2020-04-01 | K71: 1 | O71: =+Unidades!B71 -> Petropower | P71: 1 | Q71: =+VLOOKUP(O71,TablaGxN_NTH1[],14,0) -> 33212665.22 | R71: 3038016793 | T71: =+D71 -> EL029919-7 | U71: =+K71*F71*E71 -> 1038070.75 | W71: EL019740-9 | X71: =+COUNTA(Y71:Z71) -> 2 | Y71: Nueva Aldea I | Z71: Nueva Aldea III | AB71: =+W71 -> EL019740-9 | AC71: 151409.1262 | AD71: 1002486.582
A72: 76004337 | B72: 0 | C72: EMPRESA ELECTRICA DIEGO DE ALMAGRO | D72: EL029922-7 | E72: 3052.93 | F72: 852.03 | G72: 3657169 | H72: 212660216 | I72: 202004 | J72: 2020-04-01 | K72: 1 | O72: =+Unidades!B72 -> Quintero A | P72: 1 | Q72: =+VLOOKUP(O72,TablaGxN_NTH1[],14,0) -> 131942377.7 | R72: 427470224.6 | T72: EL029922-7 | U72: 2601187.948 | W72: IN000218-k | X72: 2 | Y72: Nueva Aldea I | Z72: Nueva Aldea III | AB72: IN000218-k | AC72: 40010842.93 | AD72: 264913576.8
A73: 96591040 | B73: 9 | C73: PLANTA AGROZZI TENO | D73: IN000522-7 | E73: 69265.32 | F73: 852.03 | G73: 3657171 | H73: 212660218 | I73: 202004 | J73: 2020-04-01 | K73: 0 | O73: =+Unidades!B73 -> Quintero B | P73: 1 | Q73: =+VLOOKUP(O73,TablaGxN_NTH1[],14,0) -> 158810393 | R73: 430713834.7 | T73: IN000522-7 | U73: 0 | W73: IN002622-4 | X73: 2 | Y73: Nueva Aldea I | Z73: Nueva Aldea III | AB73: IN002622-4 | AC73: 3790293.798 | AD73: 25095704.4
A74: 96591040 | B74: 9 | C74: PLANTA AGROZZI TENO | D74: IN000523-5 | E74: 102702.14 | F74: 852.03 | G74: 3657173 | H74: 212660220 | I74: 202004 | J74: 2020-04-01 | K74: 0 | O74: =+Unidades!B74 -> Renca U1 | P74: 1 | Q74: =+VLOOKUP(O74,TablaGxN_NTH1[],14,0) -> 0 | R74: 0 | T74: IN000523-5 | U74: 0 | W74: IN000219-8 | X74: 1 | Y74: Valdivia | AB74: IN000219-8 | AC74: 257550154.4
A75: 96591040 | B75: 9 | C75: PLANTA AGROZZI TENO | D75: IN000525-1 | E75: 30769.48 | F75: 852.03 | G75: 3657175 | H75: 212660222 | I75: 202004 | J75: 2020-04-01 | K75: 0 | O75: =+Unidades!B75 -> Renca U2 | P75: 1 | Q75: =+VLOOKUP(O75,TablaGxN_NTH1[],14,0) -> 0 | R75: 0 | T75: IN000525-1 | U75: 0 | W75: IN000220-1 | X75: 1 | Y75: Valdivia | AB75: IN000220-1 | AC75: 125089651.3
A76: 96591040 | B76: 9 | C76: PLANTA AGROZZI TENO | D76: IN000526-K | E76: 27327.83 | F76: 852.03 | G76: 3657177 | H76: 212660224 | I76: 202004 | J76: 2020-04-01 | K76: 0 | O76: =+Unidades!B76 -> San Isidro | P76: 1 | Q76: =+VLOOKUP(O76,TablaGxN_NTH1[],14,0) -> 1042382631 | R76: 2118915060 | T76: IN000526-K | U76: 0 | W76: PC000444-2 | X76: 1 | Y76: Yungay 1 | AB76: PC000444-2 | AC76: 237196.6317
A77: 96591040 | B77: 9 | C77: PLANTA AGROZZI TENO | D77: IN000527-8 | E77: 16903.84 | F77: 852.03 | G77: 3657179 | H77: 212660226 | I77: 202004 | J77: 2020-04-01 | K77: 0 | O77: =+Unidades!B77 -> San Isidro II | P77: 1 | Q77: =+VLOOKUP(O77,TablaGxN_NTH1[],14,0) -> 1352211649 | R77: 4018812383 | T77: IN000527-8 | U77: 0 | W77: PC000445-0 | X77: 1 | Y77: Yungay 1 | AB77: PC000445-0 | AC77: 237196.6317
A78: 96591040 | B78: 9 | C78: PLANTA AGROZZI TENO | D78: IN003413-4 | E78: 26982.78 | F78: 852.03 | G78: 3657181 | H78: 212660232 | I78: 202004 | J78: 2020-04-01 | K78: 0 | O78: =+Unidades!B78 -> San Lorenzo de D. de Almagro U1 | P78: 1 | Q78: =+VLOOKUP(O78,TablaGxN_NTH1[],14,0) -> 0 | R78: 0 | T78: IN003413-4 | U78: 0 | W78: PC000446-9 | X78: 1 | Y78: Yungay 2 | AB78: PC000446-9 | AC78: 259698.744
A79: 85145500 | B79: 0 | C79: ENERGIAS INDUSTRIALES SA | D79: IN001047-6 | E79: 22001.86 | F79: 852.03 | G79: 3657183 | H79: 212660234 | I79: 202004 | J79: 2020-04-01 | K79: 0 | O79: =+Unidades!B79 -> San Lorenzo de D. de Almagro U2 | P79: 1 | Q79: =+VLOOKUP(O79,TablaGxN_NTH1[],14,0) -> 0 | R79: 0 | T79: IN001047-6 | U79: 0 | W79: PC000447-7 | X79: 1 | Y79: Yungay 2 | AB79: PC000447-7 | AC79: 156850.2027
A80: 85145500 | B80: 0 | C80: ENERGIAS INDUSTRIALES SA | D80: IN000411-5 | E80: 22001.86 | F80: 852.03 | G80: 3657185 | H80: 212660236 | I80: 202004 | J80: 2020-04-01 | K80: 0 | O80: =+Unidades!B80 -> Santa Lidia | P80: 1 | Q80: =+VLOOKUP(O80,TablaGxN_NTH1[],14,0) -> 1782926.384 | R80: 7973816.48 | T80: IN000411-5 | U80: 0 | W80: PC000448-5 | X80: 1 | Y80: Yungay 3 | AB80: PC000448-5 | AC80: 368434.8126
A81: 85145500 | B81: 0 | C81: ENERGIAS INDUSTRIALES SA | D81: IN000412-3 | E81: 4158.14 | F81: 852.03 | G81: 3657187 | H81: 212660238 | I81: 202004 | J81: 2020-04-01 | K81: 0 | O81: =+Unidades!B81 -> Santa María | P81: 2 | Q81: =+VLOOKUP(O81,TablaGxN_NTH1[],14,0) -> 1756723870 | R81: 9547049410 | T81: IN000412-3 | U81: 0 | W81: PC000449-3 | X81: 1 | Y81: Yungay 3 | AB81: PC000449-3 | AC81: 316495.0638
A82: 85145500 | B82: 0 | C82: ENERGIAS INDUSTRIALES SA | D82: IN000413-1 | E82: 4158.14 | F82: 852.03 | G82: 3657189 | H82: 212660240 | I82: 202004 | J82: 2020-04-01 | K82: 0 | O82: =+Unidades!B82 -> Taltal 1 | P82: 1 | Q82: =+VLOOKUP(O82,TablaGxN_NTH1[],14,0) -> 746639.16 | R82: 28570414.81 | T82: IN000413-1 | U82: 0 | W82: PC001511-0 | X82: 1 | Y82: Nehuenco II | AB82: PC001511-0 | AC82: 4990081110
A83: 96903720 | B83: 3 | C83: UGE EL SALVADOR TG | D83: PC003725-7 | E83: 1221.7 | F83: 852.03 | G83: 3657191 | H83: 212660242 | I83: 202004 | J83: 2020-04-01 | K83: 1 | O83: =+Unidades!B83 -> Taltal 2 | P83: 1 | Q83: =+VLOOKUP(O83,TablaGxN_NTH1[],14,0) -> 0 | R83: 0 | T83: PC003725-7 | U83: 1040925.051 | W83: PC001512-0 | X83: 1 | Y83: Nehuenco TG 9B | AB83: PC001512-0 | AC83: 7566179.765
A84: 96814370 | B84: 0 | C84: CENTRAL TERMOELÉCTRICA NUEVA VENTANAS | D84: GE000072-1 | E84: 7987454.28 | F84: 852.03 | G84: 3657193 | H84: 212660244 | I84: 202004 | J84: 2020-04-01 | K84: 1 | O84: =+Unidades!B84 -> TG_Coronel | P84: 3 | Q84: =+VLOOKUP(O84,TablaGxN_NTH1[],14,0) -> 1130444.252 | R84: 45577700.43 | T84: GE000072-1 | U84: 6805550670 | W84: IN001115-4 | X84: 1 | Y84: Nueva Renca | AB84: IN001115-4 | AC84: 4113464490
A85: 76101812 | B85: 4 | C85: SOPROLE | D85: IN003122-4 | E85: 111626.4 | F85: 852.03 | G85: 3657195 | H85: 212660246 | I85: 202004 | J85: 2020-04-01 | K85: 0 | O85: =+Unidades!B85 -> TG1 | P85: 1 | Q85: =+VLOOKUP(O85,TablaGxN_NTH1[],14,0) -> 0 | R85: 0 | T85: IN003122-4 | U85: 0 | W85: PC000620-8 | X85: 1 | Y85: Quintero A | AB85: PC000620-8 | AC85: 427470224.6
A86: 76101812 | B86: 4 | C86: SOPROLE | D86: IN002335-7 | E86: 24498.25 | F86: 852.03 | G86: 3657197 | H86: 212660248 | I86: 202004 | J86: 2020-04-01 | K86: 0 | O86: =+Unidades!B86 -> TG2 | P86: 1 | Q86: =+VLOOKUP(O86,TablaGxN_NTH1[],14,0) -> 0 | R86: 0 | T86: IN002335-7 | U86: 0 | W86: PC000621-6 | X86: 1 | Y86: Quintero B | AB86: PC000621-6 | AC86: 430713834.7
A87: 76030472 | B87: 7 | C87: METHANEX CHILE S.A. | D87: IN000902-8 | E87: 192185.41 | F87: 852.03 | G87: 3657199 | H87: 212660250 | I87: 202004 | J87: 2020-04-01 | K87: 0 | O87: =+Unidades!B87 -> TG3 | P87: 1 | Q87: =+VLOOKUP(O87,TablaGxN_NTH1[],14,0) -> 19762033.97 | R87: 31548924.24 | T87: IN000902-8 | U87: 0 | W87: PC000312-8 | X87: 1 | Y87: Taltal 1 | AB87: PC000312-8 | AC87: 28570414.81
A88: 76030472 | B88: 7 | C88: METHANEX CHILE S.A. | D88: IN000901-K | E88: 190551.37 | F88: 852.03 | G88: 3657201 | H88: 212660252 | I88: 202004 | J88: 2020-04-01 | K88: 0 | O88: =+Unidades!B88 -> TGTAR | P88: 1 | Q88: =+VLOOKUP(O88,TablaGxN_NTH1[],14,0) -> 50284.19 | R88: 883060.93 | T88: IN000901-K | U88: 0 | W88: PC000313-6 | X88: 1 | Y88: Taltal 2 | AB88: PC000313-6
A89: 76030472 | B89: 7 | C89: METHANEX CHILE S.A. | D89: EL003401-1 | E89: 123095.15 | F89: 852.03 | G89: 3657203 | H89: 212660254 | I89: 202004 | J89: 2020-04-01 | K89: 0 | O89: =+Unidades!B89 -> U12 | P89: 1 | Q89: =+VLOOKUP(O89,TablaGxN_NTH1[],14,0) -> 8045032.127 | R89: 64823302.95 | T89: EL003401-1 | U89: 0 | W89: PC000146-k | X89: 1 | Y89: TG_Coronel | AB89: PC000146-k | AC89: 45577700.43
A90: 76030472 | B90: 7 | C90: METHANEX CHILE S.A. | D90: IN003456-8 | E90: 235237.68 | F90: 852.03 | G90: 3657205 | H90: 212660256 | I90: 202004 | J90: 2020-04-01 | K90: 0 | O90: =+Unidades!B90 -> U13 | P90: 1 | Q90: =+VLOOKUP(O90,TablaGxN_NTH1[],14,0) -> 0 | R90: 0 | T90: IN003456-8 | U90: 0 | W90: PC000387-k | X90: 1 | Y90: Candelaria 1 | AB90: PC000387-k | AC90: 149792122.5
A91: 76030472 | B91: 7 | C91: METHANEX CHILE S.A. | D91: IN003455-K | E91: 682036.83 | F91: 852.03 | G91: 3657207 | H91: 212660258 | I91: 202004 | J91: 2020-04-01 | K91: 0 | O91: =+Unidades!B91 -> U14 | P91: 1 | Q91: =+VLOOKUP(O91,TablaGxN_NTH1[],14,0) -> 40572658.61 | R91: 184346439.8 | T91: IN003455-K | U91: 0 | W91: PC000388-8 | X91: 1 | Y91: Candelaria 2 | AB91: PC000388-8 | AC91: 108844199.7
A92: 76418918 | B92: 3 | C92: GUACOLDA | D92: GE000016-0 | E92: 11006638.74 | F92: 852.03 | G92: 3657209 | H92: 212660260 | I92: 202004 | J92: 2020-04-01 | K92: 1 | O92: =+Unidades!B92 -> U15 | P92: 1 | Q92: =+VLOOKUP(O92,TablaGxN_NTH1[],14,0) -> 115136302.2 | R92: 523134745.1 | T92: GE000016-0 | U92: 9377986406 | W92: PC003323-5 | X92: 1 | Y92: Colmito | AB92: PC003323-5 | AC92: 214764309.2
A93: 76418918 | B93: 3 | C93: GUACOLDA | D93: GE000079-9 | E93: 4549921.01 | F93: 852.03 | G93: 3657211 | H93: 212660262 | I93: 202004 | J93: 2020-04-01 | K93: 1 | O93: =+Unidades!B93 -> U16 | P93: 1 | Q93: =+VLOOKUP(O93,TablaGxN_NTH1[],14,0) -> 1027490727 | R93: 1657478276 | T93: GE000079-9 | U93: 3876669198 | W93: CA000124-7 | X93: 1 | Y93: Antilhue TG U1 | AB93: CA000124-7 | AC93: 2274.9201
A94: 76418918 | B94: 3 | C94: GUACOLDA | D94: GE000080-2 | E94: 4962395.78 | F94: 852.03 | G94: 3657213 | H94: 212660264 | I94: 202004 | J94: 2020-04-01 | K94: 1 | O94: =+Unidades!B94 -> Valdivia | P94: 2 | Q94: =+VLOOKUP(O94,TablaGxN_NTH1[],14,0) -> 139086327.9 | R94: 382639805.6 | T94: GE000080-2 | U94: 4228110076 | W94: PC001400-1 | X94: 1 | Y94: Antilhue TG U1 | AB94: PC001400-1 | AC94: 121231523.1
A95: 76418918 | B95: 3 | C95: GUACOLDA | D95: GE000215-1 | E95: 5033760.83 | F95: 852.03 | G95: 3657215 | H95: 212660266 | I95: 202004 | J95: 2020-04-01 | K95: 1 | O95: =+Unidades!B95 -> Ventanas 1 | P95: 1 | Q95: =+VLOOKUP(O95,TablaGxN_NTH1[],14,0) -> 180014662 | R95: 928894506.2 | T95: GE000215-1 | U95: 4288915240 | W95: CA000125-5 | X95: 1 | Y95: Antilhue TG U2 | AB95: CA000125-5 | AC95: 20312.3952
A96: 96565750 | B96: 9 | C96: ASERRADEROS VALDIVIA | D96: CA010881-2 | E96: 611.87 | F96: 852.03 | G96: 3657217 | H96: 212660268 | I96: 202004 | J96: 2020-04-01 | K96: 0 | O96: =+Unidades!B96 -> Ventanas 2 | P96: 1 | Q96: =+VLOOKUP(O96,TablaGxN_NTH1[],14,0) -> 828018681.8 | R96: 3556662194 | T96: CA010881-2 | U96: 0 | W96: PC001401-1 | X96: 1 | Y96: Antilhue TG U2 | AB96: PC001401-1 | AC96: 117389021.2
A97: 96565750 | B97: 9 | C97: ASERRADEROS VALDIVIA | D97: IN000862-5 | E97: 28251.7 | F97: 852.03 | G97: 3657219 | H97: 212660270 | I97: 202004 | J97: 2020-04-01 | K97: 0 | O97: =+Unidades!B97 -> Viñales | P97: 1 | Q97: =+VLOOKUP(O97,TablaGxN_NTH1[],14,0) -> 235952677.4 | R97: 122629499.8 | T97: IN000862-5 | U97: 0 | W97: IN000213-9 | X97: 1 | Y97: Arauco | AB97: IN000213-9 | AC97: 817361146.4
A98: 96565750 | B98: 9 | C98: ASERRADEROS VALDIVIA | D98: IN000863-3 | E98: 59215.58 | F98: 852.03 | G98: 3657221 | H98: 212660272 | I98: 202004 | J98: 2020-04-01 | K98: 0 | O98: =+Unidades!B98 -> Yungay 1 | P98: 2 | Q98: =+VLOOKUP(O98,TablaGxN_NTH1[],14,0) -> 119902.607 | R98: 474393.26 | T98: IN000863-3 | U98: 0 | W98: IN000214-7 | X98: 1 | Y98: Arauco | AB98: IN000214-7 | AC98: 144617369.4
A99: 96565750 | B99: 9 | C99: PLANTA VIÑALES | D99: GE000085-3 | E99: 143926.27 | F99: 852.03 | G99: 3657223 | H99: 212660274 | I99: 202004 | J99: 2020-04-01 | K99: 1 | O99: =+Unidades!B99 -> Yungay 2 | P99: 2 | Q99: =+VLOOKUP(O99,TablaGxN_NTH1[],14,0) -> 122942.341 | R99: 416548.94 | T99: GE000085-3 | U99: 122629499.8 | W99: IN000215-5 | X99: 1 | Y99: Arauco | AB99: IN000215-5 | AC99: 0
A100: 96532330 | B100: 9 | C100: CMPC CELULOSA PLANTA LAJA | D100: IN002371-3 | E100: 17464.54 | F100: 852.03 | G100: 3657225 | H100: 212660276 | I100: 202004 | J100: 2020-04-01 | K100: 1 | O100: =+Unidades!B100 -> Yungay 3 | P100: 2 | Q100: =+VLOOKUP(O100,TablaGxN_NTH1[],14,0) -> 183715.64 | R100: 684929.87 | T100: IN002371-3 | U100: 14880312.02 | W100: IN000216-3 | X100: 1 | Y100: Arauco | AB100: IN000216-3 | AC100: 310179527.7
A101: 96532330 | B101: 9 | C101: CMPC CELULOSA PLANTA LAJA | D101: IN001988-0 | E101: 100273.76 | F101: 852.03 | G101: 3657227 | H101: 212660278 | I101: 202004 | J101: 2020-04-01 | K101: 1 | O101: =+Unidades!B101 -> Yungay 4 ca | P101: 1 | Q101: =+VLOOKUP(O101,TablaGxN_NTH1[],14,0) -> 50715.07 | R101: 940607.04 | T101: IN001988-0 | U101: 85436251.73 | W101: IN000217-1 | X101: 1 | Y101: Arauco | AB101: IN000217-1 | AC101: 470327342.2
A102: 96532330 | B102: 9 | C102: CMPC CELULOSA PLANTA SANTA FE | D102: IN000638-K | E102: 65436.87 | F102: 852.03 | G102: 3657229 | H102: 212660280 | I102: 202004 | J102: 2020-04-01 | K102: 1 | O102: =+Unidades!B102 -> Los Guindos 2 | P102: 1 | Q102: =+VLOOKUP(O102,TablaGxN_NTH1[],14,0) -> 0 | R102: 0 | T102: IN000638-K | U102: 55754176.35 | W102: IN001365-3 | X102: 1 | Y102: Arauco | AB102: IN001365-3 | AC102: 223351289
A103: 96532330 | B103: 9 | C103: CMPC CELULOSA PLANTA SANTA FE | D103: IN000640-1 | E103: 239235.93 | F103: 852.03 | G103: 3657231 | H103: 212660282 | I103: 202004 | J103: 2020-04-01 | K103: 1 | T103: IN000640-1 | U103: 203836189.4 | W103: PC003576-9 | X103: 1 | Y103: CC KELAR | AB103: PC003576-9 | AC103: 1424555614
A104: 96532330 | B104: 9 | C104: CMPC CELULOSA PLANTA SANTA FE | D104: IN000639-8 | E104: 11629.4 | F104: 852.03 | G104: 3657233 | H104: 212660284 | I104: 202004 | J104: 2020-04-01 | K104: 1 | T104: IN000639-8 | U104: 9908597.682 | W104: PC003577-7 | X104: 1 | Y104: CC KELAR | AB104: PC003577-7 | AC104: 1388194706
A105: 96532330 | B105: 9 | C105: CMPC CELULOSA PLANTA SANTA FE | D105: IN002012-9 | E105: 15958.65 | F105: 852.03 | G105: 3657235 | H105: 212660286 | I105: 202004 | J105: 2020-04-01 | K105: 1 | T105: IN002012-9 | U105: 13597248.56 | W105: PC003571-8 | X105: 1 | Y105: CC1 | AB105: PC003571-8 | AC105: 459469719.4
A106: 96532330 | B106: 9 | C106: CMPC PULP SA PLANTA PACIFICO | D106: IN000336-4 | E106: 500532.31 | F106: 852.03 | G106: 3657237 | H106: 212660288 | I106: 202004 | J106: 2020-04-01 | K106: 1 | T106: IN000336-4 | U106: 426468544.1 | W106: PC003572-6 | X106: 1 | Y106: CC1 | AB106: PC003572-6 | AC106: 90348613.66
A107: 96532330 | B107: 9 | C107: CMPC PULP SA PLANTA PACIFICO | D107: GE000015-2 | E107: 21387.05 | F107: 852.03 | G107: 3657239 | H107: 212660290 | I107: 202004 | J107: 2020-04-01 | K107: 1 | T107: GE000015-2 | U107: 18222408.21 | W107: PC003573-4 | X107: 1 | Y107: CC2 | AB107: PC003573-4 | AC107: 58735753.09
A108: 96532330 | B108: 9 | C108: CMPC PULP SA PLANTA PACIFICO | D108: IN000334-8 | E108: 15572.49 | F108: 852.03 | G108: 3657241 | H108: 212660292 | I108: 202004 | J108: 2020-04-01 | K108: 1 | T108: IN000334-8 | U108: 13268228.65 | W108: PC003574-2 | X108: 1 | Y108: CC2 | AB108: PC003574-2 | AC108: 154737313.1
A109: 96532330 | B109: 9 | C109: CMPC PULP SA PLANTA PACIFICO | D109: IN000335-6 | E109: 13442.5 | F109: 852.03 | G109: 3657243 | H109: 212660294 | I109: 202004 | J109: 2020-04-01 | K109: 1 | T109: IN000335-6 | U109: 11453413.28 | W109: IN000211-2 | X109: 1 | Y109: Celco | AB109: IN000211-2 | AC109: 53377157.49
A110: 78932860 | B110: 9 | C110: CENTRAL ATACAMA | D110: PC003571-8 | E110: 539264.72 | F110: 852.03 | G110: 3657245 | H110: 212660296 | I110: 202004 | J110: 2020-04-01 | K110: 1 | T110: PC003571-8 | U110: 459469719.4 | W110: IN000212-0 | X110: 1 | Y110: Celco | AB110: IN000212-0 | AC110: 498204588
A111: 78932860 | B111: 9 | C111: CENTRAL ATACAMA | D111: PC003572-6 | E111: 106039.24 | F111: 852.03 | G111: 3657247 | H111: 212660298 | I111: 202004 | J111: 2020-04-01 | K111: 1 | T111: PC003572-6 | U111: 90348613.66 | W111: IN001148-0 | X111: 1 | Y111: CMPC Cordillera | AB111: IN001148-0
A112: 78932860 | B112: 9 | C112: CENTRAL ATACAMA | D112: PC003573-4 | E112: 68936.25 | F112: 852.03 | G112: 3657249 | H112: 212660300 | I112: 202004 | J112: 2020-04-01 | K112: 1 | T112: PC003573-4 | U112: 58735753.09 | W112: IN001149-9 | X112: 1 | Y112: CMPC Cordillera | AB112: IN001149-9
A113: 78932860 | B113: 9 | C113: CENTRAL ATACAMA | D113: PC003574-2 | E113: 181610.17 | F113: 852.03 | G113: 3657251 | H113: 212660302 | I113: 202004 | J113: 2020-04-01 | K113: 1 | T113: PC003574-2 | U113: 154737313.1 | W113: IN001150-2 | X113: 1 | Y113: CMPC Cordillera | AB113: IN001150-2
A114: 79587210 | B114: 8 | C114: MINA 0 | D114: CA001578-7 | E114: 97763.12 | F114: 852.03 | G114: 3657253 | H114: 212660304 | I114: 202004 | J114: 2020-04-01 | K114: 0 | T114: CA001578-7 | U114: 0 | W114: PC003526-2 | X114: 1 | Y114: CMPC Cordillera | AB114: PC003526-2
A115: 79587210 | B115: 8 | C115: MINA 0 | D115: CA001579-5 | E115: 81112.61 | F115: 852.03 | G115: 3657255 | H115: 212660306 | I115: 202004 | J115: 2020-04-01 | K115: 0 | T115: CA001579-5 | U115: 0 | W115: IN001988-0 | X115: 1 | Y115: CMPC Laja | AB115: IN001988-0 | AC115: 85436251.73
A116: 79587210 | B116: 8 | C116: MINA 0 | D116: CA001580-9 | E116: 101528.03 | F116: 852.03 | G116: 3657257 | H116: 212660308 | I116: 202004 | J116: 2020-04-01 | K116: 0 | T116: CA001580-9 | U116: 0 | W116: IN002371-3 | X116: 1 | Y116: CMPC Laja | AB116: IN002371-3 | AC116: 14880312.02
A117: 79587210 | B117: 8 | C117: MINA 0 | D117: CA001641-4 | E117: 5446.11 | F117: 852.03 | G117: 3657259 | H117: 212660310 | I117: 202004 | J117: 2020-04-01 | K117: 0 | T117: CA001641-4 | U117: 0 | W117: GE000015-2 | X117: 1 | Y117: CMPC Pacífico | AB117: GE000015-2 | AC117: 18222408.21
A118: 79587210 | B118: 8 | C118: MINA 0 | D118: CA011065-5 | E118: 34838.22 | F118: 852.03 | G118: 3657261 | H118: 212660312 | I118: 202004 | J118: 2020-04-01 | K118: 0 | T118: CA011065-5 | U118: 0 | W118: IN000334-8 | X118: 1 | Y118: CMPC Pacífico | AB118: IN000334-8 | AC118: 13268228.65
A119: 79587210 | B119: 8 | C119: MINA 0 | D119: CA011066-3 | E119: 70810.55 | F119: 852.03 | G119: 3657263 | H119: 212660314 | I119: 202004 | J119: 2020-04-01 | K119: 0 | T119: CA011066-3 | U119: 0 | W119: IN000335-6 | X119: 1 | Y119: CMPC Pacífico | AB119: IN000335-6 | AC119: 11453413.28
A120: 79587210 | B120: 8 | C120: MINA 0 | D120: CA011067-1 | E120: 31817.81 | F120: 852.03 | G120: 3657265 | H120: 212660316 | I120: 202004 | J120: 2020-04-01 | K120: 0 | T120: CA011067-1 | U120: 0 | W120: IN000336-4 | X120: 1 | Y120: CMPC Pacífico | AB120: IN000336-4 | AC120: 426468544.1
A121: 79587210 | B121: 8 | C121: MINA 0 | D121: CA011068-K | E121: 64496.84 | F121: 852.03 | G121: 3657267 | H121: 212660318 | I121: 202004 | J121: 2020-04-01 | K121: 0 | T121: CA011068-K | U121: 0 | W121: PC001041-8 | X121: 1 | Y121: CMPC Pacífico | AB121: PC001041-8 | AC121: 0
A122: 96717620 | B122: 6 | C122: RENCA NUEVA RENCA | D122: IN001115-4 | E122: 4827839.97 | F122: 852.03 | G122: 3657269 | H122: 212660320 | I122: 202004 | J122: 2020-04-01 | K122: 1 | T122: IN001115-4 | U122: 4113464490 | W122: IN000638-k | X122: 1 | Y122: CMPC Santa Fe | AB122: IN000638-k
A123: 96717620 | B123: 6 | C123: LOS VIENTOS | D123: PC000023-4 | E123: 418401.73 | F123: 852.03 | G123: 3657271 | H123: 212660322 | I123: 202004 | J123: 2020-04-01 | K123: 1 | T123: PC000023-4 | U123: 356490826 | W123: IN000639-8 | X123: 1 | Y123: CMPC Santa Fe | AB123: IN000639-8
A124: 96717620 | B124: 6 | C124: SANTA LIDIA | D124: PC000846-4 | E124: 9358.61 | F124: 852.03 | G124: 3657273 | H124: 212660324 | I124: 202004 | J124: 2020-04-01 | K124: 1 | T124: PC000846-4 | U124: 7973816.478 | W124: IN000640-1 | X124: 1 | Y124: CMPC Santa Fe | AB124: IN000640-1
A125: 96529310 | B125: 8 | C125: PLANTA TISSUE TALAGANTE | D125: IN002463-9 | E125: 11658.06 | F125: 852.03 | G125: 3657275 | H125: 212660326 | I125: 202004 | J125: 2020-04-01 | K125: 0 | T125: IN002463-9 | U125: 0 | W125: IN002012-9 | X125: 1 | Y125: CMPC Santa Fe | AB125: IN002012-9
A126: 96529310 | B126: 8 | C126: PLANTA TISSUE TALAGANTE | D126: PC003087-7 | E126: 406441.88 | F126: 852.03 | G126: 3657277 | H126: 212660328 | I126: 202004 | J126: 2020-04-01 | K126: 1 | T126: PC003087-7 | U126: 346300675 | W126: GE000037-3 | X126: 1 | Y126: Laguna Verde TV | AB126: GE000037-3
A127: 91081000 | B127: 6 | C127: HUASCO | D127: PC000335-7 | E127: 713.54 | F127: 852.03 | G127: 3657279 | H127: 212660330 | I127: 202004 | J127: 2020-04-01 | K127: 1 | T127: PC000335-7 | U127: 607957.4862 | W127: GE000038-1 | X127: 1 | Y127: Laguna Verde TV | AB127: GE000038-1
A128: 91081000 | B128: 6 | C128: HUASCO | D128: PC000336-5 | E128: 375.51 | F128: 852.03 | G128: 3657281 | H128: 212660332 | I128: 202004 | J128: 2020-04-01 | K128: 1 | T128: PC000336-5 | U128: 319945.7853 | W128: GE000039-k | X128: 1 | Y128: Laguna Verde TV | AB128: GE000039-k
A129: 91081000 | B129: 6 | C129: HUASCO | D129: PC000337-3 | E129: 367.8 | F129: 852.03 | G129: 3657283 | H129: 212660334 | I129: 202004 | J129: 2020-04-01 | K129: 1 | T129: PC000337-3 | U129: 313376.634 | W129: GE000040-3 | X129: 1 | Y129: Laguna Verde TV | AB129: GE000040-3
A130: 91081000 | B130: 6 | C130: CENTRAL TALTAL | D130: PC000312-8 | E130: 33532.17 | F130: 852.03 | G130: 3657285 | H130: 212660336 | I130: 202004 | J130: 2020-04-01 | K130: 1 | T130: PC000312-8 | U130: 28570414.81 | W130: IN000224-4 | X130: 1 | Y130: Licantén | AB130: IN000224-4 | AC130: 103201682.2
A131: 91081000 | B131: 6 | C131: CENTRAL TALTAL | D131: PC000313-6 | E131: 123138.7 | F131: 852.03 | G131: 3657287 | H131: 212660338 | I131: 202004 | J131: 2020-04-01 | K131: 1 | T131: PC000313-6 | U131: 104917866.6 | W131: IN000225-2 | X131: 1 | Y131: Licantén | AB131: IN000225-2 | AC131: 18433779.81
A132: 91081000 | B132: 6 | C132: SAN ISIDRO 2 | D132: PC000318-7 | E132: 4716749.86 | F132: 852.03 | G132: 3657289 | H132: 212660340 | I132: 202004 | J132: 2020-04-01 | K132: 1 | T132: PC000318-7 | U132: 4018812383 | W132: GE000094-2 | X132: 1 | Y132: Santa María | AB132: GE000094-2 | AC132: 9541418847
A133: 91081000 | B133: 6 | C133: DIEGO DE ALMAGRO | D133: PC000355-1 | E133: 1537.43 | F133: 852.03 | G133: 3657291 | H133: 212660342 | I133: 202004 | J133: 2020-04-01 | K133: 1 | T133: PC000355-1 | U133: 1309936.483 | W133: IN001433-1 | X133: 1 | Y133: Santa María | AB133: IN001433-1 | AC133: 5630563.572
A134: 91081000 | B134: 6 | C134: CENTRAL QUINTERO | D134: PC000620-8 | E134: 501707.95 | F134: 852.03 | G134: 3657293 | H134: 212660344 | I134: 202004 | J134: 2020-04-01 | K134: 1 | T134: PC000620-8 | U134: 427470224.6 | W134: CA010879-0 | X134: 1 | Y134: Masisa (Cabrero) | AB134: CA010879-0 | AC134: 137236.4721
A135: 91081000 | B135: 6 | C135: CENTRAL QUINTERO | D135: PC000621-6 | E135: 505514.87 | F135: 852.03 | G135: 3657295 | H135: 212660346 | I135: 202004 | J135: 2020-04-01 | K135: 1 | T135: =+D135 -> PC000621-6 | U135: =+K135*F135*E135 -> 430713834.7 | W135: CA010880-4 | X135: =+COUNTA(Y135:Z135) -> 1 | Y135: Masisa (Cabrero) | AB135: =+W135 -> CA010880-4 | AC135: 105285.3471
A136: 91081000 | B136: 6 | C136: CENTRAL TERMOELECTRICA BOCAMINA U1 | D136: GE000043-8 | E136: 2982966.2 | F136: 852.03 | G136: 3657297 | H136: 212660348 | I136: 202004 | J136: 2020-04-01 | K136: 1 | T136: GE000043-8 | U136: 2541576691 | W136: GE000130-2 | X136: 1 | Y136: Masisa (Cabrero) | AB136: GE000130-2 | AC136: 25390732.57
A137: 91081000 | B137: 6 | C137: CENTRAL TERMOELECTRICA BOCAMINA U1 | D137: GE000106-K | E137: 12363582.44 | F137: 852.03 | G137: 3657299 | H137: 212660350 | I137: 202004 | J137: 2020-04-01 | K137: 1 | T137: GE000106-K | U137: 1.053414315e+10 | W137: IN002647-k | X137: 1 | Y137: Masisa (Cabrero) | AB137: IN002647-k | AC137: 6276964.652
A138: 96546010 | B138: 1 | C138: COMASA SA | D138: GE000114-0 | E138: 99499.61 | F138: 852.03 | G138: 3657301 | H138: 212660352 | I138: 202004 | J138: 2020-04-01 | K138: 1 | T138: GE000114-0 | U138: 84776652.71 | W138: IN002653-4 | X138: 1 | Y138: Masisa (Cabrero) | AB138: IN002653-4 | AC138: 5270154.882
A139: 96546010 | B139: 1 | C139: COMASA SA | D139: GE000203-8 | E139: 80839.41 | F139: 852.03 | G139: 3657303 | H139: 212660354 | I139: 202004 | J139: 2020-04-01 | K139: 1 | T139: GE000203-8 | U139: 68877602.5 | W139: PC000319-5 | X139: 1 | Y139: San Isidro | AB139: PC000319-5 | AC139: 2118915060
A140: 76550580 | B140: 1 | C140: CENTRAL CARDONES | D140: PC001834-6 | E140: 179.3 | F140: 852.03 | G140: 3657305 | H140: 212660356 | I140: 202004 | J140: 2020-04-01 | K140: 1 | T140: PC001834-6 | U140: 152768.979 | W140: PC000318-7 | X140: 1 | Y140: San Isidro II | AB140: PC000318-7 | AC140: 4018812383
A141: 95304000 | B141: K | C141: ASERRADERO MULCHEN | D141: IN002233-4 | E141: 86382.3 | F141: 852.03 | G141: 3657307 | H141: 212660358 | I141: 202004 | J141: 2020-04-01 | K141: 0 | T141: IN002233-4 | U141: 0 | W141: GE000257-7 | X141: 1 | Y141: Escuadrón | AB141: GE000257-7
A142: 95304000 | B142: K | C142: ASERRADERO MULCHEN | D142: IN002232-6 | E142: 115451.52 | F142: 852.03 | G142: 3657309 | H142: 212660360 | I142: 202004 | J142: 2020-04-01 | K142: 0 | T142: IN002232-6 | U142: 0 | W142: IN002847-2 | X142: 1 | Y142: Escuadrón | AB142: IN002847-2
A143: 77894990 | B143: 3 | C143: ORAFTI CHILE S A | D143: IN001655-5 | E143: 16831.91 | F143: 852.03 | G143: 3657311 | H143: 212660362 | I143: 202004 | J143: 2020-04-01 | K143: 0 | T143: IN001655-5 | U143: 0
A144: 77894990 | B144: 3 | C144: ORAFTI CHILE S A | D144: IN001615-6 | E144: 77556.03 | F144: 852.03 | G144: 3657313 | H144: 212660364 | I144: 202004 | J144: 2020-04-01 | K144: 0 | T144: IN001615-6 | U144: 0
A145: 77894990 | B145: 3 | C145: ORAFTI CHILE S A | D145: GE000256-9 | E145: 3675.14 | F145: 852.03 | G145: 3657315 | H145: 212660366 | I145: 202004 | J145: 2020-04-01 | K145: 0 | T145: GE000256-9 | U145: 0
A146: 96929960 | B146: 7 | C146: PLANTA PONIENTE ORIZON | D146: IN000254-6 | E146: 53690.52 | F146: 852.03 | G146: 3657317 | H146: 212660368 | I146: 202004 | J146: 2020-04-01 | K146: 0 | T146: IN000254-6 | U146: 0
A147: 96929960 | B147: 7 | C147: PLANTA PONIENTE ORIZON | D147: IN000255-4 | E147: 71767.21 | F147: 852.03 | G147: 3657319 | H147: 212660370 | I147: 202004 | J147: 2020-04-01 | K147: 0 | T147: IN000255-4 | U147: 0
A148: 96929960 | B148: 7 | C148: PLANTA PONIENTE ORIZON | D148: IN000256-2 | E148: 102522.16 | F148: 852.03 | G148: 3657321 | H148: 212660372 | I148: 202004 | J148: 2020-04-01 | K148: 0 | T148: IN000256-2 | U148: 0
A149: 96929960 | B149: 7 | C149: PLANTA PONIENTE ORIZON | D149: IN003579-3 | E149: 47904.83 | F149: 852.03 | G149: 3657323 | H149: 212660374 | I149: 202004 | J149: 2020-04-01 | K149: 0 | T149: IN003579-3 | U149: 0
A150: 96929960 | B150: 7 | C150: PLANTA PONIENTE ORIZON | D150: IN003580-7 | E150: 7869.73 | F150: 852.03 | G150: 3657325 | H150: 212660376 | I150: 202004 | J150: 2020-04-01 | K150: 0 | T150: IN003580-7 | U150: 0
A151: 76009904 | B151: K | C151: CENTRAL TERMOELÉCTRICA ANTILHUE | D151: PC001400-1 | E151: 142285.51 | F151: 852.03 | G151: 3657327 | H151: 212660378 | I151: 202004 | J151: 2020-04-01 | K151: 1 | T151: PC001400-1 | U151: 121231523.1
A152: 76009904 | B152: K | C152: CENTRAL TERMOELÉCTRICA ANTILHUE | D152: PC001401-1 | E152: 137775.69 | F152: 852.03 | G152: 3657329 | H152: 212660380 | I152: 202004 | J152: 2020-04-01 | K152: 1 | T152: PC001401-1 | U152: 117389021.2
A153: 76009904 | B153: K | C153: CENTRAL TERMOELÉCTRICA ANTILHUE | D153: CA000124-7 | E153: 2.67 | F153: 852.03 | G153: 3657331 | H153: 212660382 | I153: 202004 | J153: 2020-04-01 | K153: 1 | T153: CA000124-7 | U153: 2274.9201
A154: 76009904 | B154: K | C154: CENTRAL TERMOELÉCTRICA ANTILHUE | D154: CA000125-5 | E154: 23.84 | F154: 852.03 | G154: 3657333 | H154: 212660384 | I154: 202004 | J154: 2020-04-01 | K154: 1 | T154: CA000125-5 | U154: 20312.3952
A155: 96547510 | B155: 9 | C155: CENTRAL HORCONES | D155: PC002440-0 | E155: 797.32 | F155: 852.03 | G155: 3657335 | H155: 212660386 | I155: 202004 | J155: 2020-04-01 | K155: 1 | T155: PC002440-0 | U155: 679340.5596
A156: 76708710 | B156: 1 | C156: CENTRAL TERMICA ANDINA | D156: GE000251-8 | E156: 3627084.5 | F156: 852.03 | G156: 3657337 | H156: 212660388 | I156: 202004 | J156: 2020-04-01 | K156: 1 | T156: GE000251-8 | U156: 3090384807
A157: 76708710 | B157: 1 | C157: CENTRAL TERMICA ANDINA | D157: GE000100-0 | E157: 4801129.99 | F157: 852.03 | G157: 3657339 | H157: 212660390 | I157: 202004 | J157: 2020-04-01 | K157: 1 | T157: GE000100-0 | U157: 4090706785
A158: 76004976 | B158: K | C158: CENTRAL TERMOELÉCTRICA ANGAMOS | D158: GE000103-5 | E158: 16949576.21 | F158: 852.03 | G158: 3657341 | H158: 212660392 | I158: 202004 | J158: 2020-04-01 | K158: 1 | T158: GE000103-5 | U158: 1.444154742e+10
A159: 99579230 | B159: 3 | C159: INDUSTRIAS ISLA QUIHUA SA | D159: IN001046-8 | E159: 56302.05 | F159: 852.03 | G159: 3657343 | H159: 212660394 | I159: 202004 | J159: 2020-04-01 | K159: 0 | T159: IN001046-8 | U159: 0
A160: 99579230 | B160: 3 | C160: INDUSTRIAS ISLA QUIHUA SA | D160: IN002071-4 | E160: 27421.27 | F160: 852.03 | G160: 3657345 | H160: 212660396 | I160: 202004 | J160: 2020-04-01 | K160: 0 | T160: IN002071-4 | U160: 0
A161: 99579230 | B161: 3 | C161: INDUSTRIAS ISLA QUIHUA SA | D161: IN001763-2 | E161: 19369.11 | F161: 852.03 | G161: 3657347 | H161: 212660398 | I161: 202004 | J161: 2020-04-01 | K161: 0 | T161: IN001763-2 | U161: 0
A162: 99579230 | B162: 3 | C162: INDUSTRIAS ISLA QUIHUA SA | D162: IN000112-4 | E162: 3098.35 | F162: 852.03 | G162: 3657349 | H162: 212660400 | I162: 202004 | J162: 2020-04-01 | K162: 0 | T162: IN000112-4 | U162: 0
A163: 96554890 | B163: 4 | C163: COMPANIA PAPELERA PACIFICO | D163: IN003211-5 | E163: 152.71 | F163: 852.03 | G163: 3657351 | H163: 212660402 | I163: 202004 | J163: 2020-04-01 | K163: 0 | T163: IN003211-5 | U163: 0
A164: 96554890 | B164: 4 | C164: COMPANIA PAPELERA PACIFICO | D164: IN003212-3 | E164: 152.71 | F164: 852.03 | G164: 3657353 | H164: 212660404 | I164: 202004 | J164: 2020-04-01 | K164: 0 | T164: IN003212-3 | U164: 0
A165: 93458000 | B165: 1 | C165: PLANTA CONSTITUCION | D165: IN000211-2 | E165: 62647.04 | F165: 852.03 | G165: 3657355 | H165: 212660406 | I165: 202004 | J165: 2020-04-01 | K165: 1 | T165: IN000211-2 | U165: 53377157.49
A166: 93458000 | B166: 1 | C166: PLANTA CONSTITUCION | D166: IN000212-0 | E166: 584726.58 | F166: 852.03 | G166: 3657357 | H166: 212660408 | I166: 202004 | J166: 2020-04-01 | K166: 1 | T166: IN000212-0 | U166: 498204588
A167: 93458000 | B167: 1 | C167: PLANTA ARAUCO | D167: IN000213-9 | E167: 959310.29 | F167: 852.03 | G167: 3657359 | H167: 212660410 | I167: 202004 | J167: 2020-04-01 | K167: 1 | T167: IN000213-9 | U167: 817361146.4
A168: 93458000 | B168: 1 | C168: PLANTA ARAUCO | D168: IN000216-3 | E168: 364047.66 | F168: 852.03 | G168: 3657361 | H168: 212660412 | I168: 202004 | J168: 2020-04-01 | K168: 1 | T168: IN000216-3 | U168: 310179527.7
A169: 93458000 | B169: 1 | C169: PLANTA ARAUCO | D169: IN001365-3 | E169: 262140.17 | F169: 852.03 | G169: 3657363 | H169: 212660414 | I169: 202004 | J169: 2020-04-01 | K169: 1 | T169: IN001365-3 | U169: 223351289
A170: 93458000 | B170: 1 | C170: PLANTA ARAUCO | D170: IN000214-7 | E170: 169732.72 | F170: 852.03 | G170: 3657365 | H170: 212660416 | I170: 202004 | J170: 2020-04-01 | K170: 1 | T170: IN000214-7 | U170: 144617369.4
A171: 93458000 | B171: 1 | C171: PLANTA ARAUCO | D171: IN000217-1 | E171: 552007.96 | F171: 852.03 | G171: 3657367 | H171: 212660418 | I171: 202004 | J171: 2020-04-01 | K171: 1 | T171: IN000217-1 | U171: 470327342.2
A172: 93458000 | B172: 1 | C172: PLANTA LICANCEL | D172: IN000225-2 | E172: 21635.13 | F172: 852.03 | G172: 3657369 | H172: 212660420 | I172: 202004 | J172: 2020-04-01 | K172: 1 | T172: IN000225-2 | U172: 18433779.81
A173: 93458000 | B173: 1 | C173: PLANTA LICANCEL | D173: IN000224-4 | E173: 121124.47 | F173: 852.03 | G173: 3657371 | H173: 212660422 | I173: 202004 | J173: 2020-04-01 | K173: 1 | T173: IN000224-4 | U173: 103201682.2
A174: 93458000 | B174: 1 | C174: NUEVA ALDEA | D174: IN002622-4 | E174: 33902.56 | F174: 852.03 | G174: 3657373 | H174: 212660424 | I174: 202004 | J174: 2020-04-01 | K174: 1 | T174: IN002622-4 | U174: 28885998.2
A175: 93458000 | B175: 1 | C175: NUEVA ALDEA | D175: IN000218-K | E175: 357879.91 | F175: 852.03 | G175: 3657375 | H175: 212660426 | I175: 202004 | J175: 2020-04-01 | K175: 1 | T175: IN000218-K | U175: 304924419.7
A176: 93458000 | B176: 1 | C176: NUEVA ALDEA | D176: EL019740-9 | E176: 1354.29 | F176: 852.03 | G176: 3657377 | H176: 212660428 | I176: 202004 | J176: 2020-04-01 | K176: 1 | T176: EL019740-9 | U176: 1153895.709
A177: 93458000 | B177: 1 | C177: PLANTA VALDIVIA | D177: IN000219-8 | E177: 302278.27 | F177: 852.03 | G177: 3657379 | H177: 212660430 | I177: 202004 | J177: 2020-04-01 | K177: 1 | T177: IN000219-8 | U177: 257550154.4
A178: 93458000 | B178: 1 | C178: PLANTA VALDIVIA | D178: IN000220-1 | E178: 146813.67 | F178: 852.03 | G178: 3657381 | H178: 212660432 | I178: 202004 | J178: 2020-04-01 | K178: 1 | T178: IN000220-1 | U178: 125089651.3
A179: 76143821 | B179: 2 | C179: PLANTA CORONEL | D179: IN000245-7 | E179: 27525.08 | F179: 852.03 | G179: 3657383 | H179: 212660434 | I179: 202004 | J179: 2020-04-01 | K179: 0 | T179: IN000245-7 | U179: 0
A180: 76143821 | B180: 2 | C180: PLANTA CORONEL | D180: IN003308-1 | E180: 13829.71 | F180: 852.03 | G180: 3657385 | H180: 212660436 | I180: 202004 | J180: 2020-04-01 | K180: 0 | T180: IN003308-1 | U180: 0
A181: 76143821 | B181: 2 | C181: PLANTA CORONEL | D181: IN003307-3 | E181: 51436.57 | F181: 852.03 | G181: 3657387 | H181: 212660438 | I181: 202004 | J181: 2020-04-01 | K181: 0 | T181: IN003307-3 | U181: 0
A182: 76143821 | B182: 2 | C182: PLANTA CORONEL | D182: IN000249-K | E182: 12071.65 | F182: 852.03 | G182: 3657389 | H182: 212660440 | I182: 202004 | J182: 2020-04-01 | K182: 0 | T182: IN000249-K | U182: 0
A183: 76143821 | B183: 2 | C183: PLANTA CORONEL | D183: IN003557-2 | E183: 17422.47 | F183: 852.03 | G183: 3657391 | H183: 212660442 | I183: 202004 | J183: 2020-04-01 | K183: 0 | T183: IN003557-2 | U183: 0
A184: 76629030 | B184: 2 | C184: CENTRAL A GAS CICLO COMBINADO KELAR | D184: PC003576-9 | E184: 1671954.76 | F184: 852.03 | G184: 3657393 | H184: 212660444 | I184: 202004 | J184: 2020-04-01 | K184: 1 | T184: PC003576-9 | U184: 1424555614
A185: 76629030 | B185: 2 | C185: CENTRAL A GAS CICLO COMBINADO KELAR | D185: PC003577-7 | E185: 1629279.14 | F185: 852.03 | G185: 3657395 | H185: 212660446 | I185: 202004 | J185: 2020-04-01 | K185: 1 | T185: PC003577-7 | U185: 1388194706
A186: 87756500 | B186: 9 | C186: EMPRESA NACIONAL DEL PETRÓLEO (ENAP) | D186: IN000649-5 | E186: 313025.37 | F186: 852.03 | G186: 3657397 | H186: 212660448 | I186: 202004 | J186: 2020-04-01 | K186: 0 | T186: IN000649-5 | U186: 0
A187: 87756500 | B187: 9 | C187: EMPRESA NACIONAL DEL PETRÓLEO (ENAP) | D187: IN000650-9 | E187: 281508.06 | F187: 852.03 | G187: 3657399 | H187: 212660450 | I187: 202004 | J187: 2020-04-01 | K187: 0 | T187: IN000650-9 | U187: 0
A188: 87756500 | B188: 9 | C188: EMPRESA NACIONAL DEL PETRÓLEO (ENAP) | D188: IN000651-7 | E188: 296625.59 | F188: 852.03 | G188: 3657401 | H188: 212660452 | I188: 202004 | J188: 2020-04-01 | K188: 0 | T188: IN000651-7 | U188: 0
A189: 87756500 | B189: 9 | C189: EMPRESA NACIONAL DEL PETRÓLEO (ENAP) | D189: IN001036-0 | E189: 301626.05 | F189: 852.03 | G189: 3657403 | H189: 212660454 | I189: 202004 | J189: 2020-04-01 | K189: 0 | T189: IN001036-0 | U189: 0
A190: 87756500 | B190: 9 | C190: EMPRESA NACIONAL DEL PETRÓLEO (ENAP) | D190: IN000652-5 | E190: 266294.67 | F190: 852.03 | G190: 3657405 | H190: 212660456 | I190: 202004 | J190: 2020-04-01 | K190: 0 | T190: IN000652-5 | U190: 0
A191: 87756500 | B191: 9 | C191: EMPRESA NACIONAL DEL PETRÓLEO (ENAP) | D191: PC003440-1 | E191: 571.08 | F191: 852.03 | G191: 3657407 | H191: 212660458 | I191: 202004 | J191: 2020-04-01 | K191: 0 | T191: PC003440-1 | U191: 0
A192: 87756500 | B192: 9 | C192: REFINERIA BIO BIO | D192: IN000555-3 | E192: 5548.47 | F192: 852.03 | G192: 3657409 | H192: 212660460 | I192: 202004 | J192: 2020-04-01 | K192: 0 | T192: IN000555-3 | U192: 0
A193: 87756500 | B193: 9 | C193: REFINERIA BIO BIO | D193: IN000560-K | E193: 86702.58 | F193: 852.03 | G193: 3657411 | H193: 212660462 | I193: 202004 | J193: 2020-04-01 | K193: 0 | T193: IN000560-K | U193: 0
A194: 87756500 | B194: 9 | C194: REFINERIA BIO BIO | D194: IN000559-6 | E194: 33955.52 | F194: 852.03 | G194: 3657413 | H194: 212660464 | I194: 202004 | J194: 2020-04-01 | K194: 0 | T194: IN000559-6 | U194: 0
A195: 87756500 | B195: 9 | C195: REFINERIA BIO BIO | D195: IN000558-8 | E195: 83848.49 | F195: 852.03 | G195: 3657415 | H195: 212660466 | I195: 202004 | J195: 2020-04-01 | K195: 0 | T195: IN000558-8 | U195: 0
A196: 87756500 | B196: 9 | C196: REFINERIA BIO BIO | D196: IN000557-K | E196: 73063.68 | F196: 852.03 | G196: 3657417 | H196: 212660468 | I196: 202004 | J196: 2020-04-01 | K196: 0 | T196: IN000557-K | U196: 0
A197: 87756500 | B197: 9 | C197: REFINERIA BIO BIO | D197: IN000556-1 | E197: 117938.73 | F197: 852.03 | G197: 3657419 | H197: 212660470 | I197: 202004 | J197: 2020-04-01 | K197: 0 | T197: IN000556-1 | U197: 0
A198: 87756500 | B198: 9 | C198: COGENERADORA PETROPOWER | D198: GE000010-1 | E198: 3565621.86 | F198: 852.03 | G198: 3657421 | H198: 212660472 | I198: 202004 | J198: 2020-04-01 | K198: 1 | T198: GE000010-1 | U198: 3038016793
A199: 87756500 | B199: 9 | C199: PLANTA CO GENERADORA | D199: PC003861-K | E199: 113520.37 | F199: 852.03 | G199: 3657423 | H199: 212660474 | I199: 202004 | J199: 2020-04-01 | K199: 0 | T199: =+D199 -> PC003861-K | U199: =+K199*F199*E199 -> 0
A200: 87756500 | B200: 9 | C200: PLANTA CO GENERADORA | D200: IN003466-5 | E200: 25576.28 | F200: 852.03 | G200: 3657425 | H200: 212660476 | I200: 202004 | J200: 2020-04-01 | K200: 0 | T200: IN003466-5 | U200: 0
A201: 79947100 | B201: 0 | C201: FAENA COYA SUR | D201: CA002705-K | E201: 30113.59 | F201: 852.03 | G201: 3657427 | H201: 212660478 | I201: 202004 | J201: 2020-04-01 | K201: 0 | T201: CA002705-K | U201: 0
A202: 79947100 | B202: 0 | C202: FAENA COYA SUR | D202: CA002708-4 | E202: 34498.74 | F202: 852.03 | G202: 3657429 | H202: 212660480 | I202: 202004 | J202: 2020-04-01 | K202: 0 | T202: CA002708-4 | U202: 0
... 74 more rows

Sheet CVP-pre
B2: Costos variables Promedio (numeradores)
B4: Nombre unidad TCV | C4: Enero | D4: Febrero | E4: Marzo | F4: Abril | G4: Mayo | H4: Junio | I4: Julio | J4: Agosto | K4: Septiembre | L4: Octubre | M4: Noviembre | N4: Diciembre | O4: Total
B5: =+Unidades!B6 -> ANG1 | C5: =+VLOOKUP(TablaCVP_pre[[#This Row],[Nombre unidad TCV]],'[1]CVP-pre'!$H$6:$J$205,2,0) -> 5057508926 | D5: =+VLOOKUP(TablaCVP_pre[[#This Row],[Nombre unidad TCV]],'[2]CVP-pre'!$H$6:$J$205,2,0) -> 4314998232 | E5: =+VLOOKUP(TablaCVP_pre[[#This Row],[Nombre unidad TCV]],'[3]CVP-pre'!$H$6:$J$205,2,0) -> 4674274438 | F5: =+VLOOKUP(TablaCVP_pre[[#This Row],[Nombre unidad TCV]],'[4]CVP-pre'!$H$6:$J$205,2,0) -> 4224862134 | G5: =+VLOOKUP(TablaCVP_pre[[#This Row],[Nombre unidad TCV]],'[5]CVP-pre'!$H$6:$J$205,2,0) -> 4699021627 | H5: =+VLOOKUP(TablaCVP_pre[[#This Row],[Nombre unidad TCV]],'[6]CVP-pre'!$H$6:$J$205,2,0) -> 4771896645 | I5: =+VLOOKUP(TablaCVP_pre[[#This Row],[Nombre unidad TCV]],'[7]CVP-pre'!$H$6:$J$205,2,0) -> 4407690333 | J5: =+VLOOKUP(TablaCVP_pre[[#This Row],[Nombre unidad TCV]],'[8]CVP-pre'!$H$6:$J$205,2,0) -> 3021246381 | K5: =+VLOOKUP(TablaCVP_pre[[#This Row],[Nombre unidad TCV]],'[9]CVP-pre'!$H$6:$J$205,2,0) -> 2763074089 | L5: =+VLOOKUP(TablaCVP_pre[[#This Row],[Nombre unidad TCV]],'[10]CVP-pre'!$H$6:$J$205,2,0) -> 38504311.2 | M5: =+VLOOKUP(TablaCVP_pre[[#This Row],[Nombre unidad TCV]],'[11]CVP-pre'!$H$6:$J$205,2,0) -> 3558685786 | N5: =+VLOOKUP(TablaCVP_pre[[#This Row],[Nombre unidad TCV]],'[12]CVP-pre'!$H$6:$J$205,2,0) -> 3420909995 | O5: =+SUM(TablaCVP_pre[[#This Row],[Enero]:[Diciembre]]) -> 4.49526729e+10
B6: =+Unidades!B7 -> ANG2 | C6: =+VLOOKUP(TablaCVP_pre[[#This Row],[Nombre unidad TCV]],'[1]CVP-pre'!$H$6:$J$205,2,0) -> 4784495757 | D6: =+VLOOKUP(TablaCVP_pre[[#This Row],[Nombre unidad TCV]],'[2]CVP-pre'!$H$6:$J$205,2,0) -> 4362038792 | E6: =+VLOOKUP(TablaCVP_pre[[#This Row],[Nombre unidad TCV]],'[3]CVP-pre'!$H$6:$J$205,2,0) -> 5020091063 | F6: =+VLOOKUP(TablaCVP_pre[[#This Row],[Nombre unidad TCV]],'[4]CVP-pre'!$H$6:$J$205,2,0) -> 3633627715 | G6: =+VLOOKUP(TablaCVP_pre[[#This Row],[Nombre unidad TCV]],'[5]CVP-pre'!$H$6:$J$205,2,0) -> 5054515206 | H6: =+VLOOKUP(TablaCVP_pre[[#This Row],[Nombre unidad TCV]],'[6]CVP-pre'!$H$6:$J$205,2,0) -> 4889998422 | I6: =+VLOOKUP(TablaCVP_pre[[#This Row],[Nombre unidad TCV]],'[7]CVP-pre'!$H$6:$J$205,2,0) -> 4253445870 | J6: =+VLOOKUP(TablaCVP_pre[[#This Row],[Nombre unidad TCV]],'[8]CVP-pre'!$H$6:$J$205,2,0) -> 4418019278 | K6: =+VLOOKUP(TablaCVP_pre[[#This Row],[Nombre unidad TCV]],'[9]CVP-pre'!$H$6:$J$205,2,0) -> 3673602407 | L6: =+VLOOKUP(TablaCVP_pre[[#This Row],[Nombre unidad TCV]],'[10]CVP-pre'!$H$6:$J$205,2,0) -> 1690904720 | M6: =+VLOOKUP(TablaCVP_pre[[#This Row],[Nombre unidad TCV]],'[11]CVP-pre'!$H$6:$J$205,2,0) -> 3707376575 | N6: =+VLOOKUP(TablaCVP_pre[[#This Row],[Nombre unidad TCV]],'[12]CVP-pre'!$H$6:$J$205,2,0) -> 3569165019 | O6: =+SUM(TablaCVP_pre[[#This Row],[Enero]:[Diciembre]]) -> 4.905728083e+10
B7: =+Unidades!B8 -> Antilhue TG U1 | C7: =+VLOOKUP(TablaCVP_pre[[#This Row],[Nombre unidad TCV]],'[1]CVP-pre'!$H$6:$J$205,2,0) -> 577875293.2 | D7: =+VLOOKUP(TablaCVP_pre[[#This Row],[Nombre unidad TCV]],'[2]CVP-pre'!$H$6:$J$205,2,0) -> 1930925658 | E7: =+VLOOKUP(TablaCVP_pre[[#This Row],[Nombre unidad TCV]],'[3]CVP-pre'!$H$6:$J$205,2,0) -> 773091545.6 | F7: =+VLOOKUP(TablaCVP_pre[[#This Row],[Nombre unidad TCV]],'[4]CVP-pre'!$H$6:$J$205,2,0) -> 31547594.28 | G7: =+VLOOKUP(TablaCVP_pre[[#This Row],[Nombre unidad TCV]],'[5]CVP-pre'!$H$6:$J$205,2,0) -> 45907293.63 | H7: =+VLOOKUP(TablaCVP_pre[[#This Row],[Nombre unidad TCV]],'[6]CVP-pre'!$H$6:$J$205,2,0) -> 13446198.3 | I7: =+VLOOKUP(TablaCVP_pre[[#This Row],[Nombre unidad TCV]],'[7]CVP-pre'!$H$6:$J$205,2,0) -> 4399800.488 | J7: =+VLOOKUP(TablaCVP_pre[[#This Row],[Nombre unidad TCV]],'[8]CVP-pre'!$H$6:$J$205,2,0) -> 0 | K7: =+VLOOKUP(TablaCVP_pre[[#This Row],[Nombre unidad TCV]],'[9]CVP-pre'!$H$6:$J$205,2,0) -> 0 | L7: =+VLOOKUP(TablaCVP_pre[[#This Row],[Nombre unidad TCV]],'[10]CVP-pre'!$H$6:$J$205,2,0) -> 43804951.43 | M7: =+VLOOKUP(TablaCVP_pre[[#This Row],[Nombre unidad TCV]],'[11]CVP-pre'!$H$6:$J$205,2,0) -> 0 | N7: =+VLOOKUP(TablaCVP_pre[[#This Row],[Nombre unidad TCV]],'[12]CVP-pre'!$H$6:$J$205,2,0) -> 40655412.22 | O7: =+SUM(TablaCVP_pre[[#This Row],[Enero]:[Diciembre]]) -> 3461653747
B8: =+Unidades!B9 -> Antilhue TG U2 | C8: =+VLOOKUP(TablaCVP_pre[[#This Row],[Nombre unidad TCV]],'[1]CVP-pre'!$H$6:$J$205,2,0) -> 38437996.23 | D8: =+VLOOKUP(TablaCVP_pre[[#This Row],[Nombre unidad TCV]],'[2]CVP-pre'!$H$6:$J$205,2,0) -> 1420420155 | E8: =+VLOOKUP(TablaCVP_pre[[#This Row],[Nombre unidad TCV]],'[3]CVP-pre'!$H$6:$J$205,2,0) -> 345778476.8 | F8: =+VLOOKUP(TablaCVP_pre[[#This Row],[Nombre unidad TCV]],'[4]CVP-pre'!$H$6:$J$205,2,0) -> 366670020.6 | G8: =+VLOOKUP(TablaCVP_pre[[#This Row],[Nombre unidad TCV]],'[5]CVP-pre'!$H$6:$J$205,2,0) -> 0 | H8: =+VLOOKUP(TablaCVP_pre[[#This Row],[Nombre unidad TCV]],'[6]CVP-pre'!$H$6:$J$205,2,0) -> 0 | I8: =+VLOOKUP(TablaCVP_pre[[#This Row],[Nombre unidad TCV]],'[7]CVP-pre'!$H$6:$J$205,2,0) -> 0 | J8: =+VLOOKUP(TablaCVP_pre[[#This Row],[Nombre unidad TCV]],'[8]CVP-pre'!$H$6:$J$205,2,0) -> 0 | K8: =+VLOOKUP(TablaCVP_pre[[#This Row],[Nombre unidad TCV]],'[9]CVP-pre'!$H$6:$J$205,2,0) -> 0 | L8: =+VLOOKUP(TablaCVP_pre[[#This Row],[Nombre unidad TCV]],'[10]CVP-pre'!$H$6:$J$205,2,0) -> 136485550.6 | M8: =+VLOOKUP(TablaCVP_pre[[#This Row],[Nombre unidad TCV]],'[11]CVP-pre'!$H$6:$J$205,2,0) -> 0 | N8: =+VLOOKUP(TablaCVP_pre[[#This Row],[Nombre unidad TCV]],'[12]CVP-pre'!$H$6:$J$205,2,0) -> 16880155.42 | O8: =+SUM(TablaCVP_pre[[#This Row],[Enero]:[Diciembre]]) -> 2324672355
B9: =+Unidades!B10 -> Arauco | C9: =+VLOOKUP(TablaCVP_pre[[#This Row],[Nombre unidad TCV]],'[1]CVP-pre'!$H$6:$J$205,2,0) -> 90793109.76 | D9: =+VLOOKUP(TablaCVP_pre[[#This Row],[Nombre unidad TCV]],'[2]CVP-pre'!$H$6:$J$205,2,0) -> 63435056.44 | E9: =+VLOOKUP(TablaCVP_pre[[#This Row],[Nombre unidad TCV]],'[3]CVP-pre'!$H$6:$J$205,2,0) -> 31760893.72 | F9: =+VLOOKUP(TablaCVP_pre[[#This Row],[Nombre unidad TCV]],'[4]CVP-pre'!$H$6:$J$205,2,0) -> 70270929.11 | G9: =+VLOOKUP(TablaCVP_pre[[#This Row],[Nombre unidad TCV]],'[5]CVP-pre'!$H$6:$J$205,2,0) -> 65342868.08 | H9: =+VLOOKUP(TablaCVP_pre[[#This Row],[Nombre unidad TCV]],'[6]CVP-pre'!$H$6:$J$205,2,0) -> 42137391.52 | I9: =+VLOOKUP(TablaCVP_pre[[#This Row],[Nombre unidad TCV]],'[7]CVP-pre'!$H$6:$J$205,2,0) -> 35072966.01 | J9: =+VLOOKUP(TablaCVP_pre[[#This Row],[Nombre unidad TCV]],'[8]CVP-pre'!$H$6:$J$205,2,0) -> 32963453.45 | K9: =+VLOOKUP(TablaCVP_pre[[#This Row],[Nombre unidad TCV]],'[9]CVP-pre'!$H$6:$J$205,2,0) -> 62538376.85 | L9: =+VLOOKUP(TablaCVP_pre[[#This Row],[Nombre unidad TCV]],'[10]CVP-pre'!$H$6:$J$205,2,0) -> 82366602.66 | M9: =+VLOOKUP(TablaCVP_pre[[#This Row],[Nombre unidad TCV]],'[11]CVP-pre'!$H$6:$J$205,2,0) -> 100612200.7 | N9: =+VLOOKUP(TablaCVP_pre[[#This Row],[Nombre unidad TCV]],'[12]CVP-pre'!$H$6:$J$205,2,0) -> 77308103.09 | O9: =+SUM(TablaCVP_pre[[#This Row],[Enero]:[Diciembre]]) -> 754601951.4
B10: =+Unidades!B11 -> Bocamina | C10: =+VLOOKUP(TablaCVP_pre[[#This Row],[Nombre unidad TCV]],'[1]CVP-pre'!$H$6:$J$205,2,0) -> 770004142.6 | D10: =+VLOOKUP(TablaCVP_pre[[#This Row],[Nombre unidad TCV]],'[2]CVP-pre'!$H$6:$J$205,2,0) -> 2066878287 | E10: =+VLOOKUP(TablaCVP_pre[[#This Row],[Nombre unidad TCV]],'[3]CVP-pre'!$H$6:$J$205,2,0) -> 2716887561 | F10: =+VLOOKUP(TablaCVP_pre[[#This Row],[Nombre unidad TCV]],'[4]CVP-pre'!$H$6:$J$205,2,0) -> 2354879638 | G10: =+VLOOKUP(TablaCVP_pre[[#This Row],[Nombre unidad TCV]],'[5]CVP-pre'!$H$6:$J$205,2,0) -> 2036635148 | H10: =+VLOOKUP(TablaCVP_pre[[#This Row],[Nombre unidad TCV]],'[6]CVP-pre'!$H$6:$J$205,2,0) -> 927118246.8 | I10: =+VLOOKUP(TablaCVP_pre[[#This Row],[Nombre unidad TCV]],'[7]CVP-pre'!$H$6:$J$205,2,0) -> 1313499193 | J10: =+VLOOKUP(TablaCVP_pre[[#This Row],[Nombre unidad TCV]],'[8]CVP-pre'!$H$6:$J$205,2,0) -> 1251724983 | K10: =+VLOOKUP(TablaCVP_pre[[#This Row],[Nombre unidad TCV]],'[9]CVP-pre'!$H$6:$J$205,2,0) -> 1464760720 | L10: =+VLOOKUP(TablaCVP_pre[[#This Row],[Nombre unidad TCV]],'[10]CVP-pre'!$H$6:$J$205,2,0) -> 1440309972 | M10: =+VLOOKUP(TablaCVP_pre[[#This Row],[Nombre unidad TCV]],'[11]CVP-pre'!$H$6:$J$205,2,0) -> 2103881722 | N10: =+VLOOKUP(TablaCVP_pre[[#This Row],[Nombre unidad TCV]],'[12]CVP-pre'!$H$6:$J$205,2,0) -> 370685130.9 | O10: =+SUM(TablaCVP_pre[[#This Row],[Enero]:[Diciembre]]) -> 1.881726474e+10
B11: =+Unidades!B12 -> Bocamina II | C11: =+VLOOKUP(TablaCVP_pre[[#This Row],[Nombre unidad TCV]],'[1]CVP-pre'!$H$6:$J$205,2,0) -> 4162759601 | D11: =+VLOOKUP(TablaCVP_pre[[#This Row],[Nombre unidad TCV]],'[2]CVP-pre'!$H$6:$J$205,2,0) -> 4328247589 | E11: =+VLOOKUP(TablaCVP_pre[[#This Row],[Nombre unidad TCV]],'[3]CVP-pre'!$H$6:$J$205,2,0) -> 1587563907 | F11: =+VLOOKUP(TablaCVP_pre[[#This Row],[Nombre unidad TCV]],'[4]CVP-pre'!$H$6:$J$205,2,0) -> 5808633199 | G11: =+VLOOKUP(TablaCVP_pre[[#This Row],[Nombre unidad TCV]],'[5]CVP-pre'!$H$6:$J$205,2,0) -> 5339241332 | H11: =+VLOOKUP(TablaCVP_pre[[#This Row],[Nombre unidad TCV]],'[6]CVP-pre'!$H$6:$J$205,2,0) -> 5816025927 | I11: =+VLOOKUP(TablaCVP_pre[[#This Row],[Nombre unidad TCV]],'[7]CVP-pre'!$H$6:$J$205,2,0) -> 5187145555 | J11: =+VLOOKUP(TablaCVP_pre[[#This Row],[Nombre unidad TCV]],'[8]CVP-pre'!$H$6:$J$205,2,0) -> 5824155815 | K11: =+VLOOKUP(TablaCVP_pre[[#This Row],[Nombre unidad TCV]],'[9]CVP-pre'!$H$6:$J$205,2,0) -> 4915587634 | L11: =+VLOOKUP(TablaCVP_pre[[#This Row],[Nombre unidad TCV]],'[10]CVP-pre'!$H$6:$J$205,2,0) -> 4030793662 | M11: =+VLOOKUP(TablaCVP_pre[[#This Row],[Nombre unidad TCV]],'[11]CVP-pre'!$H$6:$J$205,2,0) -> 537076212.2 | N11: =+VLOOKUP(TablaCVP_pre[[#This Row],[Nombre unidad TCV]],'[12]CVP-pre'!$H$6:$J$205,2,0) -> 3129293373 | O11: =+SUM(TablaCVP_pre[[#This Row],[Enero]:[Diciembre]]) -> 5.066652381e+10
B12: =+Unidades!B13 -> Campiche | C12: =+VLOOKUP(TablaCVP_pre[[#This Row],[Nombre unidad TCV]],'[1]CVP-pre'!$H$6:$J$205,2,0) -> 3928586994 | D12: =+VLOOKUP(TablaCVP_pre[[#This Row],[Nombre unidad TCV]],'[2]CVP-pre'!$H$6:$J$205,2,0) -> 4506407303 | E12: =+VLOOKUP(TablaCVP_pre[[#This Row],[Nombre unidad TCV]],'[3]CVP-pre'!$H$6:$J$205,2,0) -> 180020956.6 | F12: =+VLOOKUP(TablaCVP_pre[[#This Row],[Nombre unidad TCV]],'[4]CVP-pre'!$H$6:$J$205,2,0) -> 5118728661 | G12: =+VLOOKUP(TablaCVP_pre[[#This Row],[Nombre unidad TCV]],'[5]CVP-pre'!$H$6:$J$205,2,0) -> 5393961277 | H12: =+VLOOKUP(TablaCVP_pre[[#This Row],[Nombre unidad TCV]],'[6]CVP-pre'!$H$6:$J$205,2,0) -> 4813633153 | I12: =+VLOOKUP(TablaCVP_pre[[#This Row],[Nombre unidad TCV]],'[7]CVP-pre'!$H$6:$J$205,2,0) -> 3210778387 | J12: =+VLOOKUP(TablaCVP_pre[[#This Row],[Nombre unidad TCV]],'[8]CVP-pre'!$H$6:$J$205,2,0) -> 4123798121 | K12: =+VLOOKUP(TablaCVP_pre[[#This Row],[Nombre unidad TCV]],'[9]CVP-pre'!$H$6:$J$205,2,0) -> 1763131429 | L12: =+VLOOKUP(TablaCVP_pre[[#This Row],[Nombre unidad TCV]],'[10]CVP-pre'!$H$6:$J$205,2,0) -> 2150342504 | M12: =+VLOOKUP(TablaCVP_pre[[#This Row],[Nombre unidad TCV]],'[11]CVP-pre'!$H$6:$J$205,2,0) -> 2054577291 | N12: =+VLOOKUP(TablaCVP_pre[[#This Row],[Nombre unidad TCV]],'[12]CVP-pre'!$H$6:$J$205,2,0) -> 3459260499 | O12: =+SUM(TablaCVP_pre[[#This Row],[Enero]:[Diciembre]]) -> 4.070322658e+10
B13: =+Unidades!B14 -> Candelaria 1 | C13: =+VLOOKUP(TablaCVP_pre[[#This Row],[Nombre unidad TCV]],'[1]CVP-pre'!$H$6:$J$205,2,0) -> 0 | D13: =+VLOOKUP(TablaCVP_pre[[#This Row],[Nombre unidad TCV]],'[2]CVP-pre'!$H$6:$J$205,2,0) -> 0 | E13: =+VLOOKUP(TablaCVP_pre[[#This Row],[Nombre unidad TCV]],'[3]CVP-pre'!$H$6:$J$205,2,0) -> 43132231.65 | F13: =+VLOOKUP(TablaCVP_pre[[#This Row],[Nombre unidad TCV]],'[4]CVP-pre'!$H$6:$J$205,2,0) -> 18009673.78 | G13: =+VLOOKUP(TablaCVP_pre[[#This Row],[Nombre unidad TCV]],'[5]CVP-pre'!$H$6:$J$205,2,0) -> 38728422.1 | H13: =+VLOOKUP(TablaCVP_pre[[#This Row],[Nombre unidad TCV]],'[6]CVP-pre'!$H$6:$J$205,2,0) -> 65287275.63 | I13: =+VLOOKUP(TablaCVP_pre[[#This Row],[Nombre unidad TCV]],'[7]CVP-pre'!$H$6:$J$205,2,0) -> 0 | J13: =+VLOOKUP(TablaCVP_pre[[#This Row],[Nombre unidad TCV]],'[8]CVP-pre'!$H$6:$J$205,2,0) -> 0 | K13: =+VLOOKUP(TablaCVP_pre[[#This Row],[Nombre unidad TCV]],'[9]CVP-pre'!$H$6:$J$205,2,0) -> 1302666.815 | L13: =+VLOOKUP(TablaCVP_pre[[#This Row],[Nombre unidad TCV]],'[10]CVP-pre'!$H$6:$J$205,2,0) -> 0 | M13: =+VLOOKUP(TablaCVP_pre[[#This Row],[Nombre unidad TCV]],'[11]CVP-pre'!$H$6:$J$205,2,0) -> 0 | N13: =+VLOOKUP(TablaCVP_pre[[#This Row],[Nombre unidad TCV]],'[12]CVP-pre'!$H$6:$J$205,2,0) -> 0 | O13: =+SUM(TablaCVP_pre[[#This Row],[Enero]:[Diciembre]]) -> 166460270
B14: =+Unidades!B15 -> Candelaria 2 | C14: =+VLOOKUP(TablaCVP_pre[[#This Row],[Nombre unidad TCV]],'[1]CVP-pre'!$H$6:$J$205,2,0) -> 0 | D14: =+VLOOKUP(TablaCVP_pre[[#This Row],[Nombre unidad TCV]],'[2]CVP-pre'!$H$6:$J$205,2,0) -> 0 | E14: =+VLOOKUP(TablaCVP_pre[[#This Row],[Nombre unidad TCV]],'[3]CVP-pre'!$H$6:$J$205,2,0) -> 31266474.73 | F14: =+VLOOKUP(TablaCVP_pre[[#This Row],[Nombre unidad TCV]],'[4]CVP-pre'!$H$6:$J$205,2,0) -> 85141439.63 | G14: =+VLOOKUP(TablaCVP_pre[[#This Row],[Nombre unidad TCV]],'[5]CVP-pre'!$H$6:$J$205,2,0) -> 8131376.362 | H14: =+VLOOKUP(TablaCVP_pre[[#This Row],[Nombre unidad TCV]],'[6]CVP-pre'!$H$6:$J$205,2,0) -> 57937635.63 | I14: =+VLOOKUP(TablaCVP_pre[[#This Row],[Nombre unidad TCV]],'[7]CVP-pre'!$H$6:$J$205,2,0) -> 0 | J14: =+VLOOKUP(TablaCVP_pre[[#This Row],[Nombre unidad TCV]],'[8]CVP-pre'!$H$6:$J$205,2,0) -> 24811912.82 | K14: =+VLOOKUP(TablaCVP_pre[[#This Row],[Nombre unidad TCV]],'[9]CVP-pre'!$H$6:$J$205,2,0) -> 26571724 | L14: =+VLOOKUP(TablaCVP_pre[[#This Row],[Nombre unidad TCV]],'[10]CVP-pre'!$H$6:$J$205,2,0) -> 0 | M14: =+VLOOKUP(TablaCVP_pre[[#This Row],[Nombre unidad TCV]],'[11]CVP-pre'!$H$6:$J$205,2,0) -> 0 | N14: =+VLOOKUP(TablaCVP_pre[[#This Row],[Nombre unidad TCV]],'[12]CVP-pre'!$H$6:$J$205,2,0) -> 0 | O14: =+SUM(TablaCVP_pre[[#This Row],[Enero]:[Diciembre]]) -> 233860563.2
B15: =+Unidades!B16 -> Cardones | C15: =+VLOOKUP(TablaCVP_pre[[#This Row],[Nombre unidad TCV]],'[1]CVP-pre'!$H$6:$J$205,2,0) -> 0 | D15: =+VLOOKUP(TablaCVP_pre[[#This Row],[Nombre unidad TCV]],'[2]CVP-pre'!$H$6:$J$205,2,0) -> 0 | E15: =+VLOOKUP(TablaCVP_pre[[#This Row],[Nombre unidad TCV]],'[3]CVP-pre'!$H$6:$J$205,2,0) -> 0 | F15: =+VLOOKUP(TablaCVP_pre[[#This Row],[Nombre unidad TCV]],'[4]CVP-pre'!$H$6:$J$205,2,0) -> 0 | G15: =+VLOOKUP(TablaCVP_pre[[#This Row],[Nombre unidad TCV]],'[5]CVP-pre'!$H$6:$J$205,2,0) -> 0 | H15: =+VLOOKUP(TablaCVP_pre[[#This Row],[Nombre unidad TCV]],'[6]CVP-pre'!$H$6:$J$205,2,0) -> 510.2953696 | I15: =+VLOOKUP(TablaCVP_pre[[#This Row],[Nombre unidad TCV]],'[7]CVP-pre'!$H$6:$J$205,2,0) -> 0 | J15: =+VLOOKUP(TablaCVP_pre[[#This Row],[Nombre unidad TCV]],'[8]CVP-pre'!$H$6:$J$205,2,0) -> 0 | K15: =+VLOOKUP(TablaCVP_pre[[#This Row],[Nombre unidad TCV]],'[9]CVP-pre'!$H$6:$J$205,2,0) -> 0 | L15: =+VLOOKUP(TablaCVP_pre[[#This Row],[Nombre unidad TCV]],'[10]CVP-pre'!$H$6:$J$205,2,0) -> 0 | M15: =+VLOOKUP(TablaCVP_pre[[#This Row],[Nombre unidad TCV]],'[11]CVP-pre'!$H$6:$J$205,2,0) -> 0 | N15: =+VLOOKUP(TablaCVP_pre[[#This Row],[Nombre unidad TCV]],'[12]CVP-pre'!$H$6:$J$205,2,0) -> 0 | O15: =+SUM(TablaCVP_pre[[#This Row],[Enero]:[Diciembre]]) -> 510.2953696
B16: =+Unidades!B17 -> CC KELAR | C16: =+VLOOKUP(TablaCVP_pre[[#This Row],[Nombre unidad TCV]],'[1]CVP-pre'!$H$6:$J$205,2,0) -> 1201962472 | D16: =+VLOOKUP(TablaCVP_pre[[#This Row],[Nombre unidad TCV]],'[2]CVP-pre'!$H$6:$J$205,2,0) -> 2542800501 | E16: =+VLOOKUP(TablaCVP_pre[[#This Row],[Nombre unidad TCV]],'[3]CVP-pre'!$H$6:$J$205,2,0) -> 1221371057 | F16: =+VLOOKUP(TablaCVP_pre[[#This Row],[Nombre unidad TCV]],'[4]CVP-pre'!$H$6:$J$205,2,0) -> 1852954936 | G16: =+VLOOKUP(TablaCVP_pre[[#This Row],[Nombre unidad TCV]],'[5]CVP-pre'!$H$6:$J$205,2,0) -> 1678257457 | H16: =+VLOOKUP(TablaCVP_pre[[#This Row],[Nombre unidad TCV]],'[6]CVP-pre'!$H$6:$J$205,2,0) -> 632205208.9 | I16: =+VLOOKUP(TablaCVP_pre[[#This Row],[Nombre unidad TCV]],'[7]CVP-pre'!$H$6:$J$205,2,0) -> 100431053.6 | J16: =+VLOOKUP(TablaCVP_pre[[#This Row],[Nombre unidad TCV]],'[8]CVP-pre'!$H$6:$J$205,2,0) -> 597802833.3 | K16: =+VLOOKUP(TablaCVP_pre[[#This Row],[Nombre unidad TCV]],'[9]CVP-pre'!$H$6:$J$205,2,0) -> 244369147.5 | L16: =+VLOOKUP(TablaCVP_pre[[#This Row],[Nombre unidad TCV]],'[10]CVP-pre'!$H$6:$J$205,2,0) -> 425939250.8 | M16: =+VLOOKUP(TablaCVP_pre[[#This Row],[Nombre unidad TCV]],'[11]CVP-pre'!$H$6:$J$205,2,0) -> 90713160.39 | N16: =+VLOOKUP(TablaCVP_pre[[#This Row],[Nombre unidad TCV]],'[12]CVP-pre'!$H$6:$J$205,2,0) -> 0 | O16: =+SUM(TablaCVP_pre[[#This Row],[Enero]:[Diciembre]]) -> 1.058880708e+10
B17: =+Unidades!B18 -> CC1 | C17: =+VLOOKUP(TablaCVP_pre[[#This Row],[Nombre unidad TCV]],'[1]CVP-pre'!$H$6:$J$205,2,0) -> 1529886931 | D17: =+VLOOKUP(TablaCVP_pre[[#This Row],[Nombre unidad TCV]],'[2]CVP-pre'!$H$6:$J$205,2,0) -> 596640698.6 | E17: =+VLOOKUP(TablaCVP_pre[[#This Row],[Nombre unidad TCV]],'[3]CVP-pre'!$H$6:$J$205,2,0) -> 409749796.8 | F17: =+VLOOKUP(TablaCVP_pre[[#This Row],[Nombre unidad TCV]],'[4]CVP-pre'!$H$6:$J$205,2,0) -> 1022010695 | G17: =+VLOOKUP(TablaCVP_pre[[#This Row],[Nombre unidad TCV]],'[5]CVP-pre'!$H$6:$J$205,2,0) -> 335593163.2 | H17: =+VLOOKUP(TablaCVP_pre[[#This Row],[Nombre unidad TCV]],'[6]CVP-pre'!$H$6:$J$205,2,0) -> 972453073.8 | I17: =+VLOOKUP(TablaCVP_pre[[#This Row],[Nombre unidad TCV]],'[7]CVP-pre'!$H$6:$J$205,2,0) -> 0 | J17: =+VLOOKUP(TablaCVP_pre[[#This Row],[Nombre unidad TCV]],'[8]CVP-pre'!$H$6:$J$205,2,0) -> 339028446.9 | K17: =+VLOOKUP(TablaCVP_pre[[#This Row],[Nombre unidad TCV]],'[9]CVP-pre'!$H$6:$J$205,2,0) -> 730776865 | L17: =+VLOOKUP(TablaCVP_pre[[#This Row],[Nombre unidad TCV]],'[10]CVP-pre'!$H$6:$J$205,2,0) -> 640752141 | M17: =+VLOOKUP(TablaCVP_pre[[#This Row],[Nombre unidad TCV]],'[11]CVP-pre'!$H$6:$J$205,2,0) -> 671816893.9 | N17: =+VLOOKUP(TablaCVP_pre[[#This Row],[Nombre unidad TCV]],'[12]CVP-pre'!$H$6:$J$205,2,0) -> 0 | O17: =+SUM(TablaCVP_pre[[#This Row],[Enero]:[Diciembre]]) -> 7248708705
B18: =+Unidades!B19 -> CC2 | C18: =+VLOOKUP(TablaCVP_pre[[#This Row],[Nombre unidad TCV]],'[1]CVP-pre'!$H$6:$J$205,2,0) -> 630711275.7 | D18: =+VLOOKUP(TablaCVP_pre[[#This Row],[Nombre unidad TCV]],'[2]CVP-pre'!$H$6:$J$205,2,0) -> 156191947.4 | E18: =+VLOOKUP(TablaCVP_pre[[#This Row],[Nombre unidad TCV]],'[3]CVP-pre'!$H$6:$J$205,2,0) -> 253103652 | F18: =+VLOOKUP(TablaCVP_pre[[#This Row],[Nombre unidad TCV]],'[4]CVP-pre'!$H$6:$J$205,2,0) -> 177869369.1 | G18: =+VLOOKUP(TablaCVP_pre[[#This Row],[Nombre unidad TCV]],'[5]CVP-pre'!$H$6:$J$205,2,0) -> 195413064.5 | H18: =+VLOOKUP(TablaCVP_pre[[#This Row],[Nombre unidad TCV]],'[6]CVP-pre'!$H$6:$J$205,2,0) -> 280445979.2 | I18: =+VLOOKUP(TablaCVP_pre[[#This Row],[Nombre unidad TCV]],'[7]CVP-pre'!$H$6:$J$205,2,0) -> 10823122.65 | J18: =+VLOOKUP(TablaCVP_pre[[#This Row],[Nombre unidad TCV]],'[8]CVP-pre'!$H$6:$J$205,2,0) -> 0 | K18: =+VLOOKUP(TablaCVP_pre[[#This Row],[Nombre unidad TCV]],'[9]CVP-pre'!$H$6:$J$205,2,0) -> 138910179.1 | L18: =+VLOOKUP(TablaCVP_pre[[#This Row],[Nombre unidad TCV]],'[10]CVP-pre'!$H$6:$J$205,2,0) -> 68170602.95 | M18: =+VLOOKUP(TablaCVP_pre[[#This Row],[Nombre unidad TCV]],'[11]CVP-pre'!$H$6:$J$205,2,0) -> 110769250.3 | N18: =+VLOOKUP(TablaCVP_pre[[#This Row],[Nombre unidad TCV]],'[12]CVP-pre'!$H$6:$J$205,2,0) -> 0 | O18: =+SUM(TablaCVP_pre[[#This Row],[Enero]:[Diciembre]]) -> 2022408443
B19: =+Unidades!B20 -> CCH1 | C19: =+VLOOKUP(TablaCVP_pre[[#This Row],[Nombre unidad TCV]],'[1]CVP-pre'!$H$6:$J$205,2,0) -> 4029251988 | D19: =+VLOOKUP(TablaCVP_pre[[#This Row],[Nombre unidad TCV]],'[2]CVP-pre'!$H$6:$J$205,2,0) -> 3379435148 | E19: =+VLOOKUP(TablaCVP_pre[[#This Row],[Nombre unidad TCV]],'[3]CVP-pre'!$H$6:$J$205,2,0) -> 3239584987 | F19: =+VLOOKUP(TablaCVP_pre[[#This Row],[Nombre unidad TCV]],'[4]CVP-pre'!$H$6:$J$205,2,0) -> 2839742340 | G19: =+VLOOKUP(TablaCVP_pre[[#This Row],[Nombre unidad TCV]],'[5]CVP-pre'!$H$6:$J$205,2,0) -> 3750030556 | H19: =+VLOOKUP(TablaCVP_pre[[#This Row],[Nombre unidad TCV]],'[6]CVP-pre'!$H$6:$J$205,2,0) -> 3414518056 | I19: =+VLOOKUP(TablaCVP_pre[[#This Row],[Nombre unidad TCV]],'[7]CVP-pre'!$H$6:$J$205,2,0) -> 2836392067 | J19: =+VLOOKUP(TablaCVP_pre[[#This Row],[Nombre unidad TCV]],'[8]CVP-pre'!$H$6:$J$205,2,0) -> 1626716246 | K19: =+VLOOKUP(TablaCVP_pre[[#This Row],[Nombre unidad TCV]],'[9]CVP-pre'!$H$6:$J$205,2,0) -> 3337151908 | L19: =+VLOOKUP(TablaCVP_pre[[#This Row],[Nombre unidad TCV]],'[10]CVP-pre'!$H$6:$J$205,2,0) -> 3179149053 | M19: =+VLOOKUP(TablaCVP_pre[[#This Row],[Nombre unidad TCV]],'[11]CVP-pre'!$H$6:$J$205,2,0) -> 3083984643 | N19: =+VLOOKUP(TablaCVP_pre[[#This Row],[Nombre unidad TCV]],'[12]CVP-pre'!$H$6:$J$205,2,0) -> 3545718125 | O19: =+SUM(TablaCVP_pre[[#This Row],[Enero]:[Diciembre]]) -> 3.826167512e+10
B20: =+Unidades!B21 -> CCH2 | C20: =+VLOOKUP(TablaCVP_pre[[#This Row],[Nombre unidad TCV]],'[1]CVP-pre'!$H$6:$J$205,2,0) -> 4036280217 | D20: =+VLOOKUP(TablaCVP_pre[[#This Row],[Nombre unidad TCV]],'[2]CVP-pre'!$H$6:$J$205,2,0) -> 3381055334 | E20: =+VLOOKUP(TablaCVP_pre[[#This Row],[Nombre unidad TCV]],'[3]CVP-pre'!$H$6:$J$205,2,0) -> 3262909660 | F20: =+VLOOKUP(TablaCVP_pre[[#This Row],[Nombre unidad TCV]],'[4]CVP-pre'!$H$6:$J$205,2,0) -> 3147741879 | G20: =+VLOOKUP(TablaCVP_pre[[#This Row],[Nombre unidad TCV]],'[5]CVP-pre'!$H$6:$J$205,2,0) -> 3640065241 | H20: =+VLOOKUP(TablaCVP_pre[[#This Row],[Nombre unidad TCV]],'[6]CVP-pre'!$H$6:$J$205,2,0) -> 3260264793 | I20: =+VLOOKUP(TablaCVP_pre[[#This Row],[Nombre unidad TCV]],'[7]CVP-pre'!$H$6:$J$205,2,0) -> 2019155438 | J20: =+VLOOKUP(TablaCVP_pre[[#This Row],[Nombre unidad TCV]],'[8]CVP-pre'!$H$6:$J$205,2,0) -> 2577079735 | K20: =+VLOOKUP(TablaCVP_pre[[#This Row],[Nombre unidad TCV]],'[9]CVP-pre'!$H$6:$J$205,2,0) -> 3319619863 | L20: =+VLOOKUP(TablaCVP_pre[[#This Row],[Nombre unidad TCV]],'[10]CVP-pre'!$H$6:$J$205,2,0) -> 3177560216 | M20: =+VLOOKUP(TablaCVP_pre[[#This Row],[Nombre unidad TCV]],'[11]CVP-pre'!$H$6:$J$205,2,0) -> 3081228511 | N20: =+VLOOKUP(TablaCVP_pre[[#This Row],[Nombre unidad TCV]],'[12]CVP-pre'!$H$6:$J$205,2,0) -> 3548757409 | O20: =+SUM(TablaCVP_pre[[#This Row],[Enero]:[Diciembre]]) -> 3.845171829e+10
B21: =+Unidades!B22 -> CD Iquique | C21: =+VLOOKUP(TablaCVP_pre[[#This Row],[Nombre unidad TCV]],'[1]CVP-pre'!$H$6:$J$205,2,0) -> 0 | D21: =+VLOOKUP(TablaCVP_pre[[#This Row],[Nombre unidad TCV]],'[2]CVP-pre'!$H$6:$J$205,2,0) -> 0 | E21: =+VLOOKUP(TablaCVP_pre[[#This Row],[Nombre unidad TCV]],'[3]CVP-pre'!$H$6:$J$205,2,0) -> 0 | F21: =+VLOOKUP(TablaCVP_pre[[#This Row],[Nombre unidad TCV]],'[4]CVP-pre'!$H$6:$J$205,2,0) -> 0 | G21: =+VLOOKUP(TablaCVP_pre[[#This Row],[Nombre unidad TCV]],'[5]CVP-pre'!$H$6:$J$205,2,0) -> 0 | H21: =+VLOOKUP(TablaCVP_pre[[#This Row],[Nombre unidad TCV]],'[6]CVP-pre'!$H$6:$J$205,2,0) -> 0 | I21: =+VLOOKUP(TablaCVP_pre[[#This Row],[Nombre unidad TCV]],'[7]CVP-pre'!$H$6:$J$205,2,0) -> 0 | J21: =+VLOOKUP(TablaCVP_pre[[#This Row],[Nombre unidad TCV]],'[8]CVP-pre'!$H$6:$J$205,2,0) -> 0 | K21: =+VLOOKUP(TablaCVP_pre[[#This Row],[Nombre unidad TCV]],'[9]CVP-pre'!$H$6:$J$205,2,0) -> 0 | L21: =+VLOOKUP(TablaCVP_pre[[#This Row],[Nombre unidad TCV]],'[10]CVP-pre'!$H$6:$J$205,2,0) -> 0 | M21: =+VLOOKUP(TablaCVP_pre[[#This Row],[Nombre unidad TCV]],'[11]CVP-pre'!$H$6:$J$205,2,0) -> 0 | N21: =+VLOOKUP(TablaCVP_pre[[#This Row],[Nombre unidad TCV]],'[12]CVP-pre'!$H$6:$J$205,2,0) -> 0 | O21: =+SUM(TablaCVP_pre[[#This Row],[Enero]:[Diciembre]]) -> 0
B22: =+Unidades!B23 -> Celco | C22: =+VLOOKUP(TablaCVP_pre[[#This Row],[Nombre unidad TCV]],'[1]CVP-pre'!$H$6:$J$205,2,0) -> 84052584.89 | D22: =+VLOOKUP(TablaCVP_pre[[#This Row],[Nombre unidad TCV]],'[2]CVP-pre'!$H$6:$J$205,2,0) -> 88972246.86 | E22: =+VLOOKUP(TablaCVP_pre[[#This Row],[Nombre unidad TCV]],'[3]CVP-pre'!$H$6:$J$205,2,0) -> 74948436.29 | F22: =+VLOOKUP(TablaCVP_pre[[#This Row],[Nombre unidad TCV]],'[4]CVP-pre'!$H$6:$J$205,2,0) -> 52825017.36 | G22: =+VLOOKUP(TablaCVP_pre[[#This Row],[Nombre unidad TCV]],'[5]CVP-pre'!$H$6:$J$205,2,0) -> 99795957.49 | H22: =+VLOOKUP(TablaCVP_pre[[#This Row],[Nombre unidad TCV]],'[6]CVP-pre'!$H$6:$J$205,2,0) -> 58314868.71 | I22: =+VLOOKUP(TablaCVP_pre[[#This Row],[Nombre unidad TCV]],'[7]CVP-pre'!$H$6:$J$205,2,0) -> 72642224.91 | J22: =+VLOOKUP(TablaCVP_pre[[#This Row],[Nombre unidad TCV]],'[8]CVP-pre'!$H$6:$J$205,2,0) -> 69286020.25 | K22: =+VLOOKUP(TablaCVP_pre[[#This Row],[Nombre unidad TCV]],'[9]CVP-pre'!$H$6:$J$205,2,0) -> 71647613.21 | L22: =+VLOOKUP(TablaCVP_pre[[#This Row],[Nombre unidad TCV]],'[10]CVP-pre'!$H$6:$J$205,2,0) -> 68080679.72 | M22: =+VLOOKUP(TablaCVP_pre[[#This Row],[Nombre unidad TCV]],'[11]CVP-pre'!$H$6:$J$205,2,0) -> 110610217.6 | N22: =+VLOOKUP(TablaCVP_pre[[#This Row],[Nombre unidad TCV]],'[12]CVP-pre'!$H$6:$J$205,2,0) -> 98658805.59 | O22: =+SUM(TablaCVP_pre[[#This Row],[Enero]:[Diciembre]]) -> 949834672.9
B23: =+Unidades!B24 -> Cholguán | C23: =+VLOOKUP(TablaCVP_pre[[#This Row],[Nombre unidad TCV]],'[1]CVP-pre'!$H$6:$J$205,2,0) -> 125266102.6 | D23: =+VLOOKUP(TablaCVP_pre[[#This Row],[Nombre unidad TCV]],'[2]CVP-pre'!$H$6:$J$205,2,0) -> 87586672.3 | E23: =+VLOOKUP(TablaCVP_pre[[#This Row],[Nombre unidad TCV]],'[3]CVP-pre'!$H$6:$J$205,2,0) -> 208695215.2 | F23: =+VLOOKUP(TablaCVP_pre[[#This Row],[Nombre unidad TCV]],'[4]CVP-pre'!$H$6:$J$205,2,0) -> 213870329.5 | G23: =+VLOOKUP(TablaCVP_pre[[#This Row],[Nombre unidad TCV]],'[5]CVP-pre'!$H$6:$J$205,2,0) -> 136332753.9 | H23: =+VLOOKUP(TablaCVP_pre[[#This Row],[Nombre unidad TCV]],'[6]CVP-pre'!$H$6:$J$205,2,0) -> 132464704.8 | I23: =+VLOOKUP(TablaCVP_pre[[#This Row],[Nombre unidad TCV]],'[7]CVP-pre'!$H$6:$J$205,2,0) -> 0 | J23: =+VLOOKUP(TablaCVP_pre[[#This Row],[Nombre unidad TCV]],'[8]CVP-pre'!$H$6:$J$205,2,0) -> 0 | K23: =+VLOOKUP(TablaCVP_pre[[#This Row],[Nombre unidad TCV]],'[9]CVP-pre'!$H$6:$J$205,2,0) -> 0 | L23: =+VLOOKUP(TablaCVP_pre[[#This Row],[Nombre unidad TCV]],'[10]CVP-pre'!$H$6:$J$205,2,0) -> 0 | M23: =+VLOOKUP(TablaCVP_pre[[#This Row],[Nombre unidad TCV]],'[11]CVP-pre'!$H$6:$J$205,2,0) -> 26151539.73 | N23: =+VLOOKUP(TablaCVP_pre[[#This Row],[Nombre unidad TCV]],'[12]CVP-pre'!$H$6:$J$205,2,0) -> 18936056.8 | O23: =+SUM(TablaCVP_pre[[#This Row],[Enero]:[Diciembre]]) -> 949303374.9
B24: =+Unidades!B25 -> CMPC Cordillera | C24: =+VLOOKUP(TablaCVP_pre[[#This Row],[Nombre unidad TCV]],'[1]CVP-pre'!$H$6:$J$205,2,0) -> 0 | D24: =+VLOOKUP(TablaCVP_pre[[#This Row],[Nombre unidad TCV]],'[2]CVP-pre'!$H$6:$J$205,2,0) -> 0 | E24: =+VLOOKUP(TablaCVP_pre[[#This Row],[Nombre unidad TCV]],'[3]CVP-pre'!$H$6:$J$205,2,0) -> 0 | F24: =+VLOOKUP(TablaCVP_pre[[#This Row],[Nombre unidad TCV]],'[4]CVP-pre'!$H$6:$J$205,2,0) -> 0 | G24: =+VLOOKUP(TablaCVP_pre[[#This Row],[Nombre unidad TCV]],'[5]CVP-pre'!$H$6:$J$205,2,0) -> 0 | H24: =+VLOOKUP(TablaCVP_pre[[#This Row],[Nombre unidad TCV]],'[6]CVP-pre'!$H$6:$J$205,2,0) -> 0 | I24: =+VLOOKUP(TablaCVP_pre[[#This Row],[Nombre unidad TCV]],'[7]CVP-pre'!$H$6:$J$205,2,0) -> 0 | J24: =+VLOOKUP(TablaCVP_pre[[#This Row],[Nombre unidad TCV]],'[8]CVP-pre'!$H$6:$J$205,2,0) -> 0 | K24: =+VLOOKUP(TablaCVP_pre[[#This Row],[Nombre unidad TCV]],'[9]CVP-pre'!$H$6:$J$205,2,0) -> 0 | L24: =+VLOOKUP(TablaCVP_pre[[#This Row],[Nombre unidad TCV]],'[10]CVP-pre'!$H$6:$J$205,2,0) -> 0 | M24: =+VLOOKUP(TablaCVP_pre[[#This Row],[Nombre unidad TCV]],'[11]CVP-pre'!$H$6:$J$205,2,0) -> 0 | N24: =+VLOOKUP(TablaCVP_pre[[#This Row],[Nombre unidad TCV]],'[12]CVP-pre'!$H$6:$J$205,2,0) -> 0 | O24: =+SUM(TablaCVP_pre[[#This Row],[Enero]:[Diciembre]]) -> 0
B25: =+Unidades!B26 -> CMPC Laja | C25: =+VLOOKUP(TablaCVP_pre[[#This Row],[Nombre unidad TCV]],'[1]CVP-pre'!$H$6:$J$205,2,0) -> 254075144.6 | D25: =+VLOOKUP(TablaCVP_pre[[#This Row],[Nombre unidad TCV]],'[2]CVP-pre'!$H$6:$J$205,2,0) -> 238957639.2 | E25: =+VLOOKUP(TablaCVP_pre[[#This Row],[Nombre unidad TCV]],'[3]CVP-pre'!$H$6:$J$205,2,0) -> 245100268 | F25: =+VLOOKUP(TablaCVP_pre[[#This Row],[Nombre unidad TCV]],'[4]CVP-pre'!$H$6:$J$205,2,0) -> 280286244.1 | G25: =+VLOOKUP(TablaCVP_pre[[#This Row],[Nombre unidad TCV]],'[5]CVP-pre'!$H$6:$J$205,2,0) -> 263690502 | H25: =+VLOOKUP(TablaCVP_pre[[#This Row],[Nombre unidad TCV]],'[6]CVP-pre'!$H$6:$J$205,2,0) -> 269910040.9 | I25: =+VLOOKUP(TablaCVP_pre[[#This Row],[Nombre unidad TCV]],'[7]CVP-pre'!$H$6:$J$205,2,0) -> 258231968.6 | J25: =+VLOOKUP(TablaCVP_pre[[#This Row],[Nombre unidad TCV]],'[8]CVP-pre'!$H$6:$J$205,2,0) -> 282199268 | K25: =+VLOOKUP(TablaCVP_pre[[#This Row],[Nombre unidad TCV]],'[9]CVP-pre'!$H$6:$J$205,2,0) -> 5551599.939 | L25: =+VLOOKUP(TablaCVP_pre[[#This Row],[Nombre unidad TCV]],'[10]CVP-pre'!$H$6:$J$205,2,0) -> 21917082.08 | M25: =+VLOOKUP(TablaCVP_pre[[#This Row],[Nombre unidad TCV]],'[11]CVP-pre'!$H$6:$J$205,2,0) -> 0 | N25: =+VLOOKUP(TablaCVP_pre[[#This Row],[Nombre unidad TCV]],'[12]CVP-pre'!$H$6:$J$205,2,0) -> 0 | O25: =+SUM(TablaCVP_pre[[#This Row],[Enero]:[Diciembre]]) -> 2119919758
B26: =+Unidades!B27 -> CMPC Pacífico | C26: =+VLOOKUP(TablaCVP_pre[[#This Row],[Nombre unidad TCV]],'[1]CVP-pre'!$H$6:$J$205,2,0) -> 0 | D26: =+VLOOKUP(TablaCVP_pre[[#This Row],[Nombre unidad TCV]],'[2]CVP-pre'!$H$6:$J$205,2,0) -> 72297.27174 | E26: =+VLOOKUP(TablaCVP_pre[[#This Row],[Nombre unidad TCV]],'[3]CVP-pre'!$H$6:$J$205,2,0) -> 2384260.976 | F26: =+VLOOKUP(TablaCVP_pre[[#This Row],[Nombre unidad TCV]],'[4]CVP-pre'!$H$6:$J$205,2,0) -> 144631914.8 | G26: =+VLOOKUP(TablaCVP_pre[[#This Row],[Nombre unidad TCV]],'[5]CVP-pre'!$H$6:$J$205,2,0) -> 341405623.3 | H26: =+VLOOKUP(TablaCVP_pre[[#This Row],[Nombre unidad TCV]],'[6]CVP-pre'!$H$6:$J$205,2,0) -> 196040991.6 | I26: =+VLOOKUP(TablaCVP_pre[[#This Row],[Nombre unidad TCV]],'[7]CVP-pre'!$H$6:$J$205,2,0) -> 249644740.5 | J26: =+VLOOKUP(TablaCVP_pre[[#This Row],[Nombre unidad TCV]],'[8]CVP-pre'!$H$6:$J$205,2,0) -> 252724632.3 | K26: =+VLOOKUP(TablaCVP_pre[[#This Row],[Nombre unidad TCV]],'[9]CVP-pre'!$H$6:$J$205,2,0) -> 47737973.4 | L26: =+VLOOKUP(TablaCVP_pre[[#This Row],[Nombre unidad TCV]],'[10]CVP-pre'!$H$6:$J$205,2,0) -> 14737917 | M26: =+VLOOKUP(TablaCVP_pre[[#This Row],[Nombre unidad TCV]],'[11]CVP-pre'!$H$6:$J$205,2,0) -> 3280140.611 | N26: =+VLOOKUP(TablaCVP_pre[[#This Row],[Nombre unidad TCV]],'[12]CVP-pre'!$H$6:$J$205,2,0) -> 0 | O26: =+SUM(TablaCVP_pre[[#This Row],[Enero]:[Diciembre]]) -> 1252660492
B27: =+Unidades!B28 -> CMPC Santa Fe | C27: =+VLOOKUP(TablaCVP_pre[[#This Row],[Nombre unidad TCV]],'[1]CVP-pre'!$H$6:$J$205,2,0) -> 0 | D27: =+VLOOKUP(TablaCVP_pre[[#This Row],[Nombre unidad TCV]],'[2]CVP-pre'!$H$6:$J$205,2,0) -> 0 | E27: =+VLOOKUP(TablaCVP_pre[[#This Row],[Nombre unidad TCV]],'[3]CVP-pre'!$H$6:$J$205,2,0) -> 0 | F27: =+VLOOKUP(TablaCVP_pre[[#This Row],[Nombre unidad TCV]],'[4]CVP-pre'!$H$6:$J$205,2,0) -> 0 | G27: =+VLOOKUP(TablaCVP_pre[[#This Row],[Nombre unidad TCV]],'[5]CVP-pre'!$H$6:$J$205,2,0) -> 0 | H27: =+VLOOKUP(TablaCVP_pre[[#This Row],[Nombre unidad TCV]],'[6]CVP-pre'!$H$6:$J$205,2,0) -> 0 | I27: =+VLOOKUP(TablaCVP_pre[[#This Row],[Nombre unidad TCV]],'[7]CVP-pre'!$H$6:$J$205,2,0) -> 0 | J27: =+VLOOKUP(TablaCVP_pre[[#This Row],[Nombre unidad TCV]],'[8]CVP-pre'!$H$6:$J$205,2,0) -> 0 | K27: =+VLOOKUP(TablaCVP_pre[[#This Row],[Nombre unidad TCV]],'[9]CVP-pre'!$H$6:$J$205,2,0) -> 0 | L27: =+VLOOKUP(TablaCVP_pre[[#This Row],[Nombre unidad TCV]],'[10]CVP-pre'!$H$6:$J$205,2,0) -> 0 | M27: =+VLOOKUP(TablaCVP_pre[[#This Row],[Nombre unidad TCV]],'[11]CVP-pre'!$H$6:$J$205,2,0) -> 0 | N27: =+VLOOKUP(TablaCVP_pre[[#This Row],[Nombre unidad TCV]],'[12]CVP-pre'!$H$6:$J$205,2,0) -> 0 | O27: =+SUM(TablaCVP_pre[[#This Row],[Enero]:[Diciembre]]) -> 0
B28: =+Unidades!B29 -> CMPC TISSUE | C28: =+VLOOKUP(TablaCVP_pre[[#This Row],[Nombre unidad TCV]],'[1]CVP-pre'!$H$6:$J$205,2,0) -> 0 | D28: =+VLOOKUP(TablaCVP_pre[[#This Row],[Nombre unidad TCV]],'[2]CVP-pre'!$H$6:$J$205,2,0) -> 0 | E28: =+VLOOKUP(TablaCVP_pre[[#This Row],[Nombre unidad TCV]],'[3]CVP-pre'!$H$6:$J$205,2,0) -> 0 | F28: =+VLOOKUP(TablaCVP_pre[[#This Row],[Nombre unidad TCV]],'[4]CVP-pre'!$H$6:$J$205,2,0) -> 0 | G28: =+VLOOKUP(TablaCVP_pre[[#This Row],[Nombre unidad TCV]],'[5]CVP-pre'!$H$6:$J$205,2,0) -> 0 | H28: =+VLOOKUP(TablaCVP_pre[[#This Row],[Nombre unidad TCV]],'[6]CVP-pre'!$H$6:$J$205,2,0) -> 0 | I28: =+VLOOKUP(TablaCVP_pre[[#This Row],[Nombre unidad TCV]],'[7]CVP-pre'!$H$6:$J$205,2,0) -> 0 | J28: =+VLOOKUP(TablaCVP_pre[[#This Row],[Nombre unidad TCV]],'[8]CVP-pre'!$H$6:$J$205,2,0) -> 0 | K28: =+VLOOKUP(TablaCVP_pre[[#This Row],[Nombre unidad TCV]],'[9]CVP-pre'!$H$6:$J$205,2,0) -> 0 | L28: =+VLOOKUP(TablaCVP_pre[[#This Row],[Nombre unidad TCV]],'[10]CVP-pre'!$H$6:$J$205,2,0) -> 0 | M28: =+VLOOKUP(TablaCVP_pre[[#This Row],[Nombre unidad TCV]],'[11]CVP-pre'!$H$6:$J$205,2,0) -> 0 | N28: =+VLOOKUP(TablaCVP_pre[[#This Row],[Nombre unidad TCV]],'[12]CVP-pre'!$H$6:$J$205,2,0) -> 0 | O28: =+SUM(TablaCVP_pre[[#This Row],[Enero]:[Diciembre]]) -> 0
B29: =+Unidades!B30 -> Colmito | C29: =+VLOOKUP(TablaCVP_pre[[#This Row],[Nombre unidad TCV]],'[1]CVP-pre'!$H$6:$J$205,2,0) -> 15183424.32 | D29: =+VLOOKUP(TablaCVP_pre[[#This Row],[Nombre unidad TCV]],'[2]CVP-pre'!$H$6:$J$205,2,0) -> 48529210.36 | E29: =+VLOOKUP(TablaCVP_pre[[#This Row],[Nombre unidad TCV]],'[3]CVP-pre'!$H$6:$J$205,2,0) -> 721525354.4 | F29: =+VLOOKUP(TablaCVP_pre[[#This Row],[Nombre unidad TCV]],'[4]CVP-pre'!$H$6:$J$205,2,0) -> 720075225.3 | G29: =+VLOOKUP(TablaCVP_pre[[#This Row],[Nombre unidad TCV]],'[5]CVP-pre'!$H$6:$J$205,2,0) -> 1010880808 | H29: =+VLOOKUP(TablaCVP_pre[[#This Row],[Nombre unidad TCV]],'[6]CVP-pre'!$H$6:$J$205,2,0) -> 232229262.6 | I29: =+VLOOKUP(TablaCVP_pre[[#This Row],[Nombre unidad TCV]],'[7]CVP-pre'!$H$6:$J$205,2,0) -> 353877691.7 | J29: =+VLOOKUP(TablaCVP_pre[[#This Row],[Nombre unidad TCV]],'[8]CVP-pre'!$H$6:$J$205,2,0) -> 407197276.4 | K29: =+VLOOKUP(TablaCVP_pre[[#This Row],[Nombre unidad TCV]],'[9]CVP-pre'!$H$6:$J$205,2,0) -> 54395014.15 | L29: =+VLOOKUP(TablaCVP_pre[[#This Row],[Nombre unidad TCV]],'[10]CVP-pre'!$H$6:$J$205,2,0) -> 5045317.609 | M29: =+VLOOKUP(TablaCVP_pre[[#This Row],[Nombre unidad TCV]],'[11]CVP-pre'!$H$6:$J$205,2,0) -> 8181334.848 | N29: =+VLOOKUP(TablaCVP_pre[[#This Row],[Nombre unidad TCV]],'[12]CVP-pre'!$H$6:$J$205,2,0) -> 0 | O29: =+SUM(TablaCVP_pre[[#This Row],[Enero]:[Diciembre]]) -> 3577119920
B30: =+Unidades!B31 -> CTA | C30: =+VLOOKUP(TablaCVP_pre[[#This Row],[Nombre unidad TCV]],'[1]CVP-pre'!$H$6:$J$205,2,0) -> 2829492193 | D30: =+VLOOKUP(TablaCVP_pre[[#This Row],[Nombre unidad TCV]],'[2]CVP-pre'!$H$6:$J$205,2,0) -> 1028314016 | E30: =+VLOOKUP(TablaCVP_pre[[#This Row],[Nombre unidad TCV]],'[3]CVP-pre'!$H$6:$J$205,2,0) -> 441143916.6 | F30: =+VLOOKUP(TablaCVP_pre[[#This Row],[Nombre unidad TCV]],'[4]CVP-pre'!$H$6:$J$205,2,0) -> 923461443.6 | G30: =+VLOOKUP(TablaCVP_pre[[#This Row],[Nombre unidad TCV]],'[5]CVP-pre'!$H$6:$J$205,2,0) -> 2472963169 | H30: =+VLOOKUP(TablaCVP_pre[[#This Row],[Nombre unidad TCV]],'[6]CVP-pre'!$H$6:$J$205,2,0) -> 1075685878 | I30: =+VLOOKUP(TablaCVP_pre[[#This Row],[Nombre unidad TCV]],'[7]CVP-pre'!$H$6:$J$205,2,0) -> 0 | J30: =+VLOOKUP(TablaCVP_pre[[#This Row],[Nombre unidad TCV]],'[8]CVP-pre'!$H$6:$J$205,2,0) -> 639905633 | K30: =+VLOOKUP(TablaCVP_pre[[#This Row],[Nombre unidad TCV]],'[9]CVP-pre'!$H$6:$J$205,2,0) -> 2028851787 | L30: =+VLOOKUP(TablaCVP_pre[[#This Row],[Nombre unidad TCV]],'[10]CVP-pre'!$H$6:$J$205,2,0) -> 2006288508 | M30: =+VLOOKUP(TablaCVP_pre[[#This Row],[Nombre unidad TCV]],'[11]CVP-pre'!$H$6:$J$205,2,0) -> 1717571633 | N30: =+VLOOKUP(TablaCVP_pre[[#This Row],[Nombre unidad TCV]],'[12]CVP-pre'!$H$6:$J$205,2,0) -> 2213552145 | O30: =+SUM(TablaCVP_pre[[#This Row],[Enero]:[Diciembre]]) -> 1.737723032e+10
B31: =+Unidades!B32 -> CTH | C31: =+VLOOKUP(TablaCVP_pre[[#This Row],[Nombre unidad TCV]],'[1]CVP-pre'!$H$6:$J$205,2,0) -> 2669530375 | D31: =+VLOOKUP(TablaCVP_pre[[#This Row],[Nombre unidad TCV]],'[2]CVP-pre'!$H$6:$J$205,2,0) -> 1637973001 | E31: =+VLOOKUP(TablaCVP_pre[[#This Row],[Nombre unidad TCV]],'[3]CVP-pre'!$H$6:$J$205,2,0) -> 2501685023 | F31: =+VLOOKUP(TablaCVP_pre[[#This Row],[Nombre unidad TCV]],'[4]CVP-pre'!$H$6:$J$205,2,0) -> 2667581678 | G31: =+VLOOKUP(TablaCVP_pre[[#This Row],[Nombre unidad TCV]],'[5]CVP-pre'!$H$6:$J$205,2,0) -> 2665182886 | H31: =+VLOOKUP(TablaCVP_pre[[#This Row],[Nombre unidad TCV]],'[6]CVP-pre'!$H$6:$J$205,2,0) -> 1085690375 | I31: =+VLOOKUP(TablaCVP_pre[[#This Row],[Nombre unidad TCV]],'[7]CVP-pre'!$H$6:$J$205,2,0) -> 722066121.4 | J31: =+VLOOKUP(TablaCVP_pre[[#This Row],[Nombre unidad TCV]],'[8]CVP-pre'!$H$6:$J$205,2,0) -> 2449205835 | K31: =+VLOOKUP(TablaCVP_pre[[#This Row],[Nombre unidad TCV]],'[9]CVP-pre'!$H$6:$J$205,2,0) -> 1264045635 | L31: =+VLOOKUP(TablaCVP_pre[[#This Row],[Nombre unidad TCV]],'[10]CVP-pre'!$H$6:$J$205,2,0) -> 1109490354 | M31: =+VLOOKUP(TablaCVP_pre[[#This Row],[Nombre unidad TCV]],'[11]CVP-pre'!$H$6:$J$205,2,0) -> 1800694231 | N31: =+VLOOKUP(TablaCVP_pre[[#This Row],[Nombre unidad TCV]],'[12]CVP-pre'!$H$6:$J$205,2,0) -> 1244841164 | O31: =+SUM(TablaCVP_pre[[#This Row],[Enero]:[Diciembre]]) -> 2.181798668e+10
B32: =+Unidades!B33 -> CTM1 | C32: =+VLOOKUP(TablaCVP_pre[[#This Row],[Nombre unidad TCV]],'[1]CVP-pre'!$H$6:$J$205,2,0) -> 134586821.2 | D32: =+VLOOKUP(TablaCVP_pre[[#This Row],[Nombre unidad TCV]],'[2]CVP-pre'!$H$6:$J$205,2,0) -> 560215914.3 | E32: =+VLOOKUP(TablaCVP_pre[[#This Row],[Nombre unidad TCV]],'[3]CVP-pre'!$H$6:$J$205,2,0) -> 704430654.8 | F32: =+VLOOKUP(TablaCVP_pre[[#This Row],[Nombre unidad TCV]],'[4]CVP-pre'!$H$6:$J$205,2,0) -> 962709299.1 | G32: =+VLOOKUP(TablaCVP_pre[[#This Row],[Nombre unidad TCV]],'[5]CVP-pre'!$H$6:$J$205,2,0) -> 1516058054 | H32: =+VLOOKUP(TablaCVP_pre[[#This Row],[Nombre unidad TCV]],'[6]CVP-pre'!$H$6:$J$205,2,0) -> 0 | I32: =+VLOOKUP(TablaCVP_pre[[#This Row],[Nombre unidad TCV]],'[7]CVP-pre'!$H$6:$J$205,2,0) -> 223176944.9 | J32: =+VLOOKUP(TablaCVP_pre[[#This Row],[Nombre unidad TCV]],'[8]CVP-pre'!$H$6:$J$205,2,0) -> 1786806291 | K32: =+VLOOKUP(TablaCVP_pre[[#This Row],[Nombre unidad TCV]],'[9]CVP-pre'!$H$6:$J$205,2,0) -> 758640275.6 | L32: =+VLOOKUP(TablaCVP_pre[[#This Row],[Nombre unidad TCV]],'[10]CVP-pre'!$H$6:$J$205,2,0) -> 1119871031 | M32: =+VLOOKUP(TablaCVP_pre[[#This Row],[Nombre unidad TCV]],'[11]CVP-pre'!$H$6:$J$205,2,0) -> 465605840 | N32: =+VLOOKUP(TablaCVP_pre[[#This Row],[Nombre unidad TCV]],'[12]CVP-pre'!$H$6:$J$205,2,0) -> 0 | O32: =+SUM(TablaCVP_pre[[#This Row],[Enero]:[Diciembre]]) -> 8232101127
B33: =+Unidades!B34 -> CTM2 | C33: =+VLOOKUP(TablaCVP_pre[[#This Row],[Nombre unidad TCV]],'[1]CVP-pre'!$H$6:$J$205,2,0) -> 689078370.1 | D33: =+VLOOKUP(TablaCVP_pre[[#This Row],[Nombre unidad TCV]],'[2]CVP-pre'!$H$6:$J$205,2,0) -> 1330059269 | E33: =+VLOOKUP(TablaCVP_pre[[#This Row],[Nombre unidad TCV]],'[3]CVP-pre'!$H$6:$J$205,2,0) -> 840275244.7 | F33: =+VLOOKUP(TablaCVP_pre[[#This Row],[Nombre unidad TCV]],'[4]CVP-pre'!$H$6:$J$205,2,0) -> 29979607.42 | G33: =+VLOOKUP(TablaCVP_pre[[#This Row],[Nombre unidad TCV]],'[5]CVP-pre'!$H$6:$J$205,2,0) -> 46465025.69 | H33: =+VLOOKUP(TablaCVP_pre[[#This Row],[Nombre unidad TCV]],'[6]CVP-pre'!$H$6:$J$205,2,0) -> 335267673.2 | I33: =+VLOOKUP(TablaCVP_pre[[#This Row],[Nombre unidad TCV]],'[7]CVP-pre'!$H$6:$J$205,2,0) -> 514991847.4 | J33: =+VLOOKUP(TablaCVP_pre[[#This Row],[Nombre unidad TCV]],'[8]CVP-pre'!$H$6:$J$205,2,0) -> 1734201935 | K33: =+VLOOKUP(TablaCVP_pre[[#This Row],[Nombre unidad TCV]],'[9]CVP-pre'!$H$6:$J$205,2,0) -> 398548256.8 | L33: =+VLOOKUP(TablaCVP_pre[[#This Row],[Nombre unidad TCV]],'[10]CVP-pre'!$H$6:$J$205,2,0) -> 144458.2808 | M33: =+VLOOKUP(TablaCVP_pre[[#This Row],[Nombre unidad TCV]],'[11]CVP-pre'!$H$6:$J$205,2,0) -> 728579244.9 | N33: =+VLOOKUP(TablaCVP_pre[[#This Row],[Nombre unidad TCV]],'[12]CVP-pre'!$H$6:$J$205,2,0) -> 128694110 | O33: =+SUM(TablaCVP_pre[[#This Row],[Enero]:[Diciembre]]) -> 6776285043
B34: =+Unidades!B35 -> CTM3 | C34: =+VLOOKUP(TablaCVP_pre[[#This Row],[Nombre unidad TCV]],'[1]CVP-pre'!$H$6:$J$205,2,0) -> 0 | D34: =+VLOOKUP(TablaCVP_pre[[#This Row],[Nombre unidad TCV]],'[2]CVP-pre'!$H$6:$J$205,2,0) -> 760735643.2 | E34: =+VLOOKUP(TablaCVP_pre[[#This Row],[Nombre unidad TCV]],'[3]CVP-pre'!$H$6:$J$205,2,0) -> 558128512.9 | F34: =+VLOOKUP(TablaCVP_pre[[#This Row],[Nombre unidad TCV]],'[4]CVP-pre'!$H$6:$J$205,2,0) -> 1158301273 | G34: =+VLOOKUP(TablaCVP_pre[[#This Row],[Nombre unidad TCV]],'[5]CVP-pre'!$H$6:$J$205,2,0) -> 921129378.8 | H34: =+VLOOKUP(TablaCVP_pre[[#This Row],[Nombre unidad TCV]],'[6]CVP-pre'!$H$6:$J$205,2,0) -> 1648512499 | I34: =+VLOOKUP(TablaCVP_pre[[#This Row],[Nombre unidad TCV]],'[7]CVP-pre'!$H$6:$J$205,2,0) -> 199587737 | J34: =+VLOOKUP(TablaCVP_pre[[#This Row],[Nombre unidad TCV]],'[8]CVP-pre'!$H$6:$J$205,2,0) -> 578385684.3 | K34: =+VLOOKUP(TablaCVP_pre[[#This Row],[Nombre unidad TCV]],'[9]CVP-pre'!$H$6:$J$205,2,0) -> 684472889.7 | L34: =+VLOOKUP(TablaCVP_pre[[#This Row],[Nombre unidad TCV]],'[10]CVP-pre'!$H$6:$J$205,2,0) -> 555766357.7 | M34: =+VLOOKUP(TablaCVP_pre[[#This Row],[Nombre unidad TCV]],'[11]CVP-pre'!$H$6:$J$205,2,0) -> 1075822028 | N34: =+VLOOKUP(TablaCVP_pre[[#This Row],[Nombre unidad TCV]],'[12]CVP-pre'!$H$6:$J$205,2,0) -> 136550498.7 | O34: =+SUM(TablaCVP_pre[[#This Row],[Enero]:[Diciembre]]) -> 8277392502
B35: =+Unidades!B36 -> CTTAR | C35: =+VLOOKUP(TablaCVP_pre[[#This Row],[Nombre unidad TCV]],'[1]CVP-pre'!$H$6:$J$205,2,0) -> 1891166580 | D35: =+VLOOKUP(TablaCVP_pre[[#This Row],[Nombre unidad TCV]],'[2]CVP-pre'!$H$6:$J$205,2,0) -> 1637621477 | E35: =+VLOOKUP(TablaCVP_pre[[#This Row],[Nombre unidad TCV]],'[3]CVP-pre'!$H$6:$J$205,2,0) -> 2007483077 | F35: =+VLOOKUP(TablaCVP_pre[[#This Row],[Nombre unidad TCV]],'[4]CVP-pre'!$H$6:$J$205,2,0) -> 1506638673 | G35: =+VLOOKUP(TablaCVP_pre[[#This Row],[Nombre unidad TCV]],'[5]CVP-pre'!$H$6:$J$205,2,0) -> 1895413503 | H35: =+VLOOKUP(TablaCVP_pre[[#This Row],[Nombre unidad TCV]],'[6]CVP-pre'!$H$6:$J$205,2,0) -> 1544331367 | I35: =+VLOOKUP(TablaCVP_pre[[#This Row],[Nombre unidad TCV]],'[7]CVP-pre'!$H$6:$J$205,2,0) -> 1939234665 | J35: =+VLOOKUP(TablaCVP_pre[[#This Row],[Nombre unidad TCV]],'[8]CVP-pre'!$H$6:$J$205,2,0) -> 986376125.9 | K35: =+VLOOKUP(TablaCVP_pre[[#This Row],[Nombre unidad TCV]],'[9]CVP-pre'!$H$6:$J$205,2,0) -> 316723938.3 | L35: =+VLOOKUP(TablaCVP_pre[[#This Row],[Nombre unidad TCV]],'[10]CVP-pre'!$H$6:$J$205,2,0) -> 615188397.3 | M35: =+VLOOKUP(TablaCVP_pre[[#This Row],[Nombre unidad TCV]],'[11]CVP-pre'!$H$6:$J$205,2,0) -> 1181704000 | N35: =+VLOOKUP(TablaCVP_pre[[#This Row],[Nombre unidad TCV]],'[12]CVP-pre'!$H$6:$J$205,2,0) -> 1459282762 | O35: =+SUM(TablaCVP_pre[[#This Row],[Enero]:[Diciembre]]) -> 1.698116457e+10
B36: =+Unidades!B37 -> Diego de Almagro | C36: =+VLOOKUP(TablaCVP_pre[[#This Row],[Nombre unidad TCV]],'[1]CVP-pre'!$H$6:$J$205,2,0) -> 0 | D36: =+VLOOKUP(TablaCVP_pre[[#This Row],[Nombre unidad TCV]],'[2]CVP-pre'!$H$6:$J$205,2,0) -> 0 | E36: =+VLOOKUP(TablaCVP_pre[[#This Row],[Nombre unidad TCV]],'[3]CVP-pre'!$H$6:$J$205,2,0) -> 0 | F36: =+VLOOKUP(TablaCVP_pre[[#This Row],[Nombre unidad TCV]],'[4]CVP-pre'!$H$6:$J$205,2,0) -> 24978838.48 | G36: =+VLOOKUP(TablaCVP_pre[[#This Row],[Nombre unidad TCV]],'[5]CVP-pre'!$H$6:$J$205,2,0) -> 0 | H36: =+VLOOKUP(TablaCVP_pre[[#This Row],[Nombre unidad TCV]],'[6]CVP-pre'!$H$6:$J$205,2,0) -> 0 | I36: =+VLOOKUP(TablaCVP_pre[[#This Row],[Nombre unidad TCV]],'[7]CVP-pre'!$H$6:$J$205,2,0) -> 0 | J36: =+VLOOKUP(TablaCVP_pre[[#This Row],[Nombre unidad TCV]],'[8]CVP-pre'!$H$6:$J$205,2,0) -> 0 | K36: =+VLOOKUP(TablaCVP_pre[[#This Row],[Nombre unidad TCV]],'[9]CVP-pre'!$H$6:$J$205,2,0) -> 0 | L36: =+VLOOKUP(TablaCVP_pre[[#This Row],[Nombre unidad TCV]],'[10]CVP-pre'!$H$6:$J$205,2,0) -> 0 | M36: =+VLOOKUP(TablaCVP_pre[[#This Row],[Nombre unidad TCV]],'[11]CVP-pre'!$H$6:$J$205,2,0) -> 0 | N36: =+VLOOKUP(TablaCVP_pre[[#This Row],[Nombre unidad TCV]],'[12]CVP-pre'!$H$6:$J$205,2,0) -> 2071686.781 | O36: =+SUM(TablaCVP_pre[[#This Row],[Enero]:[Diciembre]]) -> 27050525.27
B37: =+Unidades!B38 -> El Salvador | C37: =+VLOOKUP(TablaCVP_pre[[#This Row],[Nombre unidad TCV]],'[1]CVP-pre'!$H$6:$J$205,2,0) -> 0 | D37: =+VLOOKUP(TablaCVP_pre[[#This Row],[Nombre unidad TCV]],'[2]CVP-pre'!$H$6:$J$205,2,0) -> 0 | E37: =+VLOOKUP(TablaCVP_pre[[#This Row],[Nombre unidad TCV]],'[3]CVP-pre'!$H$6:$J$205,2,0) -> 0 | F37: =+VLOOKUP(TablaCVP_pre[[#This Row],[Nombre unidad TCV]],'[4]CVP-pre'!$H$6:$J$205,2,0) -> 22026040.06 | G37: =+VLOOKUP(TablaCVP_pre[[#This Row],[Nombre unidad TCV]],'[5]CVP-pre'!$H$6:$J$205,2,0) -> 0 | H37: =+VLOOKUP(TablaCVP_pre[[#This Row],[Nombre unidad TCV]],'[6]CVP-pre'!$H$6:$J$205,2,0) -> 0 | I37: =+VLOOKUP(TablaCVP_pre[[#This Row],[Nombre unidad TCV]],'[7]CVP-pre'!$H$6:$J$205,2,0) -> 0 | J37: =+VLOOKUP(TablaCVP_pre[[#This Row],[Nombre unidad TCV]],'[8]CVP-pre'!$H$6:$J$205,2,0) -> 0 | K37: =+VLOOKUP(TablaCVP_pre[[#This Row],[Nombre unidad TCV]],'[9]CVP-pre'!$H$6:$J$205,2,0) -> 0 | L37: =+VLOOKUP(TablaCVP_pre[[#This Row],[Nombre unidad TCV]],'[10]CVP-pre'!$H$6:$J$205,2,0) -> 0 | M37: =+VLOOKUP(TablaCVP_pre[[#This Row],[Nombre unidad TCV]],'[11]CVP-pre'!$H$6:$J$205,2,0) -> 0 | N37: =+VLOOKUP(TablaCVP_pre[[#This Row],[Nombre unidad TCV]],'[12]CVP-pre'!$H$6:$J$205,2,0) -> 0 | O37: =+SUM(TablaCVP_pre[[#This Row],[Enero]:[Diciembre]]) -> 22026040.06
B38: =+Unidades!B39 -> Emelda U1 | C38: =+VLOOKUP(TablaCVP_pre[[#This Row],[Nombre unidad TCV]],'[1]CVP-pre'!$H$6:$J$205,2,0) -> 0 | D38: =+VLOOKUP(TablaCVP_pre[[#This Row],[Nombre unidad TCV]],'[2]CVP-pre'!$H$6:$J$205,2,0) -> 656971.505 | E38: =+VLOOKUP(TablaCVP_pre[[#This Row],[Nombre unidad TCV]],'[3]CVP-pre'!$H$6:$J$205,2,0) -> 0 | F38: =+VLOOKUP(TablaCVP_pre[[#This Row],[Nombre unidad TCV]],'[4]CVP-pre'!$H$6:$J$205,2,0) -> 27949373.06 | G38: =+VLOOKUP(TablaCVP_pre[[#This Row],[Nombre unidad TCV]],'[5]CVP-pre'!$H$6:$J$205,2,0) -> 0 | H38: =+VLOOKUP(TablaCVP_pre[[#This Row],[Nombre unidad TCV]],'[6]CVP-pre'!$H$6:$J$205,2,0) -> 214303.1984 | I38: =+VLOOKUP(TablaCVP_pre[[#This Row],[Nombre unidad TCV]],'[7]CVP-pre'!$H$6:$J$205,2,0) -> 180652.8826 | J38: =+VLOOKUP(TablaCVP_pre[[#This Row],[Nombre unidad TCV]],'[8]CVP-pre'!$H$6:$J$205,2,0) -> 0 | K38: =+VLOOKUP(TablaCVP_pre[[#This Row],[Nombre unidad TCV]],'[9]CVP-pre'!$H$6:$J$205,2,0) -> 161300.2789 | L38: =+VLOOKUP(TablaCVP_pre[[#This Row],[Nombre unidad TCV]],'[10]CVP-pre'!$H$6:$J$205,2,0) -> 0 | M38: =+VLOOKUP(TablaCVP_pre[[#This Row],[Nombre unidad TCV]],'[11]CVP-pre'!$H$6:$J$205,2,0) -> 0 | N38: =+VLOOKUP(TablaCVP_pre[[#This Row],[Nombre unidad TCV]],'[12]CVP-pre'!$H$6:$J$205,2,0) -> 197406.6692 | O38: =+SUM(TablaCVP_pre[[#This Row],[Enero]:[Diciembre]]) -> 29360007.6
B39: =+Unidades!B40 -> Emelda U2 | C39: =+VLOOKUP(TablaCVP_pre[[#This Row],[Nombre unidad TCV]],'[1]CVP-pre'!$H$6:$J$205,2,0) -> 3761094.587 | D39: =+VLOOKUP(TablaCVP_pre[[#This Row],[Nombre unidad TCV]],'[2]CVP-pre'!$H$6:$J$205,2,0) -> 0 | E39: =+VLOOKUP(TablaCVP_pre[[#This Row],[Nombre unidad TCV]],'[3]CVP-pre'!$H$6:$J$205,2,0) -> 77064331.06 | F39: =+VLOOKUP(TablaCVP_pre[[#This Row],[Nombre unidad TCV]],'[4]CVP-pre'!$H$6:$J$205,2,0) -> 9077715.727 | G39: =+VLOOKUP(TablaCVP_pre[[#This Row],[Nombre unidad TCV]],'[5]CVP-pre'!$H$6:$J$205,2,0) -> 0 | H39: =+VLOOKUP(TablaCVP_pre[[#This Row],[Nombre unidad TCV]],'[6]CVP-pre'!$H$6:$J$205,2,0) -> 210163.7573 | I39: =+VLOOKUP(TablaCVP_pre[[#This Row],[Nombre unidad TCV]],'[7]CVP-pre'!$H$6:$J$205,2,0) -> 209003.2336 | J39: =+VLOOKUP(TablaCVP_pre[[#This Row],[Nombre unidad TCV]],'[8]CVP-pre'!$H$6:$J$205,2,0) -> 0 | K39: =+VLOOKUP(TablaCVP_pre[[#This Row],[Nombre unidad TCV]],'[9]CVP-pre'!$H$6:$J$205,2,0) -> 197039.314 | L39: =+VLOOKUP(TablaCVP_pre[[#This Row],[Nombre unidad TCV]],'[10]CVP-pre'!$H$6:$J$205,2,0) -> 0 | M39: =+VLOOKUP(TablaCVP_pre[[#This Row],[Nombre unidad TCV]],'[11]CVP-pre'!$H$6:$J$205,2,0) -> 2593486.935 | N39: =+VLOOKUP(TablaCVP_pre[[#This Row],[Nombre unidad TCV]],'[12]CVP-pre'!$H$6:$J$205,2,0) -> 172756.8018 | O39: =+SUM(TablaCVP_pre[[#This Row],[Enero]:[Diciembre]]) -> 93285591.42
B40: =+Unidades!B41 -> Energía Pacífico | C40: =+VLOOKUP(TablaCVP_pre[[#This Row],[Nombre unidad TCV]],'[1]CVP-pre'!$H$6:$J$205,2,0) -> 0 | D40: =+VLOOKUP(TablaCVP_pre[[#This Row],[Nombre unidad TCV]],'[2]CVP-pre'!$H$6:$J$205,2,0) -> 28890575.66 | E40: =+VLOOKUP(TablaCVP_pre[[#This Row],[Nombre unidad TCV]],'[3]CVP-pre'!$H$6:$J$205,2,0) -> 116200986.5 | F40: =+VLOOKUP(TablaCVP_pre[[#This Row],[Nombre unidad TCV]],'[4]CVP-pre'!$H$6:$J$205,2,0) -> 89223080.46 | G40: =+VLOOKUP(TablaCVP_pre[[#This Row],[Nombre unidad TCV]],'[5]CVP-pre'!$H$6:$J$205,2,0) -> 53270022.26 | H40: =+VLOOKUP(TablaCVP_pre[[#This Row],[Nombre unidad TCV]],'[6]CVP-pre'!$H$6:$J$205,2,0) -> 6867639.481 | I40: =+VLOOKUP(TablaCVP_pre[[#This Row],[Nombre unidad TCV]],'[7]CVP-pre'!$H$6:$J$205,2,0) -> 18296013.51 | J40: =+VLOOKUP(TablaCVP_pre[[#This Row],[Nombre unidad TCV]],'[8]CVP-pre'!$H$6:$J$205,2,0) -> 32337897.59 | K40: =+VLOOKUP(TablaCVP_pre[[#This Row],[Nombre unidad TCV]],'[9]CVP-pre'!$H$6:$J$205,2,0) -> 15469903.03 | L40: =+VLOOKUP(TablaCVP_pre[[#This Row],[Nombre unidad TCV]],'[10]CVP-pre'!$H$6:$J$205,2,0) -> 9986943.766 | M40: =+VLOOKUP(TablaCVP_pre[[#This Row],[Nombre unidad TCV]],'[11]CVP-pre'!$H$6:$J$205,2,0) -> 1420507.322 | N40: =+VLOOKUP(TablaCVP_pre[[#This Row],[Nombre unidad TCV]],'[12]CVP-pre'!$H$6:$J$205,2,0) -> 333901560 | O40: =+SUM(TablaCVP_pre[[#This Row],[Enero]:[Diciembre]]) -> 705865129.6
B41: =+Unidades!B42 -> Escuadrón | C41: =+VLOOKUP(TablaCVP_pre[[#This Row],[Nombre unidad TCV]],'[1]CVP-pre'!$H$6:$J$205,2,0) -> 0 | D41: =+VLOOKUP(TablaCVP_pre[[#This Row],[Nombre unidad TCV]],'[2]CVP-pre'!$H$6:$J$205,2,0) -> 0 | E41: =+VLOOKUP(TablaCVP_pre[[#This Row],[Nombre unidad TCV]],'[3]CVP-pre'!$H$6:$J$205,2,0) -> 0 | F41: =+VLOOKUP(TablaCVP_pre[[#This Row],[Nombre unidad TCV]],'[4]CVP-pre'!$H$6:$J$205,2,0) -> 0 | G41: =+VLOOKUP(TablaCVP_pre[[#This Row],[Nombre unidad TCV]],'[5]CVP-pre'!$H$6:$J$205,2,0) -> 0 | H41: =+VLOOKUP(TablaCVP_pre[[#This Row],[Nombre unidad TCV]],'[6]CVP-pre'!$H$6:$J$205,2,0) -> 0 | I41: =+VLOOKUP(TablaCVP_pre[[#This Row],[Nombre unidad TCV]],'[7]CVP-pre'!$H$6:$J$205,2,0) -> 0 | J41: =+VLOOKUP(TablaCVP_pre[[#This Row],[Nombre unidad TCV]],'[8]CVP-pre'!$H$6:$J$205,2,0) -> 0 | K41: =+VLOOKUP(TablaCVP_pre[[#This Row],[Nombre unidad TCV]],'[9]CVP-pre'!$H$6:$J$205,2,0) -> 0 | L41: =+VLOOKUP(TablaCVP_pre[[#This Row],[Nombre unidad TCV]],'[10]CVP-pre'!$H$6:$J$205,2,0) -> 0 | M41: =+VLOOKUP(TablaCVP_pre[[#This Row],[Nombre unidad TCV]],'[11]CVP-pre'!$H$6:$J$205,2,0) -> 0 | N41: =+VLOOKUP(TablaCVP_pre[[#This Row],[Nombre unidad TCV]],'[12]CVP-pre'!$H$6:$J$205,2,0) -> 0 | O41: =+SUM(TablaCVP_pre[[#This Row],[Enero]:[Diciembre]]) -> 0
B42: =+Unidades!B43 -> Esperanza TG | C42: =+VLOOKUP(TablaCVP_pre[[#This Row],[Nombre unidad TCV]],'[1]CVP-pre'!$H$6:$J$205,2,0) -> 0 | D42: =+VLOOKUP(TablaCVP_pre[[#This Row],[Nombre unidad TCV]],'[2]CVP-pre'!$H$6:$J$205,2,0) -> 0 | E42: =+VLOOKUP(TablaCVP_pre[[#This Row],[Nombre unidad TCV]],'[3]CVP-pre'!$H$6:$J$205,2,0) -> 0 | F42: =+VLOOKUP(TablaCVP_pre[[#This Row],[Nombre unidad TCV]],'[4]CVP-pre'!$H$6:$J$205,2,0) -> 0 | G42: =+VLOOKUP(TablaCVP_pre[[#This Row],[Nombre unidad TCV]],'[5]CVP-pre'!$H$6:$J$205,2,0) -> 10691163.13 | H42: =+VLOOKUP(TablaCVP_pre[[#This Row],[Nombre unidad TCV]],'[6]CVP-pre'!$H$6:$J$205,2,0) -> 18450398.97 | I42: =+VLOOKUP(TablaCVP_pre[[#This Row],[Nombre unidad TCV]],'[7]CVP-pre'!$H$6:$J$205,2,0) -> 0 | J42: =+VLOOKUP(TablaCVP_pre[[#This Row],[Nombre unidad TCV]],'[8]CVP-pre'!$H$6:$J$205,2,0) -> 0 | K42: =+VLOOKUP(TablaCVP_pre[[#This Row],[Nombre unidad TCV]],'[9]CVP-pre'!$H$6:$J$205,2,0) -> 0 | L42: =+VLOOKUP(TablaCVP_pre[[#This Row],[Nombre unidad TCV]],'[10]CVP-pre'!$H$6:$J$205,2,0) -> 0 | M42: =+VLOOKUP(TablaCVP_pre[[#This Row],[Nombre unidad TCV]],'[11]CVP-pre'!$H$6:$J$205,2,0) -> 0 | N42: =+VLOOKUP(TablaCVP_pre[[#This Row],[Nombre unidad TCV]],'[12]CVP-pre'!$H$6:$J$205,2,0) -> 0 | O42: =+SUM(TablaCVP_pre[[#This Row],[Enero]:[Diciembre]]) -> 29141562.1
B43: =+Unidades!B44 -> Guacolda 1 | C43: =+VLOOKUP(TablaCVP_pre[[#This Row],[Nombre unidad TCV]],'[1]CVP-pre'!$H$6:$J$205,2,0) -> 2219098723 | D43: =+VLOOKUP(TablaCVP_pre[[#This Row],[Nombre unidad TCV]],'[2]CVP-pre'!$H$6:$J$205,2,0) -> 2044037476 | E43: =+VLOOKUP(TablaCVP_pre[[#This Row],[Nombre unidad TCV]],'[3]CVP-pre'!$H$6:$J$205,2,0) -> 1986848700 | F43: =+VLOOKUP(TablaCVP_pre[[#This Row],[Nombre unidad TCV]],'[4]CVP-pre'!$H$6:$J$205,2,0) -> 2096198227 | G43: =+VLOOKUP(TablaCVP_pre[[#This Row],[Nombre unidad TCV]],'[5]CVP-pre'!$H$6:$J$205,2,0) -> 2344252453 | H43: =+VLOOKUP(TablaCVP_pre[[#This Row],[Nombre unidad TCV]],'[6]CVP-pre'!$H$6:$J$205,2,0) -> 1352941520 | I43: =+VLOOKUP(TablaCVP_pre[[#This Row],[Nombre unidad TCV]],'[7]CVP-pre'!$H$6:$J$205,2,0) -> 2001211676 | J43: =+VLOOKUP(TablaCVP_pre[[#This Row],[Nombre unidad TCV]],'[8]CVP-pre'!$H$6:$J$205,2,0) -> 1773438412 | K43: =+VLOOKUP(TablaCVP_pre[[#This Row],[Nombre unidad TCV]],'[9]CVP-pre'!$H$6:$J$205,2,0) -> 1872414010 | L43: =+VLOOKUP(TablaCVP_pre[[#This Row],[Nombre unidad TCV]],'[10]CVP-pre'!$H$6:$J$205,2,0) -> 809819867.8 | M43: =+VLOOKUP(TablaCVP_pre[[#This Row],[Nombre unidad TCV]],'[11]CVP-pre'!$H$6:$J$205,2,0) -> 1789775031 | N43: =+VLOOKUP(TablaCVP_pre[[#This Row],[Nombre unidad TCV]],'[12]CVP-pre'!$H$6:$J$205,2,0) -> 2009975037 | O43: =+SUM(TablaCVP_pre[[#This Row],[Enero]:[Diciembre]]) -> 2.230001113e+10
B44: =+Unidades!B45 -> Guacolda 2 | C44: =+VLOOKUP(TablaCVP_pre[[#This Row],[Nombre unidad TCV]],'[1]CVP-pre'!$H$6:$J$205,2,0) -> 1577795498 | D44: =+VLOOKUP(TablaCVP_pre[[#This Row],[Nombre unidad TCV]],'[2]CVP-pre'!$H$6:$J$205,2,0) -> 1707724994 | E44: =+VLOOKUP(TablaCVP_pre[[#This Row],[Nombre unidad TCV]],'[3]CVP-pre'!$H$6:$J$205,2,0) -> 1930223400 | F44: =+VLOOKUP(TablaCVP_pre[[#This Row],[Nombre unidad TCV]],'[4]CVP-pre'!$H$6:$J$205,2,0) -> 1885856343 | G44: =+VLOOKUP(TablaCVP_pre[[#This Row],[Nombre unidad TCV]],'[5]CVP-pre'!$H$6:$J$205,2,0) -> 1253755550 | H44: =+VLOOKUP(TablaCVP_pre[[#This Row],[Nombre unidad TCV]],'[6]CVP-pre'!$H$6:$J$205,2,0) -> 1941597702 | I44: =+VLOOKUP(TablaCVP_pre[[#This Row],[Nombre unidad TCV]],'[7]CVP-pre'!$H$6:$J$205,2,0) -> 1831927982 | J44: =+VLOOKUP(TablaCVP_pre[[#This Row],[Nombre unidad TCV]],'[8]CVP-pre'!$H$6:$J$205,2,0) -> 1766276112 | K44: =+VLOOKUP(TablaCVP_pre[[#This Row],[Nombre unidad TCV]],'[9]CVP-pre'!$H$6:$J$205,2,0) -> 1823656661 | L44: =+VLOOKUP(TablaCVP_pre[[#This Row],[Nombre unidad TCV]],'[10]CVP-pre'!$H$6:$J$205,2,0) -> 1701479252 | M44: =+VLOOKUP(TablaCVP_pre[[#This Row],[Nombre unidad TCV]],'[11]CVP-pre'!$H$6:$J$205,2,0) -> 1165506205 | N44: =+VLOOKUP(TablaCVP_pre[[#This Row],[Nombre unidad TCV]],'[12]CVP-pre'!$H$6:$J$205,2,0) -> 1938287603 | O44: =+SUM(TablaCVP_pre[[#This Row],[Enero]:[Diciembre]]) -> 2.05240873e+10
B45: =+Unidades!B46 -> Guacolda 3 | C45: =+VLOOKUP(TablaCVP_pre[[#This Row],[Nombre unidad TCV]],'[1]CVP-pre'!$H$6:$J$205,2,0) -> 2184351087 | D45: =+VLOOKUP(TablaCVP_pre[[#This Row],[Nombre unidad TCV]],'[2]CVP-pre'!$H$6:$J$205,2,0) -> 1384975170 | E45: =+VLOOKUP(TablaCVP_pre[[#This Row],[Nombre unidad TCV]],'[3]CVP-pre'!$H$6:$J$205,2,0) -> 2118952919 | F45: =+VLOOKUP(TablaCVP_pre[[#This Row],[Nombre unidad TCV]],'[4]CVP-pre'!$H$6:$J$205,2,0) -> 1803068718 | G45: =+VLOOKUP(TablaCVP_pre[[#This Row],[Nombre unidad TCV]],'[5]CVP-pre'!$H$6:$J$205,2,0) -> 2296501238 | H45: =+VLOOKUP(TablaCVP_pre[[#This Row],[Nombre unidad TCV]],'[6]CVP-pre'!$H$6:$J$205,2,0) -> 1964821274 | I45: =+VLOOKUP(TablaCVP_pre[[#This Row],[Nombre unidad TCV]],'[7]CVP-pre'!$H$6:$J$205,2,0) -> 1171099784 | J45: =+VLOOKUP(TablaCVP_pre[[#This Row],[Nombre unidad TCV]],'[8]CVP-pre'!$H$6:$J$205,2,0) -> 445803835 | K45: =+VLOOKUP(TablaCVP_pre[[#This Row],[Nombre unidad TCV]],'[9]CVP-pre'!$H$6:$J$205,2,0) -> 318318275.3 | L45: =+VLOOKUP(TablaCVP_pre[[#This Row],[Nombre unidad TCV]],'[10]CVP-pre'!$H$6:$J$205,2,0) -> 2820161.192 | M45: =+VLOOKUP(TablaCVP_pre[[#This Row],[Nombre unidad TCV]],'[11]CVP-pre'!$H$6:$J$205,2,0) -> 1643908042 | N45: =+VLOOKUP(TablaCVP_pre[[#This Row],[Nombre unidad TCV]],'[12]CVP-pre'!$H$6:$J$205,2,0) -> 1878581004 | O45: =+SUM(TablaCVP_pre[[#This Row],[Enero]:[Diciembre]]) -> 1.721320151e+10
B46: =+Unidades!B47 -> Guacolda 4 | C46: =+VLOOKUP(TablaCVP_pre[[#This Row],[Nombre unidad TCV]],'[1]CVP-pre'!$H$6:$J$205,2,0) -> 2203238183 | D46: =+VLOOKUP(TablaCVP_pre[[#This Row],[Nombre unidad TCV]],'[2]CVP-pre'!$H$6:$J$205,2,0) -> 2095581943 | E46: =+VLOOKUP(TablaCVP_pre[[#This Row],[Nombre unidad TCV]],'[3]CVP-pre'!$H$6:$J$205,2,0) -> 2144948408 | F46: =+VLOOKUP(TablaCVP_pre[[#This Row],[Nombre unidad TCV]],'[4]CVP-pre'!$H$6:$J$205,2,0) -> 1439593570 | G46: =+VLOOKUP(TablaCVP_pre[[#This Row],[Nombre unidad TCV]],'[5]CVP-pre'!$H$6:$J$205,2,0) -> 2276150020 | H46: =+VLOOKUP(TablaCVP_pre[[#This Row],[Nombre unidad TCV]],'[6]CVP-pre'!$H$6:$J$205,2,0) -> 2184836246 | I46: =+VLOOKUP(TablaCVP_pre[[#This Row],[Nombre unidad TCV]],'[7]CVP-pre'!$H$6:$J$205,2,0) -> 2029914376 | J46: =+VLOOKUP(TablaCVP_pre[[#This Row],[Nombre unidad TCV]],'[8]CVP-pre'!$H$6:$J$205,2,0) -> 1545304353 | K46: =+VLOOKUP(TablaCVP_pre[[#This Row],[Nombre unidad TCV]],'[9]CVP-pre'!$H$6:$J$205,2,0) -> 1915243890 | L46: =+VLOOKUP(TablaCVP_pre[[#This Row],[Nombre unidad TCV]],'[10]CVP-pre'!$H$6:$J$205,2,0) -> 1601093865 | M46: =+VLOOKUP(TablaCVP_pre[[#This Row],[Nombre unidad TCV]],'[11]CVP-pre'!$H$6:$J$205,2,0) -> 1200117079 | N46: =+VLOOKUP(TablaCVP_pre[[#This Row],[Nombre unidad TCV]],'[12]CVP-pre'!$H$6:$J$205,2,0) -> 1271691443 | O46: =+SUM(TablaCVP_pre[[#This Row],[Enero]:[Diciembre]]) -> 2.190771338e+10
B47: =+Unidades!B48 -> Guacolda 5 | C47: =+VLOOKUP(TablaCVP_pre[[#This Row],[Nombre unidad TCV]],'[1]CVP-pre'!$H$6:$J$205,2,0) -> 2282455485 | D47: =+VLOOKUP(TablaCVP_pre[[#This Row],[Nombre unidad TCV]],'[2]CVP-pre'!$H$6:$J$205,2,0) -> 2209259587 | E47: =+VLOOKUP(TablaCVP_pre[[#This Row],[Nombre unidad TCV]],'[3]CVP-pre'!$H$6:$J$205,2,0) -> 2163954269 | F47: =+VLOOKUP(TablaCVP_pre[[#This Row],[Nombre unidad TCV]],'[4]CVP-pre'!$H$6:$J$205,2,0) -> 1552939801 | G47: =+VLOOKUP(TablaCVP_pre[[#This Row],[Nombre unidad TCV]],'[5]CVP-pre'!$H$6:$J$205,2,0) -> 2356841269 | H47: =+VLOOKUP(TablaCVP_pre[[#This Row],[Nombre unidad TCV]],'[6]CVP-pre'!$H$6:$J$205,2,0) -> 2192275161 | I47: =+VLOOKUP(TablaCVP_pre[[#This Row],[Nombre unidad TCV]],'[7]CVP-pre'!$H$6:$J$205,2,0) -> 1877861954 | J47: =+VLOOKUP(TablaCVP_pre[[#This Row],[Nombre unidad TCV]],'[8]CVP-pre'!$H$6:$J$205,2,0) -> 1707343332 | K47: =+VLOOKUP(TablaCVP_pre[[#This Row],[Nombre unidad TCV]],'[9]CVP-pre'!$H$6:$J$205,2,0) -> 1396488206 | L47: =+VLOOKUP(TablaCVP_pre[[#This Row],[Nombre unidad TCV]],'[10]CVP-pre'!$H$6:$J$205,2,0) -> 150924467.9 | M47: =+VLOOKUP(TablaCVP_pre[[#This Row],[Nombre unidad TCV]],'[11]CVP-pre'!$H$6:$J$205,2,0) -> 1724786565 | N47: =+VLOOKUP(TablaCVP_pre[[#This Row],[Nombre unidad TCV]],'[12]CVP-pre'!$H$6:$J$205,2,0) -> 1586321103 | O47: =+SUM(TablaCVP_pre[[#This Row],[Enero]:[Diciembre]]) -> 2.12014512e+10
B48: =+Unidades!B49 -> Horcones | C48: =+VLOOKUP(TablaCVP_pre[[#This Row],[Nombre unidad TCV]],'[1]CVP-pre'!$H$6:$J$205,2,0) -> 0 | D48: =+VLOOKUP(TablaCVP_pre[[#This Row],[Nombre unidad TCV]],'[2]CVP-pre'!$H$6:$J$205,2,0) -> 0 | E48: =+VLOOKUP(TablaCVP_pre[[#This Row],[Nombre unidad TCV]],'[3]CVP-pre'!$H$6:$J$205,2,0) -> 275804.7033 | F48: =+VLOOKUP(TablaCVP_pre[[#This Row],[Nombre unidad TCV]],'[4]CVP-pre'!$H$6:$J$205,2,0) -> 1942086.913 | G48: =+VLOOKUP(TablaCVP_pre[[#This Row],[Nombre unidad TCV]],'[5]CVP-pre'!$H$6:$J$205,2,0) -> 0 | H48: =+VLOOKUP(TablaCVP_pre[[#This Row],[Nombre unidad TCV]],'[6]CVP-pre'!$H$6:$J$205,2,0) -> 118095.6662 | I48: =+VLOOKUP(TablaCVP_pre[[#This Row],[Nombre unidad TCV]],'[7]CVP-pre'!$H$6:$J$205,2,0) -> 0 | J48: =+VLOOKUP(TablaCVP_pre[[#This Row],[Nombre unidad TCV]],'[8]CVP-pre'!$H$6:$J$205,2,0) -> 0 | K48: =+VLOOKUP(TablaCVP_pre[[#This Row],[Nombre unidad TCV]],'[9]CVP-pre'!$H$6:$J$205,2,0) -> 0 | L48: =+VLOOKUP(TablaCVP_pre[[#This Row],[Nombre unidad TCV]],'[10]CVP-pre'!$H$6:$J$205,2,0) -> 0 | M48: =+VLOOKUP(TablaCVP_pre[[#This Row],[Nombre unidad TCV]],'[11]CVP-pre'!$H$6:$J$205,2,0) -> 0 | N48: =+VLOOKUP(TablaCVP_pre[[#This Row],[Nombre unidad TCV]],'[12]CVP-pre'!$H$6:$J$205,2,0) -> 6015484.537 | O48: =+SUM(TablaCVP_pre[[#This Row],[Enero]:[Diciembre]]) -> 8351471.82
B49: =+Unidades!B50 -> Huasco TG | C49: =+VLOOKUP(TablaCVP_pre[[#This Row],[Nombre unidad TCV]],'[1]CVP-pre'!$H$6:$J$205,2,0) -> 0 | D49: =+VLOOKUP(TablaCVP_pre[[#This Row],[Nombre unidad TCV]],'[2]CVP-pre'!$H$6:$J$205,2,0) -> 0 | E49: =+VLOOKUP(TablaCVP_pre[[#This Row],[Nombre unidad TCV]],'[3]CVP-pre'!$H$6:$J$205,2,0) -> 0 | F49: =+VLOOKUP(TablaCVP_pre[[#This Row],[Nombre unidad TCV]],'[4]CVP-pre'!$H$6:$J$205,2,0) -> 0 | G49: =+VLOOKUP(TablaCVP_pre[[#This Row],[Nombre unidad TCV]],'[5]CVP-pre'!$H$6:$J$205,2,0) -> 0 | H49: =+VLOOKUP(TablaCVP_pre[[#This Row],[Nombre unidad TCV]],'[6]CVP-pre'!$H$6:$J$205,2,0) -> 0 | I49: =+VLOOKUP(TablaCVP_pre[[#This Row],[Nombre unidad TCV]],'[7]CVP-pre'!$H$6:$J$205,2,0) -> 0 | J49: =+VLOOKUP(TablaCVP_pre[[#This Row],[Nombre unidad TCV]],'[8]CVP-pre'!$H$6:$J$205,2,0) -> 380722.6687 | K49: =+VLOOKUP(TablaCVP_pre[[#This Row],[Nombre unidad TCV]],'[9]CVP-pre'!$H$6:$J$205,2,0) -> 3126552.98 | L49: =+VLOOKUP(TablaCVP_pre[[#This Row],[Nombre unidad TCV]],'[10]CVP-pre'!$H$6:$J$205,2,0) -> 8308713.597 | M49: =+VLOOKUP(TablaCVP_pre[[#This Row],[Nombre unidad TCV]],'[11]CVP-pre'!$H$6:$J$205,2,0) -> 0 | N49: =+VLOOKUP(TablaCVP_pre[[#This Row],[Nombre unidad TCV]],'[12]CVP-pre'!$H$6:$J$205,2,0) -> 1497025.071 | O49: =+SUM(TablaCVP_pre[[#This Row],[Enero]:[Diciembre]]) -> 13313014.32
B50: =+Unidades!B51 -> IEM | C50: =+VLOOKUP(TablaCVP_pre[[#This Row],[Nombre unidad TCV]],'[1]CVP-pre'!$H$6:$J$205,2,0) -> 0 | D50: =+VLOOKUP(TablaCVP_pre[[#This Row],[Nombre unidad TCV]],'[2]CVP-pre'!$H$6:$J$205,2,0) -> 0 | E50: =+VLOOKUP(TablaCVP_pre[[#This Row],[Nombre unidad TCV]],'[3]CVP-pre'!$H$6:$J$205,2,0) -> 0 | F50: =+VLOOKUP(TablaCVP_pre[[#This Row],[Nombre unidad TCV]],'[4]CVP-pre'!$H$6:$J$205,2,0) -> 0 | G50: =+VLOOKUP(TablaCVP_pre[[#This Row],[Nombre unidad TCV]],'[5]CVP-pre'!$H$6:$J$205,2,0) -> 2914285239 | H50: =+VLOOKUP(TablaCVP_pre[[#This Row],[Nombre unidad TCV]],'[6]CVP-pre'!$H$6:$J$205,2,0) -> 4862191690 | I50: =+VLOOKUP(TablaCVP_pre[[#This Row],[Nombre unidad TCV]],'[7]CVP-pre'!$H$6:$J$205,2,0) -> 4556708457 | J50: =+VLOOKUP(TablaCVP_pre[[#This Row],[Nombre unidad TCV]],'[8]CVP-pre'!$H$6:$J$205,2,0) -> 830495384.4 | K50: =+VLOOKUP(TablaCVP_pre[[#This Row],[Nombre unidad TCV]],'[9]CVP-pre'!$H$6:$J$205,2,0) -> 2140117589 | L50: =+VLOOKUP(TablaCVP_pre[[#This Row],[Nombre unidad TCV]],'[10]CVP-pre'!$H$6:$J$205,2,0) -> 2279978805 | M50: =+VLOOKUP(TablaCVP_pre[[#This Row],[Nombre unidad TCV]],'[11]CVP-pre'!$H$6:$J$205,2,0) -> 4058734545 | N50: =+VLOOKUP(TablaCVP_pre[[#This Row],[Nombre unidad TCV]],'[12]CVP-pre'!$H$6:$J$205,2,0) -> 9369126602 | O50: =+SUM(TablaCVP_pre[[#This Row],[Enero]:[Diciembre]]) -> 3.101163831e+10
B51: =+Unidades!B52 -> Laguna Verde TG | C51: =+VLOOKUP(TablaCVP_pre[[#This Row],[Nombre unidad TCV]],'[1]CVP-pre'!$H$6:$J$205,2,0) -> 0 | D51: =+VLOOKUP(TablaCVP_pre[[#This Row],[Nombre unidad TCV]],'[2]CVP-pre'!$H$6:$J$205,2,0) -> 0 | E51: =+VLOOKUP(TablaCVP_pre[[#This Row],[Nombre unidad TCV]],'[3]CVP-pre'!$H$6:$J$205,2,0) -> 0 | F51: =+VLOOKUP(TablaCVP_pre[[#This Row],[Nombre unidad TCV]],'[4]CVP-pre'!$H$6:$J$205,2,0) -> 0 | G51: =+VLOOKUP(TablaCVP_pre[[#This Row],[Nombre unidad TCV]],'[5]CVP-pre'!$H$6:$J$205,2,0) -> 0 | H51: =+VLOOKUP(TablaCVP_pre[[#This Row],[Nombre unidad TCV]],'[6]CVP-pre'!$H$6:$J$205,2,0) -> 0 | I51: =+VLOOKUP(TablaCVP_pre[[#This Row],[Nombre unidad TCV]],'[7]CVP-pre'!$H$6:$J$205,2,0) -> 0 | J51: =+VLOOKUP(TablaCVP_pre[[#This Row],[Nombre unidad TCV]],'[8]CVP-pre'!$H$6:$J$205,2,0) -> 0 | K51: =+VLOOKUP(TablaCVP_pre[[#This Row],[Nombre unidad TCV]],'[9]CVP-pre'!$H$6:$J$205,2,0) -> 0 | L51: =+VLOOKUP(TablaCVP_pre[[#This Row],[Nombre unidad TCV]],'[10]CVP-pre'!$H$6:$J$205,2,0) -> 0 | M51: =+VLOOKUP(TablaCVP_pre[[#This Row],[Nombre unidad TCV]],'[11]CVP-pre'!$H$6:$J$205,2,0) -> 0 | N51: =+VLOOKUP(TablaCVP_pre[[#This Row],[Nombre unidad TCV]],'[12]CVP-pre'!$H$6:$J$205,2,0) -> 0 | O51: =+SUM(TablaCVP_pre[[#This Row],[Enero]:[Diciembre]]) -> 0
B52: =+Unidades!B53 -> Laguna Verde TV | C52: =+VLOOKUP(TablaCVP_pre[[#This Row],[Nombre unidad TCV]],'[1]CVP-pre'!$H$6:$J$205,2,0) -> 0 | D52: =+VLOOKUP(TablaCVP_pre[[#This Row],[Nombre unidad TCV]],'[2]CVP-pre'!$H$6:$J$205,2,0) -> 0 | E52: =+VLOOKUP(TablaCVP_pre[[#This Row],[Nombre unidad TCV]],'[3]CVP-pre'!$H$6:$J$205,2,0) -> 0 | F52: =+VLOOKUP(TablaCVP_pre[[#This Row],[Nombre unidad TCV]],'[4]CVP-pre'!$H$6:$J$205,2,0) -> 0 | G52: =+VLOOKUP(TablaCVP_pre[[#This Row],[Nombre unidad TCV]],'[5]CVP-pre'!$H$6:$J$205,2,0) -> 0 | H52: =+VLOOKUP(TablaCVP_pre[[#This Row],[Nombre unidad TCV]],'[6]CVP-pre'!$H$6:$J$205,2,0) -> 0 | I52: =+VLOOKUP(TablaCVP_pre[[#This Row],[Nombre unidad TCV]],'[7]CVP-pre'!$H$6:$J$205,2,0) -> 0 | J52: =+VLOOKUP(TablaCVP_pre[[#This Row],[Nombre unidad TCV]],'[8]CVP-pre'!$H$6:$J$205,2,0) -> 0 | K52: =+VLOOKUP(TablaCVP_pre[[#This Row],[Nombre unidad TCV]],'[9]CVP-pre'!$H$6:$J$205,2,0) -> 0 | L52: =+VLOOKUP(TablaCVP_pre[[#This Row],[Nombre unidad TCV]],'[10]CVP-pre'!$H$6:$J$205,2,0) -> 0 | M52: =+VLOOKUP(TablaCVP_pre[[#This Row],[Nombre unidad TCV]],'[11]CVP-pre'!$H$6:$J$205,2,0) -> 0 | N52: =+VLOOKUP(TablaCVP_pre[[#This Row],[Nombre unidad TCV]],'[12]CVP-pre'!$H$6:$J$205,2,0) -> 0 | O52: =+SUM(TablaCVP_pre[[#This Row],[Enero]:[Diciembre]]) -> 0
B53: =+Unidades!B54 -> Laja | C53: =+VLOOKUP(TablaCVP_pre[[#This Row],[Nombre unidad TCV]],'[1]CVP-pre'!$H$6:$J$205,2,0) -> 115798433.8 | D53: =+VLOOKUP(TablaCVP_pre[[#This Row],[Nombre unidad TCV]],'[2]CVP-pre'!$H$6:$J$205,2,0) -> 82880640.4 | E53: =+VLOOKUP(TablaCVP_pre[[#This Row],[Nombre unidad TCV]],'[3]CVP-pre'!$H$6:$J$205,2,0) -> 122129306.2 | F53: =+VLOOKUP(TablaCVP_pre[[#This Row],[Nombre unidad TCV]],'[4]CVP-pre'!$H$6:$J$205,2,0) -> 110900703.5 | G53: =+VLOOKUP(TablaCVP_pre[[#This Row],[Nombre unidad TCV]],'[5]CVP-pre'!$H$6:$J$205,2,0) -> 107206905.3 | H53: =+VLOOKUP(TablaCVP_pre[[#This Row],[Nombre unidad TCV]],'[6]CVP-pre'!$H$6:$J$205,2,0) -> 72836063.37 | I53: =+VLOOKUP(TablaCVP_pre[[#This Row],[Nombre unidad TCV]],'[7]CVP-pre'!$H$6:$J$205,2,0) -> 16058561.28 | J53: =+VLOOKUP(TablaCVP_pre[[#This Row],[Nombre unidad TCV]],'[8]CVP-pre'!$H$6:$J$205,2,0) -> 31144591.7 | K53: =+VLOOKUP(TablaCVP_pre[[#This Row],[Nombre unidad TCV]],'[9]CVP-pre'!$H$6:$J$205,2,0) -> 0 | L53: =+VLOOKUP(TablaCVP_pre[[#This Row],[Nombre unidad TCV]],'[10]CVP-pre'!$H$6:$J$205,2,0) -> 0 | M53: =+VLOOKUP(TablaCVP_pre[[#This Row],[Nombre unidad TCV]],'[11]CVP-pre'!$H$6:$J$205,2,0) -> 98188.54113 | N53: =+VLOOKUP(TablaCVP_pre[[#This Row],[Nombre unidad TCV]],'[12]CVP-pre'!$H$6:$J$205,2,0) -> 0 | O53: =+SUM(TablaCVP_pre[[#This Row],[Enero]:[Diciembre]]) -> 659053394.1
B54: =+Unidades!B55 -> Lautaro-Comasa | C54: =+VLOOKUP(TablaCVP_pre[[#This Row],[Nombre unidad TCV]],'[1]CVP-pre'!$H$6:$J$205,2,0) -> 630226486.2 | D54: =+VLOOKUP(TablaCVP_pre[[#This Row],[Nombre unidad TCV]],'[2]CVP-pre'!$H$6:$J$205,2,0) -> 458296697.9 | E54: =+VLOOKUP(TablaCVP_pre[[#This Row],[Nombre unidad TCV]],'[3]CVP-pre'!$H$6:$J$205,2,0) -> 591568639.5 | F54: =+VLOOKUP(TablaCVP_pre[[#This Row],[Nombre unidad TCV]],'[4]CVP-pre'!$H$6:$J$205,2,0) -> 534682443.1 | G54: =+VLOOKUP(TablaCVP_pre[[#This Row],[Nombre unidad TCV]],'[5]CVP-pre'!$H$6:$J$205,2,0) -> 643628324.2 | H54: =+VLOOKUP(TablaCVP_pre[[#This Row],[Nombre unidad TCV]],'[6]CVP-pre'!$H$6:$J$205,2,0) -> 392635615.8 | I54: =+VLOOKUP(TablaCVP_pre[[#This Row],[Nombre unidad TCV]],'[7]CVP-pre'!$H$6:$J$205,2,0) -> 285956837.3 | J54: =+VLOOKUP(TablaCVP_pre[[#This Row],[Nombre unidad TCV]],'[8]CVP-pre'!$H$6:$J$205,2,0) -> 404963539 | K54: =+VLOOKUP(TablaCVP_pre[[#This Row],[Nombre unidad TCV]],'[9]CVP-pre'!$H$6:$J$205,2,0) -> 356291789.2 | L54: =+VLOOKUP(TablaCVP_pre[[#This Row],[Nombre unidad TCV]],'[10]CVP-pre'!$H$6:$J$205,2,0) -> 208568023.4 | M54: =+VLOOKUP(TablaCVP_pre[[#This Row],[Nombre unidad TCV]],'[11]CVP-pre'!$H$6:$J$205,2,0) -> 162725533.9 | N54: =+VLOOKUP(TablaCVP_pre[[#This Row],[Nombre unidad TCV]],'[12]CVP-pre'!$H$6:$J$205,2,0) -> 376520102.5 | O54: =+SUM(TablaCVP_pre[[#This Row],[Enero]:[Diciembre]]) -> 5046064032
B55: =+Unidades!B56 -> Lautaro-Comasa 2 | C55: =+VLOOKUP(TablaCVP_pre[[#This Row],[Nombre unidad TCV]],'[1]CVP-pre'!$H$6:$J$205,2,0) -> 41276088.1 | D55: =+VLOOKUP(TablaCVP_pre[[#This Row],[Nombre unidad TCV]],'[2]CVP-pre'!$H$6:$J$205,2,0) -> 311510932.9 | E55: =+VLOOKUP(TablaCVP_pre[[#This Row],[Nombre unidad TCV]],'[3]CVP-pre'!$H$6:$J$205,2,0) -> 289853655.8 | F55: =+VLOOKUP(TablaCVP_pre[[#This Row],[Nombre unidad TCV]],'[4]CVP-pre'!$H$6:$J$205,2,0) -> 248604820.8 | G55: =+VLOOKUP(TablaCVP_pre[[#This Row],[Nombre unidad TCV]],'[5]CVP-pre'!$H$6:$J$205,2,0) -> 314341482.2 | H55: =+VLOOKUP(TablaCVP_pre[[#This Row],[Nombre unidad TCV]],'[6]CVP-pre'!$H$6:$J$205,2,0) -> 293974261.1 | I55: =+VLOOKUP(TablaCVP_pre[[#This Row],[Nombre unidad TCV]],'[7]CVP-pre'!$H$6:$J$205,2,0) -> 256795557 | J55: =+VLOOKUP(TablaCVP_pre[[#This Row],[Nombre unidad TCV]],'[8]CVP-pre'!$H$6:$J$205,2,0) -> 354458151.4 | K55: =+VLOOKUP(TablaCVP_pre[[#This Row],[Nombre unidad TCV]],'[9]CVP-pre'!$H$6:$J$205,2,0) -> 193125723.4 | L55: =+VLOOKUP(TablaCVP_pre[[#This Row],[Nombre unidad TCV]],'[10]CVP-pre'!$H$6:$J$205,2,0) -> 166244132.5 | M55: =+VLOOKUP(TablaCVP_pre[[#This Row],[Nombre unidad TCV]],'[11]CVP-pre'!$H$6:$J$205,2,0) -> 8484932.9 | N55: =+VLOOKUP(TablaCVP_pre[[#This Row],[Nombre unidad TCV]],'[12]CVP-pre'!$H$6:$J$205,2,0) -> 0 | O55: =+SUM(TablaCVP_pre[[#This Row],[Enero]:[Diciembre]]) -> 2478669738
B56: =+Unidades!B57 -> Licantén | C56: =+VLOOKUP(TablaCVP_pre[[#This Row],[Nombre unidad TCV]],'[1]CVP-pre'!$H$6:$J$205,2,0) -> 51420400.31 | D56: =+VLOOKUP(TablaCVP_pre[[#This Row],[Nombre unidad TCV]],'[2]CVP-pre'!$H$6:$J$205,2,0) -> 0 | E56: =+VLOOKUP(TablaCVP_pre[[#This Row],[Nombre unidad TCV]],'[3]CVP-pre'!$H$6:$J$205,2,0) -> 0 | F56: =+VLOOKUP(TablaCVP_pre[[#This Row],[Nombre unidad TCV]],'[4]CVP-pre'!$H$6:$J$205,2,0) -> 0 | G56: =+VLOOKUP(TablaCVP_pre[[#This Row],[Nombre unidad TCV]],'[5]CVP-pre'!$H$6:$J$205,2,0) -> 0 | H56: =+VLOOKUP(TablaCVP_pre[[#This Row],[Nombre unidad TCV]],'[6]CVP-pre'!$H$6:$J$205,2,0) -> 0 | I56: =+VLOOKUP(TablaCVP_pre[[#This Row],[Nombre unidad TCV]],'[7]CVP-pre'!$H$6:$J$205,2,0) -> 0 | J56: =+VLOOKUP(TablaCVP_pre[[#This Row],[Nombre unidad TCV]],'[8]CVP-pre'!$H$6:$J$205,2,0) -> 0 | K56: =+VLOOKUP(TablaCVP_pre[[#This Row],[Nombre unidad TCV]],'[9]CVP-pre'!$H$6:$J$205,2,0) -> 0 | L56: =+VLOOKUP(TablaCVP_pre[[#This Row],[Nombre unidad TCV]],'[10]CVP-pre'!$H$6:$J$205,2,0) -> 0 | M56: =+VLOOKUP(TablaCVP_pre[[#This Row],[Nombre unidad TCV]],'[11]CVP-pre'!$H$6:$J$205,2,0) -> 0 | N56: =+VLOOKUP(TablaCVP_pre[[#This Row],[Nombre unidad TCV]],'[12]CVP-pre'!$H$6:$J$205,2,0) -> 0 | O56: =+SUM(TablaCVP_pre[[#This Row],[Enero]:[Diciembre]]) -> 51420400.31
B57: =+Unidades!B58 -> Los Guindos | C57: =+VLOOKUP(TablaCVP_pre[[#This Row],[Nombre unidad TCV]],'[1]CVP-pre'!$H$6:$J$205,2,0) -> 0 | D57: =+VLOOKUP(TablaCVP_pre[[#This Row],[Nombre unidad TCV]],'[2]CVP-pre'!$H$6:$J$205,2,0) -> 0 | E57: =+VLOOKUP(TablaCVP_pre[[#This Row],[Nombre unidad TCV]],'[3]CVP-pre'!$H$6:$J$205,2,0) -> 0 | F57: =+VLOOKUP(TablaCVP_pre[[#This Row],[Nombre unidad TCV]],'[4]CVP-pre'!$H$6:$J$205,2,0) -> 0 | G57: =+VLOOKUP(TablaCVP_pre[[#This Row],[Nombre unidad TCV]],'[5]CVP-pre'!$H$6:$J$205,2,0) -> 18791003.78 | H57: =+VLOOKUP(TablaCVP_pre[[#This Row],[Nombre unidad TCV]],'[6]CVP-pre'!$H$6:$J$205,2,0) -> 0 | I57: =+VLOOKUP(TablaCVP_pre[[#This Row],[Nombre unidad TCV]],'[7]CVP-pre'!$H$6:$J$205,2,0) -> 0 | J57: =+VLOOKUP(TablaCVP_pre[[#This Row],[Nombre unidad TCV]],'[8]CVP-pre'!$H$6:$J$205,2,0) -> 0 | K57: =+VLOOKUP(TablaCVP_pre[[#This Row],[Nombre unidad TCV]],'[9]CVP-pre'!$H$6:$J$205,2,0) -> 0 | L57: =+VLOOKUP(TablaCVP_pre[[#This Row],[Nombre unidad TCV]],'[10]CVP-pre'!$H$6:$J$205,2,0) -> 14848840.35 | M57: =+VLOOKUP(TablaCVP_pre[[#This Row],[Nombre unidad TCV]],'[11]CVP-pre'!$H$6:$J$205,2,0) -> 0 | N57: =+VLOOKUP(TablaCVP_pre[[#This Row],[Nombre unidad TCV]],'[12]CVP-pre'!$H$6:$J$205,2,0) -> 0 | O57: =+SUM(TablaCVP_pre[[#This Row],[Enero]:[Diciembre]]) -> 33639844.13
B58: =+Unidades!B59 -> Los Pinos | C58: =+VLOOKUP(TablaCVP_pre[[#This Row],[Nombre unidad TCV]],'[1]CVP-pre'!$H$6:$J$205,2,0) -> 253925016.9 | D58: =+VLOOKUP(TablaCVP_pre[[#This Row],[Nombre unidad TCV]],'[2]CVP-pre'!$H$6:$J$205,2,0) -> 149723697.3 | E58: =+VLOOKUP(TablaCVP_pre[[#This Row],[Nombre unidad TCV]],'[3]CVP-pre'!$H$6:$J$205,2,0) -> 40745048.76 | F58: =+VLOOKUP(TablaCVP_pre[[#This Row],[Nombre unidad TCV]],'[4]CVP-pre'!$H$6:$J$205,2,0) -> 617476227.8 | G58: =+VLOOKUP(TablaCVP_pre[[#This Row],[Nombre unidad TCV]],'[5]CVP-pre'!$H$6:$J$205,2,0) -> 155248733.5 | H58: =+VLOOKUP(TablaCVP_pre[[#This Row],[Nombre unidad TCV]],'[6]CVP-pre'!$H$6:$J$205,2,0) -> 5332319.134 | I58: =+VLOOKUP(TablaCVP_pre[[#This Row],[Nombre unidad TCV]],'[7]CVP-pre'!$H$6:$J$205,2,0) -> 0 | J58: =+VLOOKUP(TablaCVP_pre[[#This Row],[Nombre unidad TCV]],'[8]CVP-pre'!$H$6:$J$205,2,0) -> 0 | K58: =+VLOOKUP(TablaCVP_pre[[#This Row],[Nombre unidad TCV]],'[9]CVP-pre'!$H$6:$J$205,2,0) -> 0 | L58: =+VLOOKUP(TablaCVP_pre[[#This Row],[Nombre unidad TCV]],'[10]CVP-pre'!$H$6:$J$205,2,0) -> 0 | M58: =+VLOOKUP(TablaCVP_pre[[#This Row],[Nombre unidad TCV]],'[11]CVP-pre'!$H$6:$J$205,2,0) -> 4717674.351 | N58: =+VLOOKUP(TablaCVP_pre[[#This Row],[Nombre unidad TCV]],'[12]CVP-pre'!$H$6:$J$205,2,0) -> 0 | O58: =+SUM(TablaCVP_pre[[#This Row],[Enero]:[Diciembre]]) -> 1227168718
B59: =+Unidades!B60 -> Los Vientos | C59: =+VLOOKUP(TablaCVP_pre[[#This Row],[Nombre unidad TCV]],'[1]CVP-pre'!$H$6:$J$205,2,0) -> 88665998.58 | D59: =+VLOOKUP(TablaCVP_pre[[#This Row],[Nombre unidad TCV]],'[2]CVP-pre'!$H$6:$J$205,2,0) -> 126275155.2 | E59: =+VLOOKUP(TablaCVP_pre[[#This Row],[Nombre unidad TCV]],'[3]CVP-pre'!$H$6:$J$205,2,0) -> 3445105252 | F59: =+VLOOKUP(TablaCVP_pre[[#This Row],[Nombre unidad TCV]],'[4]CVP-pre'!$H$6:$J$205,2,0) -> 2019735052 | G59: =+VLOOKUP(TablaCVP_pre[[#This Row],[Nombre unidad TCV]],'[5]CVP-pre'!$H$6:$J$205,2,0) -> 3463645296 | H59: =+VLOOKUP(TablaCVP_pre[[#This Row],[Nombre unidad TCV]],'[6]CVP-pre'!$H$6:$J$205,2,0) -> 135924191.9 | I59: =+VLOOKUP(TablaCVP_pre[[#This Row],[Nombre unidad TCV]],'[7]CVP-pre'!$H$6:$J$205,2,0) -> 887282620.9 | J59: =+VLOOKUP(TablaCVP_pre[[#This Row],[Nombre unidad TCV]],'[8]CVP-pre'!$H$6:$J$205,2,0) -> 802190974.8 | K59: =+VLOOKUP(TablaCVP_pre[[#This Row],[Nombre unidad TCV]],'[9]CVP-pre'!$H$6:$J$205,2,0) -> 71844223.48 | L59: =+VLOOKUP(TablaCVP_pre[[#This Row],[Nombre unidad TCV]],'[10]CVP-pre'!$H$6:$J$205,2,0) -> 0 | M59: =+VLOOKUP(TablaCVP_pre[[#This Row],[Nombre unidad TCV]],'[11]CVP-pre'!$H$6:$J$205,2,0) -> 47308189.11 | N59: =+VLOOKUP(TablaCVP_pre[[#This Row],[Nombre unidad TCV]],'[12]CVP-pre'!$H$6:$J$205,2,0) -> 0 | O59: =+SUM(TablaCVP_pre[[#This Row],[Enero]:[Diciembre]]) -> 1.108797695e+10
B60: =+Unidades!B61 -> Masisa (Cabrero) | C60: =+VLOOKUP(TablaCVP_pre[[#This Row],[Nombre unidad TCV]],'[1]CVP-pre'!$H$6:$J$205,2,0) -> 56212615.34 | D60: =+VLOOKUP(TablaCVP_pre[[#This Row],[Nombre unidad TCV]],'[2]CVP-pre'!$H$6:$J$205,2,0) -> 80231112.71 | E60: =+VLOOKUP(TablaCVP_pre[[#This Row],[Nombre unidad TCV]],'[3]CVP-pre'!$H$6:$J$205,2,0) -> 181169244.7 | F60: =+VLOOKUP(TablaCVP_pre[[#This Row],[Nombre unidad TCV]],'[4]CVP-pre'!$H$6:$J$205,2,0) -> 170113642.7 | G60: =+VLOOKUP(TablaCVP_pre[[#This Row],[Nombre unidad TCV]],'[5]CVP-pre'!$H$6:$J$205,2,0) -> 159283561.9 | H60: =+VLOOKUP(TablaCVP_pre[[#This Row],[Nombre unidad TCV]],'[6]CVP-pre'!$H$6:$J$205,2,0) -> 146377167.3 | I60: =+VLOOKUP(TablaCVP_pre[[#This Row],[Nombre unidad TCV]],'[7]CVP-pre'!$H$6:$J$205,2,0) -> 108668967.8 | J60: =+VLOOKUP(TablaCVP_pre[[#This Row],[Nombre unidad TCV]],'[8]CVP-pre'!$H$6:$J$205,2,0) -> 90501059.95 | K60: =+VLOOKUP(TablaCVP_pre[[#This Row],[Nombre unidad TCV]],'[9]CVP-pre'!$H$6:$J$205,2,0) -> 28774084.32 | L60: =+VLOOKUP(TablaCVP_pre[[#This Row],[Nombre unidad TCV]],'[10]CVP-pre'!$H$6:$J$205,2,0) -> 5462719.137 | M60: =+VLOOKUP(TablaCVP_pre[[#This Row],[Nombre unidad TCV]],'[11]CVP-pre'!$H$6:$J$205,2,0) -> 5191068.648 | N60: =+VLOOKUP(TablaCVP_pre[[#This Row],[Nombre unidad TCV]],'[12]CVP-pre'!$H$6:$J$205,2,0) -> 0 | O60: =+SUM(TablaCVP_pre[[#This Row],[Enero]:[Diciembre]]) -> 1031985245
B61: =+Unidades!B62 -> Nehuenco | C61: =+VLOOKUP(TablaCVP_pre[[#This Row],[Nombre unidad TCV]],'[1]CVP-pre'!$H$6:$J$205,2,0) -> 364038710.5 | D61: =+VLOOKUP(TablaCVP_pre[[#This Row],[Nombre unidad TCV]],'[2]CVP-pre'!$H$6:$J$205,2,0) -> 331665148 | E61: =+VLOOKUP(TablaCVP_pre[[#This Row],[Nombre unidad TCV]],'[3]CVP-pre'!$H$6:$J$205,2,0) -> 383398196.9 | F61: =+VLOOKUP(TablaCVP_pre[[#This Row],[Nombre unidad TCV]],'[4]CVP-pre'!$H$6:$J$205,2,0) -> 342101073 | G61: =+VLOOKUP(TablaCVP_pre[[#This Row],[Nombre unidad TCV]],'[5]CVP-pre'!$H$6:$J$205,2,0) -> 683352265.1 | H61: =+VLOOKUP(TablaCVP_pre[[#This Row],[Nombre unidad TCV]],'[6]CVP-pre'!$H$6:$J$205,2,0) -> 360268911.8 | I61: =+VLOOKUP(TablaCVP_pre[[#This Row],[Nombre unidad TCV]],'[7]CVP-pre'!$H$6:$J$205,2,0) -> 15018699.7 | J61: =+VLOOKUP(TablaCVP_pre[[#This Row],[Nombre unidad TCV]],'[8]CVP-pre'!$H$6:$J$205,2,0) -> 679632517.1 | K61: =+VLOOKUP(TablaCVP_pre[[#This Row],[Nombre unidad TCV]],'[9]CVP-pre'!$H$6:$J$205,2,0) -> 548489120.2 | L61: =+VLOOKUP(TablaCVP_pre[[#This Row],[Nombre unidad TCV]],'[10]CVP-pre'!$H$6:$J$205,2,0) -> 549903410.9 | M61: =+VLOOKUP(TablaCVP_pre[[#This Row],[Nombre unidad TCV]],'[11]CVP-pre'!$H$6:$J$205,2,0) -> 401720257.8 | N61: =+VLOOKUP(TablaCVP_pre[[#This Row],[Nombre unidad TCV]],'[12]CVP-pre'!$H$6:$J$205,2,0) -> 0 | O61: =+SUM(TablaCVP_pre[[#This Row],[Enero]:[Diciembre]]) -> 4659588311
B62: =+Unidades!B63 -> Nehuenco II | C62: =+VLOOKUP(TablaCVP_pre[[#This Row],[Nombre unidad TCV]],'[1]CVP-pre'!$H$6:$J$205,2,0) -> 227769478.6 | D62: =+VLOOKUP(TablaCVP_pre[[#This Row],[Nombre unidad TCV]],'[2]CVP-pre'!$H$6:$J$205,2,0) -> 243735408.3 | E62: =+VLOOKUP(TablaCVP_pre[[#This Row],[Nombre unidad TCV]],'[3]CVP-pre'!$H$6:$J$205,2,0) -> 709066100.8 | F62: =+VLOOKUP(TablaCVP_pre[[#This Row],[Nombre unidad TCV]],'[4]CVP-pre'!$H$6:$J$205,2,0) -> 328006971.9 | G62: =+VLOOKUP(TablaCVP_pre[[#This Row],[Nombre unidad TCV]],'[5]CVP-pre'!$H$6:$J$205,2,0) -> 5906523381 | H62: =+VLOOKUP(TablaCVP_pre[[#This Row],[Nombre unidad TCV]],'[6]CVP-pre'!$H$6:$J$205,2,0) -> 2028471030 | I62: =+VLOOKUP(TablaCVP_pre[[#This Row],[Nombre unidad TCV]],'[7]CVP-pre'!$H$6:$J$205,2,0) -> 3741474838 | J62: =+VLOOKUP(TablaCVP_pre[[#This Row],[Nombre unidad TCV]],'[8]CVP-pre'!$H$6:$J$205,2,0) -> 7030748161 | K62: =+VLOOKUP(TablaCVP_pre[[#This Row],[Nombre unidad TCV]],'[9]CVP-pre'!$H$6:$J$205,2,0) -> 1101585458 | L62: =+VLOOKUP(TablaCVP_pre[[#This Row],[Nombre unidad TCV]],'[10]CVP-pre'!$H$6:$J$205,2,0) -> 3262834545 | M62: =+VLOOKUP(TablaCVP_pre[[#This Row],[Nombre unidad TCV]],'[11]CVP-pre'!$H$6:$J$205,2,0) -> 417590717.6 | N62: =+VLOOKUP(TablaCVP_pre[[#This Row],[Nombre unidad TCV]],'[12]CVP-pre'!$H$6:$J$205,2,0) -> 227367703 | O62: =+SUM(TablaCVP_pre[[#This Row],[Enero]:[Diciembre]]) -> 2.522517379e+10
B63: =+Unidades!B64 -> Nehuenco TG 9B | C63: =+VLOOKUP(TablaCVP_pre[[#This Row],[Nombre unidad TCV]],'[1]CVP-pre'!$H$6:$J$205,2,0) -> 0 | D63: =+VLOOKUP(TablaCVP_pre[[#This Row],[Nombre unidad TCV]],'[2]CVP-pre'!$H$6:$J$205,2,0) -> 0 | E63: =+VLOOKUP(TablaCVP_pre[[#This Row],[Nombre unidad TCV]],'[3]CVP-pre'!$H$6:$J$205,2,0) -> 576.3397824 | F63: =+VLOOKUP(TablaCVP_pre[[#This Row],[Nombre unidad TCV]],'[4]CVP-pre'!$H$6:$J$205,2,0) -> 13023243.76 | G63: =+VLOOKUP(TablaCVP_pre[[#This Row],[Nombre unidad TCV]],'[5]CVP-pre'!$H$6:$J$205,2,0) -> 0 | H63: =+VLOOKUP(TablaCVP_pre[[#This Row],[Nombre unidad TCV]],'[6]CVP-pre'!$H$6:$J$205,2,0) -> 0 | I63: =+VLOOKUP(TablaCVP_pre[[#This Row],[Nombre unidad TCV]],'[7]CVP-pre'!$H$6:$J$205,2,0) -> 0 | J63: =+VLOOKUP(TablaCVP_pre[[#This Row],[Nombre unidad TCV]],'[8]CVP-pre'!$H$6:$J$205,2,0) -> 18666506.4 | K63: =+VLOOKUP(TablaCVP_pre[[#This Row],[Nombre unidad TCV]],'[9]CVP-pre'!$H$6:$J$205,2,0) -> 10857252.24 | L63: =+VLOOKUP(TablaCVP_pre[[#This Row],[Nombre unidad TCV]],'[10]CVP-pre'!$H$6:$J$205,2,0) -> 0 | M63: =+VLOOKUP(TablaCVP_pre[[#This Row],[Nombre unidad TCV]],'[11]CVP-pre'!$H$6:$J$205,2,0) -> 0 | N63: =+VLOOKUP(TablaCVP_pre[[#This Row],[Nombre unidad TCV]],'[12]CVP-pre'!$H$6:$J$205,2,0) -> 125649157.9 | O63: =+SUM(TablaCVP_pre[[#This Row],[Enero]:[Diciembre]]) -> 168196736.7
B64: =+Unidades!B65 -> NTO1 | C64: =+VLOOKUP(TablaCVP_pre[[#This Row],[Nombre unidad TCV]],'[1]CVP-pre'!$H$6:$J$205,2,0) -> 2311852006 | D64: =+VLOOKUP(TablaCVP_pre[[#This Row],[Nombre unidad TCV]],'[2]CVP-pre'!$H$6:$J$205,2,0) -> 1506817147 | E64: =+VLOOKUP(TablaCVP_pre[[#This Row],[Nombre unidad TCV]],'[3]CVP-pre'!$H$6:$J$205,2,0) -> 1910947957 | F64: =+VLOOKUP(TablaCVP_pre[[#This Row],[Nombre unidad TCV]],'[4]CVP-pre'!$H$6:$J$205,2,0) -> 2007546135 | G64: =+VLOOKUP(TablaCVP_pre[[#This Row],[Nombre unidad TCV]],'[5]CVP-pre'!$H$6:$J$205,2,0) -> 1945405767 | H64: =+VLOOKUP(TablaCVP_pre[[#This Row],[Nombre unidad TCV]],'[6]CVP-pre'!$H$6:$J$205,2,0) -> 1521316621 | I64: =+VLOOKUP(TablaCVP_pre[[#This Row],[Nombre unidad TCV]],'[7]CVP-pre'!$H$6:$J$205,2,0) -> 1892812232 | J64: =+VLOOKUP(TablaCVP_pre[[#This Row],[Nombre unidad TCV]],'[8]CVP-pre'!$H$6:$J$205,2,0) -> 1917985360 | K64: =+VLOOKUP(TablaCVP_pre[[#This Row],[Nombre unidad TCV]],'[9]CVP-pre'!$H$6:$J$205,2,0) -> 1448052432 | L64: =+VLOOKUP(TablaCVP_pre[[#This Row],[Nombre unidad TCV]],'[10]CVP-pre'!$H$6:$J$205,2,0) -> 643052311.7 | M64: =+VLOOKUP(TablaCVP_pre[[#This Row],[Nombre unidad TCV]],'[11]CVP-pre'!$H$6:$J$205,2,0) -> 1601813097 | N64: =+VLOOKUP(TablaCVP_pre[[#This Row],[Nombre unidad TCV]],'[12]CVP-pre'!$H$6:$J$205,2,0) -> 1602042213 | O64: =+SUM(TablaCVP_pre[[#This Row],[Enero]:[Diciembre]]) -> 2.030964328e+10
B65: =+Unidades!B66 -> NTO2 | C65: =+VLOOKUP(TablaCVP_pre[[#This Row],[Nombre unidad TCV]],'[1]CVP-pre'!$H$6:$J$205,2,0) -> 2253481918 | D65: =+VLOOKUP(TablaCVP_pre[[#This Row],[Nombre unidad TCV]],'[2]CVP-pre'!$H$6:$J$205,2,0) -> 585295559.5 | E65: =+VLOOKUP(TablaCVP_pre[[#This Row],[Nombre unidad TCV]],'[3]CVP-pre'!$H$6:$J$205,2,0) -> 1605830765 | F65: =+VLOOKUP(TablaCVP_pre[[#This Row],[Nombre unidad TCV]],'[4]CVP-pre'!$H$6:$J$205,2,0) -> 1940830088 | G65: =+VLOOKUP(TablaCVP_pre[[#This Row],[Nombre unidad TCV]],'[5]CVP-pre'!$H$6:$J$205,2,0) -> 1982538382 | H65: =+VLOOKUP(TablaCVP_pre[[#This Row],[Nombre unidad TCV]],'[6]CVP-pre'!$H$6:$J$205,2,0) -> 1823432112 | I65: =+VLOOKUP(TablaCVP_pre[[#This Row],[Nombre unidad TCV]],'[7]CVP-pre'!$H$6:$J$205,2,0) -> 1784046400 | J65: =+VLOOKUP(TablaCVP_pre[[#This Row],[Nombre unidad TCV]],'[8]CVP-pre'!$H$6:$J$205,2,0) -> 1659092319 | K65: =+VLOOKUP(TablaCVP_pre[[#This Row],[Nombre unidad TCV]],'[9]CVP-pre'!$H$6:$J$205,2,0) -> 1688924517 | L65: =+VLOOKUP(TablaCVP_pre[[#This Row],[Nombre unidad TCV]],'[10]CVP-pre'!$H$6:$J$205,2,0) -> 1404132408 | M65: =+VLOOKUP(TablaCVP_pre[[#This Row],[Nombre unidad TCV]],'[11]CVP-pre'!$H$6:$J$205,2,0) -> 1618970140 | N65: =+VLOOKUP(TablaCVP_pre[[#This Row],[Nombre unidad TCV]],'[12]CVP-pre'!$H$6:$J$205,2,0) -> 1739831445 | O65: =+SUM(TablaCVP_pre[[#This Row],[Enero]:[Diciembre]]) -> 2.008640605e+10
B66: =+Unidades!B67 -> Nueva Aldea I | C66: =+VLOOKUP(TablaCVP_pre[[#This Row],[Nombre unidad TCV]],'[1]CVP-pre'!$H$6:$J$205,2,0) -> 61471657.25 | D66: =+VLOOKUP(TablaCVP_pre[[#This Row],[Nombre unidad TCV]],'[2]CVP-pre'!$H$6:$J$205,2,0) -> 68011016.16 | E66: =+VLOOKUP(TablaCVP_pre[[#This Row],[Nombre unidad TCV]],'[3]CVP-pre'!$H$6:$J$205,2,0) -> 48363659.47 | F66: =+VLOOKUP(TablaCVP_pre[[#This Row],[Nombre unidad TCV]],'[4]CVP-pre'!$H$6:$J$205,2,0) -> 62930724.84 | G66: =+VLOOKUP(TablaCVP_pre[[#This Row],[Nombre unidad TCV]],'[5]CVP-pre'!$H$6:$J$205,2,0) -> 56151013.67 | H66: =+VLOOKUP(TablaCVP_pre[[#This Row],[Nombre unidad TCV]],'[6]CVP-pre'!$H$6:$J$205,2,0) -> 27696702.04 | I66: =+VLOOKUP(TablaCVP_pre[[#This Row],[Nombre unidad TCV]],'[7]CVP-pre'!$H$6:$J$205,2,0) -> 362432.47 | J66: =+VLOOKUP(TablaCVP_pre[[#This Row],[Nombre unidad TCV]],'[8]CVP-pre'!$H$6:$J$205,2,0) -> 18286067.3 | K66: =+VLOOKUP(TablaCVP_pre[[#This Row],[Nombre unidad TCV]],'[9]CVP-pre'!$H$6:$J$205,2,0) -> 24884593.96 | L66: =+VLOOKUP(TablaCVP_pre[[#This Row],[Nombre unidad TCV]],'[10]CVP-pre'!$H$6:$J$205,2,0) -> 19050781.57 | M66: =+VLOOKUP(TablaCVP_pre[[#This Row],[Nombre unidad TCV]],'[11]CVP-pre'!$H$6:$J$205,2,0) -> 21241678.77 | N66: =+VLOOKUP(TablaCVP_pre[[#This Row],[Nombre unidad TCV]],'[12]CVP-pre'!$H$6:$J$205,2,0) -> 27248791.3 | O66: =+SUM(TablaCVP_pre[[#This Row],[Enero]:[Diciembre]]) -> 435699118.8
B67: =+Unidades!B68 -> Nueva Aldea III | C67: =+VLOOKUP(TablaCVP_pre[[#This Row],[Nombre unidad TCV]],'[1]CVP-pre'!$H$6:$J$205,2,0) -> 0 | D67: =+VLOOKUP(TablaCVP_pre[[#This Row],[Nombre unidad TCV]],'[2]CVP-pre'!$H$6:$J$205,2,0) -> 0 | E67: =+VLOOKUP(TablaCVP_pre[[#This Row],[Nombre unidad TCV]],'[3]CVP-pre'!$H$6:$J$205,2,0) -> 0 | F67: =+VLOOKUP(TablaCVP_pre[[#This Row],[Nombre unidad TCV]],'[4]CVP-pre'!$H$6:$J$205,2,0) -> 0 | G67: =+VLOOKUP(TablaCVP_pre[[#This Row],[Nombre unidad TCV]],'[5]CVP-pre'!$H$6:$J$205,2,0) -> 0 | H67: =+VLOOKUP(TablaCVP_pre[[#This Row],[Nombre unidad TCV]],'[6]CVP-pre'!$H$6:$J$205,2,0) -> 0 | I67: =+VLOOKUP(TablaCVP_pre[[#This Row],[Nombre unidad TCV]],'[7]CVP-pre'!$H$6:$J$205,2,0) -> 0 | J67: =+VLOOKUP(TablaCVP_pre[[#This Row],[Nombre unidad TCV]],'[8]CVP-pre'!$H$6:$J$205,2,0) -> 0 | K67: =+VLOOKUP(TablaCVP_pre[[#This Row],[Nombre unidad TCV]],'[9]CVP-pre'!$H$6:$J$205,2,0) -> 0 | L67: =+VLOOKUP(TablaCVP_pre[[#This Row],[Nombre unidad TCV]],'[10]CVP-pre'!$H$6:$J$205,2,0) -> 0 | M67: =+VLOOKUP(TablaCVP_pre[[#This Row],[Nombre unidad TCV]],'[11]CVP-pre'!$H$6:$J$205,2,0) -> 0 | N67: =+VLOOKUP(TablaCVP_pre[[#This Row],[Nombre unidad TCV]],'[12]CVP-pre'!$H$6:$J$205,2,0) -> 0 | O67: =+SUM(TablaCVP_pre[[#This Row],[Enero]:[Diciembre]]) -> 0
B68: =+Unidades!B69 -> Nueva Renca | C68: =+VLOOKUP(TablaCVP_pre[[#This Row],[Nombre unidad TCV]],'[1]CVP-pre'!$H$6:$J$205,2,0) -> 3530708065 | D68: =+VLOOKUP(TablaCVP_pre[[#This Row],[Nombre unidad TCV]],'[2]CVP-pre'!$H$6:$J$205,2,0) -> 2570605263 | E68: =+VLOOKUP(TablaCVP_pre[[#This Row],[Nombre unidad TCV]],'[3]CVP-pre'!$H$6:$J$205,2,0) -> 1877653738 | F68: =+VLOOKUP(TablaCVP_pre[[#This Row],[Nombre unidad TCV]],'[4]CVP-pre'!$H$6:$J$205,2,0) -> 3632091548 | G68: =+VLOOKUP(TablaCVP_pre[[#This Row],[Nombre unidad TCV]],'[5]CVP-pre'!$H$6:$J$205,2,0) -> 8167651.073 | H68: =+VLOOKUP(TablaCVP_pre[[#This Row],[Nombre unidad TCV]],'[6]CVP-pre'!$H$6:$J$205,2,0) -> 87980.31886 | I68: =+VLOOKUP(TablaCVP_pre[[#This Row],[Nombre unidad TCV]],'[7]CVP-pre'!$H$6:$J$205,2,0) -> 104484925.6 | J68: =+VLOOKUP(TablaCVP_pre[[#This Row],[Nombre unidad TCV]],'[8]CVP-pre'!$H$6:$J$205,2,0) -> 0 | K68: =+VLOOKUP(TablaCVP_pre[[#This Row],[Nombre unidad TCV]],'[9]CVP-pre'!$H$6:$J$205,2,0) -> 3036427823 | L68: =+VLOOKUP(TablaCVP_pre[[#This Row],[Nombre unidad TCV]],'[10]CVP-pre'!$H$6:$J$205,2,0) -> 2638480821 | M68: =+VLOOKUP(TablaCVP_pre[[#This Row],[Nombre unidad TCV]],'[11]CVP-pre'!$H$6:$J$205,2,0) -> 1896119622 | N68: =+VLOOKUP(TablaCVP_pre[[#This Row],[Nombre unidad TCV]],'[12]CVP-pre'!$H$6:$J$205,2,0) -> 5579462098 | O68: =+SUM(TablaCVP_pre[[#This Row],[Enero]:[Diciembre]]) -> 2.487428953e+10
B69: =+Unidades!B70 -> Nueva Ventanas | C69: =+VLOOKUP(TablaCVP_pre[[#This Row],[Nombre unidad TCV]],'[1]CVP-pre'!$H$6:$J$205,2,0) -> 0 | D69: =+VLOOKUP(TablaCVP_pre[[#This Row],[Nombre unidad TCV]],'[2]CVP-pre'!$H$6:$J$205,2,0) -> 3147236276 | E69: =+VLOOKUP(TablaCVP_pre[[#This Row],[Nombre unidad TCV]],'[3]CVP-pre'!$H$6:$J$205,2,0) -> 5368976115 | F69: =+VLOOKUP(TablaCVP_pre[[#This Row],[Nombre unidad TCV]],'[4]CVP-pre'!$H$6:$J$205,2,0) -> 4291471022 | G69: =+VLOOKUP(TablaCVP_pre[[#This Row],[Nombre unidad TCV]],'[5]CVP-pre'!$H$6:$J$205,2,0) -> 5210578236 | H69: =+VLOOKUP(TablaCVP_pre[[#This Row],[Nombre unidad TCV]],'[6]CVP-pre'!$H$6:$J$205,2,0) -> 4821030844 | I69: =+VLOOKUP(TablaCVP_pre[[#This Row],[Nombre unidad TCV]],'[7]CVP-pre'!$H$6:$J$205,2,0) -> 3074682022 | J69: =+VLOOKUP(TablaCVP_pre[[#This Row],[Nombre unidad TCV]],'[8]CVP-pre'!$H$6:$J$205,2,0) -> 4586207650 | K69: =+VLOOKUP(TablaCVP_pre[[#This Row],[Nombre unidad TCV]],'[9]CVP-pre'!$H$6:$J$205,2,0) -> 3553095874 | L69: =+VLOOKUP(TablaCVP_pre[[#This Row],[Nombre unidad TCV]],'[10]CVP-pre'!$H$6:$J$205,2,0) -> 2445874759 | M69: =+VLOOKUP(TablaCVP_pre[[#This Row],[Nombre unidad TCV]],'[11]CVP-pre'!$H$6:$J$205,2,0) -> 2949760283 | N69: =+VLOOKUP(TablaCVP_pre[[#This Row],[Nombre unidad TCV]],'[12]CVP-pre'!$H$6:$J$205,2,0) -> 3660984810 | O69: =+SUM(TablaCVP_pre[[#This Row],[Enero]:[Diciembre]]) -> 4.310989789e+10
B70: =+Unidades!B71 -> Petropower | C70: =+VLOOKUP(TablaCVP_pre[[#This Row],[Nombre unidad TCV]],'[1]CVP-pre'!$H$6:$J$205,2,0) -> 472935.6875 | D70: =+VLOOKUP(TablaCVP_pre[[#This Row],[Nombre unidad TCV]],'[2]CVP-pre'!$H$6:$J$205,2,0) -> 28268.26931 | E70: =+VLOOKUP(TablaCVP_pre[[#This Row],[Nombre unidad TCV]],'[3]CVP-pre'!$H$6:$J$205,2,0) -> 17970911.35 | F70: =+VLOOKUP(TablaCVP_pre[[#This Row],[Nombre unidad TCV]],'[4]CVP-pre'!$H$6:$J$205,2,0) -> 17436745.89 | G70: =+VLOOKUP(TablaCVP_pre[[#This Row],[Nombre unidad TCV]],'[5]CVP-pre'!$H$6:$J$205,2,0) -> 26567420.07 | H70: =+VLOOKUP(TablaCVP_pre[[#This Row],[Nombre unidad TCV]],'[6]CVP-pre'!$H$6:$J$205,2,0) -> 4701451.857 | I70: =+VLOOKUP(TablaCVP_pre[[#This Row],[Nombre unidad TCV]],'[7]CVP-pre'!$H$6:$J$205,2,0) -> 9110366.215 | J70: =+VLOOKUP(TablaCVP_pre[[#This Row],[Nombre unidad TCV]],'[8]CVP-pre'!$H$6:$J$205,2,0) -> 10586058.94 | K70: =+VLOOKUP(TablaCVP_pre[[#This Row],[Nombre unidad TCV]],'[9]CVP-pre'!$H$6:$J$205,2,0) -> 1326668.405 | L70: =+VLOOKUP(TablaCVP_pre[[#This Row],[Nombre unidad TCV]],'[10]CVP-pre'!$H$6:$J$205,2,0) -> 295991.7857 | M70: =+VLOOKUP(TablaCVP_pre[[#This Row],[Nombre unidad TCV]],'[11]CVP-pre'!$H$6:$J$205,2,0) -> 0 | N70: =+VLOOKUP(TablaCVP_pre[[#This Row],[Nombre unidad TCV]],'[12]CVP-pre'!$H$6:$J$205,2,0) -> 0 | O70: =+SUM(TablaCVP_pre[[#This Row],[Enero]:[Diciembre]]) -> 88496818.47
B71: =+Unidades!B72 -> Quintero A | C71: =+VLOOKUP(TablaCVP_pre[[#This Row],[Nombre unidad TCV]],'[1]CVP-pre'!$H$6:$J$205,2,0) -> 117740125.2 | D71: =+VLOOKUP(TablaCVP_pre[[#This Row],[Nombre unidad TCV]],'[2]CVP-pre'!$H$6:$J$205,2,0) -> 251830539.4 | E71: =+VLOOKUP(TablaCVP_pre[[#This Row],[Nombre unidad TCV]],'[3]CVP-pre'!$H$6:$J$205,2,0) -> 463092907.6 | F71: =+VLOOKUP(TablaCVP_pre[[#This Row],[Nombre unidad TCV]],'[4]CVP-pre'!$H$6:$J$205,2,0) -> 2674607519 | G71: =+VLOOKUP(TablaCVP_pre[[#This Row],[Nombre unidad TCV]],'[5]CVP-pre'!$H$6:$J$205,2,0) -> 1516788992 | H71: =+VLOOKUP(TablaCVP_pre[[#This Row],[Nombre unidad TCV]],'[6]CVP-pre'!$H$6:$J$205,2,0) -> 0 | I71: =+VLOOKUP(TablaCVP_pre[[#This Row],[Nombre unidad TCV]],'[7]CVP-pre'!$H$6:$J$205,2,0) -> 0 | J71: =+VLOOKUP(TablaCVP_pre[[#This Row],[Nombre unidad TCV]],'[8]CVP-pre'!$H$6:$J$205,2,0) -> 17498197.12 | K71: =+VLOOKUP(TablaCVP_pre[[#This Row],[Nombre unidad TCV]],'[9]CVP-pre'!$H$6:$J$205,2,0) -> 0 | L71: =+VLOOKUP(TablaCVP_pre[[#This Row],[Nombre unidad TCV]],'[10]CVP-pre'!$H$6:$J$205,2,0) -> 145417979.2 | M71: =+VLOOKUP(TablaCVP_pre[[#This Row],[Nombre unidad TCV]],'[11]CVP-pre'!$H$6:$J$205,2,0) -> 22555974.75 | N71: =+VLOOKUP(TablaCVP_pre[[#This Row],[Nombre unidad TCV]],'[12]CVP-pre'!$H$6:$J$205,2,0) -> 0 | O71: =+SUM(TablaCVP_pre[[#This Row],[Enero]:[Diciembre]]) -> 5209532235
B72: =+Unidades!B73 -> Quintero B | C72: =+VLOOKUP(TablaCVP_pre[[#This Row],[Nombre unidad TCV]],'[1]CVP-pre'!$H$6:$J$205,2,0) -> 1683672191 | D72: =+VLOOKUP(TablaCVP_pre[[#This Row],[Nombre unidad TCV]],'[2]CVP-pre'!$H$6:$J$205,2,0) -> 604321981.1 | E72: =+VLOOKUP(TablaCVP_pre[[#This Row],[Nombre unidad TCV]],'[3]CVP-pre'!$H$6:$J$205,2,0) -> 426210762.1 | F72: =+VLOOKUP(TablaCVP_pre[[#This Row],[Nombre unidad TCV]],'[4]CVP-pre'!$H$6:$J$205,2,0) -> 3151554817 | G72: =+VLOOKUP(TablaCVP_pre[[#This Row],[Nombre unidad TCV]],'[5]CVP-pre'!$H$6:$J$205,2,0) -> 1186667274 | H72: =+VLOOKUP(TablaCVP_pre[[#This Row],[Nombre unidad TCV]],'[6]CVP-pre'!$H$6:$J$205,2,0) -> 0 | I72: =+VLOOKUP(TablaCVP_pre[[#This Row],[Nombre unidad TCV]],'[7]CVP-pre'!$H$6:$J$205,2,0) -> 30980316.72 | J72: =+VLOOKUP(TablaCVP_pre[[#This Row],[Nombre unidad TCV]],'[8]CVP-pre'!$H$6:$J$205,2,0) -> 12742534.34 | K72: =+VLOOKUP(TablaCVP_pre[[#This Row],[Nombre unidad TCV]],'[9]CVP-pre'!$H$6:$J$205,2,0) -> 69217150.49 | L72: =+VLOOKUP(TablaCVP_pre[[#This Row],[Nombre unidad TCV]],'[10]CVP-pre'!$H$6:$J$205,2,0) -> 195091120.4 | M72: =+VLOOKUP(TablaCVP_pre[[#This Row],[Nombre unidad TCV]],'[11]CVP-pre'!$H$6:$J$205,2,0) -> 43918151.64 | N72: =+VLOOKUP(TablaCVP_pre[[#This Row],[Nombre unidad TCV]],'[12]CVP-pre'!$H$6:$J$205,2,0) -> 0 | O72: =+SUM(TablaCVP_pre[[#This Row],[Enero]:[Diciembre]]) -> 7404376299
B73: =+Unidades!B74 -> Renca U1 | C73: =+VLOOKUP(TablaCVP_pre[[#This Row],[Nombre unidad TCV]],'[1]CVP-pre'!$H$6:$J$205,2,0) -> 0 | D73: =+VLOOKUP(TablaCVP_pre[[#This Row],[Nombre unidad TCV]],'[2]CVP-pre'!$H$6:$J$205,2,0) -> 0 | E73: =+VLOOKUP(TablaCVP_pre[[#This Row],[Nombre unidad TCV]],'[3]CVP-pre'!$H$6:$J$205,2,0) -> 0 | F73: =+VLOOKUP(TablaCVP_pre[[#This Row],[Nombre unidad TCV]],'[4]CVP-pre'!$H$6:$J$205,2,0) -> 0 | G73: =+VLOOKUP(TablaCVP_pre[[#This Row],[Nombre unidad TCV]],'[5]CVP-pre'!$H$6:$J$205,2,0) -> 0 | H73: =+VLOOKUP(TablaCVP_pre[[#This Row],[Nombre unidad TCV]],'[6]CVP-pre'!$H$6:$J$205,2,0) -> 0 | I73: =+VLOOKUP(TablaCVP_pre[[#This Row],[Nombre unidad TCV]],'[7]CVP-pre'!$H$6:$J$205,2,0) -> 0 | J73: =+VLOOKUP(TablaCVP_pre[[#This Row],[Nombre unidad TCV]],'[8]CVP-pre'!$H$6:$J$205,2,0) -> 0 | K73: =+VLOOKUP(TablaCVP_pre[[#This Row],[Nombre unidad TCV]],'[9]CVP-pre'!$H$6:$J$205,2,0) -> 0 | L73: =+VLOOKUP(TablaCVP_pre[[#This Row],[Nombre unidad TCV]],'[10]CVP-pre'!$H$6:$J$205,2,0) -> 0 | M73: =+VLOOKUP(TablaCVP_pre[[#This Row],[Nombre unidad TCV]],'[11]CVP-pre'!$H$6:$J$205,2,0) -> 0 | N73: =+VLOOKUP(TablaCVP_pre[[#This Row],[Nombre unidad TCV]],'[12]CVP-pre'!$H$6:$J$205,2,0) -> 0 | O73: =+SUM(TablaCVP_pre[[#This Row],[Enero]:[Diciembre]]) -> 0
B74: =+Unidades!B75 -> Renca U2 | C74: =+VLOOKUP(TablaCVP_pre[[#This Row],[Nombre unidad TCV]],'[1]CVP-pre'!$H$6:$J$205,2,0) -> 0 | D74: =+VLOOKUP(TablaCVP_pre[[#This Row],[Nombre unidad TCV]],'[2]CVP-pre'!$H$6:$J$205,2,0) -> 0 | E74: =+VLOOKUP(TablaCVP_pre[[#This Row],[Nombre unidad TCV]],'[3]CVP-pre'!$H$6:$J$205,2,0) -> 0 | F74: =+VLOOKUP(TablaCVP_pre[[#This Row],[Nombre unidad TCV]],'[4]CVP-pre'!$H$6:$J$205,2,0) -> 0 | G74: =+VLOOKUP(TablaCVP_pre[[#This Row],[Nombre unidad TCV]],'[5]CVP-pre'!$H$6:$J$205,2,0) -> 0 | H74: =+VLOOKUP(TablaCVP_pre[[#This Row],[Nombre unidad TCV]],'[6]CVP-pre'!$H$6:$J$205,2,0) -> 0 | I74: =+VLOOKUP(TablaCVP_pre[[#This Row],[Nombre unidad TCV]],'[7]CVP-pre'!$H$6:$J$205,2,0) -> 0 | J74: =+VLOOKUP(TablaCVP_pre[[#This Row],[Nombre unidad TCV]],'[8]CVP-pre'!$H$6:$J$205,2,0) -> 0 | K74: =+VLOOKUP(TablaCVP_pre[[#This Row],[Nombre unidad TCV]],'[9]CVP-pre'!$H$6:$J$205,2,0) -> 0 | L74: =+VLOOKUP(TablaCVP_pre[[#This Row],[Nombre unidad TCV]],'[10]CVP-pre'!$H$6:$J$205,2,0) -> 0 | M74: =+VLOOKUP(TablaCVP_pre[[#This Row],[Nombre unidad TCV]],'[11]CVP-pre'!$H$6:$J$205,2,0) -> 0 | N74: =+VLOOKUP(TablaCVP_pre[[#This Row],[Nombre unidad TCV]],'[12]CVP-pre'!$H$6:$J$205,2,0) -> 0 | O74: =+SUM(TablaCVP_pre[[#This Row],[Enero]:[Diciembre]]) -> 0
B75: =+Unidades!B76 -> San Isidro | C75: =+VLOOKUP(TablaCVP_pre[[#This Row],[Nombre unidad TCV]],'[1]CVP-pre'!$H$6:$J$205,2,0) -> 197890996.2 | D75: =+VLOOKUP(TablaCVP_pre[[#This Row],[Nombre unidad TCV]],'[2]CVP-pre'!$H$6:$J$205,2,0) -> 5465855531 | E75: =+VLOOKUP(TablaCVP_pre[[#This Row],[Nombre unidad TCV]],'[3]CVP-pre'!$H$6:$J$205,2,0) -> 5624462797 | F75: =+VLOOKUP(TablaCVP_pre[[#This Row],[Nombre unidad TCV]],'[4]CVP-pre'!$H$6:$J$205,2,0) -> 6713416010 | G75: =+VLOOKUP(TablaCVP_pre[[#This Row],[Nombre unidad TCV]],'[5]CVP-pre'!$H$6:$J$205,2,0) -> 7217045100 | H75: =+VLOOKUP(TablaCVP_pre[[#This Row],[Nombre unidad TCV]],'[6]CVP-pre'!$H$6:$J$205,2,0) -> 2931911985 | I75: =+VLOOKUP(TablaCVP_pre[[#This Row],[Nombre unidad TCV]],'[7]CVP-pre'!$H$6:$J$205,2,0) -> 1040423246 | J75: =+VLOOKUP(TablaCVP_pre[[#This Row],[Nombre unidad TCV]],'[8]CVP-pre'!$H$6:$J$205,2,0) -> 3691946536 | K75: =+VLOOKUP(TablaCVP_pre[[#This Row],[Nombre unidad TCV]],'[9]CVP-pre'!$H$6:$J$205,2,0) -> 0 | L75: =+VLOOKUP(TablaCVP_pre[[#This Row],[Nombre unidad TCV]],'[10]CVP-pre'!$H$6:$J$205,2,0) -> 1038585545 | M75: =+VLOOKUP(TablaCVP_pre[[#This Row],[Nombre unidad TCV]],'[11]CVP-pre'!$H$6:$J$205,2,0) -> 236380052.3 | N75: =+VLOOKUP(TablaCVP_pre[[#This Row],[Nombre unidad TCV]],'[12]CVP-pre'!$H$6:$J$205,2,0) -> 130319103.7 | O75: =+SUM(TablaCVP_pre[[#This Row],[Enero]:[Diciembre]]) -> 3.42882369e+10
B76: =+Unidades!B77 -> San Isidro II | C76: =+VLOOKUP(TablaCVP_pre[[#This Row],[Nombre unidad TCV]],'[1]CVP-pre'!$H$6:$J$205,2,0) -> 345482588.6 | D76: =+VLOOKUP(TablaCVP_pre[[#This Row],[Nombre unidad TCV]],'[2]CVP-pre'!$H$6:$J$205,2,0) -> 6442856789 | E76: =+VLOOKUP(TablaCVP_pre[[#This Row],[Nombre unidad TCV]],'[3]CVP-pre'!$H$6:$J$205,2,0) -> 7257416171 | F76: =+VLOOKUP(TablaCVP_pre[[#This Row],[Nombre unidad TCV]],'[4]CVP-pre'!$H$6:$J$205,2,0) -> 6381271993 | G76: =+VLOOKUP(TablaCVP_pre[[#This Row],[Nombre unidad TCV]],'[5]CVP-pre'!$H$6:$J$205,2,0) -> 7054874675 | H76: =+VLOOKUP(TablaCVP_pre[[#This Row],[Nombre unidad TCV]],'[6]CVP-pre'!$H$6:$J$205,2,0) -> 4148155103 | I76: =+VLOOKUP(TablaCVP_pre[[#This Row],[Nombre unidad TCV]],'[7]CVP-pre'!$H$6:$J$205,2,0) -> 2202630231 | J76: =+VLOOKUP(TablaCVP_pre[[#This Row],[Nombre unidad TCV]],'[8]CVP-pre'!$H$6:$J$205,2,0) -> 4082224015 | K76: =+VLOOKUP(TablaCVP_pre[[#This Row],[Nombre unidad TCV]],'[9]CVP-pre'!$H$6:$J$205,2,0) -> 302398732.9 | L76: =+VLOOKUP(TablaCVP_pre[[#This Row],[Nombre unidad TCV]],'[10]CVP-pre'!$H$6:$J$205,2,0) -> 40653223.44 | M76: =+VLOOKUP(TablaCVP_pre[[#This Row],[Nombre unidad TCV]],'[11]CVP-pre'!$H$6:$J$205,2,0) -> 470860246.6 | N76: =+VLOOKUP(TablaCVP_pre[[#This Row],[Nombre unidad TCV]],'[12]CVP-pre'!$H$6:$J$205,2,0) -> 297948710.3 | O76: =+SUM(TablaCVP_pre[[#This Row],[Enero]:[Diciembre]]) -> 3.902677248e+10
B77: =+Unidades!B78 -> San Lorenzo de D. de Almagro U1 | C77: =+VLOOKUP(TablaCVP_pre[[#This Row],[Nombre unidad TCV]],'[1]CVP-pre'!$H$6:$J$205,2,0) -> 0 | D77: =+VLOOKUP(TablaCVP_pre[[#This Row],[Nombre unidad TCV]],'[2]CVP-pre'!$H$6:$J$205,2,0) -> 0 | E77: =+VLOOKUP(TablaCVP_pre[[#This Row],[Nombre unidad TCV]],'[3]CVP-pre'!$H$6:$J$205,2,0) -> 0 | F77: =+VLOOKUP(TablaCVP_pre[[#This Row],[Nombre unidad TCV]],'[4]CVP-pre'!$H$6:$J$205,2,0) -> 0 | G77: =+VLOOKUP(TablaCVP_pre[[#This Row],[Nombre unidad TCV]],'[5]CVP-pre'!$H$6:$J$205,2,0) -> 0 | H77: =+VLOOKUP(TablaCVP_pre[[#This Row],[Nombre unidad TCV]],'[6]CVP-pre'!$H$6:$J$205,2,0) -> 0 | I77: =+VLOOKUP(TablaCVP_pre[[#This Row],[Nombre unidad TCV]],'[7]CVP-pre'!$H$6:$J$205,2,0) -> 0 | J77: =+VLOOKUP(TablaCVP_pre[[#This Row],[Nombre unidad TCV]],'[8]CVP-pre'!$H$6:$J$205,2,0) -> 0 | K77: =+VLOOKUP(TablaCVP_pre[[#This Row],[Nombre unidad TCV]],'[9]CVP-pre'!$H$6:$J$205,2,0) -> 0 | L77: =+VLOOKUP(TablaCVP_pre[[#This Row],[Nombre unidad TCV]],'[10]CVP-pre'!$H$6:$J$205,2,0) -> 0 | M77: =+VLOOKUP(TablaCVP_pre[[#This Row],[Nombre unidad TCV]],'[11]CVP-pre'!$H$6:$J$205,2,0) -> 0 | N77: =+VLOOKUP(TablaCVP_pre[[#This Row],[Nombre unidad TCV]],'[12]CVP-pre'!$H$6:$J$205,2,0) -> 0 | O77: =+SUM(TablaCVP_pre[[#This Row],[Enero]:[Diciembre]]) -> 0
B78: =+Unidades!B79 -> San Lorenzo de D. de Almagro U2 | C78: =+VLOOKUP(TablaCVP_pre[[#This Row],[Nombre unidad TCV]],'[1]CVP-pre'!$H$6:$J$205,2,0) -> 0 | D78: =+VLOOKUP(TablaCVP_pre[[#This Row],[Nombre unidad TCV]],'[2]CVP-pre'!$H$6:$J$205,2,0) -> 0 | E78: =+VLOOKUP(TablaCVP_pre[[#This Row],[Nombre unidad TCV]],'[3]CVP-pre'!$H$6:$J$205,2,0) -> 0 | F78: =+VLOOKUP(TablaCVP_pre[[#This Row],[Nombre unidad TCV]],'[4]CVP-pre'!$H$6:$J$205,2,0) -> 0 | G78: =+VLOOKUP(TablaCVP_pre[[#This Row],[Nombre unidad TCV]],'[5]CVP-pre'!$H$6:$J$205,2,0) -> 0 | H78: =+VLOOKUP(TablaCVP_pre[[#This Row],[Nombre unidad TCV]],'[6]CVP-pre'!$H$6:$J$205,2,0) -> 0 | I78: =+VLOOKUP(TablaCVP_pre[[#This Row],[Nombre unidad TCV]],'[7]CVP-pre'!$H$6:$J$205,2,0) -> 0 | J78: =+VLOOKUP(TablaCVP_pre[[#This Row],[Nombre unidad TCV]],'[8]CVP-pre'!$H$6:$J$205,2,0) -> 0 | K78: =+VLOOKUP(TablaCVP_pre[[#This Row],[Nombre unidad TCV]],'[9]CVP-pre'!$H$6:$J$205,2,0) -> 0 | L78: =+VLOOKUP(TablaCVP_pre[[#This Row],[Nombre unidad TCV]],'[10]CVP-pre'!$H$6:$J$205,2,0) -> 0 | M78: =+VLOOKUP(TablaCVP_pre[[#This Row],[Nombre unidad TCV]],'[11]CVP-pre'!$H$6:$J$205,2,0) -> 0 | N78: =+VLOOKUP(TablaCVP_pre[[#This Row],[Nombre unidad TCV]],'[12]CVP-pre'!$H$6:$J$205,2,0) -> 0 | O78: =+SUM(TablaCVP_pre[[#This Row],[Enero]:[Diciembre]]) -> 0
B79: =+Unidades!B80 -> Santa Lidia | C79: =+VLOOKUP(TablaCVP_pre[[#This Row],[Nombre unidad TCV]],'[1]CVP-pre'!$H$6:$J$205,2,0) -> 0 | D79: =+VLOOKUP(TablaCVP_pre[[#This Row],[Nombre unidad TCV]],'[2]CVP-pre'!$H$6:$J$205,2,0) -> 0 | E79: =+VLOOKUP(TablaCVP_pre[[#This Row],[Nombre unidad TCV]],'[3]CVP-pre'!$H$6:$J$205,2,0) -> 0 | F79: =+VLOOKUP(TablaCVP_pre[[#This Row],[Nombre unidad TCV]],'[4]CVP-pre'!$H$6:$J$205,2,0) -> 0 | G79: =+VLOOKUP(TablaCVP_pre[[#This Row],[Nombre unidad TCV]],'[5]CVP-pre'!$H$6:$J$205,2,0) -> 238645238.9 | H79: =+VLOOKUP(TablaCVP_pre[[#This Row],[Nombre unidad TCV]],'[6]CVP-pre'!$H$6:$J$205,2,0) -> 0 | I79: =+VLOOKUP(TablaCVP_pre[[#This Row],[Nombre unidad TCV]],'[7]CVP-pre'!$H$6:$J$205,2,0) -> 0 | J79: =+VLOOKUP(TablaCVP_pre[[#This Row],[Nombre unidad TCV]],'[8]CVP-pre'!$H$6:$J$205,2,0) -> 0 | K79: =+VLOOKUP(TablaCVP_pre[[#This Row],[Nombre unidad TCV]],'[9]CVP-pre'!$H$6:$J$205,2,0) -> 0 | L79: =+VLOOKUP(TablaCVP_pre[[#This Row],[Nombre unidad TCV]],'[10]CVP-pre'!$H$6:$J$205,2,0) -> 0 | M79: =+VLOOKUP(TablaCVP_pre[[#This Row],[Nombre unidad TCV]],'[11]CVP-pre'!$H$6:$J$205,2,0) -> 0 | N79: =+VLOOKUP(TablaCVP_pre[[#This Row],[Nombre unidad TCV]],'[12]CVP-pre'!$H$6:$J$205,2,0) -> 0 | O79: =+SUM(TablaCVP_pre[[#This Row],[Enero]:[Diciembre]]) -> 238645238.9
B80: =+Unidades!B81 -> Santa María | C80: =+VLOOKUP(TablaCVP_pre[[#This Row],[Nombre unidad TCV]],'[1]CVP-pre'!$H$6:$J$205,2,0) -> 5365210825 | D80: =+VLOOKUP(TablaCVP_pre[[#This Row],[Nombre unidad TCV]],'[2]CVP-pre'!$H$6:$J$205,2,0) -> 5512732882 | E80: =+VLOOKUP(TablaCVP_pre[[#This Row],[Nombre unidad TCV]],'[3]CVP-pre'!$H$6:$J$205,2,0) -> 6291455098 | F80: =+VLOOKUP(TablaCVP_pre[[#This Row],[Nombre unidad TCV]],'[4]CVP-pre'!$H$6:$J$205,2,0) -> 4769402637 | G80: =+VLOOKUP(TablaCVP_pre[[#This Row],[Nombre unidad TCV]],'[5]CVP-pre'!$H$6:$J$205,2,0) -> 6522886520 | H80: =+VLOOKUP(TablaCVP_pre[[#This Row],[Nombre unidad TCV]],'[6]CVP-pre'!$H$6:$J$205,2,0) -> 5853242296 | I80: =+VLOOKUP(TablaCVP_pre[[#This Row],[Nombre unidad TCV]],'[7]CVP-pre'!$H$6:$J$205,2,0) -> 4730118537 | J80: =+VLOOKUP(TablaCVP_pre[[#This Row],[Nombre unidad TCV]],'[8]CVP-pre'!$H$6:$J$205,2,0) -> 0 | K80: =+VLOOKUP(TablaCVP_pre[[#This Row],[Nombre unidad TCV]],'[9]CVP-pre'!$H$6:$J$205,2,0) -> 0 | L80: =+VLOOKUP(TablaCVP_pre[[#This Row],[Nombre unidad TCV]],'[10]CVP-pre'!$H$6:$J$205,2,0) -> 0 | M80: =+VLOOKUP(TablaCVP_pre[[#This Row],[Nombre unidad TCV]],'[11]CVP-pre'!$H$6:$J$205,2,0) -> 2493784081 | N80: =+VLOOKUP(TablaCVP_pre[[#This Row],[Nombre unidad TCV]],'[12]CVP-pre'!$H$6:$J$205,2,0) -> 6516195354 | O80: =+SUM(TablaCVP_pre[[#This Row],[Enero]:[Diciembre]]) -> 4.805502823e+10
B81: =+Unidades!B82 -> Taltal 1 | C81: =+VLOOKUP(TablaCVP_pre[[#This Row],[Nombre unidad TCV]],'[1]CVP-pre'!$H$6:$J$205,2,0) -> 0 | D81: =+VLOOKUP(TablaCVP_pre[[#This Row],[Nombre unidad TCV]],'[2]CVP-pre'!$H$6:$J$205,2,0) -> 0 | E81: =+VLOOKUP(TablaCVP_pre[[#This Row],[Nombre unidad TCV]],'[3]CVP-pre'!$H$6:$J$205,2,0) -> 6414032.541 | F81: =+VLOOKUP(TablaCVP_pre[[#This Row],[Nombre unidad TCV]],'[4]CVP-pre'!$H$6:$J$205,2,0) -> 15330370.87 | G81: =+VLOOKUP(TablaCVP_pre[[#This Row],[Nombre unidad TCV]],'[5]CVP-pre'!$H$6:$J$205,2,0) -> 0 | H81: =+VLOOKUP(TablaCVP_pre[[#This Row],[Nombre unidad TCV]],'[6]CVP-pre'!$H$6:$J$205,2,0) -> 0 | I81: =+VLOOKUP(TablaCVP_pre[[#This Row],[Nombre unidad TCV]],'[7]CVP-pre'!$H$6:$J$205,2,0) -> 0 | J81: =+VLOOKUP(TablaCVP_pre[[#This Row],[Nombre unidad TCV]],'[8]CVP-pre'!$H$6:$J$205,2,0) -> 0 | K81: =+VLOOKUP(TablaCVP_pre[[#This Row],[Nombre unidad TCV]],'[9]CVP-pre'!$H$6:$J$205,2,0) -> 20145349.95 | L81: =+VLOOKUP(TablaCVP_pre[[#This Row],[Nombre unidad TCV]],'[10]CVP-pre'!$H$6:$J$205,2,0) -> 0 | M81: =+VLOOKUP(TablaCVP_pre[[#This Row],[Nombre unidad TCV]],'[11]CVP-pre'!$H$6:$J$205,2,0) -> 0 | N81: =+VLOOKUP(TablaCVP_pre[[#This Row],[Nombre unidad TCV]],'[12]CVP-pre'!$H$6:$J$205,2,0) -> 0 | O81: =+SUM(TablaCVP_pre[[#This Row],[Enero]:[Diciembre]]) -> 41889753.36
B82: =+Unidades!B83 -> Taltal 2 | C82: =+VLOOKUP(TablaCVP_pre[[#This Row],[Nombre unidad TCV]],'[1]CVP-pre'!$H$6:$J$205,2,0) -> 0 | D82: =+VLOOKUP(TablaCVP_pre[[#This Row],[Nombre unidad TCV]],'[2]CVP-pre'!$H$6:$J$205,2,0) -> 0 | E82: =+VLOOKUP(TablaCVP_pre[[#This Row],[Nombre unidad TCV]],'[3]CVP-pre'!$H$6:$J$205,2,0) -> 0 | F82: =+VLOOKUP(TablaCVP_pre[[#This Row],[Nombre unidad TCV]],'[4]CVP-pre'!$H$6:$J$205,2,0) -> 0 | G82: =+VLOOKUP(TablaCVP_pre[[#This Row],[Nombre unidad TCV]],'[5]CVP-pre'!$H$6:$J$205,2,0) -> 0 | H82: =+VLOOKUP(TablaCVP_pre[[#This Row],[Nombre unidad TCV]],'[6]CVP-pre'!$H$6:$J$205,2,0) -> 0 | I82: =+VLOOKUP(TablaCVP_pre[[#This Row],[Nombre unidad TCV]],'[7]CVP-pre'!$H$6:$J$205,2,0) -> 0 | J82: =+VLOOKUP(TablaCVP_pre[[#This Row],[Nombre unidad TCV]],'[8]CVP-pre'!$H$6:$J$205,2,0) -> 0 | K82: =+VLOOKUP(TablaCVP_pre[[#This Row],[Nombre unidad TCV]],'[9]CVP-pre'!$H$6:$J$205,2,0) -> 0 | L82: =+VLOOKUP(TablaCVP_pre[[#This Row],[Nombre unidad TCV]],'[10]CVP-pre'!$H$6:$J$205,2,0) -> 0 | M82: =+VLOOKUP(TablaCVP_pre[[#This Row],[Nombre unidad TCV]],'[11]CVP-pre'!$H$6:$J$205,2,0) -> 0 | N82: =+VLOOKUP(TablaCVP_pre[[#This Row],[Nombre unidad TCV]],'[12]CVP-pre'!$H$6:$J$205,2,0) -> 0 | O82: =+SUM(TablaCVP_pre[[#This Row],[Enero]:[Diciembre]]) -> 0
B83: =+Unidades!B84 -> TG_Coronel | C83: =+VLOOKUP(TablaCVP_pre[[#This Row],[Nombre unidad TCV]],'[1]CVP-pre'!$H$6:$J$205,2,0) -> 0 | D83: =+VLOOKUP(TablaCVP_pre[[#This Row],[Nombre unidad TCV]],'[2]CVP-pre'!$H$6:$J$205,2,0) -> 0 | E83: =+VLOOKUP(TablaCVP_pre[[#This Row],[Nombre unidad TCV]],'[3]CVP-pre'!$H$6:$J$205,2,0) -> 114778983.4 | F83: =+VLOOKUP(TablaCVP_pre[[#This Row],[Nombre unidad TCV]],'[4]CVP-pre'!$H$6:$J$205,2,0) -> 0 | G83: =+VLOOKUP(TablaCVP_pre[[#This Row],[Nombre unidad TCV]],'[5]CVP-pre'!$H$6:$J$205,2,0) -> 0 | H83: =+VLOOKUP(TablaCVP_pre[[#This Row],[Nombre unidad TCV]],'[6]CVP-pre'!$H$6:$J$205,2,0) -> 20609585.03 | I83: =+VLOOKUP(TablaCVP_pre[[#This Row],[Nombre unidad TCV]],'[7]CVP-pre'!$H$6:$J$205,2,0) -> 0 | J83: =+VLOOKUP(TablaCVP_pre[[#This Row],[Nombre unidad TCV]],'[8]CVP-pre'!$H$6:$J$205,2,0) -> 0 | K83: =+VLOOKUP(TablaCVP_pre[[#This Row],[Nombre unidad TCV]],'[9]CVP-pre'!$H$6:$J$205,2,0) -> 0 | L83: =+VLOOKUP(TablaCVP_pre[[#This Row],[Nombre unidad TCV]],'[10]CVP-pre'!$H$6:$J$205,2,0) -> 5654405.327 | M83: =+VLOOKUP(TablaCVP_pre[[#This Row],[Nombre unidad TCV]],'[11]CVP-pre'!$H$6:$J$205,2,0) -> 0 | N83: =+VLOOKUP(TablaCVP_pre[[#This Row],[Nombre unidad TCV]],'[12]CVP-pre'!$H$6:$J$205,2,0) -> 0 | O83: =+SUM(TablaCVP_pre[[#This Row],[Enero]:[Diciembre]]) -> 141042973.7
B84: =+Unidades!B85 -> TG1 | C84: =+VLOOKUP(TablaCVP_pre[[#This Row],[Nombre unidad TCV]],'[1]CVP-pre'!$H$6:$J$205,2,0) -> 0 | D84: =+VLOOKUP(TablaCVP_pre[[#This Row],[Nombre unidad TCV]],'[2]CVP-pre'!$H$6:$J$205,2,0) -> 0 | E84: =+VLOOKUP(TablaCVP_pre[[#This Row],[Nombre unidad TCV]],'[3]CVP-pre'!$H$6:$J$205,2,0) -> 0 | F84: =+VLOOKUP(TablaCVP_pre[[#This Row],[Nombre unidad TCV]],'[4]CVP-pre'!$H$6:$J$205,2,0) -> 0 | G84: =+VLOOKUP(TablaCVP_pre[[#This Row],[Nombre unidad TCV]],'[5]CVP-pre'!$H$6:$J$205,2,0) -> 0 | H84: =+VLOOKUP(TablaCVP_pre[[#This Row],[Nombre unidad TCV]],'[6]CVP-pre'!$H$6:$J$205,2,0) -> 0 | I84: =+VLOOKUP(TablaCVP_pre[[#This Row],[Nombre unidad TCV]],'[7]CVP-pre'!$H$6:$J$205,2,0) -> 0 | J84: =+VLOOKUP(TablaCVP_pre[[#This Row],[Nombre unidad TCV]],'[8]CVP-pre'!$H$6:$J$205,2,0) -> 0 | K84: =+VLOOKUP(TablaCVP_pre[[#This Row],[Nombre unidad TCV]],'[9]CVP-pre'!$H$6:$J$205,2,0) -> 0 | L84: =+VLOOKUP(TablaCVP_pre[[#This Row],[Nombre unidad TCV]],'[10]CVP-pre'!$H$6:$J$205,2,0) -> 0 | M84: =+VLOOKUP(TablaCVP_pre[[#This Row],[Nombre unidad TCV]],'[11]CVP-pre'!$H$6:$J$205,2,0) -> 0 | N84: =+VLOOKUP(TablaCVP_pre[[#This Row],[Nombre unidad TCV]],'[12]CVP-pre'!$H$6:$J$205,2,0) -> 0 | O84: =+SUM(TablaCVP_pre[[#This Row],[Enero]:[Diciembre]]) -> 0
B85: =+Unidades!B86 -> TG2 | C85: =+VLOOKUP(TablaCVP_pre[[#This Row],[Nombre unidad TCV]],'[1]CVP-pre'!$H$6:$J$205,2,0) -> 0 | D85: =+VLOOKUP(TablaCVP_pre[[#This Row],[Nombre unidad TCV]],'[2]CVP-pre'!$H$6:$J$205,2,0) -> 0 | E85: =+VLOOKUP(TablaCVP_pre[[#This Row],[Nombre unidad TCV]],'[3]CVP-pre'!$H$6:$J$205,2,0) -> 0 | F85: =+VLOOKUP(TablaCVP_pre[[#This Row],[Nombre unidad TCV]],'[4]CVP-pre'!$H$6:$J$205,2,0) -> 0 | G85: =+VLOOKUP(TablaCVP_pre[[#This Row],[Nombre unidad TCV]],'[5]CVP-pre'!$H$6:$J$205,2,0) -> 0 | H85: =+VLOOKUP(TablaCVP_pre[[#This Row],[Nombre unidad TCV]],'[6]CVP-pre'!$H$6:$J$205,2,0) -> 0 | I85: =+VLOOKUP(TablaCVP_pre[[#This Row],[Nombre unidad TCV]],'[7]CVP-pre'!$H$6:$J$205,2,0) -> 0 | J85: =+VLOOKUP(TablaCVP_pre[[#This Row],[Nombre unidad TCV]],'[8]CVP-pre'!$H$6:$J$205,2,0) -> 0 | K85: =+VLOOKUP(TablaCVP_pre[[#This Row],[Nombre unidad TCV]],'[9]CVP-pre'!$H$6:$J$205,2,0) -> 0 | L85: =+VLOOKUP(TablaCVP_pre[[#This Row],[Nombre unidad TCV]],'[10]CVP-pre'!$H$6:$J$205,2,0) -> 0 | M85: =+VLOOKUP(TablaCVP_pre[[#This Row],[Nombre unidad TCV]],'[11]CVP-pre'!$H$6:$J$205,2,0) -> 0 | N85: =+VLOOKUP(TablaCVP_pre[[#This Row],[Nombre unidad TCV]],'[12]CVP-pre'!$H$6:$J$205,2,0) -> 0 | O85: =+SUM(TablaCVP_pre[[#This Row],[Enero]:[Diciembre]]) -> 0
B86: =+Unidades!B87 -> TG3 | C86: =+VLOOKUP(TablaCVP_pre[[#This Row],[Nombre unidad TCV]],'[1]CVP-pre'!$H$6:$J$205,2,0) -> 0 | D86: =+VLOOKUP(TablaCVP_pre[[#This Row],[Nombre unidad TCV]],'[2]CVP-pre'!$H$6:$J$205,2,0) -> 8979498.826 | E86: =+VLOOKUP(TablaCVP_pre[[#This Row],[Nombre unidad TCV]],'[3]CVP-pre'!$H$6:$J$205,2,0) -> 6493548.293 | F86: =+VLOOKUP(TablaCVP_pre[[#This Row],[Nombre unidad TCV]],'[4]CVP-pre'!$H$6:$J$205,2,0) -> 62523952.94 | G86: =+VLOOKUP(TablaCVP_pre[[#This Row],[Nombre unidad TCV]],'[5]CVP-pre'!$H$6:$J$205,2,0) -> 8579129.397 | H86: =+VLOOKUP(TablaCVP_pre[[#This Row],[Nombre unidad TCV]],'[6]CVP-pre'!$H$6:$J$205,2,0) -> 0 | I86: =+VLOOKUP(TablaCVP_pre[[#This Row],[Nombre unidad TCV]],'[7]CVP-pre'!$H$6:$J$205,2,0) -> 14862952.65 | J86: =+VLOOKUP(TablaCVP_pre[[#This Row],[Nombre unidad TCV]],'[8]CVP-pre'!$H$6:$J$205,2,0) -> 7629463.319 | K86: =+VLOOKUP(TablaCVP_pre[[#This Row],[Nombre unidad TCV]],'[9]CVP-pre'!$H$6:$J$205,2,0) -> 26258937.52 | L86: =+VLOOKUP(TablaCVP_pre[[#This Row],[Nombre unidad TCV]],'[10]CVP-pre'!$H$6:$J$205,2,0) -> 17697986.8 | M86: =+VLOOKUP(TablaCVP_pre[[#This Row],[Nombre unidad TCV]],'[11]CVP-pre'!$H$6:$J$205,2,0) -> 5292268.418 | N86: =+VLOOKUP(TablaCVP_pre[[#This Row],[Nombre unidad TCV]],'[12]CVP-pre'!$H$6:$J$205,2,0) -> 12591685.26 | O86: =+SUM(TablaCVP_pre[[#This Row],[Enero]:[Diciembre]]) -> 170909423.4
B87: =+Unidades!B88 -> TGTAR | C87: =+VLOOKUP(TablaCVP_pre[[#This Row],[Nombre unidad TCV]],'[1]CVP-pre'!$H$6:$J$205,2,0) -> 0 | D87: =+VLOOKUP(TablaCVP_pre[[#This Row],[Nombre unidad TCV]],'[2]CVP-pre'!$H$6:$J$205,2,0) -> 0 | E87: =+VLOOKUP(TablaCVP_pre[[#This Row],[Nombre unidad TCV]],'[3]CVP-pre'!$H$6:$J$205,2,0) -> 0 | F87: =+VLOOKUP(TablaCVP_pre[[#This Row],[Nombre unidad TCV]],'[4]CVP-pre'!$H$6:$J$205,2,0) -> 12473397.74 | G87: =+VLOOKUP(TablaCVP_pre[[#This Row],[Nombre unidad TCV]],'[5]CVP-pre'!$H$6:$J$205,2,0) -> 0 | H87: =+VLOOKUP(TablaCVP_pre[[#This Row],[Nombre unidad TCV]],'[6]CVP-pre'!$H$6:$J$205,2,0) -> 0 | I87: =+VLOOKUP(TablaCVP_pre[[#This Row],[Nombre unidad TCV]],'[7]CVP-pre'!$H$6:$J$205,2,0) -> 0 | J87: =+VLOOKUP(TablaCVP_pre[[#This Row],[Nombre unidad TCV]],'[8]CVP-pre'!$H$6:$J$205,2,0) -> 0 | K87: =+VLOOKUP(TablaCVP_pre[[#This Row],[Nombre unidad TCV]],'[9]CVP-pre'!$H$6:$J$205,2,0) -> 0 | L87: =+VLOOKUP(TablaCVP_pre[[#This Row],[Nombre unidad TCV]],'[10]CVP-pre'!$H$6:$J$205,2,0) -> 0 | M87: =+VLOOKUP(TablaCVP_pre[[#This Row],[Nombre unidad TCV]],'[11]CVP-pre'!$H$6:$J$205,2,0) -> 0 | N87: =+VLOOKUP(TablaCVP_pre[[#This Row],[Nombre unidad TCV]],'[12]CVP-pre'!$H$6:$J$205,2,0) -> 32031.39758 | O87: =+SUM(TablaCVP_pre[[#This Row],[Enero]:[Diciembre]]) -> 12505429.14
B88: =+Unidades!B89 -> U12 | C88: =+VLOOKUP(TablaCVP_pre[[#This Row],[Nombre unidad TCV]],'[1]CVP-pre'!$H$6:$J$205,2,0) -> 0 | D88: =+VLOOKUP(TablaCVP_pre[[#This Row],[Nombre unidad TCV]],'[2]CVP-pre'!$H$6:$J$205,2,0) -> 219699093.6 | E88: =+VLOOKUP(TablaCVP_pre[[#This Row],[Nombre unidad TCV]],'[3]CVP-pre'!$H$6:$J$205,2,0) -> 146533886.8 | F88: =+VLOOKUP(TablaCVP_pre[[#This Row],[Nombre unidad TCV]],'[4]CVP-pre'!$H$6:$J$205,2,0) -> 0 | G88: =+VLOOKUP(TablaCVP_pre[[#This Row],[Nombre unidad TCV]],'[5]CVP-pre'!$H$6:$J$205,2,0) -> 0 | H88: =+VLOOKUP(TablaCVP_pre[[#This Row],[Nombre unidad TCV]],'[6]CVP-pre'!$H$6:$J$205,2,0) -> 0 | I88: =+VLOOKUP(TablaCVP_pre[[#This Row],[Nombre unidad TCV]],'[7]CVP-pre'!$H$6:$J$205,2,0) -> 0 | J88: =+VLOOKUP(TablaCVP_pre[[#This Row],[Nombre unidad TCV]],'[8]CVP-pre'!$H$6:$J$205,2,0) -> 0 | K88: =+VLOOKUP(TablaCVP_pre[[#This Row],[Nombre unidad TCV]],'[9]CVP-pre'!$H$6:$J$205,2,0) -> 0 | L88: =+VLOOKUP(TablaCVP_pre[[#This Row],[Nombre unidad TCV]],'[10]CVP-pre'!$H$6:$J$205,2,0) -> 0 | M88: =+VLOOKUP(TablaCVP_pre[[#This Row],[Nombre unidad TCV]],'[11]CVP-pre'!$H$6:$J$205,2,0) -> 0 | N88: =+VLOOKUP(TablaCVP_pre[[#This Row],[Nombre unidad TCV]],'[12]CVP-pre'!$H$6:$J$205,2,0) -> 0 | O88: =+SUM(TablaCVP_pre[[#This Row],[Enero]:[Diciembre]]) -> 366232980.4
